Workbook

Sheet Sample Report (hidden)
A2: Date
A3: Hen
A4: Program
A5: Start at 999999
A6: Sequence component 1 | B6: Time 1 | C6: Seqeunce Component 2 | D6: Time 2 | E6: Seqeunce Component 3 | F6: Time 3 | G6: Correct 0 = No 1=Yes | J6: Seqeunce | K6: Time
A7: 12 | B7: 7 | C7: 12 | D7: 42 | E7: 13 | F7: 18 | G7: if 77 new line, if 31 or 41 = yes new line on 77, | J7: =string of Seqeunce compponent 1, 2 & 3 | K7: =time 3
A8: This continues until ther is a 1 on its own to indicate start of summary data
J9: 10-19 =1
A10: Summary Data | J10: 20-29 =2
A11: Correct | B11: Incorrect | C11: Rft | D11: total | E11: Av Correct | F11: Av Incorrect | G11: Percent correct | H11: Time | J11: in this example the seqeunce would be 111
A12: 40 | B12: 33 | C12: 40 | D12: 73 | E12: 23.95 | F12: 15 | G12: 54 | H12: 806

Sheet Summary
A2: Day | B2: Date | C2: Average Response Rate | D2: Target % | E2: RF for non correct sequence | F2: U Value | K2: Block 1 | L2: Block 2 | M2: Block 3 | N2: Block 4 | O2: Block 5 | P2: Block 6
A3: 1 | B3: ='!MC01920.091'!B2:C2 -> <date> | C3: =('!MC01920.091'!D7/60)/'!MC01920.091'!Q3 -> 0.001578947368 | D3: ='!MC01920.091'!N20/'!MC01920.091'!Q3 -> 0.2105263158 | E3: =SUM('!MC01920.091'!L20:Q20)/'!MC01920.091'!Q3 -> 0.6526315789 | F3: ='!MC01920.091'!Q16 -> 0.1855844858 | J3: Average Response Rate | K3: =AVERAGE(C3:C7) -> 0.006060762948 | L3: =AVERAGE(C8:C12) -> 0.01861968583 | M3: =AVERAGE(C13:C17) -> 0.0156434835 | N3: =AVERAGE(C18:C22) -> 0.02139796211 | O3: =AVERAGE(C23:C27) -> 0.01451744473 | P3: =AVERAGE(C28:C32) -> 0.01006986812
A4: 2 | B4: ='!MC02930.091'!B2:C2 -> <date> | C4: =('!MC02930.091'!D7/60)/'!MC02930.091'!Q3 -> 0.003092783505 | D4: ='!MC02930.091'!N20/'!MC02930.091'!Q3 -> 0.412371134 | E4: =SUM('!MC02930.091'!L20:Q20)/'!MC02930.091'!Q3 -> 0.9690721649 | F4: ='!MC02930.091'!Q16 -> 0.2510841035 | J4: Target % | K4: =AVERAGE(D3:D7) -> 0.5623433891 | L4: =AVERAGE(D8:D12) -> 0.7641161239 | M4: =AVERAGE(D13:D17) -> 0.8432519861 | N4: =AVERAGE(D18:D22) -> 0.8334362576 | O4: =AVERAGE(D23:D27) -> 0.8478684436 | P4: =AVERAGE(D28:D32) -> 0.9583408839
A5: 3 | B5: ='!MC03730.091'!B2:C2 -> <date> | C5: =('!MC03730.091'!D7/60)/'!MC03730.091'!Q3 -> 0.005721393035 | D5: ='!MC03730.091'!N20/'!MC03730.091'!Q3 -> 0.5970149254 | E5: =SUM('!MC03730.091'!L20:Q20)/'!MC03730.091'!Q3 -> 1.253731343 | F5: ='!MC03730.091'!Q16 -> 0.23702003 | J5: CCRF | K5: =AVERAGE(E3:E7) -> 1.123707979 | L5: =AVERAGE(E8:E12) -> 1.319364997 | M5: =AVERAGE(E13:E17) -> 1.472605965 | N5: =AVERAGE(E18:E22) -> 1.414876074 | O5: =AVERAGE(E23:E27) -> 1.483317746 | P5: =AVERAGE(E28:E32) -> 1.616717004
A6: 4 | B6: ='!MC04920.091'!B2:C2 -> <date> | C6: =('!MC04920.091'!D7/60)/'!MC04920.091'!Q3 -> 0.006790123457 | D6: ='!MC04920.091'!N20/'!MC04920.091'!Q3 -> 0.7407407407 | E6: =SUM('!MC04920.091'!L20:Q20)/'!MC04920.091'!Q3 -> 1.296296296 | F6: ='!MC04920.091'!Q16 -> 0.2018430609 | J6: U Value | K6: =AVERAGE(F3:F7) -> 0.2022517389 | L6: =AVERAGE(F8:F12) -> 0.1626318241 | M6: =AVERAGE(F13:F17) -> 0.1351736127 | N6: =AVERAGE(F18:F22) -> 0.1275414537 | O6: =AVERAGE(F23:F27) -> 0.1238464972 | P6: =AVERAGE(F28:F32) -> 0.04662901363
A7: 5 | B7: ='!MC05800.091'!B2:C2 -> <date> | C7: =('!MC05800.091'!D7/60)/'!MC05800.091'!Q3 -> 0.01312056738 | D7: ='!MC05800.091'!N20/'!MC05800.091'!Q3 -> 0.8510638298 | E7: =SUM('!MC05800.091'!L20:Q20)/'!MC05800.091'!Q3 -> 1.446808511 | F7: ='!MC05800.091'!Q16 -> 0.1357270143
A8: 6 | B8: ='!MC07910.091'!B2:C2 -> <date> | C8: =('!MC07910.091'!D7/60)/'!MC07910.091'!Q3 -> 0.005128205128 | D8: ='!MC07910.091'!N20/'!MC07910.091'!Q3 -> 0.7692307692 | E8: =SUM('!MC07910.091'!L20:Q20)/'!MC07910.091'!Q3 -> 1.307692308 | F8: ='!MC07910.091'!Q16 -> 0.1927630297
A9: 7 | B9: ='!MC08900.091'!B2:C2 -> <date> | C9: =('!MC08900.091'!D7/60)/'!MC08900.091'!Q3 -> 0.005729166667 | D9: ='!MC08900.091'!N20/'!MC08900.091'!Q3 -> 0.625 | E9: =SUM('!MC08900.091'!L20:Q20)/'!MC08900.091'!Q3 -> 1.140625 | F9: ='!MC08900.091'!Q16 -> 0.1930451115 | G9: =K3 -> 0.006060762948 | H9: 0.01861968583 | I9: 0.0156434835 | J9: 0.02139796211 | K9: 0.01451744473 | L9: 0.01006986812 | M9: =K4 -> 0.5623433891 | N9: 0.7641161239 | O9: 0.8432519861 | P9: 0.8334362576 | Q9: 0.8478684436 | R9: 0.9583408839 | S9: =K6 -> 0.2022517389 | T9: 0.1626318241 | U9: 0.1351736127 | V9: 0.1275414537 | W9: 0.1238464972 | X9: 0.04662901363
A10: 8 | B10: ='!MC09900.091'!B2:C2 -> <date> | C10: =('!MC09900.091'!D7/60)/'!MC09900.091'!Q3 -> 0.03908045977 | D10: ='!MC09900.091'!N20/'!MC09900.091'!Q3 -> 0.6896551724 | E10: =SUM('!MC09900.091'!L20:Q20)/'!MC09900.091'!Q3 -> 1.224137931 | F10: ='!MC09900.091'!Q16 -> 0.193025211
A11: 9 | B11: ='!MC10900.091'!B2:C2 -> <date> | C11: =('!MC10900.091'!D7/60)/'!MC10900.091'!Q3 -> 0.03006535948 | D11: ='!MC10900.091'!N20/'!MC10900.091'!Q3 -> 0.7843137255 | E11: =SUM('!MC10900.091'!L20:Q20)/'!MC10900.091'!Q3 -> 1.352941176 | F11: ='!MC10900.091'!Q16 -> 0.1742746903
A12: 10 | B12: ='!MC11840.091'!B2:C2 -> <date> | C12: =('!MC11840.091'!D7/60)/'!MC11840.091'!Q3 -> 0.0130952381 | D12: ='!MC11840.091'!N20/'!MC11840.091'!Q3 -> 0.9523809524 | E12: =SUM('!MC11840.091'!L20:Q20)/'!MC11840.091'!Q3 -> 1.571428571 | F12: ='!MC11840.091'!Q16 -> 0.06005107821
A13: 11 | B13: ='!MC12800.091'!B2:C2 -> <date> | C13: =('!MC12800.091'!D7/60)/'!MC12800.091'!Q3 -> 0.01022727273 | D13: ='!MC12800.091'!N20/'!MC12800.091'!Q3 -> 0.9090909091 | E13: =SUM('!MC12800.091'!L20:Q20)/'!MC12800.091'!Q3 -> 1.75 | F13: ='!MC12800.091'!Q16 -> 0.08050233387
A14: 12 | B14: ='!MC14850.091'!B2:C2 -> <date> | C14: =('!MC14850.091'!D7/60)/'!MC14850.091'!Q3 -> 0.009183673469 | D14: ='!MC14850.091'!N20/'!MC14850.091'!Q3 -> 0.8163265306 | E14: =SUM('!MC14850.091'!L20:Q20)/'!MC14850.091'!Q3 -> 1.387755102 | F14: ='!MC14850.091'!Q16 -> 0.1695038001
A15: 13 | B15: ='!MC20850.091'!B2:C2 -> <date> | C15: =('!MC20850.091'!D7/60)/'!MC20850.091'!Q3 -> 0.04246031746 | D15: ='!MC20850.091'!N20/'!MC20850.091'!Q3 -> 0.9523809524 | E15: =SUM('!MC20850.091'!L20:Q20)/'!MC20850.091'!Q3 -> 1.571428571 | F15: ='!MC20850.091'!Q16 -> 0.05122017233
A16: 14 | B16: ='!MC24850.091'!B2:C2 -> <date> | C16: =('!MC24850.091'!D7/60)/'!MC24850.091'!Q3 -> 0.008974358974 | D16: ='!MC24850.091'!N20/'!MC24850.091'!Q3 -> 0.7692307692 | E16: =SUM('!MC24850.091'!L20:Q20)/'!MC24850.091'!Q3 -> 1.326923077 | F16: ='!MC24850.091'!Q16 -> 0.1957877523
A17: 15 | B17: ='!N102830.091'!B2:C2 -> <date> | C17: =('!N102830.091'!D7/60)/'!N102830.091'!Q3 -> 0.007371794872 | D17: ='!N102830.091'!N20/'!N102830.091'!Q3 -> 0.7692307692 | E17: =SUM('!N102830.091'!L20:Q20)/'!N102830.091'!Q3 -> 1.326923077 | F17: ='!N102830.091'!Q16 -> 0.1788540046
A18: 16 | B18: ='!N104A00.091'!B2:C2 -> <date> | C18: =('!N104A00.091'!D7/60)/'!N104A00.091'!Q3 -> 0.01240310078 | D18: ='!N104A00.091'!N20/'!N104A00.091'!Q3 -> 0.9302325581 | E18: =SUM('!N104A00.091'!L20:Q20)/'!N104A00.091'!Q3 -> 1.534883721 | F18: ='!N104A00.091'!Q16 -> 0.07908245547
A19: 17 | B19: ='!N105830.091'!B2:C2 -> <date> | C19: =('!N105830.091'!D7/60)/'!N105830.091'!Q3 -> 0.03709677419 | D19: ='!N105830.091'!N20/'!N105830.091'!Q3 -> 0.6451612903 | E19: =SUM('!N105830.091'!L20:Q20)/'!N105830.091'!Q3 -> 1.177419355 | F19: ='!N105830.091'!Q16 -> 0.1992967563
A20: 18 | B20: ='!N106650.091'!B2:C2 -> <date> | C20: =('!N106650.091'!D7/60)/'!N106650.091'!Q3 -> 0.02925925926 | D20: ='!N106650.091'!N20/'!N106650.091'!Q3 -> 0.8888888889 | E20: =SUM('!N106650.091'!L20:Q20)/'!N106650.091'!Q3 -> 1.488888889 | F20: ='!N106650.091'!Q16 -> 0.09163725357
A21: 19 | B21: ='!N107720.091'!B2:C2 -> <date> | C21: =('!N107720.091'!D7/60)/'!N107720.091'!Q3 -> 0.009027777778 | D21: ='!N107720.091'!N20/'!N107720.091'!Q3 -> 0.8333333333 | E21: =SUM('!N107720.091'!L20:Q20)/'!N107720.091'!Q3 -> 1.416666667 | F21: ='!N107720.091'!Q16 -> 0.1448702217
A22: 20 | B22: ='!N108810.091'!B2:C2 -> <date> | C22: =('!N108810.091'!D7/60)/'!N108810.091'!Q3 -> 0.01920289855 | D22: ='!N108810.091'!N20/'!N108810.091'!Q3 -> 0.8695652174 | E22: =SUM('!N108810.091'!L20:Q20)/'!N108810.091'!Q3 -> 1.456521739 | F22: ='!N108810.091'!Q16 -> 0.1228205814
A23: 21 | B23: ='!N109710.091'!B2:C2 -> <date> | C23: =('!N109710.091'!D7/60)/'!N109710.091'!Q3 -> 0.01111111111 | D23: ='!N109710.091'!N20/'!N109710.091'!Q3 -> 0.8333333333 | E23: =SUM('!N109710.091'!L20:Q20)/'!N109710.091'!Q3 -> 1.416666667 | F23: ='!N109710.091'!Q16 -> 0.1480586681
A24: 22 | B24: ='!N110820.091'!B2:C2 -> <date> | C24: =('!N110820.091'!D7/60)/'!N110820.091'!Q3 -> 0.01428571429 | D24: ='!N110820.091'!N20/'!N110820.091'!Q3 -> 0.9523809524 | E24: =SUM('!N110820.091'!L20:Q20)/'!N110820.091'!Q3 -> 1.80952381 | F24: ='!N110820.091'!Q16 -> 0.06005107821
A25: 23 | B25: ='!N111900.091'!B2:C2 -> <date> | C25: =('!N111900.091'!D7/60)/'!N111900.091'!Q3 -> 0.01891025641 | D25: ='!N111900.091'!N20/'!N111900.091'!Q3 -> 0.7692307692 | E25: =SUM('!N111900.091'!L20:Q20)/'!N111900.091'!Q3 -> 1.326923077 | F25: ='!N111900.091'!Q16 -> 0.1695602294
A26: 24 | B26: ='!N112640.091'!B2:C2 -> <date> | C26: =('!N112640.091'!D7/60)/'!N112640.091'!Q3 -> 0.007446808511 | D26: ='!N112640.091'!N20/'!N112640.091'!Q3 -> 0.8510638298 | E26: =SUM('!N112640.091'!L20:Q20)/'!N112640.091'!Q3 -> 1.446808511 | F26: ='!N112640.091'!Q16 -> 0.1251745451
A27: 25 | B27: ='!N113830.091'!B2:C2 -> <date> | C27: =('!N113830.091'!D7/60)/'!N113830.091'!Q3 -> 0.02083333333 | D27: ='!N113830.091'!N20/'!N113830.091'!Q3 -> 0.8333333333 | E27: =SUM('!N113830.091'!L20:Q20)/'!N113830.091'!Q3 -> 1.416666667 | F27: ='!N113830.091'!Q16 -> 0.1163879653
A28: 26 | B28: ='!N114750.091'!B2:C2 -> <date> | C28: =('!N114750.091'!D7/60)/'!N114750.091'!Q3 -> 0.007954545455 | D28: ='!N114750.091'!N20/'!N114750.091'!Q3 -> 0.9090909091 | E28: =SUM('!N114750.091'!L20:Q20)/'!N114750.091'!Q3 -> 1.727272727 | F28: ='!N114750.091'!Q16 -> 0.09401153445
A29: 27 | B29: ='!N115810.091'!B2:C2 -> <date> | C29: =('!N115810.091'!D7/60)/'!N115810.091'!Q3 -> 0.01041666667 | D29: ='!N115810.091'!N20/'!N115810.091'!Q3 -> 1 | E29: =SUM('!N115810.091'!L20:Q20)/'!N115810.091'!Q3 -> 1.625 | F29: ='!N115810.091'!Q16 -> 0
A30: 28 | B30: ='!N116750.091'!B2:C2 -> <date> | C30: =('!N116750.091'!D7/60)/'!N116750.091'!Q3 -> 0.01547619048 | D30: ='!N116750.091'!N20/'!N116750.091'!Q3 -> 0.9523809524 | E30: =SUM('!N116750.091'!L20:Q20)/'!N116750.091'!Q3 -> 1.571428571 | F30: ='!N116750.091'!Q16 -> 0.06005107821
A31: 29 | B31: ='!N117850.091'!B2:C2 -> <date> | C31: =('!N117850.091'!D7/60)/'!N117850.091'!Q3 -> 0.00875 | D31: ='!N117850.091'!N20/'!N117850.091'!Q3 -> 1 | E31: =SUM('!N117850.091'!L20:Q20)/'!N117850.091'!Q3 -> 1.625 | F31: ='!N117850.091'!Q16 -> 0
A32: 30 | B32: ='!N118850.091'!B2:C2 -> <date> | C32: =('!N118850.091'!D7/60)/'!N118850.091'!Q3 -> 0.007751937984 | D32: ='!N118850.091'!N20/'!N118850.091'!Q3 -> 0.9302325581 | E32: =SUM('!N118850.091'!L20:Q20)/'!N118850.091'!Q3 -> 1.534883721 | F32: ='!N118850.091'!Q16 -> 0.07908245547
B33: ='!N119750.091'!B2:C2 -> <date> | C33: =('!N119750.091'!D7/60)/'!N119750.091'!Q3 -> 0.01292517007 | D33: ='!N119750.091'!N20/'!N119750.091'!Q3 -> 0.8163265306 | E33: =SUM('!N119750.091'!L20:Q20)/'!N119750.091'!Q3 -> 1.367346939 | F33: ='!N119750.091'!Q16 -> 0.1390067964

Sheet Start
F1: Use Folder 51 | H1: Auto Clean Up | J1: Correct sequence
F2: FALSE | H2: TRUE | J2: 12
A4: Working with Folder | G4: Process All/Or Pick A number: ALL or an integer
A5: E:\Hen Data\Raw Data\91_17\phase 4 con\ | G5: ALL
A6: Filenames:
A7: !MC14850.091 | G7: Paint Cells
A8: !MC20850.091 | G8: FALSE
A9: !MC24850.091
A10: !N102830.091
A11: !N104A00.091
A12: !N105830.091
A13: !N106650.091
A14: !N107720.091
A15: !N108810.091
A16: !N109710.091
A17: !N110820.091
A18: !N111900.091
A19: !N112640.091
A20: !N113830.091
A21: !N114750.091
A22: !N115810.091
A23: !N116750.091
A24: !N117850.091
A25: !N118850.091
A26: !N119750.091
A27: !MC01920.091
A28: !MC02930.091
A29: !MC03730.091
A30: !MC04920.091
A31: !MC05800.091
A32: !MC07910.091
A33: !MC08900.091
A34: !MC09900.091
A35: !MC10900.091
A36: !MC11840.091
A37: !MC12800.091

Sheet !MC01920.091
A1: Report for:!MC01920.091
A2: Date: | B2: <date>
A3: Hen: | B3: <hen> | F3: Correct Sequence | G3: =Start!J2 -> 12 | P3: Total Sequences in Data | Q3: =4994-COUNTBLANK(L7:L5000) -> 190 | V3: Total Sequences in Block Data | W3: =COUNTA(L7:L38) -> 32 | AA3: Total Sequences in Block Data | AB3: =COUNTA(L39:L69) -> 31 | AF3: Total Sequences in Block Data | AG3: =COUNTA(L70:L101) -> 32 | AK3: Total Sequences in Block Data | AL3: =COUNTA(L102:L133) -> 32 | AP3: Total Sequences in Block Data | AQ3: =COUNTA(L134:L164) -> 31 | AU3: Total Sequences in Block Data | AV3: =COUNTA(L165:L196) -> 32
P4: Total Sequences in Summary | Q4: =SUM(O7:O14) -> 190 | V4: Total Sequences in Block Summary | W4: =SUM(U7:U14) -> 32 | AA4: Total Sequences in Block Summary | AB4: =SUM(Z7:Z14) -> 31 | AF4: Total Sequences in Block Summary | AG4: =SUM(AE7:AE14) -> 32 | AK4: Total Sequences in Block Summary | AL4: =SUM(AJ7:AJ14) -> 32 | AP4: Total Sequences in Block Summary | AQ4: =SUM(AO7:AO14) -> 31 | AU4: Total Sequences in Block Summary | AV4: =SUM(AT7:AT14) -> 32
T5: Block 1 | Y5: Block 2 | AD5: Block 3 | AI5: Block 4 | AN5: Block 5 | AS5: Block 6
A6: Sequence Component 1 | B6: Time 1 | C6: Sequence Component 2 | D6: Time 2 | E6: Sequence Component 3 | F6: Time 3 | G6: Sequence Component 4 | H6: Time 4 | I6: Sequence Component 5 | J6: Time 5 | K6: Correct? 0=No 1=Yes | L6: Sequence | N6: Frequency | P6: Relative Frequency | Q6: Variability | T6: Frequency | V6: Relative Frequency | W6: Variability | Y6: Frequency | AA6: Relative Frequency | AB6: Variability | AD6: Frequency | AF6: Relative Frequency | AG6: Variability | AI6: Frequency | AK6: Relative Frequency | AL6: Variability | AN6: Frequency | AP6: Relative Frequency | AQ6: Variability | AS6: Frequency | AU6: Relative Frequency | AV6: Variability
A7: 22 | B7: 7 | C7: 23 | D7: 18 | K7: 0 | L7: 22 | N7: 11 | O7: =COUNTIF($L$7:$L$500,N7) -> 1 | P7: =O7/$Q$4 -> 0.005263157895 | Q7: =IF(P7=0,0,(P7*((LOG(P7))/LOG(2)))) -> -0.03984134531 | T7: =N7 -> 11 | U7: =COUNTIF(L7:L38,T7) -> 0 | V7: =U7/(W4-U8) -> 0 | W7: =IF(V7=0,0,(V7*((LOG(V7))/LOG(2)))) -> 0 | Y7: =N7 -> 11 | Z7: =COUNTIF(L39:L69,Y7) -> 0 | AA7: =Z7/(AB4-Z8) -> 0 | AB7: =IF(AA7=0,0,(AA7*((LOG(AA7))/LOG(2)))) -> 0 | AD7: =N7 -> 11 | AE7: =COUNTIF(L70:L101,AD7) -> 0 | AF7: =AE7/(AG4-AE8) -> 0 | AG7: =IF(AF7=0,0,(AF7*((LOG(AF7))/LOG(2)))) -> 0 | AI7: =N7 -> 11 | AJ7: =COUNTIF(L102:L133,AI7) -> 0 | AK7: =AJ7/(AL4-AJ8) -> 0 | AL7: =IF(AK7=0,0,(AK7*((LOG(AK7))/LOG(2)))) -> 0 | AN7: =N7 -> 11 | AO7: =COUNTIF(L134:L164,AN7) -> 1 | AP7: =AO7/(AQ4-AO8) -> 0.04545454545 | AQ7: =IF(AP7=0,0,(AP7*((LOG(AP7))/LOG(2)))) -> -0.2027014372 | AS7: =N7 -> 11 | AT7: =COUNTIF(L165:L196,AS7) -> 0 | AU7: =AT7/(AV4-AT8) -> 0 | AV7: =IF(AU7=0,0,(AU7*((LOG(AU7))/LOG(2)))) -> 0
A8: 22 | B8: 116 | C8: 23 | D8: 123 | K8: 0 | L8: 22 | N8: 12 | O8: =COUNTIF($L$7:$L$500,N8) -> 40 | P8: =O8/$Q$4 -> 0.2105263158 | Q8: =IF(P8=0,0,(P8*((LOG(P8))/LOG(2)))) -> -0.4732478976 | T8: =N8 -> 12 | U8: =COUNTIF(L7:L38,T8) -> 0 | Y8: =N8 -> 12 | Z8: =COUNTIF(L39:L69,Y8) -> 4 | AD8: =N8 -> 12 | AE8: =COUNTIF(L70:L101,AD8) -> 4 | AI8: =N8 -> 12 | AJ8: =COUNTIF(L102:L133,AI8) -> 7 | AN8: =N8 -> 12 | AO8: =COUNTIF(L134:L164,AN8) -> 9 | AS8: =N8 -> 12 | AT8: =COUNTIF(L165:L196,AS8) -> 16
A9: 22 | B9: 228 | C9: 14 | D9: 241 | K9: 0 | L9: 21 | N9: 21 | O9: =COUNTIF($L$7:$L$500,N9) -> 35 | P9: =O9/$Q$4 -> 0.1842105263 | Q9: =IF(P9=0,0,(P9*((LOG(P9))/LOG(2)))) -> -0.4495791616 | T9: =N9 -> 21 | U9: =COUNTIF(L7:L38,T9) -> 5 | V9: =U9/(W4-U8) -> 0.15625 | W9: =IF(V9=0,0,(V9*((LOG(V9))/LOG(2)))) -> -0.4184487352 | Y9: =N9 -> 21 | Z9: =COUNTIF(L39:L69,Y9) -> 7 | AA9: =Z9/(AB4-Z8) -> 0.2592592593 | AB9: =IF(AA9=0,0,(AA9*((LOG(AA9))/LOG(2)))) -> -0.5049158541 | AD9: =N9 -> 21 | AE9: =COUNTIF(L70:L101,AD9) -> 5 | AF9: =AE9/(AG4-AE8) -> 0.1785714286 | AG9: =IF(AF9=0,0,(AF9*((LOG(AF9))/LOG(2)))) -> -0.4438262191 | AI9: =N9 -> 21 | AJ9: =COUNTIF(L102:L133,AI9) -> 4 | AK9: =AJ9/(AL4-AJ8) -> 0.16 | AL9: =IF(AK9=0,0,(AK9*((LOG(AK9))/LOG(2)))) -> -0.4230169904 | AN9: =N9 -> 21 | AO9: =COUNTIF(L134:L164,AN9) -> 7 | AP9: =AO9/(AQ4-AO8) -> 0.3181818182 | AQ9: =IF(AP9=0,0,(AP9*((LOG(AP9))/LOG(2)))) -> -0.5256607671 | AS9: =N9 -> 21 | AT9: =COUNTIF(L165:L196,AS9) -> 7 | AU9: =AT9/(AV4-AT8) -> 0.4375 | AV9: =IF(AU9=0,0,(AU9*((LOG(AU9))/LOG(2)))) -> -0.5217822216
A10: 22 | B10: 348 | C10: 14 | D10: 359 | K10: 0 | L10: 21 | N10: 22 | O10: =COUNTIF($L$7:$L$500,N10) -> 114 | P10: =O10/$Q$4 -> 0.6 | Q10: =IF(P10=0,0,(P10*((LOG(P10))/LOG(2)))) -> -0.4421793565 | T10: =N10 -> 22 | U10: =COUNTIF(L7:L38,T10) -> 27 | V10: =U10/(W4-U8) -> 0.84375 | W10: =IF(V10=0,0,(V10*((LOG(V10))/LOG(2)))) -> -0.20681367 | Y10: =N10 -> 22 | Z10: =COUNTIF(L39:L69,Y10) -> 20 | AA10: =Z10/(AB4-Z8) -> 0.7407407407 | AB10: =IF(AA10=0,0,(AA10*((LOG(AA10))/LOG(2)))) -> -0.3207106721 | AD10: =N10 -> 22 | AE10: =COUNTIF(L70:L101,AD10) -> 23 | AF10: =AE10/(AG4-AE8) -> 0.8214285714 | AG10: =IF(AF10=0,0,(AF10*((LOG(AF10))/LOG(2)))) -> -0.2331156506 | AI10: =N10 -> 22 | AJ10: =COUNTIF(L102:L133,AI10) -> 21 | AK10: =AJ10/(AL4-AJ8) -> 0.84 | AL10: =IF(AK10=0,0,(AK10*((LOG(AK10))/LOG(2)))) -> -0.2112925643 | AN10: =N10 -> 22 | AO10: =COUNTIF(L134:L164,AN10) -> 14 | AP10: =AO10/(AQ4-AO8) -> 0.6363636364 | AQ10: =IF(AP10=0,0,(AP10*((LOG(AP10))/LOG(2)))) -> -0.4149578978 | AS10: =N10 -> 22 | AT10: =COUNTIF(L165:L196,AS10) -> 9 | AU10: =AT10/(AV4-AT8) -> 0.5625 | AV10: =IF(AU10=0,0,(AU10*((LOG(AU10))/LOG(2)))) -> -0.4669171867
A11: 22 | B11: 473 | C11: 23 | D11: 496 | K11: 0 | L11: 22 | T11: =N11 -> 0 | U11: =COUNTIF(L7:L38,T11) -> 0 | V11: =U11/(W4-U8) -> 0 | W11: =IF(V11=0,0,(V11*((LOG(V11))/LOG(2)))) -> 0 | Y11: =N11 -> 0 | Z11: =COUNTIF(L39:L69,Y11) -> 0 | AA11: =Z11/(AB4-Z8) -> 0 | AB11: =IF(AA11=0,0,(AA11*((LOG(AA11))/LOG(2)))) -> 0 | AD11: =N11 -> 0 | AE11: =COUNTIF(L70:L101,AD11) -> 0 | AF11: =AE11/(AG4-AE8) -> 0 | AG11: =IF(AF11=0,0,(AF11*((LOG(AF11))/LOG(2)))) -> 0 | AI11: =N11 -> 0 | AJ11: =COUNTIF(L102:L133,AI11) -> 0 | AK11: =AJ11/(AL4-AJ8) -> 0 | AL11: =IF(AK11=0,0,(AK11*((LOG(AK11))/LOG(2)))) -> 0 | AN11: =N11 -> 0 | AO11: =COUNTIF(L134:L164,AN11) -> 0 | AP11: =AO11/(AQ4-AO8) -> 0 | AQ11: =IF(AP11=0,0,(AP11*((LOG(AP11))/LOG(2)))) -> 0 | AS11: =N11 -> 0 | AT11: =COUNTIF(L165:L196,AS11) -> 0 | AU11: =AT11/(AV4-AT8) -> 0 | AV11: =IF(AU11=0,0,(AU11*((LOG(AU11))/LOG(2)))) -> 0
A12: 22 | B12: 594 | C12: 23 | D12: 599 | K12: 0 | L12: 22 | T12: =N12 -> 0 | U12: =COUNTIF(L7:L38,T12) -> 0 | V12: =U12/(W4-U8) -> 0 | W12: =IF(V12=0,0,(V12*((LOG(V12))/LOG(2)))) -> 0 | Y12: =N12 -> 0 | Z12: =COUNTIF(L39:L69,Y12) -> 0 | AA12: =Z12/(AB4-Z8) -> 0 | AB12: =IF(AA12=0,0,(AA12*((LOG(AA12))/LOG(2)))) -> 0 | AD12: =N12 -> 0 | AE12: =COUNTIF(L70:L101,AD12) -> 0 | AF12: =AE12/(AG4-AE8) -> 0 | AG12: =IF(AF12=0,0,(AF12*((LOG(AF12))/LOG(2)))) -> 0 | AI12: =N12 -> 0 | AJ12: =COUNTIF(L102:L133,AI12) -> 0 | AK12: =AJ12/(AL4-AJ8) -> 0 | AL12: =IF(AK12=0,0,(AK12*((LOG(AK12))/LOG(2)))) -> 0 | AN12: =N12 -> 0 | AO12: =COUNTIF(L134:L164,AN12) -> 0 | AP12: =AO12/(AQ4-AO8) -> 0 | AQ12: =IF(AP12=0,0,(AP12*((LOG(AP12))/LOG(2)))) -> 0 | AS12: =N12 -> 0 | AT12: =COUNTIF(L165:L196,AS12) -> 0 | AU12: =AT12/(AV4-AT8) -> 0 | AV12: =IF(AU12=0,0,(AU12*((LOG(AU12))/LOG(2)))) -> 0
A13: 22 | B13: 706 | C13: 23 | D13: 715 | K13: 0 | L13: 22 | T13: =N13 -> 0 | U13: =COUNTIF(L7:L38,T13) -> 0 | V13: =U13/(W4-U8) -> 0 | W13: =IF(V13=0,0,(V13*((LOG(V13))/LOG(2)))) -> 0 | Y13: =N13 -> 0 | Z13: =COUNTIF(L39:L69,Y13) -> 0 | AA13: =Z13/(AB4-Z8) -> 0 | AB13: =IF(AA13=0,0,(AA13*((LOG(AA13))/LOG(2)))) -> 0 | AD13: =N13 -> 0 | AE13: =COUNTIF(L70:L101,AD13) -> 0 | AF13: =AE13/(AG4-AE8) -> 0 | AG13: =IF(AF13=0,0,(AF13*((LOG(AF13))/LOG(2)))) -> 0 | AI13: =N13 -> 0 | AJ13: =COUNTIF(L102:L133,AI13) -> 0 | AK13: =AJ13/(AL4-AJ8) -> 0 | AL13: =IF(AK13=0,0,(AK13*((LOG(AK13))/LOG(2)))) -> 0 | AN13: =N13 -> 0 | AO13: =COUNTIF(L134:L164,AN13) -> 0 | AP13: =AO13/(AQ4-AO8) -> 0 | AQ13: =IF(AP13=0,0,(AP13*((LOG(AP13))/LOG(2)))) -> 0 | AS13: =N13 -> 0 | AT13: =COUNTIF(L165:L196,AS13) -> 0 | AU13: =AT13/(AV4-AT8) -> 0 | AV13: =IF(AU13=0,0,(AU13*((LOG(AU13))/LOG(2)))) -> 0
A14: 22 | B14: 816 | C14: 23 | D14: 821 | K14: 0 | L14: 22 | T14: =N14 -> 0 | U14: =COUNTIF(L7:L38,T14) -> 0 | V14: =U14/(W4-U8) -> 0 | W14: =IF(V14=0,0,(V14*((LOG(V14))/LOG(2)))) -> 0 | Y14: =N14 -> 0 | Z14: =COUNTIF(L39:L69,Y14) -> 0 | AA14: =Z14/(AB4-Z8) -> 0 | AB14: =IF(AA14=0,0,(AA14*((LOG(AA14))/LOG(2)))) -> 0 | AD14: =N14 -> 0 | AE14: =COUNTIF(L70:L101,AD14) -> 0 | AF14: =AE14/(AG4-AE8) -> 0 | AG14: =IF(AF14=0,0,(AF14*((LOG(AF14))/LOG(2)))) -> 0 | AI14: =N14 -> 0 | AJ14: =COUNTIF(L102:L133,AI14) -> 0 | AK14: =AJ14/(AL4-AJ8) -> 0 | AL14: =IF(AK14=0,0,(AK14*((LOG(AK14))/LOG(2)))) -> 0 | AN14: =N14 -> 0 | AO14: =COUNTIF(L134:L164,AN14) -> 0 | AP14: =AO14/(AQ4-AO8) -> 0 | AQ14: =IF(AP14=0,0,(AP14*((LOG(AP14))/LOG(2)))) -> 0 | AS14: =N14 -> 0 | AT14: =COUNTIF(L165:L196,AS14) -> 0 | AU14: =AT14/(AV4-AT8) -> 0 | AV14: =IF(AU14=0,0,(AU14*((LOG(AU14))/LOG(2)))) -> 0
A15: 22 | B15: 920 | C15: 23 | D15: 925 | K15: 0 | L15: 22 | P15: =SUM(P7:P14) -> 1 | Q15: =-SUM(Q7:Q14) -> 1.404847761 | V15: =SUM(V7:V14) -> 1 | W15: =-SUM(W7:W14) -> 0.6252624052 | AA15: =SUM(AA7:AA14) -> 1 | AB15: =-SUM(AB7:AB14) -> 0.8256265262 | AF15: =SUM(AF7:AF14) -> 1 | AG15: =-SUM(AG7:AG14) -> 0.6769418698 | AK15: =SUM(AK7:AK14) -> 1 | AL15: =-SUM(AL7:AL14) -> 0.6343095546 | AP15: =SUM(AP7:AP14) -> 1 | AQ15: =-SUM(AQ7:AQ14) -> 1.143320102 | AU15: =SUM(AU7:AU14) -> 1 | AV15: =-SUM(AV7:AV14) -> 0.9886994083
A16: 22 | B16: 1026 | C16: 23 | D16: 1032 | K16: 0 | L16: 22 | P16: U= | Q16: =Q15/(LOG(Q4)/LOG(2)) -> 0.1855844858 | V16: U1= | W16: =W15/(LOG(W4)/LOG(2)) -> 0.125052481 | AA16: U2= | AB16: =AB15/(LOG(AB4)/LOG(2)) -> 0.1666519602 | AF16: U3= | AG16: =AG15/(LOG(AG4)/LOG(2)) -> 0.135388374 | AK16: U4= | AL16: =AL15/(LOG(AL4)/LOG(2)) -> 0.1268619109 | AP16: U5= | AQ16: =AQ15/(LOG(AQ4)/LOG(2)) -> 0.2307781183 | AU16: U6= | AV16: =AV15/(LOG(AV4)/LOG(2)) -> 0.1977398817
A17: 22 | B17: 1130 | C17: 23 | D17: 1153 | K17: 0 | L17: 22
A18: 22 | B18: 1255 | C18: 23 | D18: 1273 | K18: 0 | L18: 22
A19: 22 | B19: 1381 | C19: 23 | D19: 1406 | K19: 0 | L19: 22 | N19: Total Target Seq
A20: 22 | B20: 1516 | C20: 14 | D20: 1528 | K20: 0 | L20: 21 | N20: =COUNTIF(L7:L196,G3) -> 40 | P20: 32 | Q20: 31 | R20: 32 | S20: 32 | T20: 31 | U20: 32
A21: 22 | B21: 1629 | C21: 23 | D21: 1637 | K21: 0 | L21: 22 | P21: % of reinforcement given in 6 equal intervals based on number of trials
A22: 22 | B22: 1734 | C22: 23 | D22: 1739 | K22: 0 | L22: 22 | P22: %_1 | Q22: %_2 | R22: %_3 | S22: %_4 | T22: %_5 | U22: %_6
A23: 22 | B23: 1839 | C23: 23 | D23: 1845 | K23: 0 | L23: 22 | O23: target sequence | P23: =$G$3 -> 12 | Q23: =$G$3 -> 12 | R23: =$G$3 -> 12 | S23: =$G$3 -> 12 | T23: =$G$3 -> 12 | U23: =$G$3 -> 12
A24: 22 | B24: 1944 | C24: 23 | D24: 1950 | K24: 0 | L24: 22 | O24: total reinforcement | P24: =U8 -> 0 | Q24: =Z8 -> 4 | R24: =AE8 -> 4 | S24: =AJ8 -> 7 | T24: =AO8 -> 9 | U24: =AT8 -> 16
A25: 22 | B25: 2047 | C25: 23 | D25: 2057 | K25: 0 | L25: 22 | O25: % target
A26: 22 | B26: 2166 | C26: 14 | D26: 2179 | K26: 0 | L26: 21 | O26: CCRF
A27: 22 | B27: 2279 | C27: 14 | D27: 2297 | K27: 0 | L27: 21 | O27: % CCRf
A28: 22 | B28: 2398 | C28: 23 | D28: 2418 | K28: 0 | L28: 22 | O28: average response rate | P28: =D38/P20 -> 113.28125 | Q28: =(D69-D38)/Q20 -> 112.3870968 | R28: =(D101-D69)/R20 -> 114.6875 | S28: =(D133-D101)/S20 -> 115.875 | T28: =(D164-D133)/T20 -> 117.3548387 | U28: =(D196-D164)/U20 -> 113.84375
A29: 22 | B29: 2564 | C29: 23 | D29: 2578 | K29: 0 | L29: 22
A30: 22 | B30: 2681 | C30: 23 | D30: 2687 | K30: 0 | L30: 22
A31: 22 | B31: 2787 | C31: 23 | D31: 2791 | K31: 0 | L31: 22
A32: 22 | B32: 2900 | C32: 23 | D32: 2908 | K32: 0 | L32: 22
A33: 22 | B33: 3013 | C33: 23 | D33: 3023 | K33: 0 | L33: 22
A34: 22 | B34: 3131 | C34: 23 | D34: 3157 | K34: 0 | L34: 22
A35: 22 | B35: 3257 | C35: 23 | D35: 3262 | K35: 0 | L35: 22
A36: 22 | B36: 3360 | C36: 23 | D36: 3371 | K36: 0 | L36: 22
A37: 22 | B37: 3473 | C37: 23 | D37: 3493 | K37: 0 | L37: 22
A38: 22 | B38: 3608 | C38: 23 | D38: 3625 | K38: 0 | L38: 22
A39: 22 | B39: 3730 | C39: 14 | D39: 3742 | K39: 0 | L39: 21
A40: 22 | B40: 3845 | C40: 23 | D40: 3853 | K40: 0 | L40: 22
A41: 22 | B41: 3957 | C41: 23 | D41: 3975 | K41: 0 | L41: 22
A42: 11 | B42: 4077 | C42: 21 | D42: 4086 | K42: 0 | L42: 12
A43: 22 | B43: 4183 | C43: 14 | D43: 4196 | K43: 0 | L43: 21
A44: 22 | B44: 4336 | C44: 23 | D44: 4366 | K44: 0 | L44: 22
A45: 22 | B45: 4470 | C45: 23 | D45: 4475 | K45: 0 | L45: 22
A46: 22 | B46: 4576 | C46: 23 | D46: 4581 | K46: 0 | L46: 22
A47: 11 | B47: 4702 | C47: 21 | D47: 4713 | K47: 0 | L47: 12
A48: 22 | B48: 4803 | C48: 23 | D48: 4807 | K48: 0 | L48: 22
A49: 22 | B49: 4910 | C49: 23 | D49: 4918 | K49: 0 | L49: 22
A50: 22 | B50: 5019 | C50: 23 | D50: 5025 | K50: 0 | L50: 22
A51: 22 | B51: 5125 | C51: 14 | D51: 5147 | K51: 0 | L51: 21
A52: 22 | B52: 5248 | C52: 23 | D52: 5253 | K52: 0 | L52: 22
A53: 22 | B53: 5358 | C53: 23 | D53: 5366 | K53: 0 | L53: 22
A54: 22 | B54: 5467 | C54: 23 | D54: 5473 | K54: 0 | L54: 22
A55: 22 | B55: 5570 | C55: 14 | D55: 5582 | K55: 0 | L55: 21
A56: 11 | B56: 5684 | C56: 21 | D56: 5692 | K56: 0 | L56: 12
A57: 22 | B57: 5782 | C57: 23 | D57: 5787 | K57: 0 | L57: 22
A58: 22 | B58: 5892 | C58: 23 | D58: 5900 | K58: 0 | L58: 22
A59: 22 | B59: 5999 | C59: 23 | D59: 6004 | K59: 0 | L59: 22
A60: 22 | B60: 6101 | C60: 23 | D60: 6106 | K60: 0 | L60: 22
A61: 22 | B61: 6204 | C61: 23 | D61: 6209 | K61: 0 | L61: 22
A62: 22 | B62: 6305 | C62: 23 | D62: 6319 | K62: 0 | L62: 22
A63: 11 | B63: 6418 | C63: 21 | D63: 6427 | K63: 0 | L63: 12
A64: 22 | B64: 6520 | C64: 23 | D64: 6563 | K64: 0 | L64: 22
A65: 22 | B65: 6669 | C65: 14 | D65: 6680 | K65: 0 | L65: 21
A66: 22 | B66: 6772 | C66: 14 | D66: 6792 | K66: 0 | L66: 21
A67: 22 | B67: 6894 | C67: 14 | D67: 6901 | K67: 0 | L67: 21
A68: 22 | B68: 6999 | C68: 23 | D68: 7004 | K68: 0 | L68: 22
A69: 22 | B69: 7102 | C69: 23 | D69: 7109 | K69: 0 | L69: 22
A70: 22 | B70: 7210 | C70: 23 | D70: 7217 | K70: 0 | L70: 22
A71: 22 | B71: 7320 | C71: 23 | D71: 7325 | K71: 0 | L71: 22
A72: 22 | B72: 7436 | C72: 23 | D72: 7444 | K72: 0 | L72: 22
A73: 22 | B73: 7569 | C73: 23 | D73: 7581 | K73: 0 | L73: 22
A74: 22 | B74: 7681 | C74: 23 | D74: 7693 | K74: 0 | L74: 22
A75: 22 | B75: 7803 | C75: 23 | D75: 7811 | K75: 0 | L75: 22
A76: 22 | B76: 7909 | C76: 14 | D76: 7926 | K76: 0 | L76: 21
A77: 22 | B77: 8027 | C77: 14 | D77: 8044 | K77: 0 | L77: 21
A78: 11 | B78: 8160 | C78: 21 | D78: 8183 | K78: 0 | L78: 12
A79: 22 | B79: 8271 | C79: 23 | D79: 8276 | K79: 0 | L79: 22
A80: 22 | B80: 8381 | C80: 23 | D80: 8387 | K80: 0 | L80: 22
A81: 22 | B81: 8489 | C81: 14 | D81: 8499 | K81: 0 | L81: 21
A82: 22 | B82: 8601 | C82: 23 | D82: 8606 | K82: 0 | L82: 22
A83: 22 | B83: 8711 | C83: 23 | D83: 8718 | K83: 0 | L83: 22
A84: 22 | B84: 8825 | C84: 23 | D84: 8833 | K84: 0 | L84: 22
A85: 22 | B85: 8938 | C85: 23 | D85: 8960 | K85: 0 | L85: 22
A86: 22 | B86: 9067 | C86: 23 | D86: 9075 | K86: 0 | L86: 22
A87: 22 | B87: 9179 | C87: 23 | D87: 9185 | K87: 0 | L87: 22
A88: 22 | B88: 9295 | C88: 23 | D88: 9303 | K88: 0 | L88: 22
A89: 11 | B89: 9410 | C89: 21 | D89: 9420 | K89: 0 | L89: 12
A90: 22 | B90: 9509 | C90: 23 | D90: 9537 | K90: 0 | L90: 22
A91: 22 | B91: 9640 | C91: 14 | D91: 9650 | K91: 0 | L91: 21
A92: 22 | B92: 9760 | C92: 23 | D92: 9768 | K92: 0 | L92: 22
A93: 22 | B93: 9873 | C93: 14 | D93: 9885 | K93: 0 | L93: 21
A94: 22 | B94: 10007 | C94: 23 | D94: 10018 | K94: 0 | L94: 22
A95: 22 | B95: 10118 | C95: 23 | D95: 10138 | K95: 0 | L95: 22
A96: 22 | B96: 10246 | C96: 23 | D96: 10254 | K96: 0 | L96: 22
A97: 11 | B97: 10354 | C97: 21 | D97: 10364 | K97: 0 | L97: 12
A98: 22 | B98: 10457 | C98: 23 | D98: 10467 | K98: 0 | L98: 22
A99: 22 | B99: 10564 | C99: 23 | D99: 10569 | K99: 0 | L99: 22
A100: 22 | B100: 10667 | C100: 23 | D100: 10671 | K100: 0 | L100: 22
A101: 11 | B101: 10771 | C101: 21 | D101: 10779 | K101: 0 | L101: 12
A102: 22 | B102: 10869 | C102: 23 | D102: 10898 | K102: 0 | L102: 22
A103: 22 | B103: 11000 | C103: 23 | D103: 11008 | K103: 0 | L103: 22
A104: 22 | B104: 11108 | C104: 23 | D104: 11113 | K104: 0 | L104: 22
A105: 11 | B105: 11211 | C105: 21 | D105: 11224 | K105: 0 | L105: 12
A106: 22 | B106: 11313 | C106: 23 | D106: 11318 | K106: 0 | L106: 22
A107: 22 | B107: 11433 | C107: 23 | D107: 11441 | K107: 0 | L107: 22
A108: 11 | B108: 11541 | C108: 21 | D108: 11550 | K108: 0 | L108: 12
A109: 22 | B109: 11641 | C109: 14 | D109: 11652 | K109: 0 | L109: 21
A110: 22 | B110: 11751 | C110: 23 | D110: 11755 | K110: 0 | L110: 22
A111: 22 | B111: 11859 | C111: 23 | D111: 11880 | K111: 0 | L111: 22
A112: 22 | B112: 11979 | C112: 23 | D112: 11984 | K112: 0 | L112: 22
A113: 11 | B113: 12082 | C113: 21 | D113: 12091 | K113: 0 | L113: 12
A114: 11 | B114: 12225 | C114: 21 | D114: 12283 | K114: 0 | L114: 12
A115: 22 | B115: 12371 | C115: 23 | D115: 12375 | K115: 0 | L115: 22
A116: 11 | B116: 12474 | C116: 21 | D116: 12493 | K116: 0 | L116: 12
A117: 22 | B117: 12581 | C117: 23 | D117: 12585 | K117: 0 | L117: 22
A118: 11 | B118: 12686 | C118: 21 | D118: 12697 | K118: 0 | L118: 12
A119: 11 | B119: 12802 | C119: 21 | D119: 12849 | K119: 0 | L119: 12
A120: 22 | B120: 12936 | C120: 23 | D120: 12940 | K120: 0 | L120: 22
A121: 22 | B121: 13038 | C121: 23 | D121: 13043 | K121: 0 | L121: 22
A122: 22 | B122: 13150 | C122: 23 | D122: 13160 | K122: 0 | L122: 22
A123: 22 | B123: 13261 | C123: 14 | D123: 13272 | K123: 0 | L123: 21
A124: 22 | B124: 13377 | C124: 23 | D124: 13387 | K124: 0 | L124: 22
A125: 22 | B125: 13490 | C125: 23 | D125: 13512 | K125: 0 | L125: 22
A126: 22 | B126: 13624 | C126: 14 | D126: 13635 | K126: 0 | L126: 21
A127: 22 | B127: 13748 | C127: 23 | D127: 13756 | K127: 0 | L127: 22
A128: 22 | B128: 13857 | C128: 23 | D128: 13887 | K128: 0 | L128: 22
A129: 22 | B129: 13997 | C129: 23 | D129: 14004 | K129: 0 | L129: 22
A130: 22 | B130: 14110 | C130: 23 | D130: 14117 | K130: 0 | L130: 22
A131: 22 | B131: 14236 | C131: 23 | D131: 14245 | K131: 0 | L131: 22
A132: 22 | B132: 14346 | C132: 23 | D132: 14374 | K132: 0 | L132: 22
A133: 22 | B133: 14473 | C133: 14 | D133: 14487 | K133: 0 | L133: 21
A134: 11 | B134: 14585 | C134: 21 | D134: 14597 | K134: 0 | L134: 12
A135: 22 | B135: 14686 | C135: 23 | D135: 14691 | K135: 0 | L135: 22
A136: 22 | B136: 14787 | C136: 23 | D136: 14791 | K136: 0 | L136: 22
A137: 22 | B137: 14892 | C137: 14 | D137: 14904 | K137: 0 | L137: 21
A138: 22 | B138: 15008 | C138: 14 | D138: 15020 | K138: 0 | L138: 21
A139: 22 | B139: 15122 | C139: 23 | D139: 15141 | K139: 0 | L139: 22
A140: 22 | B140: 15247 | C140: 23 | D140: 15266 | K140: 0 | L140: 22
A141: 22 | B141: 15392 | C141: 23 | D141: 15400 | K141: 0 | L141: 22
A142: 22 | B142: 15512 | C142: 23 | D142: 15519 | K142: 0 | L142: 22
A143: 22 | B143: 15629 | C143: 23 | D143: 15638 | K143: 0 | L143: 22
A144: 22 | B144: 15734 | C144: 23 | D144: 15740 | K144: 0 | L144: 22
A145: 22 | B145: 15856 | C145: 23 | D145: 15864 | K145: 0 | L145: 22
A146: 22 | B146: 15974 | C146: 23 | D146: 15994 | K146: 0 | L146: 22
A147: 11 | B147: 16109 | C147: 21 | D147: 16122 | K147: 0 | L147: 12
A148: 22 | B148: 16223 | C148: 14 | D148: 16242 | K148: 0 | L148: 21
A149: 22 | B149: 16381 | C149: 14 | D149: 16411 | K149: 0 | L149: 21
A150: 11 | B150: 16512 | C150: 21 | D150: 16523 | K150: 0 | L150: 12
A151: 22 | B151: 16611 | C151: 23 | D151: 16636 | K151: 0 | L151: 22
A152: 11 | B152: 16734 | C152: 21 | D152: 16744 | K152: 0 | L152: 12
A153: 22 | B153: 16832 | C153: 23 | D153: 16839 | K153: 0 | L153: 22
A154: 11 | B154: 16941 | C154: 21 | D154: 16956 | K154: 0 | L154: 12
A155: 22 | B155: 17116 | C155: 23 | D155: 17124 | K155: 0 | L155: 22
A156: 11 | B156: 17219 | C156: 21 | D156: 17232 | K156: 0 | L156: 12
A157: 22 | B157: 17324 | C157: 14 | D157: 17335 | K157: 0 | L157: 21
A158: 11 | B158: 17432 | C158: 12 | D158: 17439 | K158: 0 | L158: 11
A159: 11 | B159: 17536 | C159: 21 | D159: 17548 | K159: 0 | L159: 12
A160: 11 | B160: 17649 | C160: 21 | D160: 17658 | K160: 0 | L160: 12
A161: 22 | B161: 17746 | C161: 23 | D161: 17777 | K161: 0 | L161: 22
A162: 22 | B162: 17888 | C162: 14 | D162: 17898 | K162: 0 | L162: 21
A163: 11 | B163: 18010 | C163: 21 | D163: 18020 | K163: 0 | L163: 12
A164: 22 | B164: 18111 | C164: 14 | D164: 18125 | K164: 0 | L164: 21
A165: 11 | B165: 18228 | C165: 21 | D165: 18240 | K165: 0 | L165: 12
A166: 22 | B166: 18415 | C166: 23 | D166: 18435 | K166: 0 | L166: 22
A167: 11 | B167: 18531 | C167: 21 | D167: 18542 | K167: 0 | L167: 12
A168: 22 | B168: 18631 | C168: 14 | D168: 18643 | K168: 0 | L168: 21
A169: 11 | B169: 18742 | C169: 21 | D169: 18752 | K169: 0 | L169: 12
A170: 11 | B170: 18855 | C170: 21 | D170: 18912 | K170: 0 | L170: 12
A171: 22 | B171: 19000 | C171: 23 | D171: 19004 | K171: 0 | L171: 22
A172: 22 | B172: 19109 | C172: 23 | D172: 19117 | K172: 0 | L172: 22
A173: 22 | B173: 19217 | C173: 23 | D173: 19222 | K173: 0 | L173: 22
A174: 11 | B174: 19319 | C174: 21 | D174: 19337 | K174: 0 | L174: 12
A175: 22 | B175: 19428 | C175: 14 | D175: 19438 | K175: 0 | L175: 21
A176: 11 | B176: 19542 | C176: 21 | D176: 19554 | K176: 0 | L176: 12
A177: 22 | B177: 19647 | C177: 23 | D177: 19659 | K177: 0 | L177: 22
A178: 11 | B178: 19755 | C178: 21 | D178: 19764 | K178: 0 | L178: 12
A179: 11 | B179: 19862 | C179: 21 | D179: 19871 | K179: 0 | L179: 12
A180: 22 | B180: 19960 | C180: 23 | D180: 19978 | K180: 0 | L180: 22
A181: 11 | B181: 20075 | C181: 21 | D181: 20086 | K181: 0 | L181: 12
A182: 22 | B182: 20178 | C182: 14 | D182: 20186 | K182: 0 | L182: 21
A183: 11 | B183: 20284 | C183: 21 | D183: 20296 | K183: 0 | L183: 12
A184: 22 | B184: 20382 | C184: 14 | D184: 20393 | K184: 0 | L184: 21
A185: 11 | B185: 20492 | C185: 21 | D185: 20503 | K185: 0 | L185: 12
A186: 11 | B186: 20605 | C186: 21 | D186: 20628 | K186: 0 | L186: 12
A187: 22 | B187: 20717 | C187: 23 | D187: 20721 | K187: 0 | L187: 22
A188: 22 | B188: 20825 | C188: 14 | D188: 20837 | K188: 0 | L188: 21
A189: 22 | B189: 20934 | C189: 14 | D189: 20948 | K189: 0 | L189: 21
A190: 22 | B190: 21055 | C190: 23 | D190: 21075 | K190: 0 | L190: 22
A191: 22 | B191: 21180 | C191: 23 | D191: 21214 | K191: 0 | L191: 22
A192: 11 | B192: 21309 | C192: 21 | D192: 21321 | K192: 0 | L192: 12
A193: 11 | B193: 21425 | C193: 21 | D193: 21433 | K193: 0 | L193: 12
A194: 11 | B194: 21544 | C194: 21 | D194: 21556 | K194: 0 | L194: 12
A195: 22 | B195: 21648 | C195: 14 | D195: 21658 | K195: 0 | L195: 21
A196: 11 | B196: 21757 | C196: 21 | D196: 21768 | K196: 1 | L196: 12

Sheet !MC02930.091
A1: Report for:!MC02930.091
A2: Date: | B2: <date>
A3: Hen: | B3: <hen> | F3: Correct Sequence | G3: =Start!J2 -> 12 | P3: Total Sequences in Data | Q3: =4994-COUNTBLANK(L7:L5000) -> 97 | V3: Total Sequences in Block Data | W3: =COUNTA(L7:L22) -> 16 | AA3: Total Sequences in Block Data | AB3: =COUNTA(L23:L38) -> 16 | AF3: Total Sequences in Block Data | AG3: =COUNTA(L39:L55) -> 17 | AK3: Total Sequences in Block Data | AL3: =COUNTA(L56:L71) -> 16 | AP3: Total Sequences in Block Data | AQ3: =COUNTA(L72:L87) -> 16 | AU3: Total Sequences in Block Data | AV3: =COUNTA(L88:L103) -> 16
P4: Total Sequences in Summary | Q4: =SUM(O7:O14) -> 97 | V4: Total Sequences in Block Summary | W4: =SUM(U7:U14) -> 16 | AA4: Total Sequences in Block Summary | AB4: =SUM(Z7:Z14) -> 16 | AF4: Total Sequences in Block Summary | AG4: =SUM(AE7:AE14) -> 17 | AK4: Total Sequences in Block Summary | AL4: =SUM(AJ7:AJ14) -> 16 | AP4: Total Sequences in Block Summary | AQ4: =SUM(AO7:AO14) -> 16 | AU4: Total Sequences in Block Summary | AV4: =SUM(AT7:AT14) -> 16
T5: Block 1 | Y5: Block 2 | AD5: Block 3 | AI5: Block 4 | AN5: Block 5 | AS5: Block 6
A6: Sequence Component 1 | B6: Time 1 | C6: Sequence Component 2 | D6: Time 2 | E6: Sequence Component 3 | F6: Time 3 | G6: Sequence Component 4 | H6: Time 4 | I6: Sequence Component 5 | J6: Time 5 | K6: Correct? 0=No 1=Yes | L6: Sequence | N6: Frequency | P6: Relative Frequency | Q6: Variability | T6: Frequency | V6: Relative Frequency | W6: Variability | Y6: Frequency | AA6: Relative Frequency | AB6: Variability | AD6: Frequency | AF6: Relative Frequency | AG6: Variability | AI6: Frequency | AK6: Relative Frequency | AL6: Variability | AN6: Frequency | AP6: Relative Frequency | AQ6: Variability | AS6: Frequency | AU6: Relative Frequency | AV6: Variability
A7: 22 | B7: 6 | C7: 14 | D7: 18 | K7: 0 | L7: 21 | N7: 11 | O7: =COUNTIF($L$7:$L$500,N7) -> 2 | P7: =O7/$Q$4 -> 0.0206185567 | Q7: =IF(P7=0,0,(P7*((LOG(P7))/LOG(2)))) -> -0.1154621205 | T7: =N7 -> 11 | U7: =COUNTIF(L7:L22,T7) -> 0 | V7: =U7/(W4-U8) -> 0 | W7: =IF(V7=0,0,(V7*((LOG(V7))/LOG(2)))) -> 0 | Y7: =N7 -> 11 | Z7: =COUNTIF(L23:L38,Y7) -> 0 | AA7: =Z7/(AB4-Z8) -> 0 | AB7: =IF(AA7=0,0,(AA7*((LOG(AA7))/LOG(2)))) -> 0 | AD7: =N7 -> 11 | AE7: =COUNTIF(L39:L55,AD7) -> 0 | AF7: =AE7/(AG4-AE8) -> 0 | AG7: =IF(AF7=0,0,(AF7*((LOG(AF7))/LOG(2)))) -> 0 | AI7: =N7 -> 11 | AJ7: =COUNTIF(L56:L71,AI7) -> 1 | AK7: =AJ7/(AL4-AJ8) -> 0.125 | AL7: =IF(AK7=0,0,(AK7*((LOG(AK7))/LOG(2)))) -> -0.375 | AN7: =N7 -> 11 | AO7: =COUNTIF(L72:L87,AN7) -> 0 | AP7: =AO7/(AQ4-AO8) -> 0 | AQ7: =IF(AP7=0,0,(AP7*((LOG(AP7))/LOG(2)))) -> 0 | AS7: =N7 -> 11 | AT7: =COUNTIF(L88:L103,AS7) -> 1 | AU7: =AT7/(AV4-AT8) -> 0.125 | AV7: =IF(AU7=0,0,(AU7*((LOG(AU7))/LOG(2)))) -> -0.375
A8: 22 | B8: 126 | C8: 23 | D8: 152 | K8: 0 | L8: 22 | N8: 12 | O8: =COUNTIF($L$7:$L$500,N8) -> 40 | P8: =O8/$Q$4 -> 0.412371134 | Q8: =IF(P8=0,0,(P8*((LOG(P8))/LOG(2)))) -> -0.5270040195 | T8: =N8 -> 12 | U8: =COUNTIF(L7:L22,T8) -> 1 | Y8: =N8 -> 12 | Z8: =COUNTIF(L23:L38,Y8) -> 5 | AD8: =N8 -> 12 | AE8: =COUNTIF(L39:L55,AD8) -> 9 | AI8: =N8 -> 12 | AJ8: =COUNTIF(L56:L71,AI8) -> 8 | AN8: =N8 -> 12 | AO8: =COUNTIF(L72:L87,AN8) -> 9 | AS8: =N8 -> 12 | AT8: =COUNTIF(L88:L103,AS8) -> 8
A9: 22 | B9: 256 | C9: 23 | D9: 264 | K9: 0 | L9: 22 | N9: 21 | O9: =COUNTIF($L$7:$L$500,N9) -> 33 | P9: =O9/$Q$4 -> 0.3402061856 | Q9: =IF(P9=0,0,(P9*((LOG(P9))/LOG(2)))) -> -0.5291970913 | T9: =N9 -> 21 | U9: =COUNTIF(L7:L22,T9) -> 5 | V9: =U9/(W4-U8) -> 0.3333333333 | W9: =IF(V9=0,0,(V9*((LOG(V9))/LOG(2)))) -> -0.5283208336 | Y9: =N9 -> 21 | Z9: =COUNTIF(L23:L38,Y9) -> 8 | AA9: =Z9/(AB4-Z8) -> 0.7272727273 | AB9: =IF(AA9=0,0,(AA9*((LOG(AA9))/LOG(2)))) -> -0.3341320863 | AD9: =N9 -> 21 | AE9: =COUNTIF(L39:L55,AD9) -> 5 | AF9: =AE9/(AG4-AE8) -> 0.625 | AG9: =IF(AF9=0,0,(AF9*((LOG(AF9))/LOG(2)))) -> -0.4237949407 | AI9: =N9 -> 21 | AJ9: =COUNTIF(L56:L71,AI9) -> 5 | AK9: =AJ9/(AL4-AJ8) -> 0.625 | AL9: =IF(AK9=0,0,(AK9*((LOG(AK9))/LOG(2)))) -> -0.4237949407 | AN9: =N9 -> 21 | AO9: =COUNTIF(L72:L87,AN9) -> 5 | AP9: =AO9/(AQ4-AO8) -> 0.7142857143 | AQ9: =IF(AP9=0,0,(AP9*((LOG(AP9))/LOG(2)))) -> -0.346733448 | AS9: =N9 -> 21 | AT9: =COUNTIF(L88:L103,AS9) -> 5 | AU9: =AT9/(AV4-AT8) -> 0.625 | AV9: =IF(AU9=0,0,(AU9*((LOG(AU9))/LOG(2)))) -> -0.4237949407
A10: 22 | B10: 366 | C10: 23 | D10: 372 | K10: 0 | L10: 22 | N10: 22 | O10: =COUNTIF($L$7:$L$500,N10) -> 22 | P10: =O10/$Q$4 -> 0.2268041237 | Q10: =IF(P10=0,0,(P10*((LOG(P10))/LOG(2)))) -> -0.4854699682 | T10: =N10 -> 22 | U10: =COUNTIF(L7:L22,T10) -> 10 | V10: =U10/(W4-U8) -> 0.6666666667 | W10: =IF(V10=0,0,(V10*((LOG(V10))/LOG(2)))) -> -0.3899750005 | Y10: =N10 -> 22 | Z10: =COUNTIF(L23:L38,Y10) -> 3 | AA10: =Z10/(AB4-Z8) -> 0.2727272727 | AB10: =IF(AA10=0,0,(AA10*((LOG(AA10))/LOG(2)))) -> -0.5112188503 | AD10: =N10 -> 22 | AE10: =COUNTIF(L39:L55,AD10) -> 3 | AF10: =AE10/(AG4-AE8) -> 0.375 | AG10: =IF(AF10=0,0,(AF10*((LOG(AF10))/LOG(2)))) -> -0.5306390622 | AI10: =N10 -> 22 | AJ10: =COUNTIF(L56:L71,AI10) -> 2 | AK10: =AJ10/(AL4-AJ8) -> 0.25 | AL10: =IF(AK10=0,0,(AK10*((LOG(AK10))/LOG(2)))) -> -0.5 | AN10: =N10 -> 22 | AO10: =COUNTIF(L72:L87,AN10) -> 2 | AP10: =AO10/(AQ4-AO8) -> 0.2857142857 | AQ10: =IF(AP10=0,0,(AP10*((LOG(AP10))/LOG(2)))) -> -0.5163871206 | AS10: =N10 -> 22 | AT10: =COUNTIF(L88:L103,AS10) -> 2 | AU10: =AT10/(AV4-AT8) -> 0.25 | AV10: =IF(AU10=0,0,(AU10*((LOG(AU10))/LOG(2)))) -> -0.5
A11: 22 | B11: 488 | C11: 23 | D11: 501 | K11: 0 | L11: 22 | T11: =N11 -> 0 | U11: =COUNTIF(L7:L22,T11) -> 0 | V11: =U11/(W4-U8) -> 0 | W11: =IF(V11=0,0,(V11*((LOG(V11))/LOG(2)))) -> 0 | Y11: =N11 -> 0 | Z11: =COUNTIF(L23:L38,Y11) -> 0 | AA11: =Z11/(AB4-Z8) -> 0 | AB11: =IF(AA11=0,0,(AA11*((LOG(AA11))/LOG(2)))) -> 0 | AD11: =N11 -> 0 | AE11: =COUNTIF(L39:L55,AD11) -> 0 | AF11: =AE11/(AG4-AE8) -> 0 | AG11: =IF(AF11=0,0,(AF11*((LOG(AF11))/LOG(2)))) -> 0 | AI11: =N11 -> 0 | AJ11: =COUNTIF(L56:L71,AI11) -> 0 | AK11: =AJ11/(AL4-AJ8) -> 0 | AL11: =IF(AK11=0,0,(AK11*((LOG(AK11))/LOG(2)))) -> 0 | AN11: =N11 -> 0 | AO11: =COUNTIF(L72:L87,AN11) -> 0 | AP11: =AO11/(AQ4-AO8) -> 0 | AQ11: =IF(AP11=0,0,(AP11*((LOG(AP11))/LOG(2)))) -> 0 | AS11: =N11 -> 0 | AT11: =COUNTIF(L88:L103,AS11) -> 0 | AU11: =AT11/(AV4-AT8) -> 0 | AV11: =IF(AU11=0,0,(AU11*((LOG(AU11))/LOG(2)))) -> 0
A12: 22 | B12: 605 | C12: 23 | D12: 612 | K12: 0 | L12: 22 | T12: =N12 -> 0 | U12: =COUNTIF(L7:L22,T12) -> 0 | V12: =U12/(W4-U8) -> 0 | W12: =IF(V12=0,0,(V12*((LOG(V12))/LOG(2)))) -> 0 | Y12: =N12 -> 0 | Z12: =COUNTIF(L23:L38,Y12) -> 0 | AA12: =Z12/(AB4-Z8) -> 0 | AB12: =IF(AA12=0,0,(AA12*((LOG(AA12))/LOG(2)))) -> 0 | AD12: =N12 -> 0 | AE12: =COUNTIF(L39:L55,AD12) -> 0 | AF12: =AE12/(AG4-AE8) -> 0 | AG12: =IF(AF12=0,0,(AF12*((LOG(AF12))/LOG(2)))) -> 0 | AI12: =N12 -> 0 | AJ12: =COUNTIF(L56:L71,AI12) -> 0 | AK12: =AJ12/(AL4-AJ8) -> 0 | AL12: =IF(AK12=0,0,(AK12*((LOG(AK12))/LOG(2)))) -> 0 | AN12: =N12 -> 0 | AO12: =COUNTIF(L72:L87,AN12) -> 0 | AP12: =AO12/(AQ4-AO8) -> 0 | AQ12: =IF(AP12=0,0,(AP12*((LOG(AP12))/LOG(2)))) -> 0 | AS12: =N12 -> 0 | AT12: =COUNTIF(L88:L103,AS12) -> 0 | AU12: =AT12/(AV4-AT8) -> 0 | AV12: =IF(AU12=0,0,(AU12*((LOG(AU12))/LOG(2)))) -> 0
A13: 22 | B13: 725 | C13: 14 | D13: 736 | K13: 0 | L13: 21 | T13: =N13 -> 0 | U13: =COUNTIF(L7:L22,T13) -> 0 | V13: =U13/(W4-U8) -> 0 | W13: =IF(V13=0,0,(V13*((LOG(V13))/LOG(2)))) -> 0 | Y13: =N13 -> 0 | Z13: =COUNTIF(L23:L38,Y13) -> 0 | AA13: =Z13/(AB4-Z8) -> 0 | AB13: =IF(AA13=0,0,(AA13*((LOG(AA13))/LOG(2)))) -> 0 | AD13: =N13 -> 0 | AE13: =COUNTIF(L39:L55,AD13) -> 0 | AF13: =AE13/(AG4-AE8) -> 0 | AG13: =IF(AF13=0,0,(AF13*((LOG(AF13))/LOG(2)))) -> 0 | AI13: =N13 -> 0 | AJ13: =COUNTIF(L56:L71,AI13) -> 0 | AK13: =AJ13/(AL4-AJ8) -> 0 | AL13: =IF(AK13=0,0,(AK13*((LOG(AK13))/LOG(2)))) -> 0 | AN13: =N13 -> 0 | AO13: =COUNTIF(L72:L87,AN13) -> 0 | AP13: =AO13/(AQ4-AO8) -> 0 | AQ13: =IF(AP13=0,0,(AP13*((LOG(AP13))/LOG(2)))) -> 0 | AS13: =N13 -> 0 | AT13: =COUNTIF(L88:L103,AS13) -> 0 | AU13: =AT13/(AV4-AT8) -> 0 | AV13: =IF(AU13=0,0,(AU13*((LOG(AU13))/LOG(2)))) -> 0
A14: 11 | B14: 874 | C14: 21 | D14: 892 | K14: 0 | L14: 12 | T14: =N14 -> 0 | U14: =COUNTIF(L7:L22,T14) -> 0 | V14: =U14/(W4-U8) -> 0 | W14: =IF(V14=0,0,(V14*((LOG(V14))/LOG(2)))) -> 0 | Y14: =N14 -> 0 | Z14: =COUNTIF(L23:L38,Y14) -> 0 | AA14: =Z14/(AB4-Z8) -> 0 | AB14: =IF(AA14=0,0,(AA14*((LOG(AA14))/LOG(2)))) -> 0 | AD14: =N14 -> 0 | AE14: =COUNTIF(L39:L55,AD14) -> 0 | AF14: =AE14/(AG4-AE8) -> 0 | AG14: =IF(AF14=0,0,(AF14*((LOG(AF14))/LOG(2)))) -> 0 | AI14: =N14 -> 0 | AJ14: =COUNTIF(L56:L71,AI14) -> 0 | AK14: =AJ14/(AL4-AJ8) -> 0 | AL14: =IF(AK14=0,0,(AK14*((LOG(AK14))/LOG(2)))) -> 0 | AN14: =N14 -> 0 | AO14: =COUNTIF(L72:L87,AN14) -> 0 | AP14: =AO14/(AQ4-AO8) -> 0 | AQ14: =IF(AP14=0,0,(AP14*((LOG(AP14))/LOG(2)))) -> 0 | AS14: =N14 -> 0 | AT14: =COUNTIF(L88:L103,AS14) -> 0 | AU14: =AT14/(AV4-AT8) -> 0 | AV14: =IF(AU14=0,0,(AU14*((LOG(AU14))/LOG(2)))) -> 0
A15: 22 | B15: 983 | C15: 14 | D15: 999 | K15: 0 | L15: 21 | P15: =SUM(P7:P14) -> 1 | Q15: =-SUM(Q7:Q14) -> 1.657133199 | V15: =SUM(V7:V14) -> 1 | W15: =-SUM(W7:W14) -> 0.9182958341 | AA15: =SUM(AA7:AA14) -> 1 | AB15: =-SUM(AB7:AB14) -> 0.8453509366 | AF15: =SUM(AF7:AF14) -> 1 | AG15: =-SUM(AG7:AG14) -> 0.9544340029 | AK15: =SUM(AK7:AK14) -> 1 | AL15: =-SUM(AL7:AL14) -> 1.298794941 | AP15: =SUM(AP7:AP14) -> 1 | AQ15: =-SUM(AQ7:AQ14) -> 0.8631205686 | AU15: =SUM(AU7:AU14) -> 1 | AV15: =-SUM(AV7:AV14) -> 1.298794941
A16: 22 | B16: 1101 | C16: 23 | D16: 1110 | K16: 0 | L16: 22 | P16: U= | Q16: =Q15/(LOG(Q4)/LOG(2)) -> 0.2510841035 | V16: U1= | W16: =W15/(LOG(W4)/LOG(2)) -> 0.2295739585 | AA16: U2= | AB16: =AB15/(LOG(AB4)/LOG(2)) -> 0.2113377342 | AF16: U3= | AG16: =AG15/(LOG(AG4)/LOG(2)) -> 0.2335027962 | AK16: U4= | AL16: =AL15/(LOG(AL4)/LOG(2)) -> 0.3246987352 | AP16: U5= | AQ16: =AQ15/(LOG(AQ4)/LOG(2)) -> 0.2157801421 | AU16: U6= | AV16: =AV15/(LOG(AV4)/LOG(2)) -> 0.3246987352
A17: 22 | B17: 1220 | C17: 14 | D17: 1232 | K17: 0 | L17: 21
A18: 22 | B18: 1339 | C18: 23 | D18: 1349 | K18: 0 | L18: 22
A19: 22 | B19: 1456 | C19: 23 | D19: 1469 | K19: 0 | L19: 22 | N19: Total Target Seq
A20: 22 | B20: 1573 | C20: 23 | D20: 1582 | K20: 0 | L20: 22 | N20: =COUNTIF(L7:L103,G3) -> 40 | P20: 16 | Q20: 16 | R20: 17 | S20: 16 | T20: 16 | U20: 16
A21: 22 | B21: 1680 | C21: 23 | D21: 1686 | K21: 0 | L21: 22 | P21: % of reinforcement given in 6 equal intervals based on number of trials
A22: 22 | B22: 1789 | C22: 14 | D22: 1810 | K22: 0 | L22: 21 | P22: %_1 | Q22: %_2 | R22: %_3 | S22: %_4 | T22: %_5 | U22: %_6
A23: 22 | B23: 1917 | C23: 14 | D23: 1930 | K23: 0 | L23: 21 | O23: target sequence | P23: =$G$3 -> 12 | Q23: =$G$3 -> 12 | R23: =$G$3 -> 12 | S23: =$G$3 -> 12 | T23: =$G$3 -> 12 | U23: =$G$3 -> 12
A24: 22 | B24: 2030 | C24: 23 | D24: 2038 | K24: 0 | L24: 22 | O24: total reinforcement | P24: =U8 -> 1 | Q24: =Z8 -> 5 | R24: =AE8 -> 9 | S24: =AJ8 -> 8 | T24: =AO8 -> 9 | U24: =AT8 -> 8
A25: 22 | B25: 2154 | C25: 14 | D25: 2166 | K25: 0 | L25: 21 | O25: % target
A26: 22 | B26: 2264 | C26: 14 | D26: 2280 | K26: 0 | L26: 21 | O26: CCRF
A27: 11 | B27: 2382 | C27: 21 | D27: 2393 | K27: 0 | L27: 12 | O27: % CCRf
A28: 22 | B28: 2483 | C28: 14 | D28: 2502 | K28: 0 | L28: 21 | O28: average response rate | P28: =D22/P20 -> 113.125 | Q28: =(D38-D22)/Q20 -> 112.9375 | R28: =(D55-D38)/R20 -> 110.6470588 | S28: =(D71-D55)/S20 -> 104.375 | T28: =(D87-D71)/T20 -> 112.3125 | U28: =(D103-D87)/U20 -> 113.8125
A29: 22 | B29: 2604 | C29: 14 | D29: 2616 | K29: 0 | L29: 21
A30: 11 | B30: 2716 | C30: 21 | D30: 2745 | K30: 0 | L30: 12
A31: 22 | B31: 2836 | C31: 14 | D31: 2849 | K31: 0 | L31: 21
A32: 11 | B32: 2946 | C32: 21 | D32: 2960 | K32: 0 | L32: 12
A33: 22 | B33: 3051 | C33: 14 | D33: 3064 | K33: 0 | L33: 21
A34: 11 | B34: 3176 | C34: 21 | D34: 3196 | K34: 0 | L34: 12
A35: 22 | B35: 3286 | C35: 23 | D35: 3294 | K35: 0 | L35: 22
A36: 22 | B36: 3401 | C36: 14 | D36: 3412 | K36: 0 | L36: 21
A37: 11 | B37: 3513 | C37: 21 | D37: 3522 | K37: 0 | L37: 12
A38: 22 | B38: 3612 | C38: 23 | D38: 3617 | K38: 0 | L38: 22
A39: 22 | B39: 3718 | C39: 14 | D39: 3727 | K39: 0 | L39: 21
A40: 22 | B40: 3836 | C40: 23 | D40: 3850 | K40: 0 | L40: 22
A41: 11 | B41: 3946 | C41: 21 | D41: 3960 | K41: 0 | L41: 12
A42: 22 | B42: 4049 | C42: 14 | D42: 4059 | K42: 0 | L42: 21
A43: 22 | B43: 4167 | C43: 23 | D43: 4177 | K43: 0 | L43: 22
A44: 11 | B44: 4276 | C44: 21 | D44: 4286 | K44: 0 | L44: 12
A45: 11 | B45: 4376 | C45: 21 | D45: 4407 | K45: 0 | L45: 12
A46: 22 | B46: 4495 | C46: 23 | D46: 4500 | K46: 0 | L46: 22
A47: 11 | B47: 4594 | C47: 21 | D47: 4607 | K47: 0 | L47: 12
A48: 22 | B48: 4695 | C48: 14 | D48: 4706 | K48: 0 | L48: 21
A49: 22 | B49: 4805 | C49: 14 | D49: 4813 | K49: 0 | L49: 21
A50: 11 | B50: 4908 | C50: 21 | D50: 4920 | K50: 0 | L50: 12
A51: 11 | B51: 5010 | C51: 21 | D51: 5019 | K51: 0 | L51: 12
A52: 11 | B52: 5128 | C52: 21 | D52: 5191 | K52: 0 | L52: 12
A53: 11 | B53: 5279 | C53: 21 | D53: 5288 | K53: 0 | L53: 12
A54: 22 | B54: 5379 | C54: 14 | D54: 5390 | K54: 0 | L54: 21
A55: 11 | B55: 5487 | C55: 21 | D55: 5498 | K55: 0 | L55: 12
A56: 22 | B56: 5586 | C56: 14 | D56: 5598 | K56: 0 | L56: 21
A57: 11 | B57: 5696 | C57: 21 | D57: 5712 | K57: 0 | L57: 12
A58: 22 | B58: 5800 | C58: 23 | D58: 5805 | K58: 0 | L58: 22
A59: 22 | B59: 5911 | C59: 23 | D59: 5919 | K59: 0 | L59: 22
A60: 11 | B60: 6017 | C60: 21 | D60: 6025 | K60: 0 | L60: 12
A61: 22 | B61: 6116 | C61: 14 | D61: 6128 | K61: 0 | L61: 21
A62: 11 | B62: 6223 | C62: 21 | D62: 6235 | K62: 0 | L62: 12
A63: 11 | B63: 6338 | C63: 21 | D63: 6355 | K63: 0 | L63: 12
A64: 22 | B64: 6443 | C64: 14 | D64: 6455 | K64: 0 | L64: 21
A65: 11 | B65: 6550 | C65: 21 | D65: 6570 | K65: 0 | L65: 12
A66: 11 | B66: 6656 | C66: 21 | D66: 6667 | K66: 0 | L66: 12
A67: 11 | B67: 6753 | C67: 21 | D67: 6762 | K67: 0 | L67: 12
A68: 22 | B68: 6852 | C68: 14 | D68: 6863 | K68: 0 | L68: 21
A69: 11 | B69: 6955 | C69: 12 | D69: 6960 | K69: 0 | L69: 11
A70: 11 | B70: 7056 | C70: 21 | D70: 7069 | K70: 0 | L70: 12
A71: 22 | B71: 7157 | C71: 14 | D71: 7168 | K71: 0 | L71: 21
A72: 11 | B72: 7265 | C72: 21 | D72: 7277 | K72: 0 | L72: 12
A73: 11 | B73: 7379 | C73: 21 | D73: 7471 | K73: 0 | L73: 12
A74: 22 | B74: 7561 | C74: 14 | D74: 7572 | K74: 0 | L74: 21
A75: 22 | B75: 7679 | C75: 23 | D75: 7686 | K75: 0 | L75: 22
A76: 11 | B76: 7781 | C76: 21 | D76: 7791 | K76: 0 | L76: 12
A77: 22 | B77: 7896 | C77: 23 | D77: 7904 | K77: 0 | L77: 22
A78: 11 | B78: 8004 | C78: 21 | D78: 8013 | K78: 0 | L78: 12
A79: 22 | B79: 8101 | C79: 14 | D79: 8112 | K79: 0 | L79: 21
A80: 11 | B80: 8207 | C80: 21 | D80: 8219 | K80: 0 | L80: 12
A81: 11 | B81: 8323 | C81: 21 | D81: 8332 | K81: 0 | L81: 12
A82: 22 | B82: 8423 | C82: 14 | D82: 8436 | K82: 0 | L82: 21
A83: 11 | B83: 8535 | C83: 21 | D83: 8545 | K83: 0 | L83: 12
A84: 22 | B84: 8634 | C84: 14 | D84: 8646 | K84: 0 | L84: 21
A85: 11 | B85: 8744 | C85: 21 | D85: 8753 | K85: 0 | L85: 12
A86: 22 | B86: 8846 | C86: 14 | D86: 8859 | K86: 0 | L86: 21
A87: 11 | B87: 8956 | C87: 21 | D87: 8965 | K87: 0 | L87: 12
A88: 22 | B88: 9063 | C88: 23 | D88: 9074 | K88: 0 | L88: 22
A89: 22 | B89: 9175 | C89: 14 | D89: 9185 | K89: 0 | L89: 21
A90: 11 | B90: 9284 | C90: 21 | D90: 9297 | K90: 0 | L90: 12
A91: 22 | B91: 9386 | C91: 14 | D91: 9398 | K91: 0 | L91: 21
A92: 22 | B92: 9568 | C92: 23 | D92: 9588 | K92: 0 | L92: 22
A93: 11 | B93: 9686 | C93: 21 | D93: 9698 | K93: 0 | L93: 12
A94: 11 | B94: 9788 | C94: 21 | D94: 9797 | K94: 0 | L94: 12
A95: 22 | B95: 9891 | C95: 14 | D95: 9904 | K95: 0 | L95: 21
A96: 11 | B96: 9999 | C96: 21 | D96: 10011 | K96: 0 | L96: 12
A97: 22 | B97: 10109 | C97: 14 | D97: 10123 | K97: 0 | L97: 21
A98: 11 | B98: 10222 | C98: 21 | D98: 10231 | K98: 0 | L98: 12
A99: 11 | B99: 10321 | C99: 12 | D99: 10329 | K99: 0 | L99: 11
A100: 11 | B100: 10439 | C100: 21 | D100: 10450 | K100: 0 | L100: 12
A101: 22 | B101: 10566 | C101: 14 | D101: 10579 | K101: 0 | L101: 21
A102: 11 | B102: 10678 | C102: 21 | D102: 10687 | K102: 0 | L102: 12
A103: 11 | B103: 10775 | C103: 21 | D103: 10786 | K103: 1 | L103: 12

Sheet !MC03730.091
A1: Report for:!MC03730.091
A2: Date: | B2: <date>
A3: Hen: | B3: <hen> | F3: Correct Sequence | G3: =Start!J2 -> 12 | P3: Total Sequences in Data | Q3: =4994-COUNTBLANK(L7:L5000) -> 67 | V3: Total Sequences in Block Data | W3: =COUNTA(L7:L17) -> 11 | AA3: Total Sequences in Block Data | AB3: =COUNTA(L18:L28) -> 11 | AF3: Total Sequences in Block Data | AG3: =COUNTA(L29:L40) -> 12 | AK3: Total Sequences in Block Data | AL3: =COUNTA(L41:L51) -> 11 | AP3: Total Sequences in Block Data | AQ3: =COUNTA(L52:L62) -> 11 | AU3: Total Sequences in Block Data | AV3: =COUNTA(L63:L73) -> 11
P4: Total Sequences in Summary | Q4: =SUM(O7:O14) -> 67 | V4: Total Sequences in Block Summary | W4: =SUM(U7:U14) -> 11 | AA4: Total Sequences in Block Summary | AB4: =SUM(Z7:Z14) -> 11 | AF4: Total Sequences in Block Summary | AG4: =SUM(AE7:AE14) -> 12 | AK4: Total Sequences in Block Summary | AL4: =SUM(AJ7:AJ14) -> 11 | AP4: Total Sequences in Block Summary | AQ4: =SUM(AO7:AO14) -> 11 | AU4: Total Sequences in Block Summary | AV4: =SUM(AT7:AT14) -> 11
T5: Block 1 | Y5: Block 2 | AD5: Block 3 | AI5: Block 4 | AN5: Block 5 | AS5: Block 6
A6: Sequence Component 1 | B6: Time 1 | C6: Sequence Component 2 | D6: Time 2 | E6: Sequence Component 3 | F6: Time 3 | G6: Sequence Component 4 | H6: Time 4 | I6: Sequence Component 5 | J6: Time 5 | K6: Correct? 0=No 1=Yes | L6: Sequence | N6: Frequency | P6: Relative Frequency | Q6: Variability | T6: Frequency | V6: Relative Frequency | W6: Variability | Y6: Frequency | AA6: Relative Frequency | AB6: Variability | AD6: Frequency | AF6: Relative Frequency | AG6: Variability | AI6: Frequency | AK6: Relative Frequency | AL6: Variability | AN6: Frequency | AP6: Relative Frequency | AQ6: Variability | AS6: Frequency | AU6: Relative Frequency | AV6: Variability
A7: 22 | B7: 11 | C7: 14 | D7: 23 | K7: 0 | L7: 21 | N7: 11 | O7: =COUNTIF($L$7:$L$500,N7) -> 1 | P7: =O7/$Q$4 -> 0.01492537313 | Q7: =IF(P7=0,0,(P7*((LOG(P7))/LOG(2)))) -> -0.09053864463 | T7: =N7 -> 11 | U7: =COUNTIF(L7:L17,T7) -> 1 | V7: =U7/(W4-U8) -> 0.1428571429 | W7: =IF(V7=0,0,(V7*((LOG(V7))/LOG(2)))) -> -0.4010507032 | Y7: =N7 -> 11 | Z7: =COUNTIF(L18:L28,Y7) -> 0 | AA7: =Z7/(AB4-Z8) -> 0 | AB7: =IF(AA7=0,0,(AA7*((LOG(AA7))/LOG(2)))) -> 0 | AD7: =N7 -> 11 | AE7: =COUNTIF(L29:L40,AD7) -> 0 | AF7: =AE7/(AG4-AE8) -> 0 | AG7: =IF(AF7=0,0,(AF7*((LOG(AF7))/LOG(2)))) -> 0 | AI7: =N7 -> 11 | AJ7: =COUNTIF(L41:L51,AI7) -> 0 | AK7: =AJ7/(AL4-AJ8) -> 0 | AL7: =IF(AK7=0,0,(AK7*((LOG(AK7))/LOG(2)))) -> 0 | AN7: =N7 -> 11 | AO7: =COUNTIF(L52:L62,AN7) -> 0 | AP7: =AO7/(AQ4-AO8) -> 0 | AQ7: =IF(AP7=0,0,(AP7*((LOG(AP7))/LOG(2)))) -> 0 | AS7: =N7 -> 11 | AT7: =COUNTIF(L63:L73,AS7) -> 0 | AU7: =AT7/(AV4-AT8) -> 0 | AV7: =IF(AU7=0,0,(AU7*((LOG(AU7))/LOG(2)))) -> 0
A8: 22 | B8: 122 | C8: 23 | D8: 128 | K8: 0 | L8: 22 | N8: 12 | O8: =COUNTIF($L$7:$L$500,N8) -> 40 | P8: =O8/$Q$4 -> 0.5970149254 | Q8: =IF(P8=0,0,(P8*((LOG(P8))/LOG(2)))) -> -0.4442752809 | T8: =N8 -> 12 | U8: =COUNTIF(L7:L17,T8) -> 4 | Y8: =N8 -> 12 | Z8: =COUNTIF(L18:L28,Y8) -> 6 | AD8: =N8 -> 12 | AE8: =COUNTIF(L29:L40,AD8) -> 7 | AI8: =N8 -> 12 | AJ8: =COUNTIF(L41:L51,AI8) -> 8 | AN8: =N8 -> 12 | AO8: =COUNTIF(L52:L62,AN8) -> 8 | AS8: =N8 -> 12 | AT8: =COUNTIF(L63:L73,AS8) -> 7
A9: 22 | B9: 234 | C9: 14 | D9: 247 | K9: 0 | L9: 21 | N9: 21 | O9: =COUNTIF($L$7:$L$500,N9) -> 16 | P9: =O9/$Q$4 -> 0.2388059701 | Q9: =IF(P9=0,0,(P9*((LOG(P9))/LOG(2)))) -> -0.4933944335 | T9: =N9 -> 21 | U9: =COUNTIF(L7:L17,T9) -> 4 | V9: =U9/(W4-U8) -> 0.5714285714 | W9: =IF(V9=0,0,(V9*((LOG(V9))/LOG(2)))) -> -0.4613456697 | Y9: =N9 -> 21 | Z9: =COUNTIF(L18:L28,Y9) -> 3 | AA9: =Z9/(AB4-Z8) -> 0.6 | AB9: =IF(AA9=0,0,(AA9*((LOG(AA9))/LOG(2)))) -> -0.4421793565 | AD9: =N9 -> 21 | AE9: =COUNTIF(L29:L40,AD9) -> 3 | AF9: =AE9/(AG4-AE8) -> 0.6 | AG9: =IF(AF9=0,0,(AF9*((LOG(AF9))/LOG(2)))) -> -0.4421793565 | AI9: =N9 -> 21 | AJ9: =COUNTIF(L41:L51,AI9) -> 1 | AK9: =AJ9/(AL4-AJ8) -> 0.3333333333 | AL9: =IF(AK9=0,0,(AK9*((LOG(AK9))/LOG(2)))) -> -0.5283208336 | AN9: =N9 -> 21 | AO9: =COUNTIF(L52:L62,AN9) -> 1 | AP9: =AO9/(AQ4-AO8) -> 0.3333333333 | AQ9: =IF(AP9=0,0,(AP9*((LOG(AP9))/LOG(2)))) -> -0.5283208336 | AS9: =N9 -> 21 | AT9: =COUNTIF(L63:L73,AS9) -> 4 | AU9: =AT9/(AV4-AT8) -> 1 | AV9: =IF(AU9=0,0,(AU9*((LOG(AU9))/LOG(2)))) -> 0
A10: 22 | B10: 349 | C10: 23 | D10: 367 | K10: 0 | L10: 22 | N10: 22 | O10: =COUNTIF($L$7:$L$500,N10) -> 10 | P10: =O10/$Q$4 -> 0.1492537313 | Q10: =IF(P10=0,0,(P10*((LOG(P10))/LOG(2)))) -> -0.4095762829 | T10: =N10 -> 22 | U10: =COUNTIF(L7:L17,T10) -> 2 | V10: =U10/(W4-U8) -> 0.2857142857 | W10: =IF(V10=0,0,(V10*((LOG(V10))/LOG(2)))) -> -0.5163871206 | Y10: =N10 -> 22 | Z10: =COUNTIF(L18:L28,Y10) -> 2 | AA10: =Z10/(AB4-Z8) -> 0.4 | AB10: =IF(AA10=0,0,(AA10*((LOG(AA10))/LOG(2)))) -> -0.528771238 | AD10: =N10 -> 22 | AE10: =COUNTIF(L29:L40,AD10) -> 2 | AF10: =AE10/(AG4-AE8) -> 0.4 | AG10: =IF(AF10=0,0,(AF10*((LOG(AF10))/LOG(2)))) -> -0.528771238 | AI10: =N10 -> 22 | AJ10: =COUNTIF(L41:L51,AI10) -> 2 | AK10: =AJ10/(AL4-AJ8) -> 0.6666666667 | AL10: =IF(AK10=0,0,(AK10*((LOG(AK10))/LOG(2)))) -> -0.3899750005 | AN10: =N10 -> 22 | AO10: =COUNTIF(L52:L62,AN10) -> 2 | AP10: =AO10/(AQ4-AO8) -> 0.6666666667 | AQ10: =IF(AP10=0,0,(AP10*((LOG(AP10))/LOG(2)))) -> -0.3899750005 | AS10: =N10 -> 22 | AT10: =COUNTIF(L63:L73,AS10) -> 0 | AU10: =AT10/(AV4-AT8) -> 0 | AV10: =IF(AU10=0,0,(AU10*((LOG(AU10))/LOG(2)))) -> 0
A11: 11 | B11: 482 | C11: 21 | D11: 494 | K11: 0 | L11: 12 | T11: =N11 -> 0 | U11: =COUNTIF(L7:L17,T11) -> 0 | V11: =U11/(W4-U8) -> 0 | W11: =IF(V11=0,0,(V11*((LOG(V11))/LOG(2)))) -> 0 | Y11: =N11 -> 0 | Z11: =COUNTIF(L18:L28,Y11) -> 0 | AA11: =Z11/(AB4-Z8) -> 0 | AB11: =IF(AA11=0,0,(AA11*((LOG(AA11))/LOG(2)))) -> 0 | AD11: =N11 -> 0 | AE11: =COUNTIF(L29:L40,AD11) -> 0 | AF11: =AE11/(AG4-AE8) -> 0 | AG11: =IF(AF11=0,0,(AF11*((LOG(AF11))/LOG(2)))) -> 0 | AI11: =N11 -> 0 | AJ11: =COUNTIF(L41:L51,AI11) -> 0 | AK11: =AJ11/(AL4-AJ8) -> 0 | AL11: =IF(AK11=0,0,(AK11*((LOG(AK11))/LOG(2)))) -> 0 | AN11: =N11 -> 0 | AO11: =COUNTIF(L52:L62,AN11) -> 0 | AP11: =AO11/(AQ4-AO8) -> 0 | AQ11: =IF(AP11=0,0,(AP11*((LOG(AP11))/LOG(2)))) -> 0 | AS11: =N11 -> 0 | AT11: =COUNTIF(L63:L73,AS11) -> 0 | AU11: =AT11/(AV4-AT8) -> 0 | AV11: =IF(AU11=0,0,(AU11*((LOG(AU11))/LOG(2)))) -> 0
A12: 22 | B12: 583 | C12: 14 | D12: 595 | K12: 0 | L12: 21 | T12: =N12 -> 0 | U12: =COUNTIF(L7:L17,T12) -> 0 | V12: =U12/(W4-U8) -> 0 | W12: =IF(V12=0,0,(V12*((LOG(V12))/LOG(2)))) -> 0 | Y12: =N12 -> 0 | Z12: =COUNTIF(L18:L28,Y12) -> 0 | AA12: =Z12/(AB4-Z8) -> 0 | AB12: =IF(AA12=0,0,(AA12*((LOG(AA12))/LOG(2)))) -> 0 | AD12: =N12 -> 0 | AE12: =COUNTIF(L29:L40,AD12) -> 0 | AF12: =AE12/(AG4-AE8) -> 0 | AG12: =IF(AF12=0,0,(AF12*((LOG(AF12))/LOG(2)))) -> 0 | AI12: =N12 -> 0 | AJ12: =COUNTIF(L41:L51,AI12) -> 0 | AK12: =AJ12/(AL4-AJ8) -> 0 | AL12: =IF(AK12=0,0,(AK12*((LOG(AK12))/LOG(2)))) -> 0 | AN12: =N12 -> 0 | AO12: =COUNTIF(L52:L62,AN12) -> 0 | AP12: =AO12/(AQ4-AO8) -> 0 | AQ12: =IF(AP12=0,0,(AP12*((LOG(AP12))/LOG(2)))) -> 0 | AS12: =N12 -> 0 | AT12: =COUNTIF(L63:L73,AS12) -> 0 | AU12: =AT12/(AV4-AT8) -> 0 | AV12: =IF(AU12=0,0,(AU12*((LOG(AU12))/LOG(2)))) -> 0
A13: 11 | B13: 694 | C13: 21 | D13: 706 | K13: 0 | L13: 12 | T13: =N13 -> 0 | U13: =COUNTIF(L7:L17,T13) -> 0 | V13: =U13/(W4-U8) -> 0 | W13: =IF(V13=0,0,(V13*((LOG(V13))/LOG(2)))) -> 0 | Y13: =N13 -> 0 | Z13: =COUNTIF(L18:L28,Y13) -> 0 | AA13: =Z13/(AB4-Z8) -> 0 | AB13: =IF(AA13=0,0,(AA13*((LOG(AA13))/LOG(2)))) -> 0 | AD13: =N13 -> 0 | AE13: =COUNTIF(L29:L40,AD13) -> 0 | AF13: =AE13/(AG4-AE8) -> 0 | AG13: =IF(AF13=0,0,(AF13*((LOG(AF13))/LOG(2)))) -> 0 | AI13: =N13 -> 0 | AJ13: =COUNTIF(L41:L51,AI13) -> 0 | AK13: =AJ13/(AL4-AJ8) -> 0 | AL13: =IF(AK13=0,0,(AK13*((LOG(AK13))/LOG(2)))) -> 0 | AN13: =N13 -> 0 | AO13: =COUNTIF(L52:L62,AN13) -> 0 | AP13: =AO13/(AQ4-AO8) -> 0 | AQ13: =IF(AP13=0,0,(AP13*((LOG(AP13))/LOG(2)))) -> 0 | AS13: =N13 -> 0 | AT13: =COUNTIF(L63:L73,AS13) -> 0 | AU13: =AT13/(AV4-AT8) -> 0 | AV13: =IF(AU13=0,0,(AU13*((LOG(AU13))/LOG(2)))) -> 0
A14: 22 | B14: 798 | C14: 14 | D14: 811 | K14: 0 | L14: 21 | T14: =N14 -> 0 | U14: =COUNTIF(L7:L17,T14) -> 0 | V14: =U14/(W4-U8) -> 0 | W14: =IF(V14=0,0,(V14*((LOG(V14))/LOG(2)))) -> 0 | Y14: =N14 -> 0 | Z14: =COUNTIF(L18:L28,Y14) -> 0 | AA14: =Z14/(AB4-Z8) -> 0 | AB14: =IF(AA14=0,0,(AA14*((LOG(AA14))/LOG(2)))) -> 0 | AD14: =N14 -> 0 | AE14: =COUNTIF(L29:L40,AD14) -> 0 | AF14: =AE14/(AG4-AE8) -> 0 | AG14: =IF(AF14=0,0,(AF14*((LOG(AF14))/LOG(2)))) -> 0 | AI14: =N14 -> 0 | AJ14: =COUNTIF(L41:L51,AI14) -> 0 | AK14: =AJ14/(AL4-AJ8) -> 0 | AL14: =IF(AK14=0,0,(AK14*((LOG(AK14))/LOG(2)))) -> 0 | AN14: =N14 -> 0 | AO14: =COUNTIF(L52:L62,AN14) -> 0 | AP14: =AO14/(AQ4-AO8) -> 0 | AQ14: =IF(AP14=0,0,(AP14*((LOG(AP14))/LOG(2)))) -> 0 | AS14: =N14 -> 0 | AT14: =COUNTIF(L63:L73,AS14) -> 0 | AU14: =AT14/(AV4-AT8) -> 0 | AV14: =IF(AU14=0,0,(AU14*((LOG(AU14))/LOG(2)))) -> 0
A15: 11 | B15: 909 | C15: 21 | D15: 920 | K15: 0 | L15: 12 | P15: =SUM(P7:P14) -> 1 | Q15: =-SUM(Q7:Q14) -> 1.437784642 | V15: =SUM(V7:V14) -> 1 | W15: =-SUM(W7:W14) -> 1.378783493 | AA15: =SUM(AA7:AA14) -> 1 | AB15: =-SUM(AB7:AB14) -> 0.9709505945 | AF15: =SUM(AF7:AF14) -> 1 | AG15: =-SUM(AG7:AG14) -> 0.9709505945 | AK15: =SUM(AK7:AK14) -> 1 | AL15: =-SUM(AL7:AL14) -> 0.9182958341 | AP15: =SUM(AP7:AP14) -> 1 | AQ15: =-SUM(AQ7:AQ14) -> 0.9182958341 | AU15: =SUM(AU7:AU14) -> 1 | AV15: =-SUM(AV7:AV14) -> 0
A16: 11 | B16: 1009 | C16: 12 | D16: 1060 | K16: 0 | L16: 11 | P16: U= | Q16: =Q15/(LOG(Q4)/LOG(2)) -> 0.23702003 | V16: U1= | W16: =W15/(LOG(W4)/LOG(2)) -> 0.3985578111 | AA16: U2= | AB16: =AB15/(LOG(AB4)/LOG(2)) -> 0.2806676649 | AF16: U3= | AG16: =AG15/(LOG(AG4)/LOG(2)) -> 0.2708398189 | AK16: U4= | AL16: =AL15/(LOG(AL4)/LOG(2)) -> 0.2654470258 | AP16: U5= | AQ16: =AQ15/(LOG(AQ4)/LOG(2)) -> 0.2654470258 | AU16: U6= | AV16: =AV15/(LOG(AV4)/LOG(2)) -> 0
A17: 11 | B17: 1157 | C17: 21 | D17: 1168 | K17: 0 | L17: 12
A18: 22 | B18: 1256 | C18: 14 | D18: 1268 | K18: 0 | L18: 21
A19: 11 | B19: 1365 | C19: 21 | D19: 1382 | K19: 0 | L19: 12 | N19: Total Target Seq
A20: 22 | B20: 1473 | C20: 23 | D20: 1485 | K20: 0 | L20: 22 | N20: =COUNTIF(L7:L73,G3) -> 40 | P20: 11 | Q20: 11 | R20: 12 | S20: 11 | T20: 11 | U20: 11
A21: 11 | B21: 1583 | C21: 21 | D21: 1593 | K21: 0 | L21: 12 | P21: % of reinforcement given in 6 equal intervals based on number of trials
A22: 22 | B22: 1684 | C22: 14 | D22: 1695 | K22: 0 | L22: 21 | P22: %_1 | Q22: %_2 | R22: %_3 | S22: %_4 | T22: %_5 | U22: %_6
A23: 22 | B23: 1803 | C23: 23 | D23: 1815 | K23: 0 | L23: 22 | O23: target sequence | P23: =$G$3 -> 12 | Q23: =$G$3 -> 12 | R23: =$G$3 -> 12 | S23: =$G$3 -> 12 | T23: =$G$3 -> 12 | U23: =$G$3 -> 12
A24: 11 | B24: 1915 | C24: 21 | D24: 1924 | K24: 0 | L24: 12 | O24: total reinforcement | P24: =U8 -> 4 | Q24: =Z8 -> 6 | R24: =AE8 -> 7 | S24: =AJ8 -> 8 | T24: =AO8 -> 8 | U24: =AT8 -> 7
A25: 11 | B25: 2011 | C25: 21 | D25: 2021 | K25: 0 | L25: 12 | O25: % target
A26: 11 | B26: 2107 | C26: 21 | D26: 2119 | K26: 0 | L26: 12 | O26: CCRF
A27: 22 | B27: 2214 | C27: 14 | D27: 2226 | K27: 0 | L27: 21 | O27: % CCRf
A28: 11 | B28: 2322 | C28: 21 | D28: 2330 | K28: 0 | L28: 12 | O28: average response rate | P28: =D17/P20 -> 106.1818182 | Q28: =(D28-D17)/Q20 -> 105.6363636 | R28: =(D40-D28)/R20 -> 106.75 | S28: =(D51-D40)/S20 -> 107.1818182 | T28: =(D62-D51)/T20 -> 109.4545455 | U28: =(D73-D62)/U20 -> 106.4545455
A29: 22 | B29: 2420 | C29: 23 | D29: 2428 | K29: 0 | L29: 22
A30: 11 | B30: 2526 | C30: 21 | D30: 2535 | K30: 0 | L30: 12
A31: 11 | B31: 2622 | C31: 21 | D31: 2631 | K31: 0 | L31: 12
A32: 22 | B32: 2729 | C32: 14 | D32: 2740 | K32: 0 | L32: 21
A33: 11 | B33: 2835 | C33: 21 | D33: 2847 | K33: 0 | L33: 12
A34: 22 | B34: 2938 | C34: 14 | D34: 2950 | K34: 0 | L34: 21
A35: 11 | B35: 3050 | C35: 21 | D35: 3070 | K35: 0 | L35: 12
A36: 22 | B36: 3163 | C36: 23 | D36: 3186 | K36: 0 | L36: 22
A37: 11 | B37: 3283 | C37: 21 | D37: 3291 | K37: 0 | L37: 12
A38: 22 | B38: 3387 | C38: 14 | D38: 3400 | K38: 0 | L38: 21
A39: 11 | B39: 3498 | C39: 21 | D39: 3506 | K39: 0 | L39: 12
A40: 11 | B40: 3596 | C40: 21 | D40: 3611 | K40: 0 | L40: 12
A41: 11 | B41: 3713 | C41: 21 | D41: 3778 | K41: 0 | L41: 12
A42: 22 | B42: 3866 | C42: 23 | D42: 3871 | K42: 0 | L42: 22
A43: 11 | B43: 3971 | C43: 21 | D43: 3979 | K43: 0 | L43: 12
A44: 22 | B44: 4067 | C44: 23 | D44: 4074 | K44: 0 | L44: 22
A45: 11 | B45: 4172 | C45: 21 | D45: 4181 | K45: 0 | L45: 12
A46: 11 | B46: 4267 | C46: 21 | D46: 4278 | K46: 0 | L46: 12
A47: 11 | B47: 4365 | C47: 21 | D47: 4383 | K47: 0 | L47: 12
A48: 11 | B48: 4473 | C48: 21 | D48: 4482 | K48: 0 | L48: 12
A49: 11 | B49: 4568 | C49: 21 | D49: 4577 | K49: 0 | L49: 12
A50: 22 | B50: 4667 | C50: 14 | D50: 4680 | K50: 0 | L50: 21
A51: 11 | B51: 4779 | C51: 21 | D51: 4790 | K51: 0 | L51: 12
A52: 11 | B52: 4878 | C52: 21 | D52: 4890 | K52: 0 | L52: 12
A53: 11 | B53: 4979 | C53: 21 | D53: 4987 | K53: 0 | L53: 12
A54: 22 | B54: 5076 | C54: 23 | D54: 5088 | K54: 0 | L54: 22
A55: 11 | B55: 5186 | C55: 21 | D55: 5198 | K55: 0 | L55: 12
A56: 11 | B56: 5285 | C56: 21 | D56: 5312 | K56: 0 | L56: 12
A57: 11 | B57: 5430 | C57: 21 | D57: 5441 | K57: 0 | L57: 12
A58: 22 | B58: 5533 | C58: 14 | D58: 5544 | K58: 0 | L58: 21
A59: 22 | B59: 5646 | C59: 23 | D59: 5658 | K59: 0 | L59: 22
A60: 11 | B60: 5755 | C60: 21 | D60: 5765 | K60: 0 | L60: 12
A61: 11 | B61: 5852 | C61: 21 | D61: 5879 | K61: 0 | L61: 12
A62: 11 | B62: 5983 | C62: 21 | D62: 5994 | K62: 0 | L62: 12
A63: 22 | B63: 6086 | C63: 14 | D63: 6099 | K63: 0 | L63: 21
A64: 11 | B64: 6195 | C64: 21 | D64: 6207 | K64: 0 | L64: 12
A65: 11 | B65: 6297 | C65: 21 | D65: 6305 | K65: 0 | L65: 12
A66: 22 | B66: 6393 | C66: 14 | D66: 6407 | K66: 0 | L66: 21
A67: 11 | B67: 6503 | C67: 21 | D67: 6514 | K67: 0 | L67: 12
A68: 11 | B68: 6602 | C68: 21 | D68: 6613 | K68: 0 | L68: 12
A69: 22 | B69: 6707 | C69: 14 | D69: 6719 | K69: 0 | L69: 21
A70: 11 | B70: 6816 | C70: 21 | D70: 6826 | K70: 0 | L70: 12
A71: 22 | B71: 6923 | C71: 14 | D71: 6939 | K71: 0 | L71: 21
A72: 11 | B72: 7036 | C72: 21 | D72: 7045 | K72: 0 | L72: 12
A73: 11 | B73: 7149 | C73: 21 | D73: 7165 | K73: 1 | L73: 12

Sheet !MC04920.091
A1: Report for:!MC04920.091
A2: Date: | B2: <date>
A3: Hen: | B3: <hen> | F3: Correct Sequence | G3: =Start!J2 -> 12 | P3: Total Sequences in Data | Q3: =4994-COUNTBLANK(L7:L5000) -> 54 | V3: Total Sequences in Block Data | W3: =COUNTA(L7:L15) -> 9 | AA3: Total Sequences in Block Data | AB3: =COUNTA(L16:L24) -> 9 | AF3: Total Sequences in Block Data | AG3: =COUNTA(L25:L33) -> 9 | AK3: Total Sequences in Block Data | AL3: =COUNTA(L34:L42) -> 9 | AP3: Total Sequences in Block Data | AQ3: =COUNTA(L43:L51) -> 9 | AU3: Total Sequences in Block Data | AV3: =COUNTA(L52:L60) -> 9
P4: Total Sequences in Summary | Q4: =SUM(O7:O14) -> 54 | V4: Total Sequences in Block Summary | W4: =SUM(U7:U14) -> 9 | AA4: Total Sequences in Block Summary | AB4: =SUM(Z7:Z14) -> 9 | AF4: Total Sequences in Block Summary | AG4: =SUM(AE7:AE14) -> 9 | AK4: Total Sequences in Block Summary | AL4: =SUM(AJ7:AJ14) -> 9 | AP4: Total Sequences in Block Summary | AQ4: =SUM(AO7:AO14) -> 9 | AU4: Total Sequences in Block Summary | AV4: =SUM(AT7:AT14) -> 9
T5: Block 1 | Y5: Block 2 | AD5: Block 3 | AI5: Block 4 | AN5: Block 5 | AS5: Block 6
A6: Sequence Component 1 | B6: Time 1 | C6: Sequence Component 2 | D6: Time 2 | E6: Sequence Component 3 | F6: Time 3 | G6: Sequence Component 4 | H6: Time 4 | I6: Sequence Component 5 | J6: Time 5 | K6: Correct? 0=No 1=Yes | L6: Sequence | N6: Frequency | P6: Relative Frequency | Q6: Variability | T6: Frequency | V6: Relative Frequency | W6: Variability | Y6: Frequency | AA6: Relative Frequency | AB6: Variability | AD6: Frequency | AF6: Relative Frequency | AG6: Variability | AI6: Frequency | AK6: Relative Frequency | AL6: Variability | AN6: Frequency | AP6: Relative Frequency | AQ6: Variability | AS6: Frequency | AU6: Relative Frequency | AV6: Variability
A7: 22 | B7: 8 | C7: 14 | D7: 22 | K7: 0 | L7: 21 | N7: 11 | O7: =COUNTIF($L$7:$L$500,N7) -> 1 | P7: =O7/$Q$4 -> 0.01851851852 | Q7: =IF(P7=0,0,(P7*((LOG(P7))/LOG(2)))) -> -0.1065719908 | T7: =N7 -> 11 | U7: =COUNTIF(L7:L15,T7) -> 0 | V7: =U7/(W4-U8) -> 0 | W7: =IF(V7=0,0,(V7*((LOG(V7))/LOG(2)))) -> 0 | Y7: =N7 -> 11 | Z7: =COUNTIF(L16:L24,Y7) -> 0 | AA7: =Z7/(AB4-Z8) -> 0 | AB7: =IF(AA7=0,0,(AA7*((LOG(AA7))/LOG(2)))) -> 0 | AD7: =N7 -> 11 | AE7: =COUNTIF(L25:L33,AD7) -> 0 | AF7: =AE7/(AG4-AE8) -> 0 | AG7: =IF(AF7=0,0,(AF7*((LOG(AF7))/LOG(2)))) -> 0 | AI7: =N7 -> 11 | AJ7: =COUNTIF(L34:L42,AI7) -> 0 | AK7: =AJ7/(AL4-AJ8) -> 0 | AL7: =IF(AK7=0,0,(AK7*((LOG(AK7))/LOG(2)))) -> 0 | AN7: =N7 -> 11 | AO7: =COUNTIF(L43:L51,AN7) -> 1 | AP7: =AO7/(AQ4-AO8) -> 0.25 | AQ7: =IF(AP7=0,0,(AP7*((LOG(AP7))/LOG(2)))) -> -0.5 | AS7: =N7 -> 11 | AT7: =COUNTIF(L52:L60,AS7) -> 0 | AU7: =AT7/(AV4-AT8) -> 0 | AV7: =IF(AU7=0,0,(AU7*((LOG(AU7))/LOG(2)))) -> 0
A8: 11 | B8: 122 | C8: 21 | D8: 136 | K8: 0 | L8: 12 | N8: 12 | O8: =COUNTIF($L$7:$L$500,N8) -> 40 | P8: =O8/$Q$4 -> 0.7407407407 | Q8: =IF(P8=0,0,(P8*((LOG(P8))/LOG(2)))) -> -0.3207106721 | T8: =N8 -> 12 | U8: =COUNTIF(L7:L15,T8) -> 7 | Y8: =N8 -> 12 | Z8: =COUNTIF(L16:L24,Y8) -> 7 | AD8: =N8 -> 12 | AE8: =COUNTIF(L25:L33,AD8) -> 7 | AI8: =N8 -> 12 | AJ8: =COUNTIF(L34:L42,AI8) -> 8 | AN8: =N8 -> 12 | AO8: =COUNTIF(L43:L51,AN8) -> 5 | AS8: =N8 -> 12 | AT8: =COUNTIF(L52:L60,AS8) -> 6
A9: 11 | B9: 263 | C9: 21 | D9: 274 | K9: 0 | L9: 12 | N9: 21 | O9: =COUNTIF($L$7:$L$500,N9) -> 7 | P9: =O9/$Q$4 -> 0.1296296296 | Q9: =IF(P9=0,0,(P9*((LOG(P9))/LOG(2)))) -> -0.3820875567 | T9: =N9 -> 21 | U9: =COUNTIF(L7:L15,T9) -> 2 | V9: =U9/(W4-U8) -> 1 | W9: =IF(V9=0,0,(V9*((LOG(V9))/LOG(2)))) -> 0 | Y9: =N9 -> 21 | Z9: =COUNTIF(L16:L24,Y9) -> 1 | AA9: =Z9/(AB4-Z8) -> 0.5 | AB9: =IF(AA9=0,0,(AA9*((LOG(AA9))/LOG(2)))) -> -0.5 | AD9: =N9 -> 21 | AE9: =COUNTIF(L25:L33,AD9) -> 0 | AF9: =AE9/(AG4-AE8) -> 0 | AG9: =IF(AF9=0,0,(AF9*((LOG(AF9))/LOG(2)))) -> 0 | AI9: =N9 -> 21 | AJ9: =COUNTIF(L34:L42,AI9) -> 1 | AK9: =AJ9/(AL4-AJ8) -> 1 | AL9: =IF(AK9=0,0,(AK9*((LOG(AK9))/LOG(2)))) -> 0 | AN9: =N9 -> 21 | AO9: =COUNTIF(L43:L51,AN9) -> 2 | AP9: =AO9/(AQ4-AO8) -> 0.5 | AQ9: =IF(AP9=0,0,(AP9*((LOG(AP9))/LOG(2)))) -> -0.5 | AS9: =N9 -> 21 | AT9: =COUNTIF(L52:L60,AS9) -> 1 | AU9: =AT9/(AV4-AT8) -> 0.3333333333 | AV9: =IF(AU9=0,0,(AU9*((LOG(AU9))/LOG(2)))) -> -0.5283208336
A10: 11 | B10: 362 | C10: 21 | D10: 391 | K10: 0 | L10: 12 | N10: 22 | O10: =COUNTIF($L$7:$L$500,N10) -> 6 | P10: =O10/$Q$4 -> 0.1111111111 | Q10: =IF(P10=0,0,(P10*((LOG(P10))/LOG(2)))) -> -0.352213889 | T10: =N10 -> 22 | U10: =COUNTIF(L7:L15,T10) -> 0 | V10: =U10/(W4-U8) -> 0 | W10: =IF(V10=0,0,(V10*((LOG(V10))/LOG(2)))) -> 0 | Y10: =N10 -> 22 | Z10: =COUNTIF(L16:L24,Y10) -> 1 | AA10: =Z10/(AB4-Z8) -> 0.5 | AB10: =IF(AA10=0,0,(AA10*((LOG(AA10))/LOG(2)))) -> -0.5 | AD10: =N10 -> 22 | AE10: =COUNTIF(L25:L33,AD10) -> 2 | AF10: =AE10/(AG4-AE8) -> 1 | AG10: =IF(AF10=0,0,(AF10*((LOG(AF10))/LOG(2)))) -> 0 | AI10: =N10 -> 22 | AJ10: =COUNTIF(L34:L42,AI10) -> 0 | AK10: =AJ10/(AL4-AJ8) -> 0 | AL10: =IF(AK10=0,0,(AK10*((LOG(AK10))/LOG(2)))) -> 0 | AN10: =N10 -> 22 | AO10: =COUNTIF(L43:L51,AN10) -> 1 | AP10: =AO10/(AQ4-AO8) -> 0.25 | AQ10: =IF(AP10=0,0,(AP10*((LOG(AP10))/LOG(2)))) -> -0.5 | AS10: =N10 -> 22 | AT10: =COUNTIF(L52:L60,AS10) -> 2 | AU10: =AT10/(AV4-AT8) -> 0.6666666667 | AV10: =IF(AU10=0,0,(AU10*((LOG(AU10))/LOG(2)))) -> -0.3899750005
A11: 22 | B11: 484 | C11: 14 | D11: 500 | K11: 0 | L11: 21 | T11: =N11 -> 0 | U11: =COUNTIF(L7:L15,T11) -> 0 | V11: =U11/(W4-U8) -> 0 | W11: =IF(V11=0,0,(V11*((LOG(V11))/LOG(2)))) -> 0 | Y11: =N11 -> 0 | Z11: =COUNTIF(L16:L24,Y11) -> 0 | AA11: =Z11/(AB4-Z8) -> 0 | AB11: =IF(AA11=0,0,(AA11*((LOG(AA11))/LOG(2)))) -> 0 | AD11: =N11 -> 0 | AE11: =COUNTIF(L25:L33,AD11) -> 0 | AF11: =AE11/(AG4-AE8) -> 0 | AG11: =IF(AF11=0,0,(AF11*((LOG(AF11))/LOG(2)))) -> 0 | AI11: =N11 -> 0 | AJ11: =COUNTIF(L34:L42,AI11) -> 0 | AK11: =AJ11/(AL4-AJ8) -> 0 | AL11: =IF(AK11=0,0,(AK11*((LOG(AK11))/LOG(2)))) -> 0 | AN11: =N11 -> 0 | AO11: =COUNTIF(L43:L51,AN11) -> 0 | AP11: =AO11/(AQ4-AO8) -> 0 | AQ11: =IF(AP11=0,0,(AP11*((LOG(AP11))/LOG(2)))) -> 0 | AS11: =N11 -> 0 | AT11: =COUNTIF(L52:L60,AS11) -> 0 | AU11: =AT11/(AV4-AT8) -> 0 | AV11: =IF(AU11=0,0,(AU11*((LOG(AU11))/LOG(2)))) -> 0
A12: 11 | B12: 597 | C12: 21 | D12: 607 | K12: 0 | L12: 12 | T12: =N12 -> 0 | U12: =COUNTIF(L7:L15,T12) -> 0 | V12: =U12/(W4-U8) -> 0 | W12: =IF(V12=0,0,(V12*((LOG(V12))/LOG(2)))) -> 0 | Y12: =N12 -> 0 | Z12: =COUNTIF(L16:L24,Y12) -> 0 | AA12: =Z12/(AB4-Z8) -> 0 | AB12: =IF(AA12=0,0,(AA12*((LOG(AA12))/LOG(2)))) -> 0 | AD12: =N12 -> 0 | AE12: =COUNTIF(L25:L33,AD12) -> 0 | AF12: =AE12/(AG4-AE8) -> 0 | AG12: =IF(AF12=0,0,(AF12*((LOG(AF12))/LOG(2)))) -> 0 | AI12: =N12 -> 0 | AJ12: =COUNTIF(L34:L42,AI12) -> 0 | AK12: =AJ12/(AL4-AJ8) -> 0 | AL12: =IF(AK12=0,0,(AK12*((LOG(AK12))/LOG(2)))) -> 0 | AN12: =N12 -> 0 | AO12: =COUNTIF(L43:L51,AN12) -> 0 | AP12: =AO12/(AQ4-AO8) -> 0 | AQ12: =IF(AP12=0,0,(AP12*((LOG(AP12))/LOG(2)))) -> 0 | AS12: =N12 -> 0 | AT12: =COUNTIF(L52:L60,AS12) -> 0 | AU12: =AT12/(AV4-AT8) -> 0 | AV12: =IF(AU12=0,0,(AU12*((LOG(AU12))/LOG(2)))) -> 0
A13: 11 | B13: 694 | C13: 21 | D13: 723 | K13: 0 | L13: 12 | T13: =N13 -> 0 | U13: =COUNTIF(L7:L15,T13) -> 0 | V13: =U13/(W4-U8) -> 0 | W13: =IF(V13=0,0,(V13*((LOG(V13))/LOG(2)))) -> 0 | Y13: =N13 -> 0 | Z13: =COUNTIF(L16:L24,Y13) -> 0 | AA13: =Z13/(AB4-Z8) -> 0 | AB13: =IF(AA13=0,0,(AA13*((LOG(AA13))/LOG(2)))) -> 0 | AD13: =N13 -> 0 | AE13: =COUNTIF(L25:L33,AD13) -> 0 | AF13: =AE13/(AG4-AE8) -> 0 | AG13: =IF(AF13=0,0,(AF13*((LOG(AF13))/LOG(2)))) -> 0 | AI13: =N13 -> 0 | AJ13: =COUNTIF(L34:L42,AI13) -> 0 | AK13: =AJ13/(AL4-AJ8) -> 0 | AL13: =IF(AK13=0,0,(AK13*((LOG(AK13))/LOG(2)))) -> 0 | AN13: =N13 -> 0 | AO13: =COUNTIF(L43:L51,AN13) -> 0 | AP13: =AO13/(AQ4-AO8) -> 0 | AQ13: =IF(AP13=0,0,(AP13*((LOG(AP13))/LOG(2)))) -> 0 | AS13: =N13 -> 0 | AT13: =COUNTIF(L52:L60,AS13) -> 0 | AU13: =AT13/(AV4-AT8) -> 0 | AV13: =IF(AU13=0,0,(AU13*((LOG(AU13))/LOG(2)))) -> 0
A14: 11 | B14: 809 | C14: 21 | D14: 821 | K14: 0 | L14: 12 | T14: =N14 -> 0 | U14: =COUNTIF(L7:L15,T14) -> 0 | V14: =U14/(W4-U8) -> 0 | W14: =IF(V14=0,0,(V14*((LOG(V14))/LOG(2)))) -> 0 | Y14: =N14 -> 0 | Z14: =COUNTIF(L16:L24,Y14) -> 0 | AA14: =Z14/(AB4-Z8) -> 0 | AB14: =IF(AA14=0,0,(AA14*((LOG(AA14))/LOG(2)))) -> 0 | AD14: =N14 -> 0 | AE14: =COUNTIF(L25:L33,AD14) -> 0 | AF14: =AE14/(AG4-AE8) -> 0 | AG14: =IF(AF14=0,0,(AF14*((LOG(AF14))/LOG(2)))) -> 0 | AI14: =N14 -> 0 | AJ14: =COUNTIF(L34:L42,AI14) -> 0 | AK14: =AJ14/(AL4-AJ8) -> 0 | AL14: =IF(AK14=0,0,(AK14*((LOG(AK14))/LOG(2)))) -> 0 | AN14: =N14 -> 0 | AO14: =COUNTIF(L43:L51,AN14) -> 0 | AP14: =AO14/(AQ4-AO8) -> 0 | AQ14: =IF(AP14=0,0,(AP14*((LOG(AP14))/LOG(2)))) -> 0 | AS14: =N14 -> 0 | AT14: =COUNTIF(L52:L60,AS14) -> 0 | AU14: =AT14/(AV4-AT8) -> 0 | AV14: =IF(AU14=0,0,(AU14*((LOG(AU14))/LOG(2)))) -> 0
A15: 11 | B15: 910 | C15: 21 | D15: 934 | K15: 0 | L15: 12 | P15: =SUM(P7:P14) -> 1 | Q15: =-SUM(Q7:Q14) -> 1.161584109 | V15: =SUM(V7:V14) -> 1 | W15: =-SUM(W7:W14) -> 0 | AA15: =SUM(AA7:AA14) -> 1 | AB15: =-SUM(AB7:AB14) -> 1 | AF15: =SUM(AF7:AF14) -> 1 | AG15: =-SUM(AG7:AG14) -> 0 | AK15: =SUM(AK7:AK14) -> 1 | AL15: =-SUM(AL7:AL14) -> 0 | AP15: =SUM(AP7:AP14) -> 1 | AQ15: =-SUM(AQ7:AQ14) -> 1.5 | AU15: =SUM(AU7:AU14) -> 1 | AV15: =-SUM(AV7:AV14) -> 0.9182958341
A16: 11 | B16: 1023 | C16: 21 | D16: 1033 | K16: 0 | L16: 12 | P16: U= | Q16: =Q15/(LOG(Q4)/LOG(2)) -> 0.2018430609 | V16: U1= | W16: =W15/(LOG(W4)/LOG(2)) -> 0 | AA16: U2= | AB16: =AB15/(LOG(AB4)/LOG(2)) -> 0.3154648768 | AF16: U3= | AG16: =AG15/(LOG(AG4)/LOG(2)) -> 0 | AK16: U4= | AL16: =AL15/(LOG(AL4)/LOG(2)) -> 0 | AP16: U5= | AQ16: =AQ15/(LOG(AQ4)/LOG(2)) -> 0.4731973152 | AU16: U6= | AV16: =AV15/(LOG(AV4)/LOG(2)) -> 0.2896900821
A17: 11 | B17: 1121 | C17: 21 | D17: 1129 | K17: 0 | L17: 12
A18: 11 | B18: 1216 | C18: 21 | D18: 1238 | K18: 0 | L18: 12
A19: 22 | B19: 1332 | C19: 23 | D19: 1342 | K19: 0 | L19: 22 | N19: Total Target Seq
A20: 11 | B20: 1438 | C20: 21 | D20: 1449 | K20: 0 | L20: 12 | N20: =COUNTIF(L7:L60,G3) -> 40 | P20: 9 | Q20: 9 | R20: 9 | S20: 9 | T20: 9 | U20: 9
A21: 11 | B21: 1535 | C21: 21 | D21: 1544 | K21: 0 | L21: 12 | P21: % of reinforcement given in 6 equal intervals based on number of trials
A22: 11 | B22: 1633 | C22: 21 | D22: 1651 | K22: 0 | L22: 12 | P22: %_1 | Q22: %_2 | R22: %_3 | S22: %_4 | T22: %_5 | U22: %_6
A23: 11 | B23: 1737 | C23: 21 | D23: 1746 | K23: 0 | L23: 12 | O23: target sequence | P23: =$G$3 -> 12 | Q23: =$G$3 -> 12 | R23: =$G$3 -> 12 | S23: =$G$3 -> 12 | T23: =$G$3 -> 12 | U23: =$G$3 -> 12
A24: 22 | B24: 1841 | C24: 14 | D24: 1853 | K24: 0 | L24: 21 | O24: total reinforcement | P24: =U8 -> 7 | Q24: =Z8 -> 7 | R24: =AE8 -> 7 | S24: =AJ8 -> 8 | T24: =AO8 -> 5 | U24: =AT8 -> 6
A25: 11 | B25: 1950 | C25: 21 | D25: 1961 | K25: 0 | L25: 12 | O25: % target
A26: 11 | B26: 2047 | C26: 21 | D26: 2080 | K26: 0 | L26: 12 | O26: CCRF
A27: 11 | B27: 2168 | C27: 21 | D27: 2177 | K27: 0 | L27: 12 | O27: % CCRf
A28: 11 | B28: 2264 | C28: 21 | D28: 2277 | K28: 0 | L28: 12 | O28: average response rate | P28: =D15/P20 -> 103.7777778 | Q28: =(D24-D15)/Q20 -> 102.1111111 | R28: =(D33-D24)/R20 -> 110.3333333 | S28: =(D42-D33)/S20 -> 113.6666667 | T28: =(D51-D42)/T20 -> 109.6666667 | U28: =(D60-D51)/U20 -> 111
A29: 11 | B29: 2368 | C29: 21 | D29: 2423 | K29: 0 | L29: 12
A30: 22 | B30: 2513 | C30: 23 | D30: 2522 | K30: 0 | L30: 22
A31: 22 | B31: 2623 | C31: 23 | D31: 2631 | K31: 0 | L31: 22
A32: 11 | B32: 2727 | C32: 21 | D32: 2738 | K32: 0 | L32: 12
A33: 11 | B33: 2824 | C33: 21 | D33: 2846 | K33: 0 | L33: 12
A34: 11 | B34: 2932 | C34: 21 | D34: 2942 | K34: 0 | L34: 12
A35: 11 | B35: 3031 | C35: 21 | D35: 3076 | K35: 0 | L35: 12
A36: 11 | B36: 3182 | C36: 21 | D36: 3208 | K36: 0 | L36: 12
A37: 11 | B37: 3298 | C37: 21 | D37: 3321 | K37: 0 | L37: 12
A38: 11 | B38: 3408 | C38: 21 | D38: 3418 | K38: 0 | L38: 12
A39: 11 | B39: 3526 | C39: 21 | D39: 3556 | K39: 0 | L39: 12
A40: 22 | B40: 3644 | C40: 14 | D40: 3653 | K40: 0 | L40: 21
A41: 11 | B41: 3749 | C41: 21 | D41: 3766 | K41: 0 | L41: 12
A42: 11 | B42: 3854 | C42: 21 | D42: 3869 | K42: 0 | L42: 12
A43: 22 | B43: 3963 | C43: 14 | D43: 3972 | K43: 0 | L43: 21
A44: 11 | B44: 4069 | C44: 21 | D44: 4080 | K44: 0 | L44: 12
A45: 11 | B45: 4167 | C45: 21 | D45: 4175 | K45: 0 | L45: 12
A46: 11 | B46: 4273 | C46: 21 | D46: 4284 | K46: 0 | L46: 12
A47: 11 | B47: 4372 | C47: 21 | D47: 4381 | K47: 0 | L47: 12
A48: 11 | B48: 4486 | C48: 21 | D48: 4530 | K48: 0 | L48: 12
A49: 22 | B49: 4619 | C49: 14 | D49: 4630 | K49: 0 | L49: 21
A50: 11 | B50: 4728 | C50: 12 | D50: 4735 | K50: 0 | L50: 11
A51: 22 | B51: 4845 | C51: 23 | D51: 4856 | K51: 0 | L51: 22
A52: 11 | B52: 4954 | C52: 21 | D52: 4970 | K52: 0 | L52: 12
A53: 22 | B53: 5066 | C53: 14 | D53: 5078 | K53: 0 | L53: 21
A54: 11 | B54: 5174 | C54: 21 | D54: 5197 | K54: 0 | L54: 12
A55: 11 | B55: 5286 | C55: 21 | D55: 5301 | K55: 0 | L55: 12
A56: 22 | B56: 5400 | C56: 23 | D56: 5440 | K56: 0 | L56: 22
A57: 11 | B57: 5537 | C57: 21 | D57: 5547 | K57: 0 | L57: 12
A58: 22 | B58: 5646 | C58: 23 | D58: 5655 | K58: 0 | L58: 22
A59: 11 | B59: 5751 | C59: 21 | D59: 5759 | K59: 0 | L59: 12
A60: 11 | B60: 5846 | C60: 21 | D60: 5855 | K60: 1 | L60: 12

Sheet !MC05800.091
A1: Report for:!MC05800.091
A2: Date: | B2: <date>
A3: Hen: | B3: <hen> | F3: Correct Sequence | G3: =Start!J2 -> 12 | P3: Total Sequences in Data | Q3: =4994-COUNTBLANK(L7:L5000) -> 47 | V3: Total Sequences in Block Data | W3: =COUNTA(L7:L14) -> 8 | AA3: Total Sequences in Block Data | AB3: =COUNTA(L15:L22) -> 8 | AF3: Total Sequences in Block Data | AG3: =COUNTA(L23:L29) -> 7 | AK3: Total Sequences in Block Data | AL3: =COUNTA(L30:L37) -> 8 | AP3: Total Sequences in Block Data | AQ3: =COUNTA(L38:L45) -> 8 | AU3: Total Sequences in Block Data | AV3: =COUNTA(L46:L53) -> 8
P4: Total Sequences in Summary | Q4: =SUM(O7:O14) -> 47 | V4: Total Sequences in Block Summary | W4: =SUM(U7:U14) -> 8 | AA4: Total Sequences in Block Summary | AB4: =SUM(Z7:Z14) -> 8 | AF4: Total Sequences in Block Summary | AG4: =SUM(AE7:AE14) -> 7 | AK4: Total Sequences in Block Summary | AL4: =SUM(AJ7:AJ14) -> 8 | AP4: Total Sequences in Block Summary | AQ4: =SUM(AO7:AO14) -> 8 | AU4: Total Sequences in Block Summary | AV4: =SUM(AT7:AT14) -> 8
T5: Block 1 | Y5: Block 2 | AD5: Block 3 | AI5: Block 4 | AN5: Block 5 | AS5: Block 6
A6: Sequence Component 1 | B6: Time 1 | C6: Sequence Component 2 | D6: Time 2 | E6: Sequence Component 3 | F6: Time 3 | G6: Sequence Component 4 | H6: Time 4 | I6: Sequence Component 5 | J6: Time 5 | K6: Correct? 0=No 1=Yes | L6: Sequence | N6: Frequency | P6: Relative Frequency | Q6: Variability | T6: Frequency | V6: Relative Frequency | W6: Variability | Y6: Frequency | AA6: Relative Frequency | AB6: Variability | AD6: Frequency | AF6: Relative Frequency | AG6: Variability | AI6: Frequency | AK6: Relative Frequency | AL6: Variability | AN6: Frequency | AP6: Relative Frequency | AQ6: Variability | AS6: Frequency | AU6: Relative Frequency | AV6: Variability
A7: 22 | B7: 24 | C7: 14 | D7: 37 | K7: 0 | L7: 21 | N7: 11 | O7: =COUNTIF($L$7:$L$500,N7) -> 0 | P7: =O7/$Q$4 -> 0 | Q7: =IF(P7=0,0,(P7*((LOG(P7))/LOG(2)))) -> 0 | T7: =N7 -> 11 | U7: =COUNTIF(L7:L14,T7) -> 0 | V7: =U7/(W4-U8) -> 0 | W7: =IF(V7=0,0,(V7*((LOG(V7))/LOG(2)))) -> 0 | Y7: =N7 -> 11 | Z7: =COUNTIF(L15:L22,Y7) -> 0 | AA7: =Z7/(AB4-Z8) ->  | AB7: =IF(AA7=0,0,(AA7*((LOG(AA7))/LOG(2)))) ->  | AD7: =N7 -> 11 | AE7: =COUNTIF(L23:L29,AD7) -> 0 | AF7: =AE7/(AG4-AE8) -> 0 | AG7: =IF(AF7=0,0,(AF7*((LOG(AF7))/LOG(2)))) -> 0 | AI7: =N7 -> 11 | AJ7: =COUNTIF(L30:L37,AI7) -> 0 | AK7: =AJ7/(AL4-AJ8) -> 0 | AL7: =IF(AK7=0,0,(AK7*((LOG(AK7))/LOG(2)))) -> 0 | AN7: =N7 -> 11 | AO7: =COUNTIF(L38:L45,AN7) -> 0 | AP7: =AO7/(AQ4-AO8) ->  | AQ7: =IF(AP7=0,0,(AP7*((LOG(AP7))/LOG(2)))) ->  | AS7: =N7 -> 11 | AT7: =COUNTIF(L46:L53,AS7) -> 0 | AU7: =AT7/(AV4-AT8) -> 0 | AV7: =IF(AU7=0,0,(AU7*((LOG(AU7))/LOG(2)))) -> 0
A8: 22 | B8: 135 | C8: 23 | D8: 144 | K8: 0 | L8: 22 | N8: 12 | O8: =COUNTIF($L$7:$L$500,N8) -> 40 | P8: =O8/$Q$4 -> 0.8510638298 | Q8: =IF(P8=0,0,(P8*((LOG(P8))/LOG(2)))) -> -0.1980091547 | T8: =N8 -> 12 | U8: =COUNTIF(L7:L14,T8) -> 4 | Y8: =N8 -> 12 | Z8: =COUNTIF(L15:L22,Y8) -> 8 | AD8: =N8 -> 12 | AE8: =COUNTIF(L23:L29,AD8) -> 6 | AI8: =N8 -> 12 | AJ8: =COUNTIF(L30:L37,AI8) -> 7 | AN8: =N8 -> 12 | AO8: =COUNTIF(L38:L45,AN8) -> 8 | AS8: =N8 -> 12 | AT8: =COUNTIF(L46:L53,AS8) -> 7
A9: 11 | B9: 241 | C9: 21 | D9: 253 | K9: 0 | L9: 12 | N9: 21 | O9: =COUNTIF($L$7:$L$500,N9) -> 4 | P9: =O9/$Q$4 -> 0.08510638298 | Q9: =IF(P9=0,0,(P9*((LOG(P9))/LOG(2)))) -> -0.3025182001 | T9: =N9 -> 21 | U9: =COUNTIF(L7:L14,T9) -> 2 | V9: =U9/(W4-U8) -> 0.5 | W9: =IF(V9=0,0,(V9*((LOG(V9))/LOG(2)))) -> -0.5 | Y9: =N9 -> 21 | Z9: =COUNTIF(L15:L22,Y9) -> 0 | AA9: =Z9/(AB4-Z8) ->  | AB9: =IF(AA9=0,0,(AA9*((LOG(AA9))/LOG(2)))) ->  | AD9: =N9 -> 21 | AE9: =COUNTIF(L23:L29,AD9) -> 1 | AF9: =AE9/(AG4-AE8) -> 1 | AG9: =IF(AF9=0,0,(AF9*((LOG(AF9))/LOG(2)))) -> 0 | AI9: =N9 -> 21 | AJ9: =COUNTIF(L30:L37,AI9) -> 0 | AK9: =AJ9/(AL4-AJ8) -> 0 | AL9: =IF(AK9=0,0,(AK9*((LOG(AK9))/LOG(2)))) -> 0 | AN9: =N9 -> 21 | AO9: =COUNTIF(L38:L45,AN9) -> 0 | AP9: =AO9/(AQ4-AO8) ->  | AQ9: =IF(AP9=0,0,(AP9*((LOG(AP9))/LOG(2)))) ->  | AS9: =N9 -> 21 | AT9: =COUNTIF(L46:L53,AS9) -> 1 | AU9: =AT9/(AV4-AT8) -> 1 | AV9: =IF(AU9=0,0,(AU9*((LOG(AU9))/LOG(2)))) -> 0
A10: 11 | B10: 341 | C10: 21 | D10: 403 | K10: 0 | L10: 12 | N10: 22 | O10: =COUNTIF($L$7:$L$500,N10) -> 3 | P10: =O10/$Q$4 -> 0.06382978723 | Q10: =IF(P10=0,0,(P10*((LOG(P10))/LOG(2)))) -> -0.2533804054 | T10: =N10 -> 22 | U10: =COUNTIF(L7:L14,T10) -> 2 | V10: =U10/(W4-U8) -> 0.5 | W10: =IF(V10=0,0,(V10*((LOG(V10))/LOG(2)))) -> -0.5 | Y10: =N10 -> 22 | Z10: =COUNTIF(L15:L22,Y10) -> 0 | AA10: =Z10/(AB4-Z8) ->  | AB10: =IF(AA10=0,0,(AA10*((LOG(AA10))/LOG(2)))) ->  | AD10: =N10 -> 22 | AE10: =COUNTIF(L23:L29,AD10) -> 0 | AF10: =AE10/(AG4-AE8) -> 0 | AG10: =IF(AF10=0,0,(AF10*((LOG(AF10))/LOG(2)))) -> 0 | AI10: =N10 -> 22 | AJ10: =COUNTIF(L30:L37,AI10) -> 1 | AK10: =AJ10/(AL4-AJ8) -> 1 | AL10: =IF(AK10=0,0,(AK10*((LOG(AK10))/LOG(2)))) -> 0 | AN10: =N10 -> 22 | AO10: =COUNTIF(L38:L45,AN10) -> 0 | AP10: =AO10/(AQ4-AO8) ->  | AQ10: =IF(AP10=0,0,(AP10*((LOG(AP10))/LOG(2)))) ->  | AS10: =N10 -> 22 | AT10: =COUNTIF(L46:L53,AS10) -> 0 | AU10: =AT10/(AV4-AT8) -> 0 | AV10: =IF(AU10=0,0,(AU10*((LOG(AU10))/LOG(2)))) -> 0
A11: 22 | B11: 494 | C11: 14 | D11: 514 | K11: 0 | L11: 21 | T11: =N11 -> 0 | U11: =COUNTIF(L7:L14,T11) -> 0 | V11: =U11/(W4-U8) -> 0 | W11: =IF(V11=0,0,(V11*((LOG(V11))/LOG(2)))) -> 0 | Y11: =N11 -> 0 | Z11: =COUNTIF(L15:L22,Y11) -> 0 | AA11: =Z11/(AB4-Z8) ->  | AB11: =IF(AA11=0,0,(AA11*((LOG(AA11))/LOG(2)))) ->  | AD11: =N11 -> 0 | AE11: =COUNTIF(L23:L29,AD11) -> 0 | AF11: =AE11/(AG4-AE8) -> 0 | AG11: =IF(AF11=0,0,(AF11*((LOG(AF11))/LOG(2)))) -> 0 | AI11: =N11 -> 0 | AJ11: =COUNTIF(L30:L37,AI11) -> 0 | AK11: =AJ11/(AL4-AJ8) -> 0 | AL11: =IF(AK11=0,0,(AK11*((LOG(AK11))/LOG(2)))) -> 0 | AN11: =N11 -> 0 | AO11: =COUNTIF(L38:L45,AN11) -> 0 | AP11: =AO11/(AQ4-AO8) ->  | AQ11: =IF(AP11=0,0,(AP11*((LOG(AP11))/LOG(2)))) ->  | AS11: =N11 -> 0 | AT11: =COUNTIF(L46:L53,AS11) -> 0 | AU11: =AT11/(AV4-AT8) -> 0 | AV11: =IF(AU11=0,0,(AU11*((LOG(AU11))/LOG(2)))) -> 0
A12: 22 | B12: 612 | C12: 23 | D12: 617 | K12: 0 | L12: 22 | T12: =N12 -> 0 | U12: =COUNTIF(L7:L14,T12) -> 0 | V12: =U12/(W4-U8) -> 0 | W12: =IF(V12=0,0,(V12*((LOG(V12))/LOG(2)))) -> 0 | Y12: =N12 -> 0 | Z12: =COUNTIF(L15:L22,Y12) -> 0 | AA12: =Z12/(AB4-Z8) ->  | AB12: =IF(AA12=0,0,(AA12*((LOG(AA12))/LOG(2)))) ->  | AD12: =N12 -> 0 | AE12: =COUNTIF(L23:L29,AD12) -> 0 | AF12: =AE12/(AG4-AE8) -> 0 | AG12: =IF(AF12=0,0,(AF12*((LOG(AF12))/LOG(2)))) -> 0 | AI12: =N12 -> 0 | AJ12: =COUNTIF(L30:L37,AI12) -> 0 | AK12: =AJ12/(AL4-AJ8) -> 0 | AL12: =IF(AK12=0,0,(AK12*((LOG(AK12))/LOG(2)))) -> 0 | AN12: =N12 -> 0 | AO12: =COUNTIF(L38:L45,AN12) -> 0 | AP12: =AO12/(AQ4-AO8) ->  | AQ12: =IF(AP12=0,0,(AP12*((LOG(AP12))/LOG(2)))) ->  | AS12: =N12 -> 0 | AT12: =COUNTIF(L46:L53,AS12) -> 0 | AU12: =AT12/(AV4-AT8) -> 0 | AV12: =IF(AU12=0,0,(AU12*((LOG(AU12))/LOG(2)))) -> 0
A13: 11 | B13: 715 | C13: 21 | D13: 728 | K13: 0 | L13: 12 | T13: =N13 -> 0 | U13: =COUNTIF(L7:L14,T13) -> 0 | V13: =U13/(W4-U8) -> 0 | W13: =IF(V13=0,0,(V13*((LOG(V13))/LOG(2)))) -> 0 | Y13: =N13 -> 0 | Z13: =COUNTIF(L15:L22,Y13) -> 0 | AA13: =Z13/(AB4-Z8) ->  | AB13: =IF(AA13=0,0,(AA13*((LOG(AA13))/LOG(2)))) ->  | AD13: =N13 -> 0 | AE13: =COUNTIF(L23:L29,AD13) -> 0 | AF13: =AE13/(AG4-AE8) -> 0 | AG13: =IF(AF13=0,0,(AF13*((LOG(AF13))/LOG(2)))) -> 0 | AI13: =N13 -> 0 | AJ13: =COUNTIF(L30:L37,AI13) -> 0 | AK13: =AJ13/(AL4-AJ8) -> 0 | AL13: =IF(AK13=0,0,(AK13*((LOG(AK13))/LOG(2)))) -> 0 | AN13: =N13 -> 0 | AO13: =COUNTIF(L38:L45,AN13) -> 0 | AP13: =AO13/(AQ4-AO8) ->  | AQ13: =IF(AP13=0,0,(AP13*((LOG(AP13))/LOG(2)))) ->  | AS13: =N13 -> 0 | AT13: =COUNTIF(L46:L53,AS13) -> 0 | AU13: =AT13/(AV4-AT8) -> 0 | AV13: =IF(AU13=0,0,(AU13*((LOG(AU13))/LOG(2)))) -> 0
A14: 11 | B14: 816 | C14: 21 | D14: 833 | K14: 0 | L14: 12 | T14: =N14 -> 0 | U14: =COUNTIF(L7:L14,T14) -> 0 | V14: =U14/(W4-U8) -> 0 | W14: =IF(V14=0,0,(V14*((LOG(V14))/LOG(2)))) -> 0 | Y14: =N14 -> 0 | Z14: =COUNTIF(L15:L22,Y14) -> 0 | AA14: =Z14/(AB4-Z8) ->  | AB14: =IF(AA14=0,0,(AA14*((LOG(AA14))/LOG(2)))) ->  | AD14: =N14 -> 0 | AE14: =COUNTIF(L23:L29,AD14) -> 0 | AF14: =AE14/(AG4-AE8) -> 0 | AG14: =IF(AF14=0,0,(AF14*((LOG(AF14))/LOG(2)))) -> 0 | AI14: =N14 -> 0 | AJ14: =COUNTIF(L30:L37,AI14) -> 0 | AK14: =AJ14/(AL4-AJ8) -> 0 | AL14: =IF(AK14=0,0,(AK14*((LOG(AK14))/LOG(2)))) -> 0 | AN14: =N14 -> 0 | AO14: =COUNTIF(L38:L45,AN14) -> 0 | AP14: =AO14/(AQ4-AO8) ->  | AQ14: =IF(AP14=0,0,(AP14*((LOG(AP14))/LOG(2)))) ->  | AS14: =N14 -> 0 | AT14: =COUNTIF(L46:L53,AS14) -> 0 | AU14: =AT14/(AV4-AT8) -> 0 | AV14: =IF(AU14=0,0,(AU14*((LOG(AU14))/LOG(2)))) -> 0
A15: 11 | B15: 920 | C15: 21 | D15: 928 | K15: 0 | L15: 12 | P15: =SUM(P7:P14) -> 1 | Q15: =-SUM(Q7:Q14) -> 0.7539077602 | V15: =SUM(V7:V14) -> 1 | W15: =-SUM(W7:W14) -> 1 | AA15: =SUM(AA7:AA14) ->  | AB15: =-SUM(AB7:AB14) ->  | AF15: =SUM(AF7:AF14) -> 1 | AG15: =-SUM(AG7:AG14) -> 0 | AK15: =SUM(AK7:AK14) -> 1 | AL15: =-SUM(AL7:AL14) -> 0 | AP15: =SUM(AP7:AP14) ->  | AQ15: =-SUM(AQ7:AQ14) ->  | AU15: =SUM(AU7:AU14) -> 1 | AV15: =-SUM(AV7:AV14) -> 0
A16: 11 | B16: 1015 | C16: 21 | D16: 1026 | K16: 0 | L16: 12 | P16: U= | Q16: =Q15/(LOG(Q4)/LOG(2)) -> 0.1357270143 | V16: U1= | W16: =W15/(LOG(W4)/LOG(2)) -> 0.3333333333 | AA16: U2= | AB16: =AB15/(LOG(AB4)/LOG(2)) ->  | AF16: U3= | AG16: =AG15/(LOG(AG4)/LOG(2)) -> 0 | AK16: U4= | AL16: =AL15/(LOG(AL4)/LOG(2)) -> 0 | AP16: U5= | AQ16: =AQ15/(LOG(AQ4)/LOG(2)) ->  | AU16: U6= | AV16: =AV15/(LOG(AV4)/LOG(2)) -> 0
A17: 11 | B17: 1112 | C17: 21 | D17: 1124 | K17: 0 | L17: 12
A18: 11 | B18: 1211 | C18: 21 | D18: 1220 | K18: 0 | L18: 12
A19: 11 | B19: 1307 | C19: 21 | D19: 1318 | K19: 0 | L19: 12 | N19: Total Target Seq
A20: 11 | B20: 1405 | C20: 21 | D20: 1417 | K20: 0 | L20: 12 | N20: =COUNTIF(L7:L53,G3) -> 40 | P20: 8 | Q20: 8 | R20: 7 | S20: 8 | T20: 8 | U20: 8
A21: 11 | B21: 1504 | C21: 21 | D21: 1513 | K21: 0 | L21: 12 | P21: % of reinforcement given in 6 equal intervals based on number of trials
A22: 11 | B22: 1599 | C22: 21 | D22: 1611 | K22: 0 | L22: 12 | P22: %_1 | Q22: %_2 | R22: %_3 | S22: %_4 | T22: %_5 | U22: %_6
A23: 11 | B23: 1700 | C23: 21 | D23: 1745 | K23: 0 | L23: 12 | O23: target sequence | P23: =$G$3 -> 12 | Q23: =$G$3 -> 12 | R23: =$G$3 -> 12 | S23: =$G$3 -> 12 | T23: =$G$3 -> 12 | U23: =$G$3 -> 12
A24: 11 | B24: 1831 | C24: 21 | D24: 1840 | K24: 0 | L24: 12 | O24: total reinforcement | P24: =U8 -> 4 | Q24: =Z8 -> 8 | R24: =AE8 -> 6 | S24: =AJ8 -> 7 | T24: =AO8 -> 8 | U24: =AT8 -> 7
A25: 11 | B25: 1930 | C25: 21 | D25: 1938 | K25: 0 | L25: 12 | O25: % target
A26: 11 | B26: 2023 | C26: 21 | D26: 2032 | K26: 0 | L26: 12 | O26: CCRF
A27: 11 | B27: 2120 | C27: 21 | D27: 2156 | K27: 0 | L27: 12 | O27: % CCRf
A28: 22 | B28: 2245 | C28: 14 | D28: 2261 | K28: 0 | L28: 21 | O28: average response rate | P28: =D14/P20 -> 104.125 | Q28: =(D22-D14)/Q20 -> 97.25 | R28: =(D29-D22)/R20 -> 108.1428571 | S28: =(D37-D29)/S20 -> 99.125 | T28: =(D45-D37)/T20 -> 100.75 | U28: =(D53-D45)/U20 -> 101.5
A29: 11 | B29: 2357 | C29: 21 | D29: 2368 | K29: 0 | L29: 12
A30: 11 | B30: 2454 | C30: 21 | D30: 2463 | K30: 0 | L30: 12
A31: 22 | B31: 2552 | C31: 23 | D31: 2559 | K31: 0 | L31: 22
A32: 11 | B32: 2656 | C32: 21 | D32: 2666 | K32: 0 | L32: 12
A33: 11 | B33: 2753 | C33: 21 | D33: 2764 | K33: 0 | L33: 12
A34: 11 | B34: 2851 | C34: 21 | D34: 2860 | K34: 0 | L34: 12
A35: 11 | B35: 2947 | C35: 21 | D35: 2964 | K35: 0 | L35: 12
A36: 11 | B36: 3052 | C36: 21 | D36: 3061 | K36: 0 | L36: 12
A37: 11 | B37: 3150 | C37: 21 | D37: 3161 | K37: 0 | L37: 12
A38: 11 | B38: 3246 | C38: 21 | D38: 3255 | K38: 0 | L38: 12
A39: 11 | B39: 3345 | C39: 21 | D39: 3364 | K39: 0 | L39: 12
A40: 11 | B40: 3453 | C40: 21 | D40: 3461 | K40: 0 | L40: 12
A41: 11 | B41: 3551 | C41: 21 | D41: 3581 | K41: 0 | L41: 12
A42: 11 | B42: 3668 | C42: 21 | D42: 3679 | K42: 0 | L42: 12
A43: 11 | B43: 3766 | C43: 21 | D43: 3775 | K43: 0 | L43: 12
A44: 11 | B44: 3861 | C44: 21 | D44: 3872 | K44: 0 | L44: 12
A45: 11 | B45: 3959 | C45: 21 | D45: 3967 | K45: 0 | L45: 12
A46: 11 | B46: 4055 | C46: 21 | D46: 4066 | K46: 0 | L46: 12
A47: 11 | B47: 4152 | C47: 21 | D47: 4160 | K47: 0 | L47: 12
A48: 11 | B48: 4246 | C48: 21 | D48: 4255 | K48: 0 | L48: 12
A49: 11 | B49: 4347 | C49: 21 | D49: 4355 | K49: 0 | L49: 12
A50: 22 | B50: 4446 | C50: 14 | D50: 4459 | K50: 0 | L50: 21
A51: 11 | B51: 4554 | C51: 21 | D51: 4563 | K51: 0 | L51: 12
A52: 11 | B52: 4650 | C52: 21 | D52: 4684 | K52: 0 | L52: 12
A53: 11 | B53: 4771 | C53: 21 | D53: 4779 | K53: 1 | L53: 12

Sheet !MC07910.091
A1: Report for:!MC07910.091
A2: Date: | B2: <date>
A3: Hen: | B3: <hen> | F3: Correct Sequence | G3: =Start!J2 -> 12 | P3: Total Sequences in Data | Q3: =4994-COUNTBLANK(L7:L5000) -> 52 | V3: Total Sequences in Block Data | W3: =COUNTA(L7:L15) -> 9 | AA3: Total Sequences in Block Data | AB3: =COUNTA(L16:L23) -> 8 | AF3: Total Sequences in Block Data | AG3: =COUNTA(L24:L32) -> 9 | AK3: Total Sequences in Block Data | AL3: =COUNTA(L33:L41) -> 9 | AP3: Total Sequences in Block Data | AQ3: =COUNTA(L42:L49) -> 8 | AU3: Total Sequences in Block Data | AV3: =COUNTA(L50:L58) -> 9
P4: Total Sequences in Summary | Q4: =SUM(O7:O14) -> 52 | V4: Total Sequences in Block Summary | W4: =SUM(U7:U14) -> 9 | AA4: Total Sequences in Block Summary | AB4: =SUM(Z7:Z14) -> 8 | AF4: Total Sequences in Block Summary | AG4: =SUM(AE7:AE14) -> 9 | AK4: Total Sequences in Block Summary | AL4: =SUM(AJ7:AJ14) -> 9 | AP4: Total Sequences in Block Summary | AQ4: =SUM(AO7:AO14) -> 8 | AU4: Total Sequences in Block Summary | AV4: =SUM(AT7:AT14) -> 9
T5: Block 1 | Y5: Block 2 | AD5: Block 3 | AI5: Block 4 | AN5: Block 5 | AS5: Block 6
A6: Sequence Component 1 | B6: Time 1 | C6: Sequence Component 2 | D6: Time 2 | E6: Sequence Component 3 | F6: Time 3 | G6: Sequence Component 4 | H6: Time 4 | I6: Sequence Component 5 | J6: Time 5 | K6: Correct? 0=No 1=Yes | L6: Sequence | N6: Frequency | P6: Relative Frequency | Q6: Variability | T6: Frequency | V6: Relative Frequency | W6: Variability | Y6: Frequency | AA6: Relative Frequency | AB6: Variability | AD6: Frequency | AF6: Relative Frequency | AG6: Variability | AI6: Frequency | AK6: Relative Frequency | AL6: Variability | AN6: Frequency | AP6: Relative Frequency | AQ6: Variability | AS6: Frequency | AU6: Relative Frequency | AV6: Variability
A7: 22 | B7: 7 | C7: 23 | D7: 16 | K7: 0 | L7: 22 | N7: 11 | O7: =COUNTIF($L$7:$L$500,N7) -> 2 | P7: =O7/$Q$4 -> 0.03846153846 | Q7: =IF(P7=0,0,(P7*((LOG(P7))/LOG(2)))) -> -0.180786143 | T7: =N7 -> 11 | U7: =COUNTIF(L7:L15,T7) -> 0 | V7: =U7/(W4-U8) -> 0 | W7: =IF(V7=0,0,(V7*((LOG(V7))/LOG(2)))) -> 0 | Y7: =N7 -> 11 | Z7: =COUNTIF(L16:L23,Y7) -> 2 | AA7: =Z7/(AB4-Z8) -> 0.5 | AB7: =IF(AA7=0,0,(AA7*((LOG(AA7))/LOG(2)))) -> -0.5 | AD7: =N7 -> 11 | AE7: =COUNTIF(L24:L32,AD7) -> 0 | AF7: =AE7/(AG4-AE8) -> 0 | AG7: =IF(AF7=0,0,(AF7*((LOG(AF7))/LOG(2)))) -> 0 | AI7: =N7 -> 11 | AJ7: =COUNTIF(L33:L41,AI7) -> 0 | AK7: =AJ7/(AL4-AJ8) -> 0 | AL7: =IF(AK7=0,0,(AK7*((LOG(AK7))/LOG(2)))) -> 0 | AN7: =N7 -> 11 | AO7: =COUNTIF(L42:L49,AN7) -> 0 | AP7: =AO7/(AQ4-AO8) ->  | AQ7: =IF(AP7=0,0,(AP7*((LOG(AP7))/LOG(2)))) ->  | AS7: =N7 -> 11 | AT7: =COUNTIF(L50:L58,AS7) -> 0 | AU7: =AT7/(AV4-AT8) -> 0 | AV7: =IF(AU7=0,0,(AU7*((LOG(AU7))/LOG(2)))) -> 0
A8: 11 | B8: 115 | C8: 21 | D8: 127 | K8: 0 | L8: 12 | N8: 12 | O8: =COUNTIF($L$7:$L$500,N8) -> 40 | P8: =O8/$Q$4 -> 0.7692307692 | Q8: =IF(P8=0,0,(P8*((LOG(P8))/LOG(2)))) -> -0.2911627871 | T8: =N8 -> 12 | U8: =COUNTIF(L7:L15,T8) -> 6 | Y8: =N8 -> 12 | Z8: =COUNTIF(L16:L23,Y8) -> 4 | AD8: =N8 -> 12 | AE8: =COUNTIF(L24:L32,AD8) -> 8 | AI8: =N8 -> 12 | AJ8: =COUNTIF(L33:L41,AI8) -> 7 | AN8: =N8 -> 12 | AO8: =COUNTIF(L42:L49,AN8) -> 8 | AS8: =N8 -> 12 | AT8: =COUNTIF(L50:L58,AS8) -> 7
A9: 22 | B9: 221 | C9: 14 | D9: 237 | K9: 0 | L9: 21 | N9: 21 | O9: =COUNTIF($L$7:$L$500,N9) -> 3 | P9: =O9/$Q$4 -> 0.05769230769 | Q9: =IF(P9=0,0,(P9*((LOG(P9))/LOG(2)))) -> -0.2374313779 | T9: =N9 -> 21 | U9: =COUNTIF(L7:L15,T9) -> 1 | V9: =U9/(W4-U8) -> 0.3333333333 | W9: =IF(V9=0,0,(V9*((LOG(V9))/LOG(2)))) -> -0.5283208336 | Y9: =N9 -> 21 | Z9: =COUNTIF(L16:L23,Y9) -> 0 | AA9: =Z9/(AB4-Z8) -> 0 | AB9: =IF(AA9=0,0,(AA9*((LOG(AA9))/LOG(2)))) -> 0 | AD9: =N9 -> 21 | AE9: =COUNTIF(L24:L32,AD9) -> 1 | AF9: =AE9/(AG4-AE8) -> 1 | AG9: =IF(AF9=0,0,(AF9*((LOG(AF9))/LOG(2)))) -> 0 | AI9: =N9 -> 21 | AJ9: =COUNTIF(L33:L41,AI9) -> 0 | AK9: =AJ9/(AL4-AJ8) -> 0 | AL9: =IF(AK9=0,0,(AK9*((LOG(AK9))/LOG(2)))) -> 0 | AN9: =N9 -> 21 | AO9: =COUNTIF(L42:L49,AN9) -> 0 | AP9: =AO9/(AQ4-AO8) ->  | AQ9: =IF(AP9=0,0,(AP9*((LOG(AP9))/LOG(2)))) ->  | AS9: =N9 -> 21 | AT9: =COUNTIF(L50:L58,AS9) -> 1 | AU9: =AT9/(AV4-AT8) -> 0.5 | AV9: =IF(AU9=0,0,(AU9*((LOG(AU9))/LOG(2)))) -> -0.5
A10: 11 | B10: 334 | C10: 21 | D10: 346 | K10: 0 | L10: 12 | N10: 22 | O10: =COUNTIF($L$7:$L$500,N10) -> 7 | P10: =O10/$Q$4 -> 0.1346153846 | Q10: =IF(P10=0,0,(P10*((LOG(P10))/LOG(2)))) -> -0.3894537225 | T10: =N10 -> 22 | U10: =COUNTIF(L7:L15,T10) -> 2 | V10: =U10/(W4-U8) -> 0.6666666667 | W10: =IF(V10=0,0,(V10*((LOG(V10))/LOG(2)))) -> -0.3899750005 | Y10: =N10 -> 22 | Z10: =COUNTIF(L16:L23,Y10) -> 2 | AA10: =Z10/(AB4-Z8) -> 0.5 | AB10: =IF(AA10=0,0,(AA10*((LOG(AA10))/LOG(2)))) -> -0.5 | AD10: =N10 -> 22 | AE10: =COUNTIF(L24:L32,AD10) -> 0 | AF10: =AE10/(AG4-AE8) -> 0 | AG10: =IF(AF10=0,0,(AF10*((LOG(AF10))/LOG(2)))) -> 0 | AI10: =N10 -> 22 | AJ10: =COUNTIF(L33:L41,AI10) -> 2 | AK10: =AJ10/(AL4-AJ8) -> 1 | AL10: =IF(AK10=0,0,(AK10*((LOG(AK10))/LOG(2)))) -> 0 | AN10: =N10 -> 22 | AO10: =COUNTIF(L42:L49,AN10) -> 0 | AP10: =AO10/(AQ4-AO8) ->  | AQ10: =IF(AP10=0,0,(AP10*((LOG(AP10))/LOG(2)))) ->  | AS10: =N10 -> 22 | AT10: =COUNTIF(L50:L58,AS10) -> 1 | AU10: =AT10/(AV4-AT8) -> 0.5 | AV10: =IF(AU10=0,0,(AU10*((LOG(AU10))/LOG(2)))) -> -0.5
A11: 11 | B11: 434 | C11: 21 | D11: 446 | K11: 0 | L11: 12 | T11: =N11 -> 0 | U11: =COUNTIF(L7:L15,T11) -> 0 | V11: =U11/(W4-U8) -> 0 | W11: =IF(V11=0,0,(V11*((LOG(V11))/LOG(2)))) -> 0 | Y11: =N11 -> 0 | Z11: =COUNTIF(L16:L23,Y11) -> 0 | AA11: =Z11/(AB4-Z8) -> 0 | AB11: =IF(AA11=0,0,(AA11*((LOG(AA11))/LOG(2)))) -> 0 | AD11: =N11 -> 0 | AE11: =COUNTIF(L24:L32,AD11) -> 0 | AF11: =AE11/(AG4-AE8) -> 0 | AG11: =IF(AF11=0,0,(AF11*((LOG(AF11))/LOG(2)))) -> 0 | AI11: =N11 -> 0 | AJ11: =COUNTIF(L33:L41,AI11) -> 0 | AK11: =AJ11/(AL4-AJ8) -> 0 | AL11: =IF(AK11=0,0,(AK11*((LOG(AK11))/LOG(2)))) -> 0 | AN11: =N11 -> 0 | AO11: =COUNTIF(L42:L49,AN11) -> 0 | AP11: =AO11/(AQ4-AO8) ->  | AQ11: =IF(AP11=0,0,(AP11*((LOG(AP11))/LOG(2)))) ->  | AS11: =N11 -> 0 | AT11: =COUNTIF(L50:L58,AS11) -> 0 | AU11: =AT11/(AV4-AT8) -> 0 | AV11: =IF(AU11=0,0,(AU11*((LOG(AU11))/LOG(2)))) -> 0
A12: 11 | B12: 533 | C12: 21 | D12: 545 | K12: 0 | L12: 12 | T12: =N12 -> 0 | U12: =COUNTIF(L7:L15,T12) -> 0 | V12: =U12/(W4-U8) -> 0 | W12: =IF(V12=0,0,(V12*((LOG(V12))/LOG(2)))) -> 0 | Y12: =N12 -> 0 | Z12: =COUNTIF(L16:L23,Y12) -> 0 | AA12: =Z12/(AB4-Z8) -> 0 | AB12: =IF(AA12=0,0,(AA12*((LOG(AA12))/LOG(2)))) -> 0 | AD12: =N12 -> 0 | AE12: =COUNTIF(L24:L32,AD12) -> 0 | AF12: =AE12/(AG4-AE8) -> 0 | AG12: =IF(AF12=0,0,(AF12*((LOG(AF12))/LOG(2)))) -> 0 | AI12: =N12 -> 0 | AJ12: =COUNTIF(L33:L41,AI12) -> 0 | AK12: =AJ12/(AL4-AJ8) -> 0 | AL12: =IF(AK12=0,0,(AK12*((LOG(AK12))/LOG(2)))) -> 0 | AN12: =N12 -> 0 | AO12: =COUNTIF(L42:L49,AN12) -> 0 | AP12: =AO12/(AQ4-AO8) ->  | AQ12: =IF(AP12=0,0,(AP12*((LOG(AP12))/LOG(2)))) ->  | AS12: =N12 -> 0 | AT12: =COUNTIF(L50:L58,AS12) -> 0 | AU12: =AT12/(AV4-AT8) -> 0 | AV12: =IF(AU12=0,0,(AU12*((LOG(AU12))/LOG(2)))) -> 0
A13: 22 | B13: 642 | C13: 23 | D13: 659 | K13: 0 | L13: 22 | T13: =N13 -> 0 | U13: =COUNTIF(L7:L15,T13) -> 0 | V13: =U13/(W4-U8) -> 0 | W13: =IF(V13=0,0,(V13*((LOG(V13))/LOG(2)))) -> 0 | Y13: =N13 -> 0 | Z13: =COUNTIF(L16:L23,Y13) -> 0 | AA13: =Z13/(AB4-Z8) -> 0 | AB13: =IF(AA13=0,0,(AA13*((LOG(AA13))/LOG(2)))) -> 0 | AD13: =N13 -> 0 | AE13: =COUNTIF(L24:L32,AD13) -> 0 | AF13: =AE13/(AG4-AE8) -> 0 | AG13: =IF(AF13=0,0,(AF13*((LOG(AF13))/LOG(2)))) -> 0 | AI13: =N13 -> 0 | AJ13: =COUNTIF(L33:L41,AI13) -> 0 | AK13: =AJ13/(AL4-AJ8) -> 0 | AL13: =IF(AK13=0,0,(AK13*((LOG(AK13))/LOG(2)))) -> 0 | AN13: =N13 -> 0 | AO13: =COUNTIF(L42:L49,AN13) -> 0 | AP13: =AO13/(AQ4-AO8) ->  | AQ13: =IF(AP13=0,0,(AP13*((LOG(AP13))/LOG(2)))) ->  | AS13: =N13 -> 0 | AT13: =COUNTIF(L50:L58,AS13) -> 0 | AU13: =AT13/(AV4-AT8) -> 0 | AV13: =IF(AU13=0,0,(AU13*((LOG(AU13))/LOG(2)))) -> 0
A14: 11 | B14: 754 | C14: 21 | D14: 766 | K14: 0 | L14: 12 | T14: =N14 -> 0 | U14: =COUNTIF(L7:L15,T14) -> 0 | V14: =U14/(W4-U8) -> 0 | W14: =IF(V14=0,0,(V14*((LOG(V14))/LOG(2)))) -> 0 | Y14: =N14 -> 0 | Z14: =COUNTIF(L16:L23,Y14) -> 0 | AA14: =Z14/(AB4-Z8) -> 0 | AB14: =IF(AA14=0,0,(AA14*((LOG(AA14))/LOG(2)))) -> 0 | AD14: =N14 -> 0 | AE14: =COUNTIF(L24:L32,AD14) -> 0 | AF14: =AE14/(AG4-AE8) -> 0 | AG14: =IF(AF14=0,0,(AF14*((LOG(AF14))/LOG(2)))) -> 0 | AI14: =N14 -> 0 | AJ14: =COUNTIF(L33:L41,AI14) -> 0 | AK14: =AJ14/(AL4-AJ8) -> 0 | AL14: =IF(AK14=0,0,(AK14*((LOG(AK14))/LOG(2)))) -> 0 | AN14: =N14 -> 0 | AO14: =COUNTIF(L42:L49,AN14) -> 0 | AP14: =AO14/(AQ4-AO8) ->  | AQ14: =IF(AP14=0,0,(AP14*((LOG(AP14))/LOG(2)))) ->  | AS14: =N14 -> 0 | AT14: =COUNTIF(L50:L58,AS14) -> 0 | AU14: =AT14/(AV4-AT8) -> 0 | AV14: =IF(AU14=0,0,(AU14*((LOG(AU14))/LOG(2)))) -> 0
A15: 11 | B15: 852 | C15: 21 | D15: 861 | K15: 0 | L15: 12 | P15: =SUM(P7:P14) -> 1 | Q15: =-SUM(Q7:Q14) -> 1.098834031 | V15: =SUM(V7:V14) -> 1 | W15: =-SUM(W7:W14) -> 0.9182958341 | AA15: =SUM(AA7:AA14) -> 1 | AB15: =-SUM(AB7:AB14) -> 1 | AF15: =SUM(AF7:AF14) -> 1 | AG15: =-SUM(AG7:AG14) -> 0 | AK15: =SUM(AK7:AK14) -> 1 | AL15: =-SUM(AL7:AL14) -> 0 | AP15: =SUM(AP7:AP14) ->  | AQ15: =-SUM(AQ7:AQ14) ->  | AU15: =SUM(AU7:AU14) -> 1 | AV15: =-SUM(AV7:AV14) -> 1
A16: 11 | B16: 946 | C16: 12 | D16: 955 | K16: 0 | L16: 11 | P16: U= | Q16: =Q15/(LOG(Q4)/LOG(2)) -> 0.1927630297 | V16: U1= | W16: =W15/(LOG(W4)/LOG(2)) -> 0.2896900821 | AA16: U2= | AB16: =AB15/(LOG(AB4)/LOG(2)) -> 0.3333333333 | AF16: U3= | AG16: =AG15/(LOG(AG4)/LOG(2)) -> 0 | AK16: U4= | AL16: =AL15/(LOG(AL4)/LOG(2)) -> 0 | AP16: U5= | AQ16: =AQ15/(LOG(AQ4)/LOG(2)) ->  | AU16: U6= | AV16: =AV15/(LOG(AV4)/LOG(2)) -> 0.3154648768
A17: 11 | B17: 1051 | C17: 21 | D17: 1064 | K17: 0 | L17: 12
A18: 11 | B18: 1149 | C18: 21 | D18: 1160 | K18: 0 | L18: 12
A19: 11 | B19: 1256 | C19: 21 | D19: 1267 | K19: 0 | L19: 12 | N19: Total Target Seq
A20: 11 | B20: 1349 | C20: 12 | D20: 1354 | K20: 0 | L20: 11 | N20: =COUNTIF(L7:L58,G3) -> 40 | P20: 9 | Q20: 8 | R20: 9 | S20: 9 | T20: 8 | U20: 9
A21: 22 | B21: 1458 | C21: 23 | D21: 1472 | K21: 0 | L21: 22 | P21: % of reinforcement given in 6 equal intervals based on number of trials
A22: 11 | B22: 1567 | C22: 21 | D22: 1579 | K22: 0 | L22: 12 | P22: %_1 | Q22: %_2 | R22: %_3 | S22: %_4 | T22: %_5 | U22: %_6
A23: 22 | B23: 1689 | C23: 23 | D23: 1698 | K23: 0 | L23: 22 | O23: target sequence | P23: =$G$3 -> 12 | Q23: =$G$3 -> 12 | R23: =$G$3 -> 12 | S23: =$G$3 -> 12 | T23: =$G$3 -> 12 | U23: =$G$3 -> 12
A24: 11 | B24: 1795 | C24: 21 | D24: 1806 | K24: 0 | L24: 12 | O24: total reinforcement | P24: =U8 -> 6 | Q24: =Z8 -> 4 | R24: =AE8 -> 8 | S24: =AJ8 -> 7 | T24: =AO8 -> 8 | U24: =AT8 -> 7
A25: 11 | B25: 1893 | C25: 21 | D25: 1904 | K25: 0 | L25: 12 | O25: % target
A26: 11 | B26: 1989 | C26: 21 | D26: 2001 | K26: 0 | L26: 12 | O26: CCRF
A27: 11 | B27: 2086 | C27: 21 | D27: 2098 | K27: 0 | L27: 12 | O27: % CCRf
A28: 11 | B28: 2187 | C28: 21 | D28: 2196 | K28: 0 | L28: 12 | O28: average response rate | P28: =D15/P20 -> 95.66666667 | Q28: =(D23-D15)/Q20 -> 104.625 | R28: =(D32-D23)/R20 -> 103.2222222 | S28: =(D41-D32)/S20 -> 115 | T28: =(D49-D41)/T20 -> 101.25 | U28: =(D58-D49)/U20 -> 106.7777778
A29: 22 | B29: 2287 | C29: 14 | D29: 2316 | K29: 0 | L29: 21
A30: 11 | B30: 2411 | C30: 21 | D30: 2422 | K30: 0 | L30: 12
A31: 11 | B31: 2508 | C31: 21 | D31: 2518 | K31: 0 | L31: 12
A32: 11 | B32: 2607 | C32: 21 | D32: 2627 | K32: 0 | L32: 12
A33: 11 | B33: 2715 | C33: 21 | D33: 2725 | K33: 0 | L33: 12
A34: 11 | B34: 2812 | C34: 21 | D34: 2896 | K34: 0 | L34: 12
A35: 22 | B35: 2985 | C35: 23 | D35: 2991 | K35: 0 | L35: 22
A36: 11 | B36: 3086 | C36: 21 | D36: 3097 | K36: 0 | L36: 12
A37: 11 | B37: 3184 | C37: 21 | D37: 3244 | K37: 0 | L37: 12
A38: 11 | B38: 3332 | C38: 21 | D38: 3341 | K38: 0 | L38: 12
A39: 11 | B39: 3426 | C39: 21 | D39: 3456 | K39: 0 | L39: 12
A40: 11 | B40: 3547 | C40: 21 | D40: 3564 | K40: 0 | L40: 12
A41: 22 | B41: 3654 | C41: 23 | D41: 3662 | K41: 0 | L41: 22
A42: 11 | B42: 3757 | C42: 21 | D42: 3768 | K42: 0 | L42: 12
A43: 11 | B43: 3854 | C43: 21 | D43: 3877 | K43: 0 | L43: 12
A44: 11 | B44: 3964 | C44: 21 | D44: 3975 | K44: 0 | L44: 12
A45: 11 | B45: 4061 | C45: 21 | D45: 4081 | K45: 0 | L45: 12
A46: 11 | B46: 4167 | C46: 21 | D46: 4175 | K46: 0 | L46: 12
A47: 11 | B47: 4260 | C47: 21 | D47: 4272 | K47: 0 | L47: 12
A48: 11 | B48: 4359 | C48: 21 | D48: 4377 | K48: 0 | L48: 12
A49: 11 | B49: 4464 | C49: 21 | D49: 4472 | K49: 0 | L49: 12
A50: 22 | B50: 4562 | C50: 14 | D50: 4573 | K50: 0 | L50: 21
A51: 22 | B51: 4680 | C51: 23 | D51: 4692 | K51: 0 | L51: 22
A52: 11 | B52: 4787 | C52: 21 | D52: 4799 | K52: 0 | L52: 12
A53: 11 | B53: 4885 | C53: 21 | D53: 4893 | K53: 0 | L53: 12
A54: 11 | B54: 4981 | C54: 21 | D54: 5047 | K54: 0 | L54: 12
A55: 11 | B55: 5137 | C55: 21 | D55: 5145 | K55: 0 | L55: 12
A56: 11 | B56: 5233 | C56: 21 | D56: 5241 | K56: 0 | L56: 12
A57: 11 | B57: 5327 | C57: 21 | D57: 5338 | K57: 0 | L57: 12
A58: 11 | B58: 5424 | C58: 21 | D58: 5433 | K58: 1 | L58: 12

Sheet !MC08900.091
A1: Report for:!MC08900.091
A2: Date: | B2: <date>
A3: Hen: | B3: <hen> | F3: Correct Sequence | G3: =Start!J2 -> 12 | P3: Total Sequences in Data | Q3: =4994-COUNTBLANK(L7:L5000) -> 64 | V3: Total Sequences in Block Data | W3: =COUNTA(L7:L17) -> 11 | AA3: Total Sequences in Block Data | AB3: =COUNTA(L18:L27) -> 10 | AF3: Total Sequences in Block Data | AG3: =COUNTA(L28:L38) -> 11 | AK3: Total Sequences in Block Data | AL3: =COUNTA(L39:L49) -> 11 | AP3: Total Sequences in Block Data | AQ3: =COUNTA(L50:L59) -> 10 | AU3: Total Sequences in Block Data | AV3: =COUNTA(L60:L70) -> 11
P4: Total Sequences in Summary | Q4: =SUM(O7:O14) -> 64 | V4: Total Sequences in Block Summary | W4: =SUM(U7:U14) -> 11 | AA4: Total Sequences in Block Summary | AB4: =SUM(Z7:Z14) -> 10 | AF4: Total Sequences in Block Summary | AG4: =SUM(AE7:AE14) -> 11 | AK4: Total Sequences in Block Summary | AL4: =SUM(AJ7:AJ14) -> 11 | AP4: Total Sequences in Block Summary | AQ4: =SUM(AO7:AO14) -> 10 | AU4: Total Sequences in Block Summary | AV4: =SUM(AT7:AT14) -> 11
T5: Block 1 | Y5: Block 2 | AD5: Block 3 | AI5: Block 4 | AN5: Block 5 | AS5: Block 6
A6: Sequence Component 1 | B6: Time 1 | C6: Sequence Component 2 | D6: Time 2 | E6: Sequence Component 3 | F6: Time 3 | G6: Sequence Component 4 | H6: Time 4 | I6: Sequence Component 5 | J6: Time 5 | K6: Correct? 0=No 1=Yes | L6: Sequence | N6: Frequency | P6: Relative Frequency | Q6: Variability | T6: Frequency | V6: Relative Frequency | W6: Variability | Y6: Frequency | AA6: Relative Frequency | AB6: Variability | AD6: Frequency | AF6: Relative Frequency | AG6: Variability | AI6: Frequency | AK6: Relative Frequency | AL6: Variability | AN6: Frequency | AP6: Relative Frequency | AQ6: Variability | AS6: Frequency | AU6: Relative Frequency | AV6: Variability
A7: 11 | B7: 13 | C7: 21 | D7: 22 | K7: 0 | L7: 12 | N7: 11 | O7: =COUNTIF($L$7:$L$500,N7) -> 0 | P7: =O7/$Q$4 -> 0 | Q7: =IF(P7=0,0,(P7*((LOG(P7))/LOG(2)))) -> 0 | T7: =N7 -> 11 | U7: =COUNTIF(L7:L17,T7) -> 0 | V7: =U7/(W4-U8) -> 0 | W7: =IF(V7=0,0,(V7*((LOG(V7))/LOG(2)))) -> 0 | Y7: =N7 -> 11 | Z7: =COUNTIF(L18:L27,Y7) -> 0 | AA7: =Z7/(AB4-Z8) -> 0 | AB7: =IF(AA7=0,0,(AA7*((LOG(AA7))/LOG(2)))) -> 0 | AD7: =N7 -> 11 | AE7: =COUNTIF(L28:L38,AD7) -> 0 | AF7: =AE7/(AG4-AE8) -> 0 | AG7: =IF(AF7=0,0,(AF7*((LOG(AF7))/LOG(2)))) -> 0 | AI7: =N7 -> 11 | AJ7: =COUNTIF(L39:L49,AI7) -> 0 | AK7: =AJ7/(AL4-AJ8) -> 0 | AL7: =IF(AK7=0,0,(AK7*((LOG(AK7))/LOG(2)))) -> 0 | AN7: =N7 -> 11 | AO7: =COUNTIF(L50:L59,AN7) -> 0 | AP7: =AO7/(AQ4-AO8) ->  | AQ7: =IF(AP7=0,0,(AP7*((LOG(AP7))/LOG(2)))) ->  | AS7: =N7 -> 11 | AT7: =COUNTIF(L60:L70,AS7) -> 0 | AU7: =AT7/(AV4-AT8) -> 0 | AV7: =IF(AU7=0,0,(AU7*((LOG(AU7))/LOG(2)))) -> 0
A8: 22 | B8: 117 | C8: 23 | D8: 132 | K8: 0 | L8: 22 | N8: 12 | O8: =COUNTIF($L$7:$L$500,N8) -> 40 | P8: =O8/$Q$4 -> 0.625 | Q8: =IF(P8=0,0,(P8*((LOG(P8))/LOG(2)))) -> -0.4237949407 | T8: =N8 -> 12 | U8: =COUNTIF(L7:L17,T8) -> 6 | Y8: =N8 -> 12 | Z8: =COUNTIF(L18:L27,Y8) -> 6 | AD8: =N8 -> 12 | AE8: =COUNTIF(L28:L38,AD8) -> 3 | AI8: =N8 -> 12 | AJ8: =COUNTIF(L39:L49,AI8) -> 9 | AN8: =N8 -> 12 | AO8: =COUNTIF(L50:L59,AN8) -> 10 | AS8: =N8 -> 12 | AT8: =COUNTIF(L60:L70,AS8) -> 6
A9: 11 | B9: 230 | C9: 21 | D9: 242 | K9: 0 | L9: 12 | N9: 21 | O9: =COUNTIF($L$7:$L$500,N9) -> 3 | P9: =O9/$Q$4 -> 0.046875 | Q9: =IF(P9=0,0,(P9*((LOG(P9))/LOG(2)))) -> -0.2069548828 | T9: =N9 -> 21 | U9: =COUNTIF(L7:L17,T9) -> 0 | V9: =U9/(W4-U8) -> 0 | W9: =IF(V9=0,0,(V9*((LOG(V9))/LOG(2)))) -> 0 | Y9: =N9 -> 21 | Z9: =COUNTIF(L18:L27,Y9) -> 0 | AA9: =Z9/(AB4-Z8) -> 0 | AB9: =IF(AA9=0,0,(AA9*((LOG(AA9))/LOG(2)))) -> 0 | AD9: =N9 -> 21 | AE9: =COUNTIF(L28:L38,AD9) -> 1 | AF9: =AE9/(AG4-AE8) -> 0.125 | AG9: =IF(AF9=0,0,(AF9*((LOG(AF9))/LOG(2)))) -> -0.375 | AI9: =N9 -> 21 | AJ9: =COUNTIF(L39:L49,AI9) -> 0 | AK9: =AJ9/(AL4-AJ8) -> 0 | AL9: =IF(AK9=0,0,(AK9*((LOG(AK9))/LOG(2)))) -> 0 | AN9: =N9 -> 21 | AO9: =COUNTIF(L50:L59,AN9) -> 0 | AP9: =AO9/(AQ4-AO8) ->  | AQ9: =IF(AP9=0,0,(AP9*((LOG(AP9))/LOG(2)))) ->  | AS9: =N9 -> 21 | AT9: =COUNTIF(L60:L70,AS9) -> 2 | AU9: =AT9/(AV4-AT8) -> 0.4 | AV9: =IF(AU9=0,0,(AU9*((LOG(AU9))/LOG(2)))) -> -0.528771238
A10: 22 | B10: 341 | C10: 23 | D10: 351 | K10: 0 | L10: 22 | N10: 22 | O10: =COUNTIF($L$7:$L$500,N10) -> 21 | P10: =O10/$Q$4 -> 0.328125 | Q10: =IF(P10=0,0,(P10*((LOG(P10))/LOG(2)))) -> -0.5275208457 | T10: =N10 -> 22 | U10: =COUNTIF(L7:L17,T10) -> 5 | V10: =U10/(W4-U8) -> 1 | W10: =IF(V10=0,0,(V10*((LOG(V10))/LOG(2)))) -> 0 | Y10: =N10 -> 22 | Z10: =COUNTIF(L18:L27,Y10) -> 4 | AA10: =Z10/(AB4-Z8) -> 1 | AB10: =IF(AA10=0,0,(AA10*((LOG(AA10))/LOG(2)))) -> 0 | AD10: =N10 -> 22 | AE10: =COUNTIF(L28:L38,AD10) -> 7 | AF10: =AE10/(AG4-AE8) -> 0.875 | AG10: =IF(AF10=0,0,(AF10*((LOG(AF10))/LOG(2)))) -> -0.1685644432 | AI10: =N10 -> 22 | AJ10: =COUNTIF(L39:L49,AI10) -> 2 | AK10: =AJ10/(AL4-AJ8) -> 1 | AL10: =IF(AK10=0,0,(AK10*((LOG(AK10))/LOG(2)))) -> 0 | AN10: =N10 -> 22 | AO10: =COUNTIF(L50:L59,AN10) -> 0 | AP10: =AO10/(AQ4-AO8) ->  | AQ10: =IF(AP10=0,0,(AP10*((LOG(AP10))/LOG(2)))) ->  | AS10: =N10 -> 22 | AT10: =COUNTIF(L60:L70,AS10) -> 3 | AU10: =AT10/(AV4-AT8) -> 0.6 | AV10: =IF(AU10=0,0,(AU10*((LOG(AU10))/LOG(2)))) -> -0.4421793565
A11: 11 | B11: 447 | C11: 21 | D11: 459 | K11: 0 | L11: 12 | T11: =N11 -> 0 | U11: =COUNTIF(L7:L17,T11) -> 0 | V11: =U11/(W4-U8) -> 0 | W11: =IF(V11=0,0,(V11*((LOG(V11))/LOG(2)))) -> 0 | Y11: =N11 -> 0 | Z11: =COUNTIF(L18:L27,Y11) -> 0 | AA11: =Z11/(AB4-Z8) -> 0 | AB11: =IF(AA11=0,0,(AA11*((LOG(AA11))/LOG(2)))) -> 0 | AD11: =N11 -> 0 | AE11: =COUNTIF(L28:L38,AD11) -> 0 | AF11: =AE11/(AG4-AE8) -> 0 | AG11: =IF(AF11=0,0,(AF11*((LOG(AF11))/LOG(2)))) -> 0 | AI11: =N11 -> 0 | AJ11: =COUNTIF(L39:L49,AI11) -> 0 | AK11: =AJ11/(AL4-AJ8) -> 0 | AL11: =IF(AK11=0,0,(AK11*((LOG(AK11))/LOG(2)))) -> 0 | AN11: =N11 -> 0 | AO11: =COUNTIF(L50:L59,AN11) -> 0 | AP11: =AO11/(AQ4-AO8) ->  | AQ11: =IF(AP11=0,0,(AP11*((LOG(AP11))/LOG(2)))) ->  | AS11: =N11 -> 0 | AT11: =COUNTIF(L60:L70,AS11) -> 0 | AU11: =AT11/(AV4-AT8) -> 0 | AV11: =IF(AU11=0,0,(AU11*((LOG(AU11))/LOG(2)))) -> 0
A12: 11 | B12: 546 | C12: 21 | D12: 555 | K12: 0 | L12: 12 | T12: =N12 -> 0 | U12: =COUNTIF(L7:L17,T12) -> 0 | V12: =U12/(W4-U8) -> 0 | W12: =IF(V12=0,0,(V12*((LOG(V12))/LOG(2)))) -> 0 | Y12: =N12 -> 0 | Z12: =COUNTIF(L18:L27,Y12) -> 0 | AA12: =Z12/(AB4-Z8) -> 0 | AB12: =IF(AA12=0,0,(AA12*((LOG(AA12))/LOG(2)))) -> 0 | AD12: =N12 -> 0 | AE12: =COUNTIF(L28:L38,AD12) -> 0 | AF12: =AE12/(AG4-AE8) -> 0 | AG12: =IF(AF12=0,0,(AF12*((LOG(AF12))/LOG(2)))) -> 0 | AI12: =N12 -> 0 | AJ12: =COUNTIF(L39:L49,AI12) -> 0 | AK12: =AJ12/(AL4-AJ8) -> 0 | AL12: =IF(AK12=0,0,(AK12*((LOG(AK12))/LOG(2)))) -> 0 | AN12: =N12 -> 0 | AO12: =COUNTIF(L50:L59,AN12) -> 0 | AP12: =AO12/(AQ4-AO8) ->  | AQ12: =IF(AP12=0,0,(AP12*((LOG(AP12))/LOG(2)))) ->  | AS12: =N12 -> 0 | AT12: =COUNTIF(L60:L70,AS12) -> 0 | AU12: =AT12/(AV4-AT8) -> 0 | AV12: =IF(AU12=0,0,(AU12*((LOG(AU12))/LOG(2)))) -> 0
A13: 11 | B13: 642 | C13: 21 | D13: 650 | K13: 0 | L13: 12 | T13: =N13 -> 0 | U13: =COUNTIF(L7:L17,T13) -> 0 | V13: =U13/(W4-U8) -> 0 | W13: =IF(V13=0,0,(V13*((LOG(V13))/LOG(2)))) -> 0 | Y13: =N13 -> 0 | Z13: =COUNTIF(L18:L27,Y13) -> 0 | AA13: =Z13/(AB4-Z8) -> 0 | AB13: =IF(AA13=0,0,(AA13*((LOG(AA13))/LOG(2)))) -> 0 | AD13: =N13 -> 0 | AE13: =COUNTIF(L28:L38,AD13) -> 0 | AF13: =AE13/(AG4-AE8) -> 0 | AG13: =IF(AF13=0,0,(AF13*((LOG(AF13))/LOG(2)))) -> 0 | AI13: =N13 -> 0 | AJ13: =COUNTIF(L39:L49,AI13) -> 0 | AK13: =AJ13/(AL4-AJ8) -> 0 | AL13: =IF(AK13=0,0,(AK13*((LOG(AK13))/LOG(2)))) -> 0 | AN13: =N13 -> 0 | AO13: =COUNTIF(L50:L59,AN13) -> 0 | AP13: =AO13/(AQ4-AO8) ->  | AQ13: =IF(AP13=0,0,(AP13*((LOG(AP13))/LOG(2)))) ->  | AS13: =N13 -> 0 | AT13: =COUNTIF(L60:L70,AS13) -> 0 | AU13: =AT13/(AV4-AT8) -> 0 | AV13: =IF(AU13=0,0,(AU13*((LOG(AU13))/LOG(2)))) -> 0
A14: 11 | B14: 739 | C14: 21 | D14: 759 | K14: 0 | L14: 12 | T14: =N14 -> 0 | U14: =COUNTIF(L7:L17,T14) -> 0 | V14: =U14/(W4-U8) -> 0 | W14: =IF(V14=0,0,(V14*((LOG(V14))/LOG(2)))) -> 0 | Y14: =N14 -> 0 | Z14: =COUNTIF(L18:L27,Y14) -> 0 | AA14: =Z14/(AB4-Z8) -> 0 | AB14: =IF(AA14=0,0,(AA14*((LOG(AA14))/LOG(2)))) -> 0 | AD14: =N14 -> 0 | AE14: =COUNTIF(L28:L38,AD14) -> 0 | AF14: =AE14/(AG4-AE8) -> 0 | AG14: =IF(AF14=0,0,(AF14*((LOG(AF14))/LOG(2)))) -> 0 | AI14: =N14 -> 0 | AJ14: =COUNTIF(L39:L49,AI14) -> 0 | AK14: =AJ14/(AL4-AJ8) -> 0 | AL14: =IF(AK14=0,0,(AK14*((LOG(AK14))/LOG(2)))) -> 0 | AN14: =N14 -> 0 | AO14: =COUNTIF(L50:L59,AN14) -> 0 | AP14: =AO14/(AQ4-AO8) ->  | AQ14: =IF(AP14=0,0,(AP14*((LOG(AP14))/LOG(2)))) ->  | AS14: =N14 -> 0 | AT14: =COUNTIF(L60:L70,AS14) -> 0 | AU14: =AT14/(AV4-AT8) -> 0 | AV14: =IF(AU14=0,0,(AU14*((LOG(AU14))/LOG(2)))) -> 0
A15: 22 | B15: 859 | C15: 23 | D15: 866 | K15: 0 | L15: 22 | P15: =SUM(P7:P14) -> 1 | Q15: =-SUM(Q7:Q14) -> 1.158270669 | V15: =SUM(V7:V14) -> 1 | W15: =-SUM(W7:W14) -> 0 | AA15: =SUM(AA7:AA14) -> 1 | AB15: =-SUM(AB7:AB14) -> 0 | AF15: =SUM(AF7:AF14) -> 1 | AG15: =-SUM(AG7:AG14) -> 0.5435644432 | AK15: =SUM(AK7:AK14) -> 1 | AL15: =-SUM(AL7:AL14) -> 0 | AP15: =SUM(AP7:AP14) ->  | AQ15: =-SUM(AQ7:AQ14) ->  | AU15: =SUM(AU7:AU14) -> 1 | AV15: =-SUM(AV7:AV14) -> 0.9709505945
A16: 22 | B16: 971 | C16: 23 | D16: 981 | K16: 0 | L16: 22 | P16: U= | Q16: =Q15/(LOG(Q4)/LOG(2)) -> 0.1930451115 | V16: U1= | W16: =W15/(LOG(W4)/LOG(2)) -> 0 | AA16: U2= | AB16: =AB15/(LOG(AB4)/LOG(2)) -> 0 | AF16: U3= | AG16: =AG15/(LOG(AG4)/LOG(2)) -> 0.1571253614 | AK16: U4= | AL16: =AL15/(LOG(AL4)/LOG(2)) -> 0 | AP16: U5= | AQ16: =AQ15/(LOG(AQ4)/LOG(2)) ->  | AU16: U6= | AV16: =AV15/(LOG(AV4)/LOG(2)) -> 0.2806676649
A17: 22 | B17: 1086 | C17: 23 | D17: 1096 | K17: 0 | L17: 22
A18: 22 | B18: 1202 | C18: 23 | D18: 1211 | K18: 0 | L18: 22
A19: 11 | B19: 1307 | C19: 21 | D19: 1320 | K19: 0 | L19: 12 | N19: Total Target Seq
A20: 11 | B20: 1406 | C20: 21 | D20: 1419 | K20: 0 | L20: 12 | N20: =COUNTIF(L7:L70,G3) -> 40 | P20: 11 | Q20: 10 | R20: 11 | S20: 11 | T20: 10 | U20: 11
A21: 11 | B21: 1505 | C21: 21 | D21: 1526 | K21: 0 | L21: 12 | P21: % of reinforcement given in 6 equal intervals based on number of trials
A22: 22 | B22: 1624 | C22: 23 | D22: 1667 | K22: 0 | L22: 22 | P22: %_1 | Q22: %_2 | R22: %_3 | S22: %_4 | T22: %_5 | U22: %_6
A23: 11 | B23: 1764 | C23: 21 | D23: 1787 | K23: 0 | L23: 12 | O23: target sequence | P23: =$G$3 -> 12 | Q23: =$G$3 -> 12 | R23: =$G$3 -> 12 | S23: =$G$3 -> 12 | T23: =$G$3 -> 12 | U23: =$G$3 -> 12
A24: 22 | B24: 1883 | C24: 23 | D24: 1892 | K24: 0 | L24: 22 | O24: total reinforcement | P24: =U8 -> 6 | Q24: =Z8 -> 6 | R24: =AE8 -> 3 | S24: =AJ8 -> 9 | T24: =AO8 -> 10 | U24: =AT8 -> 6
A25: 11 | B25: 1989 | C25: 21 | D25: 1998 | K25: 0 | L25: 12 | O25: % target
A26: 11 | B26: 2086 | C26: 21 | D26: 2106 | K26: 0 | L26: 12 | O26: CCRF
A27: 22 | B27: 2201 | C27: 23 | D27: 2209 | K27: 0 | L27: 22 | O27: % CCRf
A28: 22 | B28: 2315 | C28: 23 | D28: 2323 | K28: 0 | L28: 22 | O28: average response rate | P28: =D17/P20 -> 99.63636364 | Q28: =(D27-D17)/Q20 -> 111.3 | R28: =(D38-D27)/R20 -> 111.4545455 | S28: =(D49-D38)/S20 -> 105.8181818 | T28: =(D59-D49)/T20 -> 107.3 | U28: =(D70-D59)/U20 -> 112.3636364
A29: 22 | B29: 2439 | C29: 23 | D29: 2449 | K29: 0 | L29: 22
A30: 22 | B30: 2549 | C30: 23 | D30: 2553 | K30: 0 | L30: 22
A31: 22 | B31: 2662 | C31: 23 | D31: 2671 | K31: 0 | L31: 22
A32: 22 | B32: 2778 | C32: 23 | D32: 2786 | K32: 0 | L32: 22
A33: 22 | B33: 2885 | C33: 14 | D33: 2897 | K33: 0 | L33: 21
A34: 22 | B34: 3007 | C34: 23 | D34: 3015 | K34: 0 | L34: 22
A35: 22 | B35: 3121 | C35: 23 | D35: 3129 | K35: 0 | L35: 22
A36: 11 | B36: 3225 | C36: 21 | D36: 3239 | K36: 0 | L36: 12
A37: 11 | B37: 3326 | C37: 21 | D37: 3338 | K37: 0 | L37: 12
A38: 11 | B38: 3424 | C38: 21 | D38: 3435 | K38: 0 | L38: 12
A39: 22 | B39: 3528 | C39: 23 | D39: 3537 | K39: 0 | L39: 22
A40: 11 | B40: 3633 | C40: 21 | D40: 3645 | K40: 0 | L40: 12
A41: 22 | B41: 3744 | C41: 23 | D41: 3753 | K41: 0 | L41: 22
A42: 11 | B42: 3848 | C42: 21 | D42: 3859 | K42: 0 | L42: 12
A43: 11 | B43: 3951 | C43: 21 | D43: 3967 | K43: 0 | L43: 12
A44: 11 | B44: 4057 | C44: 21 | D44: 4071 | K44: 0 | L44: 12
A45: 11 | B45: 4160 | C45: 21 | D45: 4169 | K45: 0 | L45: 12
A46: 11 | B46: 4254 | C46: 21 | D46: 4277 | K46: 0 | L46: 12
A47: 11 | B47: 4363 | C47: 21 | D47: 4378 | K47: 0 | L47: 12
A48: 11 | B48: 4468 | C48: 21 | D48: 4504 | K48: 0 | L48: 12
A49: 11 | B49: 4591 | C49: 21 | D49: 4599 | K49: 0 | L49: 12
A50: 11 | B50: 4686 | C50: 21 | D50: 4694 | K50: 0 | L50: 12
A51: 11 | B51: 4779 | C51: 21 | D51: 4845 | K51: 0 | L51: 12
A52: 11 | B52: 4932 | C52: 21 | D52: 4945 | K52: 0 | L52: 12
A53: 11 | B53: 5034 | C53: 21 | D53: 5051 | K53: 0 | L53: 12
A54: 11 | B54: 5138 | C54: 21 | D54: 5146 | K54: 0 | L54: 12
A55: 11 | B55: 5232 | C55: 21 | D55: 5242 | K55: 0 | L55: 12
A56: 11 | B56: 5330 | C56: 21 | D56: 5347 | K56: 0 | L56: 12
A57: 11 | B57: 5434 | C57: 21 | D57: 5442 | K57: 0 | L57: 12
A58: 11 | B58: 5528 | C58: 21 | D58: 5567 | K58: 0 | L58: 12
A59: 11 | B59: 5663 | C59: 21 | D59: 5672 | K59: 0 | L59: 12
A60: 22 | B60: 5760 | C60: 23 | D60: 5767 | K60: 0 | L60: 22
A61: 22 | B61: 5878 | C61: 23 | D61: 5892 | K61: 0 | L61: 22
A62: 11 | B62: 5987 | C62: 21 | D62: 5998 | K62: 0 | L62: 12
A63: 22 | B63: 6126 | C63: 23 | D63: 6150 | K63: 0 | L63: 22
A64: 11 | B64: 6247 | C64: 21 | D64: 6260 | K64: 0 | L64: 12
A65: 11 | B65: 6346 | C65: 21 | D65: 6354 | K65: 0 | L65: 12
A66: 11 | B66: 6443 | C66: 21 | D66: 6492 | K66: 0 | L66: 12
A67: 22 | B67: 6581 | C67: 14 | D67: 6599 | K67: 0 | L67: 21
A68: 11 | B68: 6695 | C68: 21 | D68: 6704 | K68: 0 | L68: 12
A69: 22 | B69: 6790 | C69: 14 | D69: 6804 | K69: 0 | L69: 21
A70: 11 | B70: 6899 | C70: 21 | D70: 6908 | K70: 1 | L70: 12

Sheet !MC09900.091
A1: Report for:!MC09900.091
A2: Date: | B2: <date>
A3: Hen: | B3: <hen> | F3: Correct Sequence | G3: =Start!J2 -> 12 | P3: Total Sequences in Data | Q3: =4994-COUNTBLANK(L7:L5000) -> 58 | V3: Total Sequences in Block Data | W3: =COUNTA(L7:L16) -> 10 | AA3: Total Sequences in Block Data | AB3: =COUNTA(L17:L25) -> 9 | AF3: Total Sequences in Block Data | AG3: =COUNTA(L26:L35) -> 10 | AK3: Total Sequences in Block Data | AL3: =COUNTA(L36:L45) -> 10 | AP3: Total Sequences in Block Data | AQ3: =COUNTA(L46:L54) -> 9 | AU3: Total Sequences in Block Data | AV3: =COUNTA(L55:L64) -> 10
P4: Total Sequences in Summary | Q4: =SUM(O7:O14) -> 58 | V4: Total Sequences in Block Summary | W4: =SUM(U7:U14) -> 10 | AA4: Total Sequences in Block Summary | AB4: =SUM(Z7:Z14) -> 9 | AF4: Total Sequences in Block Summary | AG4: =SUM(AE7:AE14) -> 10 | AK4: Total Sequences in Block Summary | AL4: =SUM(AJ7:AJ14) -> 10 | AP4: Total Sequences in Block Summary | AQ4: =SUM(AO7:AO14) -> 9 | AU4: Total Sequences in Block Summary | AV4: =SUM(AT7:AT14) -> 10
T5: Block 1 | Y5: Block 2 | AD5: Block 3 | AI5: Block 4 | AN5: Block 5 | AS5: Block 6
A6: Sequence Component 1 | B6: Time 1 | C6: Sequence Component 2 | D6: Time 2 | E6: Sequence Component 3 | F6: Time 3 | G6: Sequence Component 4 | H6: Time 4 | I6: Sequence Component 5 | J6: Time 5 | K6: Correct? 0=No 1=Yes | L6: Sequence | N6: Frequency | P6: Relative Frequency | Q6: Variability | T6: Frequency | V6: Relative Frequency | W6: Variability | Y6: Frequency | AA6: Relative Frequency | AB6: Variability | AD6: Frequency | AF6: Relative Frequency | AG6: Variability | AI6: Frequency | AK6: Relative Frequency | AL6: Variability | AN6: Frequency | AP6: Relative Frequency | AQ6: Variability | AS6: Frequency | AU6: Relative Frequency | AV6: Variability
A7: 22 | B7: 20 | C7: 23 | D7: 136 | K7: 0 | L7: 22 | N7: 11 | O7: =COUNTIF($L$7:$L$500,N7) -> 0 | P7: =O7/$Q$4 -> 0 | Q7: =IF(P7=0,0,(P7*((LOG(P7))/LOG(2)))) -> 0 | T7: =N7 -> 11 | U7: =COUNTIF(L7:L16,T7) -> 0 | V7: =U7/(W4-U8) -> 0 | W7: =IF(V7=0,0,(V7*((LOG(V7))/LOG(2)))) -> 0 | Y7: =N7 -> 11 | Z7: =COUNTIF(L17:L25,Y7) -> 0 | AA7: =Z7/(AB4-Z8) -> 0 | AB7: =IF(AA7=0,0,(AA7*((LOG(AA7))/LOG(2)))) -> 0 | AD7: =N7 -> 11 | AE7: =COUNTIF(L26:L35,AD7) -> 0 | AF7: =AE7/(AG4-AE8) -> 0 | AG7: =IF(AF7=0,0,(AF7*((LOG(AF7))/LOG(2)))) -> 0 | AI7: =N7 -> 11 | AJ7: =COUNTIF(L36:L45,AI7) -> 0 | AK7: =AJ7/(AL4-AJ8) -> 0 | AL7: =IF(AK7=0,0,(AK7*((LOG(AK7))/LOG(2)))) -> 0 | AN7: =N7 -> 11 | AO7: =COUNTIF(L46:L54,AN7) -> 0 | AP7: =AO7/(AQ4-AO8) -> 0 | AQ7: =IF(AP7=0,0,(AP7*((LOG(AP7))/LOG(2)))) -> 0 | AS7: =N7 -> 11 | AT7: =COUNTIF(L55:L64,AS7) -> 0 | AU7: =AT7/(AV4-AT8) -> 0 | AV7: =IF(AU7=0,0,(AU7*((LOG(AU7))/LOG(2)))) -> 0
A8: 22 | B8: 239 | C8: 23 | D8: 277 | K8: 0 | L8: 22 | N8: 12 | O8: =COUNTIF($L$7:$L$500,N8) -> 40 | P8: =O8/$Q$4 -> 0.6896551724 | Q8: =IF(P8=0,0,(P8*((LOG(P8))/LOG(2)))) -> -0.3696916553 | T8: =N8 -> 12 | U8: =COUNTIF(L7:L16,T8) -> 4 | Y8: =N8 -> 12 | Z8: =COUNTIF(L17:L25,Y8) -> 8 | AD8: =N8 -> 12 | AE8: =COUNTIF(L26:L35,AD8) -> 4 | AI8: =N8 -> 12 | AJ8: =COUNTIF(L36:L45,AI8) -> 9 | AN8: =N8 -> 12 | AO8: =COUNTIF(L46:L54,AN8) -> 6 | AS8: =N8 -> 12 | AT8: =COUNTIF(L55:L64,AS8) -> 9
A9: 22 | B9: 388 | C9: 14 | D9: 418 | K9: 0 | L9: 21 | N9: 21 | O9: =COUNTIF($L$7:$L$500,N9) -> 4 | P9: =O9/$Q$4 -> 0.06896551724 | Q9: =IF(P9=0,0,(P9*((LOG(P9))/LOG(2)))) -> -0.2660676548 | T9: =N9 -> 21 | U9: =COUNTIF(L7:L16,T9) -> 1 | V9: =U9/(W4-U8) -> 0.1666666667 | W9: =IF(V9=0,0,(V9*((LOG(V9))/LOG(2)))) -> -0.4308270835 | Y9: =N9 -> 21 | Z9: =COUNTIF(L17:L25,Y9) -> 0 | AA9: =Z9/(AB4-Z8) -> 0 | AB9: =IF(AA9=0,0,(AA9*((LOG(AA9))/LOG(2)))) -> 0 | AD9: =N9 -> 21 | AE9: =COUNTIF(L26:L35,AD9) -> 1 | AF9: =AE9/(AG4-AE8) -> 0.1666666667 | AG9: =IF(AF9=0,0,(AF9*((LOG(AF9))/LOG(2)))) -> -0.4308270835 | AI9: =N9 -> 21 | AJ9: =COUNTIF(L36:L45,AI9) -> 0 | AK9: =AJ9/(AL4-AJ8) -> 0 | AL9: =IF(AK9=0,0,(AK9*((LOG(AK9))/LOG(2)))) -> 0 | AN9: =N9 -> 21 | AO9: =COUNTIF(L46:L54,AN9) -> 1 | AP9: =AO9/(AQ4-AO8) -> 0.3333333333 | AQ9: =IF(AP9=0,0,(AP9*((LOG(AP9))/LOG(2)))) -> -0.5283208336 | AS9: =N9 -> 21 | AT9: =COUNTIF(L55:L64,AS9) -> 1 | AU9: =AT9/(AV4-AT8) -> 1 | AV9: =IF(AU9=0,0,(AU9*((LOG(AU9))/LOG(2)))) -> 0
A10: 22 | B10: 524 | C10: 23 | D10: 534 | K10: 0 | L10: 22 | N10: 22 | O10: =COUNTIF($L$7:$L$500,N10) -> 14 | P10: =O10/$Q$4 -> 0.2413793103 | Q10: =IF(P10=0,0,(P10*((LOG(P10))/LOG(2)))) -> -0.4949787073 | T10: =N10 -> 22 | U10: =COUNTIF(L7:L16,T10) -> 5 | V10: =U10/(W4-U8) -> 0.8333333333 | W10: =IF(V10=0,0,(V10*((LOG(V10))/LOG(2)))) -> -0.2191953382 | Y10: =N10 -> 22 | Z10: =COUNTIF(L17:L25,Y10) -> 1 | AA10: =Z10/(AB4-Z8) -> 1 | AB10: =IF(AA10=0,0,(AA10*((LOG(AA10))/LOG(2)))) -> 0 | AD10: =N10 -> 22 | AE10: =COUNTIF(L26:L35,AD10) -> 5 | AF10: =AE10/(AG4-AE8) -> 0.8333333333 | AG10: =IF(AF10=0,0,(AF10*((LOG(AF10))/LOG(2)))) -> -0.2191953382 | AI10: =N10 -> 22 | AJ10: =COUNTIF(L36:L45,AI10) -> 1 | AK10: =AJ10/(AL4-AJ8) -> 1 | AL10: =IF(AK10=0,0,(AK10*((LOG(AK10))/LOG(2)))) -> 0 | AN10: =N10 -> 22 | AO10: =COUNTIF(L46:L54,AN10) -> 2 | AP10: =AO10/(AQ4-AO8) -> 0.6666666667 | AQ10: =IF(AP10=0,0,(AP10*((LOG(AP10))/LOG(2)))) -> -0.3899750005 | AS10: =N10 -> 22 | AT10: =COUNTIF(L55:L64,AS10) -> 0 | AU10: =AT10/(AV4-AT8) -> 0 | AV10: =IF(AU10=0,0,(AU10*((LOG(AU10))/LOG(2)))) -> 0
A11: 11 | B11: 632 | C11: 21 | D11: 645 | K11: 0 | L11: 12 | T11: =N11 -> 0 | U11: =COUNTIF(L7:L16,T11) -> 0 | V11: =U11/(W4-U8) -> 0 | W11: =IF(V11=0,0,(V11*((LOG(V11))/LOG(2)))) -> 0 | Y11: =N11 -> 0 | Z11: =COUNTIF(L17:L25,Y11) -> 0 | AA11: =Z11/(AB4-Z8) -> 0 | AB11: =IF(AA11=0,0,(AA11*((LOG(AA11))/LOG(2)))) -> 0 | AD11: =N11 -> 0 | AE11: =COUNTIF(L26:L35,AD11) -> 0 | AF11: =AE11/(AG4-AE8) -> 0 | AG11: =IF(AF11=0,0,(AF11*((LOG(AF11))/LOG(2)))) -> 0 | AI11: =N11 -> 0 | AJ11: =COUNTIF(L36:L45,AI11) -> 0 | AK11: =AJ11/(AL4-AJ8) -> 0 | AL11: =IF(AK11=0,0,(AK11*((LOG(AK11))/LOG(2)))) -> 0 | AN11: =N11 -> 0 | AO11: =COUNTIF(L46:L54,AN11) -> 0 | AP11: =AO11/(AQ4-AO8) -> 0 | AQ11: =IF(AP11=0,0,(AP11*((LOG(AP11))/LOG(2)))) -> 0 | AS11: =N11 -> 0 | AT11: =COUNTIF(L55:L64,AS11) -> 0 | AU11: =AT11/(AV4-AT8) -> 0 | AV11: =IF(AU11=0,0,(AU11*((LOG(AU11))/LOG(2)))) -> 0
A12: 11 | B12: 732 | C12: 21 | D12: 741 | K12: 0 | L12: 12 | T12: =N12 -> 0 | U12: =COUNTIF(L7:L16,T12) -> 0 | V12: =U12/(W4-U8) -> 0 | W12: =IF(V12=0,0,(V12*((LOG(V12))/LOG(2)))) -> 0 | Y12: =N12 -> 0 | Z12: =COUNTIF(L17:L25,Y12) -> 0 | AA12: =Z12/(AB4-Z8) -> 0 | AB12: =IF(AA12=0,0,(AA12*((LOG(AA12))/LOG(2)))) -> 0 | AD12: =N12 -> 0 | AE12: =COUNTIF(L26:L35,AD12) -> 0 | AF12: =AE12/(AG4-AE8) -> 0 | AG12: =IF(AF12=0,0,(AF12*((LOG(AF12))/LOG(2)))) -> 0 | AI12: =N12 -> 0 | AJ12: =COUNTIF(L36:L45,AI12) -> 0 | AK12: =AJ12/(AL4-AJ8) -> 0 | AL12: =IF(AK12=0,0,(AK12*((LOG(AK12))/LOG(2)))) -> 0 | AN12: =N12 -> 0 | AO12: =COUNTIF(L46:L54,AN12) -> 0 | AP12: =AO12/(AQ4-AO8) -> 0 | AQ12: =IF(AP12=0,0,(AP12*((LOG(AP12))/LOG(2)))) -> 0 | AS12: =N12 -> 0 | AT12: =COUNTIF(L55:L64,AS12) -> 0 | AU12: =AT12/(AV4-AT8) -> 0 | AV12: =IF(AU12=0,0,(AU12*((LOG(AU12))/LOG(2)))) -> 0
A13: 22 | B13: 836 | C13: 23 | D13: 845 | K13: 0 | L13: 22 | T13: =N13 -> 0 | U13: =COUNTIF(L7:L16,T13) -> 0 | V13: =U13/(W4-U8) -> 0 | W13: =IF(V13=0,0,(V13*((LOG(V13))/LOG(2)))) -> 0 | Y13: =N13 -> 0 | Z13: =COUNTIF(L17:L25,Y13) -> 0 | AA13: =Z13/(AB4-Z8) -> 0 | AB13: =IF(AA13=0,0,(AA13*((LOG(AA13))/LOG(2)))) -> 0 | AD13: =N13 -> 0 | AE13: =COUNTIF(L26:L35,AD13) -> 0 | AF13: =AE13/(AG4-AE8) -> 0 | AG13: =IF(AF13=0,0,(AF13*((LOG(AF13))/LOG(2)))) -> 0 | AI13: =N13 -> 0 | AJ13: =COUNTIF(L36:L45,AI13) -> 0 | AK13: =AJ13/(AL4-AJ8) -> 0 | AL13: =IF(AK13=0,0,(AK13*((LOG(AK13))/LOG(2)))) -> 0 | AN13: =N13 -> 0 | AO13: =COUNTIF(L46:L54,AN13) -> 0 | AP13: =AO13/(AQ4-AO8) -> 0 | AQ13: =IF(AP13=0,0,(AP13*((LOG(AP13))/LOG(2)))) -> 0 | AS13: =N13 -> 0 | AT13: =COUNTIF(L55:L64,AS13) -> 0 | AU13: =AT13/(AV4-AT8) -> 0 | AV13: =IF(AU13=0,0,(AU13*((LOG(AU13))/LOG(2)))) -> 0
A14: 11 | B14: 941 | C14: 21 | D14: 954 | K14: 0 | L14: 12 | T14: =N14 -> 0 | U14: =COUNTIF(L7:L16,T14) -> 0 | V14: =U14/(W4-U8) -> 0 | W14: =IF(V14=0,0,(V14*((LOG(V14))/LOG(2)))) -> 0 | Y14: =N14 -> 0 | Z14: =COUNTIF(L17:L25,Y14) -> 0 | AA14: =Z14/(AB4-Z8) -> 0 | AB14: =IF(AA14=0,0,(AA14*((LOG(AA14))/LOG(2)))) -> 0 | AD14: =N14 -> 0 | AE14: =COUNTIF(L26:L35,AD14) -> 0 | AF14: =AE14/(AG4-AE8) -> 0 | AG14: =IF(AF14=0,0,(AF14*((LOG(AF14))/LOG(2)))) -> 0 | AI14: =N14 -> 0 | AJ14: =COUNTIF(L36:L45,AI14) -> 0 | AK14: =AJ14/(AL4-AJ8) -> 0 | AL14: =IF(AK14=0,0,(AK14*((LOG(AK14))/LOG(2)))) -> 0 | AN14: =N14 -> 0 | AO14: =COUNTIF(L46:L54,AN14) -> 0 | AP14: =AO14/(AQ4-AO8) -> 0 | AQ14: =IF(AP14=0,0,(AP14*((LOG(AP14))/LOG(2)))) -> 0 | AS14: =N14 -> 0 | AT14: =COUNTIF(L55:L64,AS14) -> 0 | AU14: =AT14/(AV4-AT8) -> 0 | AV14: =IF(AU14=0,0,(AU14*((LOG(AU14))/LOG(2)))) -> 0
A15: 11 | B15: 1041 | C15: 21 | D15: 1051 | K15: 0 | L15: 12 | P15: =SUM(P7:P14) -> 1 | Q15: =-SUM(Q7:Q14) -> 1.130738017 | V15: =SUM(V7:V14) -> 1 | W15: =-SUM(W7:W14) -> 0.6500224216 | AA15: =SUM(AA7:AA14) -> 1 | AB15: =-SUM(AB7:AB14) -> 0 | AF15: =SUM(AF7:AF14) -> 1 | AG15: =-SUM(AG7:AG14) -> 0.6500224216 | AK15: =SUM(AK7:AK14) -> 1 | AL15: =-SUM(AL7:AL14) -> 0 | AP15: =SUM(AP7:AP14) -> 1 | AQ15: =-SUM(AQ7:AQ14) -> 0.9182958341 | AU15: =SUM(AU7:AU14) -> 1 | AV15: =-SUM(AV7:AV14) -> 0
A16: 22 | B16: 1147 | C16: 23 | D16: 1154 | K16: 0 | L16: 22 | P16: U= | Q16: =Q15/(LOG(Q4)/LOG(2)) -> 0.193025211 | V16: U1= | W16: =W15/(LOG(W4)/LOG(2)) -> 0.1956762468 | AA16: U2= | AB16: =AB15/(LOG(AB4)/LOG(2)) -> 0 | AF16: U3= | AG16: =AG15/(LOG(AG4)/LOG(2)) -> 0.1956762468 | AK16: U4= | AL16: =AL15/(LOG(AL4)/LOG(2)) -> 0 | AP16: U5= | AQ16: =AQ15/(LOG(AQ4)/LOG(2)) -> 0.2896900821 | AU16: U6= | AV16: =AV15/(LOG(AV4)/LOG(2)) -> 0
A17: 11 | B17: 1250 | C17: 21 | D17: 1262 | K17: 0 | L17: 12
A18: 11 | B18: 1350 | C18: 21 | D18: 1359 | K18: 0 | L18: 12
A19: 11 | B19: 1446 | C19: 21 | D19: 1457 | K19: 0 | L19: 12 | N19: Total Target Seq
A20: 11 | B20: 1541 | C20: 21 | D20: 1554 | K20: 0 | L20: 12 | N20: =COUNTIF(L7:L64,G3) -> 40 | P20: 10 | Q20: 9 | R20: 10 | S20: 10 | T20: 9 | U20: 10
A21: 11 | B21: 1640 | C21: 21 | D21: 1651 | K21: 0 | L21: 12 | P21: % of reinforcement given in 6 equal intervals based on number of trials
A22: 11 | B22: 1735 | C22: 21 | D22: 1747 | K22: 0 | L22: 12 | P22: %_1 | Q22: %_2 | R22: %_3 | S22: %_4 | T22: %_5 | U22: %_6
A23: 11 | B23: 1835 | C23: 21 | D23: 1844 | K23: 0 | L23: 12 | O23: target sequence | P23: =$G$3 -> 12 | Q23: =$G$3 -> 12 | R23: =$G$3 -> 12 | S23: =$G$3 -> 12 | T23: =$G$3 -> 12 | U23: =$G$3 -> 12
A24: 11 | B24: 1930 | C24: 21 | D24: 1939 | K24: 0 | L24: 12 | O24: total reinforcement | P24: =U8 -> 4 | Q24: =Z8 -> 8 | R24: =AE8 -> 4 | S24: =AJ8 -> 9 | T24: =AO8 -> 6 | U24: =AT8 -> 9
A25: 22 | B25: 2031 | C25: 23 | D25: 2051 | K25: 0 | L25: 22 | O25: % target
A26: 11 | B26: 2146 | C26: 21 | D26: 2155 | K26: 0 | L26: 12 | O26: CCRF
A27: 11 | B27: 2243 | C27: 21 | D27: 2268 | K27: 0 | L27: 12 | O27: % CCRf
A28: 11 | B28: 2358 | C28: 21 | D28: 2395 | K28: 0 | L28: 12 | O28: average response rate | P28: =D16/P20 -> 115.4 | Q28: =(D25-D16)/Q20 -> 99.66666667 | R28: =(D35-D25)/R20 -> 112.7 | S28: =(D45-D35)/S20 -> 106.5 | T28: =(D54-D45)/T20 -> 108.2222222 | U28: =(D64-D54)/U20 -> 106.6
A29: 22 | B29: 2495 | C29: 14 | D29: 2504 | K29: 0 | L29: 21
A30: 22 | B30: 2609 | C30: 23 | D30: 2618 | K30: 0 | L30: 22
A31: 11 | B31: 2714 | C31: 21 | D31: 2723 | K31: 0 | L31: 12
A32: 22 | B32: 2817 | C32: 23 | D32: 2830 | K32: 0 | L32: 22
A33: 22 | B33: 2939 | C33: 23 | D33: 2950 | K33: 0 | L33: 22
A34: 22 | B34: 3054 | C34: 23 | D34: 3062 | K34: 0 | L34: 22
A35: 22 | B35: 3170 | C35: 23 | D35: 3178 | K35: 0 | L35: 22
A36: 11 | B36: 3279 | C36: 21 | D36: 3291 | K36: 0 | L36: 12
A37: 11 | B37: 3379 | C37: 21 | D37: 3390 | K37: 0 | L37: 12
A38: 11 | B38: 3477 | C38: 21 | D38: 3487 | K38: 0 | L38: 12
A39: 11 | B39: 3575 | C39: 21 | D39: 3584 | K39: 0 | L39: 12
A40: 11 | B40: 3669 | C40: 21 | D40: 3677 | K40: 0 | L40: 12
A41: 11 | B41: 3764 | C41: 21 | D41: 3773 | K41: 0 | L41: 12
A42: 22 | B42: 3886 | C42: 23 | D42: 3904 | K42: 0 | L42: 22
A43: 11 | B43: 4000 | C43: 21 | D43: 4009 | K43: 0 | L43: 12
A44: 11 | B44: 4111 | C44: 21 | D44: 4120 | K44: 0 | L44: 12
A45: 11 | B45: 4206 | C45: 21 | D45: 4243 | K45: 0 | L45: 12
A46: 22 | B46: 4343 | C46: 23 | D46: 4370 | K46: 0 | L46: 22
A47: 11 | B47: 4466 | C47: 21 | D47: 4478 | K47: 0 | L47: 12
A48: 11 | B48: 4570 | C48: 21 | D48: 4578 | K48: 0 | L48: 12
A49: 22 | B49: 4673 | C49: 14 | D49: 4685 | K49: 0 | L49: 21
A50: 11 | B50: 4781 | C50: 21 | D50: 4792 | K50: 0 | L50: 12
A51: 22 | B51: 4895 | C51: 23 | D51: 4903 | K51: 0 | L51: 22
A52: 11 | B52: 4999 | C52: 21 | D52: 5011 | K52: 0 | L52: 12
A53: 11 | B53: 5098 | C53: 21 | D53: 5118 | K53: 0 | L53: 12
A54: 11 | B54: 5208 | C54: 21 | D54: 5217 | K54: 0 | L54: 12
A55: 11 | B55: 5301 | C55: 21 | D55: 5313 | K55: 0 | L55: 12
A56: 11 | B56: 5401 | C56: 21 | D56: 5473 | K56: 0 | L56: 12
A57: 11 | B57: 5561 | C57: 21 | D57: 5571 | K57: 0 | L57: 12
A58: 11 | B58: 5657 | C58: 21 | D58: 5674 | K58: 0 | L58: 12
A59: 11 | B59: 5762 | C59: 21 | D59: 5777 | K59: 0 | L59: 12
A60: 11 | B60: 5865 | C60: 21 | D60: 5873 | K60: 0 | L60: 12
A61: 11 | B61: 5960 | C61: 21 | D61: 5972 | K61: 0 | L61: 12
A62: 22 | B62: 6060 | C62: 14 | D62: 6077 | K62: 0 | L62: 21
A63: 11 | B63: 6172 | C63: 21 | D63: 6183 | K63: 0 | L63: 12
A64: 11 | B64: 6274 | C64: 21 | D64: 6283 | K64: 1 | L64: 12

Sheet !MC10900.091
A1: Report for:!MC10900.091
A2: Date: | B2: <date>
A3: Hen: | B3: <hen> | F3: Correct Sequence | G3: =Start!J2 -> 12 | P3: Total Sequences in Data | Q3: =4994-COUNTBLANK(L7:L5000) -> 51 | V3: Total Sequences in Block Data | W3: =COUNTA(L7:L15) -> 9 | AA3: Total Sequences in Block Data | AB3: =COUNTA(L16:L23) -> 8 | AF3: Total Sequences in Block Data | AG3: =COUNTA(L24:L32) -> 9 | AK3: Total Sequences in Block Data | AL3: =COUNTA(L33:L40) -> 8 | AP3: Total Sequences in Block Data | AQ3: =COUNTA(L41:L49) -> 9 | AU3: Total Sequences in Block Data | AV3: =COUNTA(L50:L57) -> 8
P4: Total Sequences in Summary | Q4: =SUM(O7:O14) -> 51 | V4: Total Sequences in Block Summary | W4: =SUM(U7:U14) -> 9 | AA4: Total Sequences in Block Summary | AB4: =SUM(Z7:Z14) -> 8 | AF4: Total Sequences in Block Summary | AG4: =SUM(AE7:AE14) -> 9 | AK4: Total Sequences in Block Summary | AL4: =SUM(AJ7:AJ14) -> 8 | AP4: Total Sequences in Block Summary | AQ4: =SUM(AO7:AO14) -> 9 | AU4: Total Sequences in Block Summary | AV4: =SUM(AT7:AT14) -> 8
T5: Block 1 | Y5: Block 2 | AD5: Block 3 | AI5: Block 4 | AN5: Block 5 | AS5: Block 6
A6: Sequence Component 1 | B6: Time 1 | C6: Sequence Component 2 | D6: Time 2 | E6: Sequence Component 3 | F6: Time 3 | G6: Sequence Component 4 | H6: Time 4 | I6: Sequence Component 5 | J6: Time 5 | K6: Correct? 0=No 1=Yes | L6: Sequence | N6: Frequency | P6: Relative Frequency | Q6: Variability | T6: Frequency | V6: Relative Frequency | W6: Variability | Y6: Frequency | AA6: Relative Frequency | AB6: Variability | AD6: Frequency | AF6: Relative Frequency | AG6: Variability | AI6: Frequency | AK6: Relative Frequency | AL6: Variability | AN6: Frequency | AP6: Relative Frequency | AQ6: Variability | AS6: Frequency | AU6: Relative Frequency | AV6: Variability
A7: 22 | B7: 53 | C7: 23 | D7: 92 | K7: 0 | L7: 22 | N7: 11 | O7: =COUNTIF($L$7:$L$500,N7) -> 1 | P7: =O7/$Q$4 -> 0.01960784314 | Q7: =IF(P7=0,0,(P7*((LOG(P7))/LOG(2)))) -> -0.1112240263 | T7: =N7 -> 11 | U7: =COUNTIF(L7:L15,T7) -> 1 | V7: =U7/(W4-U8) -> 0.25 | W7: =IF(V7=0,0,(V7*((LOG(V7))/LOG(2)))) -> -0.5 | Y7: =N7 -> 11 | Z7: =COUNTIF(L16:L23,Y7) -> 0 | AA7: =Z7/(AB4-Z8) ->  | AB7: =IF(AA7=0,0,(AA7*((LOG(AA7))/LOG(2)))) ->  | AD7: =N7 -> 11 | AE7: =COUNTIF(L24:L32,AD7) -> 0 | AF7: =AE7/(AG4-AE8) ->  | AG7: =IF(AF7=0,0,(AF7*((LOG(AF7))/LOG(2)))) ->  | AI7: =N7 -> 11 | AJ7: =COUNTIF(L33:L40,AI7) -> 0 | AK7: =AJ7/(AL4-AJ8) -> 0 | AL7: =IF(AK7=0,0,(AK7*((LOG(AK7))/LOG(2)))) -> 0 | AN7: =N7 -> 11 | AO7: =COUNTIF(L41:L49,AN7) -> 0 | AP7: =AO7/(AQ4-AO8) -> 0 | AQ7: =IF(AP7=0,0,(AP7*((LOG(AP7))/LOG(2)))) -> 0 | AS7: =N7 -> 11 | AT7: =COUNTIF(L50:L57,AS7) -> 0 | AU7: =AT7/(AV4-AT8) -> 0 | AV7: =IF(AU7=0,0,(AU7*((LOG(AU7))/LOG(2)))) -> 0
A8: 11 | B8: 200 | C8: 21 | D8: 229 | K8: 0 | L8: 12 | N8: 12 | O8: =COUNTIF($L$7:$L$500,N8) -> 40 | P8: =O8/$Q$4 -> 0.7843137255 | Q8: =IF(P8=0,0,(P8*((LOG(P8))/LOG(2)))) -> -0.2748998016 | T8: =N8 -> 12 | U8: =COUNTIF(L7:L15,T8) -> 5 | Y8: =N8 -> 12 | Z8: =COUNTIF(L16:L23,Y8) -> 8 | AD8: =N8 -> 12 | AE8: =COUNTIF(L24:L32,AD8) -> 9 | AI8: =N8 -> 12 | AJ8: =COUNTIF(L33:L40,AI8) -> 5 | AN8: =N8 -> 12 | AO8: =COUNTIF(L41:L49,AN8) -> 7 | AS8: =N8 -> 12 | AT8: =COUNTIF(L50:L57,AS8) -> 6
A9: 22 | B9: 347 | C9: 23 | D9: 367 | K9: 0 | L9: 22 | N9: 21 | O9: =COUNTIF($L$7:$L$500,N9) -> 2 | P9: =O9/$Q$4 -> 0.03921568627 | Q9: =IF(P9=0,0,(P9*((LOG(P9))/LOG(2)))) -> -0.1832323664 | T9: =N9 -> 21 | U9: =COUNTIF(L7:L15,T9) -> 1 | V9: =U9/(W4-U8) -> 0.25 | W9: =IF(V9=0,0,(V9*((LOG(V9))/LOG(2)))) -> -0.5 | Y9: =N9 -> 21 | Z9: =COUNTIF(L16:L23,Y9) -> 0 | AA9: =Z9/(AB4-Z8) ->  | AB9: =IF(AA9=0,0,(AA9*((LOG(AA9))/LOG(2)))) ->  | AD9: =N9 -> 21 | AE9: =COUNTIF(L24:L32,AD9) -> 0 | AF9: =AE9/(AG4-AE8) ->  | AG9: =IF(AF9=0,0,(AF9*((LOG(AF9))/LOG(2)))) ->  | AI9: =N9 -> 21 | AJ9: =COUNTIF(L33:L40,AI9) -> 0 | AK9: =AJ9/(AL4-AJ8) -> 0 | AL9: =IF(AK9=0,0,(AK9*((LOG(AK9))/LOG(2)))) -> 0 | AN9: =N9 -> 21 | AO9: =COUNTIF(L41:L49,AN9) -> 1 | AP9: =AO9/(AQ4-AO8) -> 0.5 | AQ9: =IF(AP9=0,0,(AP9*((LOG(AP9))/LOG(2)))) -> -0.5 | AS9: =N9 -> 21 | AT9: =COUNTIF(L50:L57,AS9) -> 0 | AU9: =AT9/(AV4-AT8) -> 0 | AV9: =IF(AU9=0,0,(AU9*((LOG(AU9))/LOG(2)))) -> 0
A10: 22 | B10: 472 | C10: 14 | D10: 489 | K10: 0 | L10: 21 | N10: 22 | O10: =COUNTIF($L$7:$L$500,N10) -> 8 | P10: =O10/$Q$4 -> 0.1568627451 | Q10: =IF(P10=0,0,(P10*((LOG(P10))/LOG(2)))) -> -0.4192039752 | T10: =N10 -> 22 | U10: =COUNTIF(L7:L15,T10) -> 2 | V10: =U10/(W4-U8) -> 0.5 | W10: =IF(V10=0,0,(V10*((LOG(V10))/LOG(2)))) -> -0.5 | Y10: =N10 -> 22 | Z10: =COUNTIF(L16:L23,Y10) -> 0 | AA10: =Z10/(AB4-Z8) ->  | AB10: =IF(AA10=0,0,(AA10*((LOG(AA10))/LOG(2)))) ->  | AD10: =N10 -> 22 | AE10: =COUNTIF(L24:L32,AD10) -> 0 | AF10: =AE10/(AG4-AE8) ->  | AG10: =IF(AF10=0,0,(AF10*((LOG(AF10))/LOG(2)))) ->  | AI10: =N10 -> 22 | AJ10: =COUNTIF(L33:L40,AI10) -> 3 | AK10: =AJ10/(AL4-AJ8) -> 1 | AL10: =IF(AK10=0,0,(AK10*((LOG(AK10))/LOG(2)))) -> 0 | AN10: =N10 -> 22 | AO10: =COUNTIF(L41:L49,AN10) -> 1 | AP10: =AO10/(AQ4-AO8) -> 0.5 | AQ10: =IF(AP10=0,0,(AP10*((LOG(AP10))/LOG(2)))) -> -0.5 | AS10: =N10 -> 22 | AT10: =COUNTIF(L50:L57,AS10) -> 2 | AU10: =AT10/(AV4-AT8) -> 1 | AV10: =IF(AU10=0,0,(AU10*((LOG(AU10))/LOG(2)))) -> 0
A11: 11 | B11: 589 | C11: 21 | D11: 598 | K11: 0 | L11: 12 | T11: =N11 -> 0 | U11: =COUNTIF(L7:L15,T11) -> 0 | V11: =U11/(W4-U8) -> 0 | W11: =IF(V11=0,0,(V11*((LOG(V11))/LOG(2)))) -> 0 | Y11: =N11 -> 0 | Z11: =COUNTIF(L16:L23,Y11) -> 0 | AA11: =Z11/(AB4-Z8) ->  | AB11: =IF(AA11=0,0,(AA11*((LOG(AA11))/LOG(2)))) ->  | AD11: =N11 -> 0 | AE11: =COUNTIF(L24:L32,AD11) -> 0 | AF11: =AE11/(AG4-AE8) ->  | AG11: =IF(AF11=0,0,(AF11*((LOG(AF11))/LOG(2)))) ->  | AI11: =N11 -> 0 | AJ11: =COUNTIF(L33:L40,AI11) -> 0 | AK11: =AJ11/(AL4-AJ8) -> 0 | AL11: =IF(AK11=0,0,(AK11*((LOG(AK11))/LOG(2)))) -> 0 | AN11: =N11 -> 0 | AO11: =COUNTIF(L41:L49,AN11) -> 0 | AP11: =AO11/(AQ4-AO8) -> 0 | AQ11: =IF(AP11=0,0,(AP11*((LOG(AP11))/LOG(2)))) -> 0 | AS11: =N11 -> 0 | AT11: =COUNTIF(L50:L57,AS11) -> 0 | AU11: =AT11/(AV4-AT8) -> 0 | AV11: =IF(AU11=0,0,(AU11*((LOG(AU11))/LOG(2)))) -> 0
A12: 11 | B12: 692 | C12: 21 | D12: 742 | K12: 0 | L12: 12 | T12: =N12 -> 0 | U12: =COUNTIF(L7:L15,T12) -> 0 | V12: =U12/(W4-U8) -> 0 | W12: =IF(V12=0,0,(V12*((LOG(V12))/LOG(2)))) -> 0 | Y12: =N12 -> 0 | Z12: =COUNTIF(L16:L23,Y12) -> 0 | AA12: =Z12/(AB4-Z8) ->  | AB12: =IF(AA12=0,0,(AA12*((LOG(AA12))/LOG(2)))) ->  | AD12: =N12 -> 0 | AE12: =COUNTIF(L24:L32,AD12) -> 0 | AF12: =AE12/(AG4-AE8) ->  | AG12: =IF(AF12=0,0,(AF12*((LOG(AF12))/LOG(2)))) ->  | AI12: =N12 -> 0 | AJ12: =COUNTIF(L33:L40,AI12) -> 0 | AK12: =AJ12/(AL4-AJ8) -> 0 | AL12: =IF(AK12=0,0,(AK12*((LOG(AK12))/LOG(2)))) -> 0 | AN12: =N12 -> 0 | AO12: =COUNTIF(L41:L49,AN12) -> 0 | AP12: =AO12/(AQ4-AO8) -> 0 | AQ12: =IF(AP12=0,0,(AP12*((LOG(AP12))/LOG(2)))) -> 0 | AS12: =N12 -> 0 | AT12: =COUNTIF(L50:L57,AS12) -> 0 | AU12: =AT12/(AV4-AT8) -> 0 | AV12: =IF(AU12=0,0,(AU12*((LOG(AU12))/LOG(2)))) -> 0
A13: 11 | B13: 829 | C13: 21 | D13: 838 | K13: 0 | L13: 12 | T13: =N13 -> 0 | U13: =COUNTIF(L7:L15,T13) -> 0 | V13: =U13/(W4-U8) -> 0 | W13: =IF(V13=0,0,(V13*((LOG(V13))/LOG(2)))) -> 0 | Y13: =N13 -> 0 | Z13: =COUNTIF(L16:L23,Y13) -> 0 | AA13: =Z13/(AB4-Z8) ->  | AB13: =IF(AA13=0,0,(AA13*((LOG(AA13))/LOG(2)))) ->  | AD13: =N13 -> 0 | AE13: =COUNTIF(L24:L32,AD13) -> 0 | AF13: =AE13/(AG4-AE8) ->  | AG13: =IF(AF13=0,0,(AF13*((LOG(AF13))/LOG(2)))) ->  | AI13: =N13 -> 0 | AJ13: =COUNTIF(L33:L40,AI13) -> 0 | AK13: =AJ13/(AL4-AJ8) -> 0 | AL13: =IF(AK13=0,0,(AK13*((LOG(AK13))/LOG(2)))) -> 0 | AN13: =N13 -> 0 | AO13: =COUNTIF(L41:L49,AN13) -> 0 | AP13: =AO13/(AQ4-AO8) -> 0 | AQ13: =IF(AP13=0,0,(AP13*((LOG(AP13))/LOG(2)))) -> 0 | AS13: =N13 -> 0 | AT13: =COUNTIF(L50:L57,AS13) -> 0 | AU13: =AT13/(AV4-AT8) -> 0 | AV13: =IF(AU13=0,0,(AU13*((LOG(AU13))/LOG(2)))) -> 0
A14: 11 | B14: 939 | C14: 12 | D14: 981 | K14: 0 | L14: 11 | T14: =N14 -> 0 | U14: =COUNTIF(L7:L15,T14) -> 0 | V14: =U14/(W4-U8) -> 0 | W14: =IF(V14=0,0,(V14*((LOG(V14))/LOG(2)))) -> 0 | Y14: =N14 -> 0 | Z14: =COUNTIF(L16:L23,Y14) -> 0 | AA14: =Z14/(AB4-Z8) ->  | AB14: =IF(AA14=0,0,(AA14*((LOG(AA14))/LOG(2)))) ->  | AD14: =N14 -> 0 | AE14: =COUNTIF(L24:L32,AD14) -> 0 | AF14: =AE14/(AG4-AE8) ->  | AG14: =IF(AF14=0,0,(AF14*((LOG(AF14))/LOG(2)))) ->  | AI14: =N14 -> 0 | AJ14: =COUNTIF(L33:L40,AI14) -> 0 | AK14: =AJ14/(AL4-AJ8) -> 0 | AL14: =IF(AK14=0,0,(AK14*((LOG(AK14))/LOG(2)))) -> 0 | AN14: =N14 -> 0 | AO14: =COUNTIF(L41:L49,AN14) -> 0 | AP14: =AO14/(AQ4-AO8) -> 0 | AQ14: =IF(AP14=0,0,(AP14*((LOG(AP14))/LOG(2)))) -> 0 | AS14: =N14 -> 0 | AT14: =COUNTIF(L50:L57,AS14) -> 0 | AU14: =AT14/(AV4-AT8) -> 0 | AV14: =IF(AU14=0,0,(AU14*((LOG(AU14))/LOG(2)))) -> 0
A15: 11 | B15: 1079 | C15: 21 | D15: 1091 | K15: 0 | L15: 12 | P15: =SUM(P7:P14) -> 1 | Q15: =-SUM(Q7:Q14) -> 0.9885601695 | V15: =SUM(V7:V14) -> 1 | W15: =-SUM(W7:W14) -> 1.5 | AA15: =SUM(AA7:AA14) ->  | AB15: =-SUM(AB7:AB14) ->  | AF15: =SUM(AF7:AF14) ->  | AG15: =-SUM(AG7:AG14) ->  | AK15: =SUM(AK7:AK14) -> 1 | AL15: =-SUM(AL7:AL14) -> 0 | AP15: =SUM(AP7:AP14) -> 1 | AQ15: =-SUM(AQ7:AQ14) -> 1 | AU15: =SUM(AU7:AU14) -> 1 | AV15: =-SUM(AV7:AV14) -> 0
A16: 11 | B16: 1180 | C16: 21 | D16: 1189 | K16: 0 | L16: 12 | P16: U= | Q16: =Q15/(LOG(Q4)/LOG(2)) -> 0.1742746903 | V16: U1= | W16: =W15/(LOG(W4)/LOG(2)) -> 0.4731973152 | AA16: U2= | AB16: =AB15/(LOG(AB4)/LOG(2)) ->  | AF16: U3= | AG16: =AG15/(LOG(AG4)/LOG(2)) ->  | AK16: U4= | AL16: =AL15/(LOG(AL4)/LOG(2)) -> 0 | AP16: U5= | AQ16: =AQ15/(LOG(AQ4)/LOG(2)) -> 0.3154648768 | AU16: U6= | AV16: =AV15/(LOG(AV4)/LOG(2)) -> 0
A17: 11 | B17: 1282 | C17: 21 | D17: 1291 | K17: 0 | L17: 12
A18: 11 | B18: 1379 | C18: 21 | D18: 1388 | K18: 0 | L18: 12
A19: 11 | B19: 1478 | C19: 21 | D19: 1487 | K19: 0 | L19: 12 | N19: Total Target Seq
A20: 11 | B20: 1574 | C20: 21 | D20: 1595 | K20: 0 | L20: 12 | N20: =COUNTIF(L7:L57,G3) -> 40 | P20: 9 | Q20: 8 | R20: 9 | S20: 8 | T20: 9 | U20: 8
A21: 11 | B21: 1684 | C21: 21 | D21: 1694 | K21: 0 | L21: 12 | P21: % of reinforcement given in 6 equal intervals based on number of trials
A22: 11 | B22: 1780 | C22: 21 | D22: 1787 | K22: 0 | L22: 12 | P22: %_1 | Q22: %_2 | R22: %_3 | S22: %_4 | T22: %_5 | U22: %_6
A23: 11 | B23: 1873 | C23: 21 | D23: 1885 | K23: 0 | L23: 12 | O23: target sequence | P23: =$G$3 -> 12 | Q23: =$G$3 -> 12 | R23: =$G$3 -> 12 | S23: =$G$3 -> 12 | T23: =$G$3 -> 12 | U23: =$G$3 -> 12
A24: 11 | B24: 1973 | C24: 21 | D24: 1981 | K24: 0 | L24: 12 | O24: total reinforcement | P24: =U8 -> 5 | Q24: =Z8 -> 8 | R24: =AE8 -> 9 | S24: =AJ8 -> 5 | T24: =AO8 -> 7 | U24: =AT8 -> 6
A25: 11 | B25: 2070 | C25: 21 | D25: 2078 | K25: 0 | L25: 12 | O25: % target
A26: 11 | B26: 2176 | C26: 21 | D26: 2195 | K26: 0 | L26: 12 | O26: CCRF
A27: 11 | B27: 2282 | C27: 21 | D27: 2294 | K27: 0 | L27: 12 | O27: % CCRf
A28: 11 | B28: 2380 | C28: 21 | D28: 2405 | K28: 0 | L28: 12 | O28: average response rate | P28: =D15/P20 -> 121.2222222 | Q28: =(D23-D15)/Q20 -> 99.25 | R28: =(D32-D23)/R20 -> 105.7777778 | S28: =(D40-D32)/S20 -> 106.375 | T28: =(D49-D40)/T20 -> 102.6666667 | U28: =(D57-D49)/U20 -> 105.875
A29: 11 | B29: 2492 | C29: 21 | D29: 2538 | K29: 0 | L29: 12
A30: 11 | B30: 2624 | C30: 21 | D30: 2634 | K30: 0 | L30: 12
A31: 11 | B31: 2722 | C31: 21 | D31: 2741 | K31: 0 | L31: 12
A32: 11 | B32: 2828 | C32: 21 | D32: 2837 | K32: 0 | L32: 12
A33: 22 | B33: 2932 | C33: 23 | D33: 2941 | K33: 0 | L33: 22
A34: 11 | B34: 3038 | C34: 21 | D34: 3050 | K34: 0 | L34: 12
A35: 22 | B35: 3145 | C35: 23 | D35: 3154 | K35: 0 | L35: 22
A36: 11 | B36: 3251 | C36: 21 | D36: 3260 | K36: 0 | L36: 12
A37: 22 | B37: 3359 | C37: 23 | D37: 3368 | K37: 0 | L37: 22
A38: 11 | B38: 3469 | C38: 21 | D38: 3480 | K38: 0 | L38: 12
A39: 11 | B39: 3567 | C39: 21 | D39: 3579 | K39: 0 | L39: 12
A40: 11 | B40: 3667 | C40: 21 | D40: 3688 | K40: 0 | L40: 12
A41: 11 | B41: 3775 | C41: 21 | D41: 3799 | K41: 0 | L41: 12
A42: 11 | B42: 3888 | C42: 21 | D42: 3897 | K42: 0 | L42: 12
A43: 11 | B43: 3983 | C43: 21 | D43: 3994 | K43: 0 | L43: 12
A44: 11 | B44: 4081 | C44: 21 | D44: 4092 | K44: 0 | L44: 12
A45: 11 | B45: 4181 | C45: 21 | D45: 4190 | K45: 0 | L45: 12
A46: 11 | B46: 4276 | C46: 21 | D46: 4285 | K46: 0 | L46: 12
A47: 22 | B47: 4374 | C47: 14 | D47: 4383 | K47: 0 | L47: 21
A48: 11 | B48: 4480 | C48: 21 | D48: 4491 | K48: 0 | L48: 12
A49: 22 | B49: 4588 | C49: 23 | D49: 4612 | K49: 0 | L49: 22
A50: 11 | B50: 4709 | C50: 21 | D50: 4719 | K50: 0 | L50: 12
A51: 22 | B51: 4816 | C51: 23 | D51: 4824 | K51: 0 | L51: 22
A52: 22 | B52: 4928 | C52: 23 | D52: 4938 | K52: 0 | L52: 22
A53: 11 | B53: 5037 | C53: 21 | D53: 5049 | K53: 0 | L53: 12
A54: 11 | B54: 5135 | C54: 21 | D54: 5145 | K54: 0 | L54: 12
A55: 11 | B55: 5232 | C55: 21 | D55: 5243 | K55: 0 | L55: 12
A56: 11 | B56: 5330 | C56: 21 | D56: 5363 | K56: 0 | L56: 12
A57: 11 | B57: 5450 | C57: 21 | D57: 5459 | K57: 1 | L57: 12

Sheet !MC11840.091
A1: Report for:!MC11840.091
A2: Date: | B2: <date>
A3: Hen: | B3: <hen> | F3: Correct Sequence | G3: =Start!J2 -> 12 | P3: Total Sequences in Data | Q3: =4994-COUNTBLANK(L7:L5000) -> 42 | V3: Total Sequences in Block Data | W3: =COUNTA(L7:L13) -> 7 | AA3: Total Sequences in Block Data | AB3: =COUNTA(L14:L20) -> 7 | AF3: Total Sequences in Block Data | AG3: =COUNTA(L21:L27) -> 7 | AK3: Total Sequences in Block Data | AL3: =COUNTA(L28:L34) -> 7 | AP3: Total Sequences in Block Data | AQ3: =COUNTA(L35:L41) -> 7 | AU3: Total Sequences in Block Data | AV3: =COUNTA(L42:L48) -> 7
P4: Total Sequences in Summary | Q4: =SUM(O7:O14) -> 42 | V4: Total Sequences in Block Summary | W4: =SUM(U7:U14) -> 7 | AA4: Total Sequences in Block Summary | AB4: =SUM(Z7:Z14) -> 7 | AF4: Total Sequences in Block Summary | AG4: =SUM(AE7:AE14) -> 7 | AK4: Total Sequences in Block Summary | AL4: =SUM(AJ7:AJ14) -> 7 | AP4: Total Sequences in Block Summary | AQ4: =SUM(AO7:AO14) -> 7 | AU4: Total Sequences in Block Summary | AV4: =SUM(AT7:AT14) -> 7
T5: Block 1 | Y5: Block 2 | AD5: Block 3 | AI5: Block 4 | AN5: Block 5 | AS5: Block 6
A6: Sequence Component 1 | B6: Time 1 | C6: Sequence Component 2 | D6: Time 2 | E6: Sequence Component 3 | F6: Time 3 | G6: Sequence Component 4 | H6: Time 4 | I6: Sequence Component 5 | J6: Time 5 | K6: Correct? 0=No 1=Yes | L6: Sequence | N6: Frequency | P6: Relative Frequency | Q6: Variability | T6: Frequency | V6: Relative Frequency | W6: Variability | Y6: Frequency | AA6: Relative Frequency | AB6: Variability | AD6: Frequency | AF6: Relative Frequency | AG6: Variability | AI6: Frequency | AK6: Relative Frequency | AL6: Variability | AN6: Frequency | AP6: Relative Frequency | AQ6: Variability | AS6: Frequency | AU6: Relative Frequency | AV6: Variability
A7: 22 | B7: 10 | C7: 14 | D7: 33 | K7: 0 | L7: 21 | N7: 11 | O7: =COUNTIF($L$7:$L$500,N7) -> 0 | P7: =O7/$Q$4 -> 0 | Q7: =IF(P7=0,0,(P7*((LOG(P7))/LOG(2)))) -> 0 | T7: =N7 -> 11 | U7: =COUNTIF(L7:L13,T7) -> 0 | V7: =U7/(W4-U8) -> 0 | W7: =IF(V7=0,0,(V7*((LOG(V7))/LOG(2)))) -> 0 | Y7: =N7 -> 11 | Z7: =COUNTIF(L14:L20,Y7) -> 0 | AA7: =Z7/(AB4-Z8) ->  | AB7: =IF(AA7=0,0,(AA7*((LOG(AA7))/LOG(2)))) ->  | AD7: =N7 -> 11 | AE7: =COUNTIF(L21:L27,AD7) -> 0 | AF7: =AE7/(AG4-AE8) ->  | AG7: =IF(AF7=0,0,(AF7*((LOG(AF7))/LOG(2)))) ->  | AI7: =N7 -> 11 | AJ7: =COUNTIF(L28:L34,AI7) -> 0 | AK7: =AJ7/(AL4-AJ8) ->  | AL7: =IF(AK7=0,0,(AK7*((LOG(AK7))/LOG(2)))) ->  | AN7: =N7 -> 11 | AO7: =COUNTIF(L35:L41,AN7) -> 0 | AP7: =AO7/(AQ4-AO8) ->  | AQ7: =IF(AP7=0,0,(AP7*((LOG(AP7))/LOG(2)))) ->  | AS7: =N7 -> 11 | AT7: =COUNTIF(L42:L48,AS7) -> 0 | AU7: =AT7/(AV4-AT8) ->  | AV7: =IF(AU7=0,0,(AU7*((LOG(AU7))/LOG(2)))) -> 
A8: 22 | B8: 142 | C8: 23 | D8: 150 | K8: 0 | L8: 22 | N8: 12 | O8: =COUNTIF($L$7:$L$500,N8) -> 40 | P8: =O8/$Q$4 -> 0.9523809524 | Q8: =IF(P8=0,0,(P8*((LOG(P8))/LOG(2)))) -> -0.06703745513 | T8: =N8 -> 12 | U8: =COUNTIF(L7:L13,T8) -> 5 | Y8: =N8 -> 12 | Z8: =COUNTIF(L14:L20,Y8) -> 7 | AD8: =N8 -> 12 | AE8: =COUNTIF(L21:L27,AD8) -> 7 | AI8: =N8 -> 12 | AJ8: =COUNTIF(L28:L34,AI8) -> 7 | AN8: =N8 -> 12 | AO8: =COUNTIF(L35:L41,AN8) -> 7 | AS8: =N8 -> 12 | AT8: =COUNTIF(L42:L48,AS8) -> 7
A9: 11 | B9: 246 | C9: 21 | D9: 314 | K9: 0 | L9: 12 | N9: 21 | O9: =COUNTIF($L$7:$L$500,N9) -> 1 | P9: =O9/$Q$4 -> 0.02380952381 | Q9: =IF(P9=0,0,(P9*((LOG(P9))/LOG(2)))) -> -0.1283885101 | T9: =N9 -> 21 | U9: =COUNTIF(L7:L13,T9) -> 1 | V9: =U9/(W4-U8) -> 0.5 | W9: =IF(V9=0,0,(V9*((LOG(V9))/LOG(2)))) -> -0.5 | Y9: =N9 -> 21 | Z9: =COUNTIF(L14:L20,Y9) -> 0 | AA9: =Z9/(AB4-Z8) ->  | AB9: =IF(AA9=0,0,(AA9*((LOG(AA9))/LOG(2)))) ->  | AD9: =N9 -> 21 | AE9: =COUNTIF(L21:L27,AD9) -> 0 | AF9: =AE9/(AG4-AE8) ->  | AG9: =IF(AF9=0,0,(AF9*((LOG(AF9))/LOG(2)))) ->  | AI9: =N9 -> 21 | AJ9: =COUNTIF(L28:L34,AI9) -> 0 | AK9: =AJ9/(AL4-AJ8) ->  | AL9: =IF(AK9=0,0,(AK9*((LOG(AK9))/LOG(2)))) ->  | AN9: =N9 -> 21 | AO9: =COUNTIF(L35:L41,AN9) -> 0 | AP9: =AO9/(AQ4-AO8) ->  | AQ9: =IF(AP9=0,0,(AP9*((LOG(AP9))/LOG(2)))) ->  | AS9: =N9 -> 21 | AT9: =COUNTIF(L42:L48,AS9) -> 0 | AU9: =AT9/(AV4-AT8) ->  | AV9: =IF(AU9=0,0,(AU9*((LOG(AU9))/LOG(2)))) -> 
A10: 11 | B10: 400 | C10: 21 | D10: 415 | K10: 0 | L10: 12 | N10: 22 | O10: =COUNTIF($L$7:$L$500,N10) -> 1 | P10: =O10/$Q$4 -> 0.02380952381 | Q10: =IF(P10=0,0,(P10*((LOG(P10))/LOG(2)))) -> -0.1283885101 | T10: =N10 -> 22 | U10: =COUNTIF(L7:L13,T10) -> 1 | V10: =U10/(W4-U8) -> 0.5 | W10: =IF(V10=0,0,(V10*((LOG(V10))/LOG(2)))) -> -0.5 | Y10: =N10 -> 22 | Z10: =COUNTIF(L14:L20,Y10) -> 0 | AA10: =Z10/(AB4-Z8) ->  | AB10: =IF(AA10=0,0,(AA10*((LOG(AA10))/LOG(2)))) ->  | AD10: =N10 -> 22 | AE10: =COUNTIF(L21:L27,AD10) -> 0 | AF10: =AE10/(AG4-AE8) ->  | AG10: =IF(AF10=0,0,(AF10*((LOG(AF10))/LOG(2)))) ->  | AI10: =N10 -> 22 | AJ10: =COUNTIF(L28:L34,AI10) -> 0 | AK10: =AJ10/(AL4-AJ8) ->  | AL10: =IF(AK10=0,0,(AK10*((LOG(AK10))/LOG(2)))) ->  | AN10: =N10 -> 22 | AO10: =COUNTIF(L35:L41,AN10) -> 0 | AP10: =AO10/(AQ4-AO8) ->  | AQ10: =IF(AP10=0,0,(AP10*((LOG(AP10))/LOG(2)))) ->  | AS10: =N10 -> 22 | AT10: =COUNTIF(L42:L48,AS10) -> 0 | AU10: =AT10/(AV4-AT8) ->  | AV10: =IF(AU10=0,0,(AU10*((LOG(AU10))/LOG(2)))) -> 
A11: 11 | B11: 502 | C11: 21 | D11: 511 | K11: 0 | L11: 12 | T11: =N11 -> 0 | U11: =COUNTIF(L7:L13,T11) -> 0 | V11: =U11/(W4-U8) -> 0 | W11: =IF(V11=0,0,(V11*((LOG(V11))/LOG(2)))) -> 0 | Y11: =N11 -> 0 | Z11: =COUNTIF(L14:L20,Y11) -> 0 | AA11: =Z11/(AB4-Z8) ->  | AB11: =IF(AA11=0,0,(AA11*((LOG(AA11))/LOG(2)))) ->  | AD11: =N11 -> 0 | AE11: =COUNTIF(L21:L27,AD11) -> 0 | AF11: =AE11/(AG4-AE8) ->  | AG11: =IF(AF11=0,0,(AF11*((LOG(AF11))/LOG(2)))) ->  | AI11: =N11 -> 0 | AJ11: =COUNTIF(L28:L34,AI11) -> 0 | AK11: =AJ11/(AL4-AJ8) ->  | AL11: =IF(AK11=0,0,(AK11*((LOG(AK11))/LOG(2)))) ->  | AN11: =N11 -> 0 | AO11: =COUNTIF(L35:L41,AN11) -> 0 | AP11: =AO11/(AQ4-AO8) ->  | AQ11: =IF(AP11=0,0,(AP11*((LOG(AP11))/LOG(2)))) ->  | AS11: =N11 -> 0 | AT11: =COUNTIF(L42:L48,AS11) -> 0 | AU11: =AT11/(AV4-AT8) ->  | AV11: =IF(AU11=0,0,(AU11*((LOG(AU11))/LOG(2)))) -> 
A12: 11 | B12: 597 | C12: 21 | D12: 608 | K12: 0 | L12: 12 | T12: =N12 -> 0 | U12: =COUNTIF(L7:L13,T12) -> 0 | V12: =U12/(W4-U8) -> 0 | W12: =IF(V12=0,0,(V12*((LOG(V12))/LOG(2)))) -> 0 | Y12: =N12 -> 0 | Z12: =COUNTIF(L14:L20,Y12) -> 0 | AA12: =Z12/(AB4-Z8) ->  | AB12: =IF(AA12=0,0,(AA12*((LOG(AA12))/LOG(2)))) ->  | AD12: =N12 -> 0 | AE12: =COUNTIF(L21:L27,AD12) -> 0 | AF12: =AE12/(AG4-AE8) ->  | AG12: =IF(AF12=0,0,(AF12*((LOG(AF12))/LOG(2)))) ->  | AI12: =N12 -> 0 | AJ12: =COUNTIF(L28:L34,AI12) -> 0 | AK12: =AJ12/(AL4-AJ8) ->  | AL12: =IF(AK12=0,0,(AK12*((LOG(AK12))/LOG(2)))) ->  | AN12: =N12 -> 0 | AO12: =COUNTIF(L35:L41,AN12) -> 0 | AP12: =AO12/(AQ4-AO8) ->  | AQ12: =IF(AP12=0,0,(AP12*((LOG(AP12))/LOG(2)))) ->  | AS12: =N12 -> 0 | AT12: =COUNTIF(L42:L48,AS12) -> 0 | AU12: =AT12/(AV4-AT8) ->  | AV12: =IF(AU12=0,0,(AU12*((LOG(AU12))/LOG(2)))) -> 
A13: 11 | B13: 697 | C13: 21 | D13: 705 | K13: 0 | L13: 12 | T13: =N13 -> 0 | U13: =COUNTIF(L7:L13,T13) -> 0 | V13: =U13/(W4-U8) -> 0 | W13: =IF(V13=0,0,(V13*((LOG(V13))/LOG(2)))) -> 0 | Y13: =N13 -> 0 | Z13: =COUNTIF(L14:L20,Y13) -> 0 | AA13: =Z13/(AB4-Z8) ->  | AB13: =IF(AA13=0,0,(AA13*((LOG(AA13))/LOG(2)))) ->  | AD13: =N13 -> 0 | AE13: =COUNTIF(L21:L27,AD13) -> 0 | AF13: =AE13/(AG4-AE8) ->  | AG13: =IF(AF13=0,0,(AF13*((LOG(AF13))/LOG(2)))) ->  | AI13: =N13 -> 0 | AJ13: =COUNTIF(L28:L34,AI13) -> 0 | AK13: =AJ13/(AL4-AJ8) ->  | AL13: =IF(AK13=0,0,(AK13*((LOG(AK13))/LOG(2)))) ->  | AN13: =N13 -> 0 | AO13: =COUNTIF(L35:L41,AN13) -> 0 | AP13: =AO13/(AQ4-AO8) ->  | AQ13: =IF(AP13=0,0,(AP13*((LOG(AP13))/LOG(2)))) ->  | AS13: =N13 -> 0 | AT13: =COUNTIF(L42:L48,AS13) -> 0 | AU13: =AT13/(AV4-AT8) ->  | AV13: =IF(AU13=0,0,(AU13*((LOG(AU13))/LOG(2)))) -> 
A14: 11 | B14: 792 | C14: 21 | D14: 801 | K14: 0 | L14: 12 | T14: =N14 -> 0 | U14: =COUNTIF(L7:L13,T14) -> 0 | V14: =U14/(W4-U8) -> 0 | W14: =IF(V14=0,0,(V14*((LOG(V14))/LOG(2)))) -> 0 | Y14: =N14 -> 0 | Z14: =COUNTIF(L14:L20,Y14) -> 0 | AA14: =Z14/(AB4-Z8) ->  | AB14: =IF(AA14=0,0,(AA14*((LOG(AA14))/LOG(2)))) ->  | AD14: =N14 -> 0 | AE14: =COUNTIF(L21:L27,AD14) -> 0 | AF14: =AE14/(AG4-AE8) ->  | AG14: =IF(AF14=0,0,(AF14*((LOG(AF14))/LOG(2)))) ->  | AI14: =N14 -> 0 | AJ14: =COUNTIF(L28:L34,AI14) -> 0 | AK14: =AJ14/(AL4-AJ8) ->  | AL14: =IF(AK14=0,0,(AK14*((LOG(AK14))/LOG(2)))) ->  | AN14: =N14 -> 0 | AO14: =COUNTIF(L35:L41,AN14) -> 0 | AP14: =AO14/(AQ4-AO8) ->  | AQ14: =IF(AP14=0,0,(AP14*((LOG(AP14))/LOG(2)))) ->  | AS14: =N14 -> 0 | AT14: =COUNTIF(L42:L48,AS14) -> 0 | AU14: =AT14/(AV4-AT8) ->  | AV14: =IF(AU14=0,0,(AU14*((LOG(AU14))/LOG(2)))) -> 
A15: 11 | B15: 888 | C15: 21 | D15: 897 | K15: 0 | L15: 12 | P15: =SUM(P7:P14) -> 1 | Q15: =-SUM(Q7:Q14) -> 0.3238144753 | V15: =SUM(V7:V14) -> 1 | W15: =-SUM(W7:W14) -> 1 | AA15: =SUM(AA7:AA14) ->  | AB15: =-SUM(AB7:AB14) ->  | AF15: =SUM(AF7:AF14) ->  | AG15: =-SUM(AG7:AG14) ->  | AK15: =SUM(AK7:AK14) ->  | AL15: =-SUM(AL7:AL14) ->  | AP15: =SUM(AP7:AP14) ->  | AQ15: =-SUM(AQ7:AQ14) ->  | AU15: =SUM(AU7:AU14) ->  | AV15: =-SUM(AV7:AV14) -> 
A16: 11 | B16: 987 | C16: 21 | D16: 995 | K16: 0 | L16: 12 | P16: U= | Q16: =Q15/(LOG(Q4)/LOG(2)) -> 0.06005107821 | V16: U1= | W16: =W15/(LOG(W4)/LOG(2)) -> 0.3562071871 | AA16: U2= | AB16: =AB15/(LOG(AB4)/LOG(2)) ->  | AF16: U3= | AG16: =AG15/(LOG(AG4)/LOG(2)) ->  | AK16: U4= | AL16: =AL15/(LOG(AL4)/LOG(2)) ->  | AP16: U5= | AQ16: =AQ15/(LOG(AQ4)/LOG(2)) ->  | AU16: U6= | AV16: =AV15/(LOG(AV4)/LOG(2)) -> 
A17: 11 | B17: 1082 | C17: 21 | D17: 1094 | K17: 0 | L17: 12
A18: 11 | B18: 1181 | C18: 21 | D18: 1190 | K18: 0 | L18: 12
A19: 11 | B19: 1274 | C19: 21 | D19: 1285 | K19: 0 | L19: 12 | N19: Total Target Seq
A20: 11 | B20: 1370 | C20: 21 | D20: 1380 | K20: 0 | L20: 12 | N20: =COUNTIF(L7:L48,G3) -> 40 | P20: 7 | Q20: 7 | R20: 7 | S20: 7 | T20: 7 | U20: 7
A21: 11 | B21: 1467 | C21: 21 | D21: 1475 | K21: 0 | L21: 12 | P21: % of reinforcement given in 6 equal intervals based on number of trials
A22: 11 | B22: 1561 | C22: 21 | D22: 1570 | K22: 0 | L22: 12 | P22: %_1 | Q22: %_2 | R22: %_3 | S22: %_4 | T22: %_5 | U22: %_6
A23: 11 | B23: 1658 | C23: 21 | D23: 1666 | K23: 0 | L23: 12 | O23: target sequence | P23: =$G$3 -> 12 | Q23: =$G$3 -> 12 | R23: =$G$3 -> 12 | S23: =$G$3 -> 12 | T23: =$G$3 -> 12 | U23: =$G$3 -> 12
A24: 11 | B24: 1753 | C24: 21 | D24: 1761 | K24: 0 | L24: 12 | O24: total reinforcement | P24: =U8 -> 5 | Q24: =Z8 -> 7 | R24: =AE8 -> 7 | S24: =AJ8 -> 7 | T24: =AO8 -> 7 | U24: =AT8 -> 7
A25: 11 | B25: 1849 | C25: 21 | D25: 1858 | K25: 0 | L25: 12 | O25: % target
A26: 11 | B26: 1944 | C26: 21 | D26: 1953 | K26: 0 | L26: 12 | O26: CCRF
A27: 11 | B27: 2039 | C27: 21 | D27: 2047 | K27: 0 | L27: 12 | O27: % CCRf
A28: 11 | B28: 2136 | C28: 21 | D28: 2144 | K28: 0 | L28: 12 | O28: average response rate | P28: =D13/P20 -> 100.7142857 | Q28: =(D20-D13)/Q20 -> 96.42857143 | R28: =(D27-D20)/R20 -> 95.28571429 | S28: =(D34-D27)/S20 -> 96.14285714 | T28: =(D41-D34)/T20 -> 97.42857143 | U28: =(D48-D41)/U20 -> 98.28571429
A29: 11 | B29: 2230 | C29: 21 | D29: 2239 | K29: 0 | L29: 12
A30: 11 | B30: 2328 | C30: 21 | D30: 2337 | K30: 0 | L30: 12
A31: 11 | B31: 2423 | C31: 21 | D31: 2433 | K31: 0 | L31: 12
A32: 11 | B32: 2520 | C32: 21 | D32: 2529 | K32: 0 | L32: 12
A33: 11 | B33: 2615 | C33: 21 | D33: 2623 | K33: 0 | L33: 12
A34: 11 | B34: 2711 | C34: 21 | D34: 2720 | K34: 0 | L34: 12
A35: 11 | B35: 2806 | C35: 21 | D35: 2814 | K35: 0 | L35: 12
A36: 11 | B36: 2902 | C36: 21 | D36: 2911 | K36: 0 | L36: 12
A37: 11 | B37: 2997 | C37: 21 | D37: 3006 | K37: 0 | L37: 12
A38: 11 | B38: 3092 | C38: 21 | D38: 3101 | K38: 0 | L38: 12
A39: 11 | B39: 3188 | C39: 21 | D39: 3196 | K39: 0 | L39: 12
A40: 11 | B40: 3286 | C40: 21 | D40: 3297 | K40: 0 | L40: 12
A41: 11 | B41: 3393 | C41: 21 | D41: 3402 | K41: 0 | L41: 12
A42: 11 | B42: 3487 | C42: 21 | D42: 3496 | K42: 0 | L42: 12
A43: 11 | B43: 3581 | C43: 21 | D43: 3593 | K43: 0 | L43: 12
A44: 11 | B44: 3680 | C44: 21 | D44: 3688 | K44: 0 | L44: 12
A45: 11 | B45: 3775 | C45: 21 | D45: 3785 | K45: 0 | L45: 12
A46: 11 | B46: 3872 | C46: 21 | D46: 3895 | K46: 0 | L46: 12
A47: 11 | B47: 3983 | C47: 21 | D47: 3991 | K47: 0 | L47: 12
A48: 11 | B48: 4081 | C48: 21 | D48: 4090 | K48: 1 | L48: 12

Sheet !MC12800.091
A1: Report for:!MC12800.091
A2: Date: | B2: <date>
A3: Hen: | B3: <hen> | F3: Correct Sequence | G3: =Start!J2 -> 12 | P3: Total Sequences in Data | Q3: =4994-COUNTBLANK(L7:L5000) -> 44 | V3: Total Sequences in Block Data | W3: =COUNTA(L7:L13) -> 7 | AA3: Total Sequences in Block Data | AB3: =COUNTA(L14:L21) -> 8 | AF3: Total Sequences in Block Data | AG3: =COUNTA(L22:L28) -> 7 | AK3: Total Sequences in Block Data | AL3: =COUNTA(L29:L35) -> 7 | AP3: Total Sequences in Block Data | AQ3: =COUNTA(L36:L43) -> 8 | AU3: Total Sequences in Block Data | AV3: =COUNTA(L44:L50) -> 7
P4: Total Sequences in Summary | Q4: =SUM(O7:O14) -> 44 | V4: Total Sequences in Block Summary | W4: =SUM(U7:U14) -> 7 | AA4: Total Sequences in Block Summary | AB4: =SUM(Z7:Z14) -> 8 | AF4: Total Sequences in Block Summary | AG4: =SUM(AE7:AE14) -> 7 | AK4: Total Sequences in Block Summary | AL4: =SUM(AJ7:AJ14) -> 7 | AP4: Total Sequences in Block Summary | AQ4: =SUM(AO7:AO14) -> 8 | AU4: Total Sequences in Block Summary | AV4: =SUM(AT7:AT14) -> 7
T5: Block 1 | Y5: Block 2 | AD5: Block 3 | AI5: Block 4 | AN5: Block 5 | AS5: Block 6
A6: Sequence Component 1 | B6: Time 1 | C6: Sequence Component 2 | D6: Time 2 | E6: Sequence Component 3 | F6: Time 3 | G6: Sequence Component 4 | H6: Time 4 | I6: Sequence Component 5 | J6: Time 5 | K6: Correct? 0=No 1=Yes | L6: Sequence | N6: Frequency | P6: Relative Frequency | Q6: Variability | T6: Frequency | V6: Relative Frequency | W6: Variability | Y6: Frequency | AA6: Relative Frequency | AB6: Variability | AD6: Frequency | AF6: Relative Frequency | AG6: Variability | AI6: Frequency | AK6: Relative Frequency | AL6: Variability | AN6: Frequency | AP6: Relative Frequency | AQ6: Variability | AS6: Frequency | AU6: Relative Frequency | AV6: Variability
A7: 11 | B7: 7 | C7: 21 | D7: 27 | K7: 0 | L7: 12 | N7: 11 | O7: =COUNTIF($L$7:$L$500,N7) -> 0 | P7: =O7/$Q$4 -> 0 | Q7: =IF(P7=0,0,(P7*((LOG(P7))/LOG(2)))) -> 0 | T7: =N7 -> 11 | U7: =COUNTIF(L7:L13,T7) -> 0 | V7: =U7/(W4-U8) ->  | W7: =IF(V7=0,0,(V7*((LOG(V7))/LOG(2)))) ->  | Y7: =N7 -> 11 | Z7: =COUNTIF(L14:L21,Y7) -> 0 | AA7: =Z7/(AB4-Z8) -> 0 | AB7: =IF(AA7=0,0,(AA7*((LOG(AA7))/LOG(2)))) -> 0 | AD7: =N7 -> 11 | AE7: =COUNTIF(L22:L28,AD7) -> 0 | AF7: =AE7/(AG4-AE8) ->  | AG7: =IF(AF7=0,0,(AF7*((LOG(AF7))/LOG(2)))) ->  | AI7: =N7 -> 11 | AJ7: =COUNTIF(L29:L35,AI7) -> 0 | AK7: =AJ7/(AL4-AJ8) ->  | AL7: =IF(AK7=0,0,(AK7*((LOG(AK7))/LOG(2)))) ->  | AN7: =N7 -> 11 | AO7: =COUNTIF(L36:L43,AN7) -> 0 | AP7: =AO7/(AQ4-AO8) ->  | AQ7: =IF(AP7=0,0,(AP7*((LOG(AP7))/LOG(2)))) ->  | AS7: =N7 -> 11 | AT7: =COUNTIF(L44:L50,AS7) -> 0 | AU7: =AT7/(AV4-AT8) -> 0 | AV7: =IF(AU7=0,0,(AU7*((LOG(AU7))/LOG(2)))) -> 0
A8: 11 | B8: 115 | C8: 21 | D8: 124 | K8: 0 | L8: 12 | N8: 12 | O8: =COUNTIF($L$7:$L$500,N8) -> 40 | P8: =O8/$Q$4 -> 0.9090909091 | Q8: =IF(P8=0,0,(P8*((LOG(P8))/LOG(2)))) -> -0.1250032034 | T8: =N8 -> 12 | U8: =COUNTIF(L7:L13,T8) -> 7 | Y8: =N8 -> 12 | Z8: =COUNTIF(L14:L21,Y8) -> 6 | AD8: =N8 -> 12 | AE8: =COUNTIF(L22:L28,AD8) -> 7 | AI8: =N8 -> 12 | AJ8: =COUNTIF(L29:L35,AI8) -> 7 | AN8: =N8 -> 12 | AO8: =COUNTIF(L36:L43,AN8) -> 8 | AS8: =N8 -> 12 | AT8: =COUNTIF(L44:L50,AS8) -> 5
A9: 11 | B9: 213 | C9: 21 | D9: 222 | K9: 0 | L9: 12 | N9: 21 | O9: =COUNTIF($L$7:$L$500,N9) -> 0 | P9: =O9/$Q$4 -> 0 | Q9: =IF(P9=0,0,(P9*((LOG(P9))/LOG(2)))) -> 0 | T9: =N9 -> 21 | U9: =COUNTIF(L7:L13,T9) -> 0 | V9: =U9/(W4-U8) ->  | W9: =IF(V9=0,0,(V9*((LOG(V9))/LOG(2)))) ->  | Y9: =N9 -> 21 | Z9: =COUNTIF(L14:L21,Y9) -> 0 | AA9: =Z9/(AB4-Z8) -> 0 | AB9: =IF(AA9=0,0,(AA9*((LOG(AA9))/LOG(2)))) -> 0 | AD9: =N9 -> 21 | AE9: =COUNTIF(L22:L28,AD9) -> 0 | AF9: =AE9/(AG4-AE8) ->  | AG9: =IF(AF9=0,0,(AF9*((LOG(AF9))/LOG(2)))) ->  | AI9: =N9 -> 21 | AJ9: =COUNTIF(L29:L35,AI9) -> 0 | AK9: =AJ9/(AL4-AJ8) ->  | AL9: =IF(AK9=0,0,(AK9*((LOG(AK9))/LOG(2)))) ->  | AN9: =N9 -> 21 | AO9: =COUNTIF(L36:L43,AN9) -> 0 | AP9: =AO9/(AQ4-AO8) ->  | AQ9: =IF(AP9=0,0,(AP9*((LOG(AP9))/LOG(2)))) ->  | AS9: =N9 -> 21 | AT9: =COUNTIF(L44:L50,AS9) -> 0 | AU9: =AT9/(AV4-AT8) -> 0 | AV9: =IF(AU9=0,0,(AU9*((LOG(AU9))/LOG(2)))) -> 0
A10: 11 | B10: 310 | C10: 21 | D10: 319 | K10: 0 | L10: 12 | N10: 22 | O10: =COUNTIF($L$7:$L$500,N10) -> 4 | P10: =O10/$Q$4 -> 0.09090909091 | Q10: =IF(P10=0,0,(P10*((LOG(P10))/LOG(2)))) -> -0.3144937835 | T10: =N10 -> 22 | U10: =COUNTIF(L7:L13,T10) -> 0 | V10: =U10/(W4-U8) ->  | W10: =IF(V10=0,0,(V10*((LOG(V10))/LOG(2)))) ->  | Y10: =N10 -> 22 | Z10: =COUNTIF(L14:L21,Y10) -> 2 | AA10: =Z10/(AB4-Z8) -> 1 | AB10: =IF(AA10=0,0,(AA10*((LOG(AA10))/LOG(2)))) -> 0 | AD10: =N10 -> 22 | AE10: =COUNTIF(L22:L28,AD10) -> 0 | AF10: =AE10/(AG4-AE8) ->  | AG10: =IF(AF10=0,0,(AF10*((LOG(AF10))/LOG(2)))) ->  | AI10: =N10 -> 22 | AJ10: =COUNTIF(L29:L35,AI10) -> 0 | AK10: =AJ10/(AL4-AJ8) ->  | AL10: =IF(AK10=0,0,(AK10*((LOG(AK10))/LOG(2)))) ->  | AN10: =N10 -> 22 | AO10: =COUNTIF(L36:L43,AN10) -> 0 | AP10: =AO10/(AQ4-AO8) ->  | AQ10: =IF(AP10=0,0,(AP10*((LOG(AP10))/LOG(2)))) ->  | AS10: =N10 -> 22 | AT10: =COUNTIF(L44:L50,AS10) -> 2 | AU10: =AT10/(AV4-AT8) -> 1 | AV10: =IF(AU10=0,0,(AU10*((LOG(AU10))/LOG(2)))) -> 0
A11: 11 | B11: 406 | C11: 21 | D11: 418 | K11: 0 | L11: 12 | T11: =N11 -> 0 | U11: =COUNTIF(L7:L13,T11) -> 0 | V11: =U11/(W4-U8) ->  | W11: =IF(V11=0,0,(V11*((LOG(V11))/LOG(2)))) ->  | Y11: =N11 -> 0 | Z11: =COUNTIF(L14:L21,Y11) -> 0 | AA11: =Z11/(AB4-Z8) -> 0 | AB11: =IF(AA11=0,0,(AA11*((LOG(AA11))/LOG(2)))) -> 0 | AD11: =N11 -> 0 | AE11: =COUNTIF(L22:L28,AD11) -> 0 | AF11: =AE11/(AG4-AE8) ->  | AG11: =IF(AF11=0,0,(AF11*((LOG(AF11))/LOG(2)))) ->  | AI11: =N11 -> 0 | AJ11: =COUNTIF(L29:L35,AI11) -> 0 | AK11: =AJ11/(AL4-AJ8) ->  | AL11: =IF(AK11=0,0,(AK11*((LOG(AK11))/LOG(2)))) ->  | AN11: =N11 -> 0 | AO11: =COUNTIF(L36:L43,AN11) -> 0 | AP11: =AO11/(AQ4-AO8) ->  | AQ11: =IF(AP11=0,0,(AP11*((LOG(AP11))/LOG(2)))) ->  | AS11: =N11 -> 0 | AT11: =COUNTIF(L44:L50,AS11) -> 0 | AU11: =AT11/(AV4-AT8) -> 0 | AV11: =IF(AU11=0,0,(AU11*((LOG(AU11))/LOG(2)))) -> 0
A12: 11 | B12: 503 | C12: 21 | D12: 512 | K12: 0 | L12: 12 | T12: =N12 -> 0 | U12: =COUNTIF(L7:L13,T12) -> 0 | V12: =U12/(W4-U8) ->  | W12: =IF(V12=0,0,(V12*((LOG(V12))/LOG(2)))) ->  | Y12: =N12 -> 0 | Z12: =COUNTIF(L14:L21,Y12) -> 0 | AA12: =Z12/(AB4-Z8) -> 0 | AB12: =IF(AA12=0,0,(AA12*((LOG(AA12))/LOG(2)))) -> 0 | AD12: =N12 -> 0 | AE12: =COUNTIF(L22:L28,AD12) -> 0 | AF12: =AE12/(AG4-AE8) ->  | AG12: =IF(AF12=0,0,(AF12*((LOG(AF12))/LOG(2)))) ->  | AI12: =N12 -> 0 | AJ12: =COUNTIF(L29:L35,AI12) -> 0 | AK12: =AJ12/(AL4-AJ8) ->  | AL12: =IF(AK12=0,0,(AK12*((LOG(AK12))/LOG(2)))) ->  | AN12: =N12 -> 0 | AO12: =COUNTIF(L36:L43,AN12) -> 0 | AP12: =AO12/(AQ4-AO8) ->  | AQ12: =IF(AP12=0,0,(AP12*((LOG(AP12))/LOG(2)))) ->  | AS12: =N12 -> 0 | AT12: =COUNTIF(L44:L50,AS12) -> 0 | AU12: =AT12/(AV4-AT8) -> 0 | AV12: =IF(AU12=0,0,(AU12*((LOG(AU12))/LOG(2)))) -> 0
A13: 11 | B13: 599 | C13: 21 | D13: 609 | K13: 0 | L13: 12 | T13: =N13 -> 0 | U13: =COUNTIF(L7:L13,T13) -> 0 | V13: =U13/(W4-U8) ->  | W13: =IF(V13=0,0,(V13*((LOG(V13))/LOG(2)))) ->  | Y13: =N13 -> 0 | Z13: =COUNTIF(L14:L21,Y13) -> 0 | AA13: =Z13/(AB4-Z8) -> 0 | AB13: =IF(AA13=0,0,(AA13*((LOG(AA13))/LOG(2)))) -> 0 | AD13: =N13 -> 0 | AE13: =COUNTIF(L22:L28,AD13) -> 0 | AF13: =AE13/(AG4-AE8) ->  | AG13: =IF(AF13=0,0,(AF13*((LOG(AF13))/LOG(2)))) ->  | AI13: =N13 -> 0 | AJ13: =COUNTIF(L29:L35,AI13) -> 0 | AK13: =AJ13/(AL4-AJ8) ->  | AL13: =IF(AK13=0,0,(AK13*((LOG(AK13))/LOG(2)))) ->  | AN13: =N13 -> 0 | AO13: =COUNTIF(L36:L43,AN13) -> 0 | AP13: =AO13/(AQ4-AO8) ->  | AQ13: =IF(AP13=0,0,(AP13*((LOG(AP13))/LOG(2)))) ->  | AS13: =N13 -> 0 | AT13: =COUNTIF(L44:L50,AS13) -> 0 | AU13: =AT13/(AV4-AT8) -> 0 | AV13: =IF(AU13=0,0,(AU13*((LOG(AU13))/LOG(2)))) -> 0
A14: 11 | B14: 697 | C14: 21 | D14: 706 | K14: 0 | L14: 12 | T14: =N14 -> 0 | U14: =COUNTIF(L7:L13,T14) -> 0 | V14: =U14/(W4-U8) ->  | W14: =IF(V14=0,0,(V14*((LOG(V14))/LOG(2)))) ->  | Y14: =N14 -> 0 | Z14: =COUNTIF(L14:L21,Y14) -> 0 | AA14: =Z14/(AB4-Z8) -> 0 | AB14: =IF(AA14=0,0,(AA14*((LOG(AA14))/LOG(2)))) -> 0 | AD14: =N14 -> 0 | AE14: =COUNTIF(L22:L28,AD14) -> 0 | AF14: =AE14/(AG4-AE8) ->  | AG14: =IF(AF14=0,0,(AF14*((LOG(AF14))/LOG(2)))) ->  | AI14: =N14 -> 0 | AJ14: =COUNTIF(L29:L35,AI14) -> 0 | AK14: =AJ14/(AL4-AJ8) ->  | AL14: =IF(AK14=0,0,(AK14*((LOG(AK14))/LOG(2)))) ->  | AN14: =N14 -> 0 | AO14: =COUNTIF(L36:L43,AN14) -> 0 | AP14: =AO14/(AQ4-AO8) ->  | AQ14: =IF(AP14=0,0,(AP14*((LOG(AP14))/LOG(2)))) ->  | AS14: =N14 -> 0 | AT14: =COUNTIF(L44:L50,AS14) -> 0 | AU14: =AT14/(AV4-AT8) -> 0 | AV14: =IF(AU14=0,0,(AU14*((LOG(AU14))/LOG(2)))) -> 0
A15: 11 | B15: 795 | C15: 21 | D15: 804 | K15: 0 | L15: 12 | P15: =SUM(P7:P14) -> 1 | Q15: =-SUM(Q7:Q14) -> 0.4394969869 | V15: =SUM(V7:V14) ->  | W15: =-SUM(W7:W14) ->  | AA15: =SUM(AA7:AA14) -> 1 | AB15: =-SUM(AB7:AB14) -> 0 | AF15: =SUM(AF7:AF14) ->  | AG15: =-SUM(AG7:AG14) ->  | AK15: =SUM(AK7:AK14) ->  | AL15: =-SUM(AL7:AL14) ->  | AP15: =SUM(AP7:AP14) ->  | AQ15: =-SUM(AQ7:AQ14) ->  | AU15: =SUM(AU7:AU14) -> 1 | AV15: =-SUM(AV7:AV14) -> 0
A16: 11 | B16: 891 | C16: 21 | D16: 900 | K16: 0 | L16: 12 | P16: U= | Q16: =Q15/(LOG(Q4)/LOG(2)) -> 0.08050233387 | V16: U1= | W16: =W15/(LOG(W4)/LOG(2)) ->  | AA16: U2= | AB16: =AB15/(LOG(AB4)/LOG(2)) -> 0 | AF16: U3= | AG16: =AG15/(LOG(AG4)/LOG(2)) ->  | AK16: U4= | AL16: =AL15/(LOG(AL4)/LOG(2)) ->  | AP16: U5= | AQ16: =AQ15/(LOG(AQ4)/LOG(2)) ->  | AU16: U6= | AV16: =AV15/(LOG(AV4)/LOG(2)) -> 0
A17: 11 | B17: 986 | C17: 21 | D17: 996 | K17: 0 | L17: 12
A18: 11 | B18: 1084 | C18: 21 | D18: 1093 | K18: 0 | L18: 12
A19: 11 | B19: 1180 | C19: 21 | D19: 1189 | K19: 0 | L19: 12 | N19: Total Target Seq
A20: 22 | B20: 1291 | C20: 23 | D20: 1308 | K20: 0 | L20: 22 | N20: =COUNTIF(L7:L50,G3) -> 40 | P20: 7 | Q20: 8 | R20: 7 | S20: 7 | T20: 8 | U20: 7
A21: 22 | B21: 1414 | C21: 23 | D21: 1427 | K21: 0 | L21: 22 | P21: % of reinforcement given in 6 equal intervals based on number of trials
A22: 11 | B22: 1525 | C22: 21 | D22: 1535 | K22: 0 | L22: 12 | P22: %_1 | Q22: %_2 | R22: %_3 | S22: %_4 | T22: %_5 | U22: %_6
A23: 11 | B23: 1622 | C23: 21 | D23: 1691 | K23: 0 | L23: 12 | O23: target sequence | P23: =$G$3 -> 12 | Q23: =$G$3 -> 12 | R23: =$G$3 -> 12 | S23: =$G$3 -> 12 | T23: =$G$3 -> 12 | U23: =$G$3 -> 12
A24: 11 | B24: 1787 | C24: 21 | D24: 1803 | K24: 0 | L24: 12 | O24: total reinforcement | P24: =U8 -> 7 | Q24: =Z8 -> 6 | R24: =AE8 -> 7 | S24: =AJ8 -> 7 | T24: =AO8 -> 8 | U24: =AT8 -> 5
A25: 11 | B25: 1890 | C25: 21 | D25: 1900 | K25: 0 | L25: 12 | O25: % target
A26: 11 | B26: 1986 | C26: 21 | D26: 1996 | K26: 0 | L26: 12 | O26: CCRF
A27: 11 | B27: 2080 | C27: 21 | D27: 2090 | K27: 0 | L27: 12 | O27: % CCRf
A28: 11 | B28: 2176 | C28: 21 | D28: 2185 | K28: 0 | L28: 12 | O28: average response rate | P28: =D13/P20 -> 87 | Q28: =(D21-D13)/Q20 -> 102.25 | R28: =(D28-D21)/R20 -> 108.2857143 | S28: =(D35-D28)/S20 -> 99.42857143 | T28: =(D43-D35)/T20 -> 97.875 | U28: =(D50-D43)/U20 -> 105.5714286
A29: 11 | B29: 2271 | C29: 21 | D29: 2280 | K29: 0 | L29: 12
A30: 11 | B30: 2366 | C30: 21 | D30: 2375 | K30: 0 | L30: 12
A31: 11 | B31: 2461 | C31: 21 | D31: 2470 | K31: 0 | L31: 12
A32: 11 | B32: 2557 | C32: 21 | D32: 2583 | K32: 0 | L32: 12
A33: 11 | B33: 2675 | C33: 21 | D33: 2690 | K33: 0 | L33: 12
A34: 11 | B34: 2778 | C34: 21 | D34: 2787 | K34: 0 | L34: 12
A35: 11 | B35: 2872 | C35: 21 | D35: 2881 | K35: 0 | L35: 12
A36: 11 | B36: 2968 | C36: 21 | D36: 2977 | K36: 0 | L36: 12
A37: 11 | B37: 3064 | C37: 21 | D37: 3075 | K37: 0 | L37: 12
A38: 11 | B38: 3161 | C38: 21 | D38: 3170 | K38: 0 | L38: 12
A39: 11 | B39: 3256 | C39: 21 | D39: 3269 | K39: 0 | L39: 12
A40: 11 | B40: 3356 | C40: 21 | D40: 3365 | K40: 0 | L40: 12
A41: 11 | B41: 3451 | C41: 21 | D41: 3460 | K41: 0 | L41: 12
A42: 11 | B42: 3547 | C42: 21 | D42: 3556 | K42: 0 | L42: 12
A43: 11 | B43: 3647 | C43: 21 | D43: 3664 | K43: 0 | L43: 12
A44: 11 | B44: 3751 | C44: 21 | D44: 3759 | K44: 0 | L44: 12
A45: 11 | B45: 3845 | C45: 21 | D45: 3855 | K45: 0 | L45: 12
A46: 22 | B46: 3966 | C46: 23 | D46: 3974 | K46: 0 | L46: 22
A47: 22 | B47: 4082 | C47: 23 | D47: 4095 | K47: 0 | L47: 22
A48: 11 | B48: 4192 | C48: 21 | D48: 4204 | K48: 0 | L48: 12
A49: 11 | B49: 4293 | C49: 21 | D49: 4308 | K49: 0 | L49: 12
A50: 11 | B50: 4394 | C50: 21 | D50: 4403 | K50: 1 | L50: 12

Sheet !MC14850.091
A1: Report for:!MC14850.091
A2: Date: | B2: <date>
A3: Hen: | B3: <hen> | F3: Correct Sequence | G3: =Start!J2 -> 12 | P3: Total Sequences in Data | Q3: =4994-COUNTBLANK(L7:L5000) -> 49 | V3: Total Sequences in Block Data | W3: =COUNTA(L7:L14) -> 8 | AA3: Total Sequences in Block Data | AB3: =COUNTA(L15:L22) -> 8 | AF3: Total Sequences in Block Data | AG3: =COUNTA(L23:L31) -> 9 | AK3: Total Sequences in Block Data | AL3: =COUNTA(L32:L39) -> 8 | AP3: Total Sequences in Block Data | AQ3: =COUNTA(L40:L47) -> 8 | AU3: Total Sequences in Block Data | AV3: =COUNTA(L48:L55) -> 8
P4: Total Sequences in Summary | Q4: =SUM(O7:O14) -> 49 | V4: Total Sequences in Block Summary | W4: =SUM(U7:U14) -> 8 | AA4: Total Sequences in Block Summary | AB4: =SUM(Z7:Z14) -> 8 | AF4: Total Sequences in Block Summary | AG4: =SUM(AE7:AE14) -> 9 | AK4: Total Sequences in Block Summary | AL4: =SUM(AJ7:AJ14) -> 8 | AP4: Total Sequences in Block Summary | AQ4: =SUM(AO7:AO14) -> 8 | AU4: Total Sequences in Block Summary | AV4: =SUM(AT7:AT14) -> 8
T5: Block 1 | Y5: Block 2 | AD5: Block 3 | AI5: Block 4 | AN5: Block 5 | AS5: Block 6
A6: Sequence Component 1 | B6: Time 1 | C6: Sequence Component 2 | D6: Time 2 | E6: Sequence Component 3 | F6: Time 3 | G6: Sequence Component 4 | H6: Time 4 | I6: Sequence Component 5 | J6: Time 5 | K6: Correct? 0=No 1=Yes | L6: Sequence | N6: Frequency | P6: Relative Frequency | Q6: Variability | T6: Frequency | V6: Relative Frequency | W6: Variability | Y6: Frequency | AA6: Relative Frequency | AB6: Variability | AD6: Frequency | AF6: Relative Frequency | AG6: Variability | AI6: Frequency | AK6: Relative Frequency | AL6: Variability | AN6: Frequency | AP6: Relative Frequency | AQ6: Variability | AS6: Frequency | AU6: Relative Frequency | AV6: Variability
A7: 22 | B7: 16 | C7: 23 | D7: 27 | K7: 0 | L7: 22 | N7: 11 | O7: =COUNTIF($L$7:$L$500,N7) -> 2 | P7: =O7/$Q$4 -> 0.04081632653 | Q7: =IF(P7=0,0,(P7*((LOG(P7))/LOG(2)))) -> -0.1883555038 | T7: =N7 -> 11 | U7: =COUNTIF(L7:L14,T7) -> 0 | V7: =U7/(W4-U8) -> 0 | W7: =IF(V7=0,0,(V7*((LOG(V7))/LOG(2)))) -> 0 | Y7: =N7 -> 11 | Z7: =COUNTIF(L15:L22,Y7) -> 0 | AA7: =Z7/(AB4-Z8) ->  | AB7: =IF(AA7=0,0,(AA7*((LOG(AA7))/LOG(2)))) ->  | AD7: =N7 -> 11 | AE7: =COUNTIF(L23:L31,AD7) -> 0 | AF7: =AE7/(AG4-AE8) ->  | AG7: =IF(AF7=0,0,(AF7*((LOG(AF7))/LOG(2)))) ->  | AI7: =N7 -> 11 | AJ7: =COUNTIF(L32:L39,AI7) -> 2 | AK7: =AJ7/(AL4-AJ8) -> 0.6666666667 | AL7: =IF(AK7=0,0,(AK7*((LOG(AK7))/LOG(2)))) -> -0.3899750005 | AN7: =N7 -> 11 | AO7: =COUNTIF(L40:L47,AN7) -> 0 | AP7: =AO7/(AQ4-AO8) -> 0 | AQ7: =IF(AP7=0,0,(AP7*((LOG(AP7))/LOG(2)))) -> 0 | AS7: =N7 -> 11 | AT7: =COUNTIF(L48:L55,AS7) -> 0 | AU7: =AT7/(AV4-AT8) -> 0 | AV7: =IF(AU7=0,0,(AU7*((LOG(AU7))/LOG(2)))) -> 0
A8: 22 | B8: 144 | C8: 23 | D8: 218 | K8: 0 | L8: 22 | N8: 12 | O8: =COUNTIF($L$7:$L$500,N8) -> 40 | P8: =O8/$Q$4 -> 0.8163265306 | Q8: =IF(P8=0,0,(P8*((LOG(P8))/LOG(2)))) -> -0.2390055096 | T8: =N8 -> 12 | U8: =COUNTIF(L7:L14,T8) -> 4 | Y8: =N8 -> 12 | Z8: =COUNTIF(L15:L22,Y8) -> 8 | AD8: =N8 -> 12 | AE8: =COUNTIF(L23:L31,AD8) -> 9 | AI8: =N8 -> 12 | AJ8: =COUNTIF(L32:L39,AI8) -> 5 | AN8: =N8 -> 12 | AO8: =COUNTIF(L40:L47,AN8) -> 7 | AS8: =N8 -> 12 | AT8: =COUNTIF(L48:L55,AS8) -> 7
A9: 11 | B9: 320 | C9: 21 | D9: 330 | K9: 0 | L9: 12 | N9: 21 | O9: =COUNTIF($L$7:$L$500,N9) -> 2 | P9: =O9/$Q$4 -> 0.04081632653 | Q9: =IF(P9=0,0,(P9*((LOG(P9))/LOG(2)))) -> -0.1883555038 | T9: =N9 -> 21 | U9: =COUNTIF(L7:L14,T9) -> 0 | V9: =U9/(W4-U8) -> 0 | W9: =IF(V9=0,0,(V9*((LOG(V9))/LOG(2)))) -> 0 | Y9: =N9 -> 21 | Z9: =COUNTIF(L15:L22,Y9) -> 0 | AA9: =Z9/(AB4-Z8) ->  | AB9: =IF(AA9=0,0,(AA9*((LOG(AA9))/LOG(2)))) ->  | AD9: =N9 -> 21 | AE9: =COUNTIF(L23:L31,AD9) -> 0 | AF9: =AE9/(AG4-AE8) ->  | AG9: =IF(AF9=0,0,(AF9*((LOG(AF9))/LOG(2)))) ->  | AI9: =N9 -> 21 | AJ9: =COUNTIF(L32:L39,AI9) -> 0 | AK9: =AJ9/(AL4-AJ8) -> 0 | AL9: =IF(AK9=0,0,(AK9*((LOG(AK9))/LOG(2)))) -> 0 | AN9: =N9 -> 21 | AO9: =COUNTIF(L40:L47,AN9) -> 1 | AP9: =AO9/(AQ4-AO8) -> 1 | AQ9: =IF(AP9=0,0,(AP9*((LOG(AP9))/LOG(2)))) -> 0 | AS9: =N9 -> 21 | AT9: =COUNTIF(L48:L55,AS9) -> 1 | AU9: =AT9/(AV4-AT8) -> 1 | AV9: =IF(AU9=0,0,(AU9*((LOG(AU9))/LOG(2)))) -> 0
A10: 11 | B10: 418 | C10: 21 | D10: 430 | K10: 0 | L10: 12 | N10: 22 | O10: =COUNTIF($L$7:$L$500,N10) -> 5 | P10: =O10/$Q$4 -> 0.1020408163 | Q10: =IF(P10=0,0,(P10*((LOG(P10))/LOG(2)))) -> -0.3359981377 | T10: =N10 -> 22 | U10: =COUNTIF(L7:L14,T10) -> 4 | V10: =U10/(W4-U8) -> 1 | W10: =IF(V10=0,0,(V10*((LOG(V10))/LOG(2)))) -> 0 | Y10: =N10 -> 22 | Z10: =COUNTIF(L15:L22,Y10) -> 0 | AA10: =Z10/(AB4-Z8) ->  | AB10: =IF(AA10=0,0,(AA10*((LOG(AA10))/LOG(2)))) ->  | AD10: =N10 -> 22 | AE10: =COUNTIF(L23:L31,AD10) -> 0 | AF10: =AE10/(AG4-AE8) ->  | AG10: =IF(AF10=0,0,(AF10*((LOG(AF10))/LOG(2)))) ->  | AI10: =N10 -> 22 | AJ10: =COUNTIF(L32:L39,AI10) -> 1 | AK10: =AJ10/(AL4-AJ8) -> 0.3333333333 | AL10: =IF(AK10=0,0,(AK10*((LOG(AK10))/LOG(2)))) -> -0.5283208336 | AN10: =N10 -> 22 | AO10: =COUNTIF(L40:L47,AN10) -> 0 | AP10: =AO10/(AQ4-AO8) -> 0 | AQ10: =IF(AP10=0,0,(AP10*((LOG(AP10))/LOG(2)))) -> 0 | AS10: =N10 -> 22 | AT10: =COUNTIF(L48:L55,AS10) -> 0 | AU10: =AT10/(AV4-AT8) -> 0 | AV10: =IF(AU10=0,0,(AU10*((LOG(AU10))/LOG(2)))) -> 0
A11: 11 | B11: 516 | C11: 21 | D11: 526 | K11: 0 | L11: 12 | T11: =N11 -> 0 | U11: =COUNTIF(L7:L14,T11) -> 0 | V11: =U11/(W4-U8) -> 0 | W11: =IF(V11=0,0,(V11*((LOG(V11))/LOG(2)))) -> 0 | Y11: =N11 -> 0 | Z11: =COUNTIF(L15:L22,Y11) -> 0 | AA11: =Z11/(AB4-Z8) ->  | AB11: =IF(AA11=0,0,(AA11*((LOG(AA11))/LOG(2)))) ->  | AD11: =N11 -> 0 | AE11: =COUNTIF(L23:L31,AD11) -> 0 | AF11: =AE11/(AG4-AE8) ->  | AG11: =IF(AF11=0,0,(AF11*((LOG(AF11))/LOG(2)))) ->  | AI11: =N11 -> 0 | AJ11: =COUNTIF(L32:L39,AI11) -> 0 | AK11: =AJ11/(AL4-AJ8) -> 0 | AL11: =IF(AK11=0,0,(AK11*((LOG(AK11))/LOG(2)))) -> 0 | AN11: =N11 -> 0 | AO11: =COUNTIF(L40:L47,AN11) -> 0 | AP11: =AO11/(AQ4-AO8) -> 0 | AQ11: =IF(AP11=0,0,(AP11*((LOG(AP11))/LOG(2)))) -> 0 | AS11: =N11 -> 0 | AT11: =COUNTIF(L48:L55,AS11) -> 0 | AU11: =AT11/(AV4-AT8) -> 0 | AV11: =IF(AU11=0,0,(AU11*((LOG(AU11))/LOG(2)))) -> 0
A12: 22 | B12: 621 | C12: 23 | D12: 630 | K12: 0 | L12: 22 | T12: =N12 -> 0 | U12: =COUNTIF(L7:L14,T12) -> 0 | V12: =U12/(W4-U8) -> 0 | W12: =IF(V12=0,0,(V12*((LOG(V12))/LOG(2)))) -> 0 | Y12: =N12 -> 0 | Z12: =COUNTIF(L15:L22,Y12) -> 0 | AA12: =Z12/(AB4-Z8) ->  | AB12: =IF(AA12=0,0,(AA12*((LOG(AA12))/LOG(2)))) ->  | AD12: =N12 -> 0 | AE12: =COUNTIF(L23:L31,AD12) -> 0 | AF12: =AE12/(AG4-AE8) ->  | AG12: =IF(AF12=0,0,(AF12*((LOG(AF12))/LOG(2)))) ->  | AI12: =N12 -> 0 | AJ12: =COUNTIF(L32:L39,AI12) -> 0 | AK12: =AJ12/(AL4-AJ8) -> 0 | AL12: =IF(AK12=0,0,(AK12*((LOG(AK12))/LOG(2)))) -> 0 | AN12: =N12 -> 0 | AO12: =COUNTIF(L40:L47,AN12) -> 0 | AP12: =AO12/(AQ4-AO8) -> 0 | AQ12: =IF(AP12=0,0,(AP12*((LOG(AP12))/LOG(2)))) -> 0 | AS12: =N12 -> 0 | AT12: =COUNTIF(L48:L55,AS12) -> 0 | AU12: =AT12/(AV4-AT8) -> 0 | AV12: =IF(AU12=0,0,(AU12*((LOG(AU12))/LOG(2)))) -> 0
A13: 22 | B13: 735 | C13: 23 | D13: 749 | K13: 0 | L13: 22 | T13: =N13 -> 0 | U13: =COUNTIF(L7:L14,T13) -> 0 | V13: =U13/(W4-U8) -> 0 | W13: =IF(V13=0,0,(V13*((LOG(V13))/LOG(2)))) -> 0 | Y13: =N13 -> 0 | Z13: =COUNTIF(L15:L22,Y13) -> 0 | AA13: =Z13/(AB4-Z8) ->  | AB13: =IF(AA13=0,0,(AA13*((LOG(AA13))/LOG(2)))) ->  | AD13: =N13 -> 0 | AE13: =COUNTIF(L23:L31,AD13) -> 0 | AF13: =AE13/(AG4-AE8) ->  | AG13: =IF(AF13=0,0,(AF13*((LOG(AF13))/LOG(2)))) ->  | AI13: =N13 -> 0 | AJ13: =COUNTIF(L32:L39,AI13) -> 0 | AK13: =AJ13/(AL4-AJ8) -> 0 | AL13: =IF(AK13=0,0,(AK13*((LOG(AK13))/LOG(2)))) -> 0 | AN13: =N13 -> 0 | AO13: =COUNTIF(L40:L47,AN13) -> 0 | AP13: =AO13/(AQ4-AO8) -> 0 | AQ13: =IF(AP13=0,0,(AP13*((LOG(AP13))/LOG(2)))) -> 0 | AS13: =N13 -> 0 | AT13: =COUNTIF(L48:L55,AS13) -> 0 | AU13: =AT13/(AV4-AT8) -> 0 | AV13: =IF(AU13=0,0,(AU13*((LOG(AU13))/LOG(2)))) -> 0
A14: 11 | B14: 846 | C14: 21 | D14: 858 | K14: 0 | L14: 12 | T14: =N14 -> 0 | U14: =COUNTIF(L7:L14,T14) -> 0 | V14: =U14/(W4-U8) -> 0 | W14: =IF(V14=0,0,(V14*((LOG(V14))/LOG(2)))) -> 0 | Y14: =N14 -> 0 | Z14: =COUNTIF(L15:L22,Y14) -> 0 | AA14: =Z14/(AB4-Z8) ->  | AB14: =IF(AA14=0,0,(AA14*((LOG(AA14))/LOG(2)))) ->  | AD14: =N14 -> 0 | AE14: =COUNTIF(L23:L31,AD14) -> 0 | AF14: =AE14/(AG4-AE8) ->  | AG14: =IF(AF14=0,0,(AF14*((LOG(AF14))/LOG(2)))) ->  | AI14: =N14 -> 0 | AJ14: =COUNTIF(L32:L39,AI14) -> 0 | AK14: =AJ14/(AL4-AJ8) -> 0 | AL14: =IF(AK14=0,0,(AK14*((LOG(AK14))/LOG(2)))) -> 0 | AN14: =N14 -> 0 | AO14: =COUNTIF(L40:L47,AN14) -> 0 | AP14: =AO14/(AQ4-AO8) -> 0 | AQ14: =IF(AP14=0,0,(AP14*((LOG(AP14))/LOG(2)))) -> 0 | AS14: =N14 -> 0 | AT14: =COUNTIF(L48:L55,AS14) -> 0 | AU14: =AT14/(AV4-AT8) -> 0 | AV14: =IF(AU14=0,0,(AU14*((LOG(AU14))/LOG(2)))) -> 0
A15: 11 | B15: 944 | C15: 21 | D15: 954 | K15: 0 | L15: 12 | P15: =SUM(P7:P14) -> 1 | Q15: =-SUM(Q7:Q14) -> 0.9517146549 | V15: =SUM(V7:V14) -> 1 | W15: =-SUM(W7:W14) -> 0 | AA15: =SUM(AA7:AA14) ->  | AB15: =-SUM(AB7:AB14) ->  | AF15: =SUM(AF7:AF14) ->  | AG15: =-SUM(AG7:AG14) ->  | AK15: =SUM(AK7:AK14) -> 1 | AL15: =-SUM(AL7:AL14) -> 0.9182958341 | AP15: =SUM(AP7:AP14) -> 1 | AQ15: =-SUM(AQ7:AQ14) -> 0 | AU15: =SUM(AU7:AU14) -> 1 | AV15: =-SUM(AV7:AV14) -> 0
A16: 11 | B16: 1042 | C16: 21 | D16: 1051 | K16: 0 | L16: 12 | P16: U= | Q16: =Q15/(LOG(Q4)/LOG(2)) -> 0.1695038001 | V16: U1= | W16: =W15/(LOG(W4)/LOG(2)) -> 0 | AA16: U2= | AB16: =AB15/(LOG(AB4)/LOG(2)) ->  | AF16: U3= | AG16: =AG15/(LOG(AG4)/LOG(2)) ->  | AK16: U4= | AL16: =AL15/(LOG(AL4)/LOG(2)) -> 0.3060986114 | AP16: U5= | AQ16: =AQ15/(LOG(AQ4)/LOG(2)) -> 0 | AU16: U6= | AV16: =AV15/(LOG(AV4)/LOG(2)) -> 0
A17: 11 | B17: 1137 | C17: 21 | D17: 1146 | K17: 0 | L17: 12
A18: 11 | B18: 1233 | C18: 21 | D18: 1243 | K18: 0 | L18: 12
A19: 11 | B19: 1330 | C19: 21 | D19: 1339 | K19: 0 | L19: 12 | N19: Total Target Seq
A20: 11 | B20: 1425 | C20: 21 | D20: 1434 | K20: 0 | L20: 12 | N20: =COUNTIF(L7:L55,G3) -> 40 | P20: 8 | Q20: 8 | R20: 9 | S20: 8 | T20: 8 | U20: 8
A21: 11 | B21: 1521 | C21: 21 | D21: 1530 | K21: 0 | L21: 12 | P21: % of reinforcement given in 6 equal intervals based on number of trials
A22: 11 | B22: 1617 | C22: 21 | D22: 1629 | K22: 0 | L22: 12 | P22: %_1 | Q22: %_2 | R22: %_3 | S22: %_4 | T22: %_5 | U22: %_6
A23: 11 | B23: 1714 | C23: 21 | D23: 1724 | K23: 0 | L23: 12 | O23: target sequence | P23: =$G$3 -> 12 | Q23: =$G$3 -> 12 | R23: =$G$3 -> 12 | S23: =$G$3 -> 12 | T23: =$G$3 -> 12 | U23: =$G$3 -> 12
A24: 11 | B24: 1810 | C24: 21 | D24: 1819 | K24: 0 | L24: 12 | O24: total reinforcement | P24: =U8 -> 4 | Q24: =Z8 -> 8 | R24: =AE8 -> 9 | S24: =AJ8 -> 5 | T24: =AO8 -> 7 | U24: =AT8 -> 7
A25: 11 | B25: 1904 | C25: 21 | D25: 1912 | K25: 0 | L25: 12 | O25: % target
A26: 11 | B26: 1999 | C26: 21 | D26: 2008 | K26: 0 | L26: 12 | O26: CCRF
A27: 11 | B27: 2093 | C27: 21 | D27: 2101 | K27: 0 | L27: 12 | O27: % CCRf
A28: 11 | B28: 2187 | C28: 21 | D28: 2196 | K28: 0 | L28: 12 | O28: average response rate | P28: =D14/P20 -> 107.25 | Q28: =(D22-D14)/Q20 -> 96.375 | R28: =(D31-D22)/R20 -> 94.55555556 | S28: =(D39-D31)/S20 -> 97.125 | T28: =(D47-D39)/T20 -> 102.5 | U28: =(D55-D47)/U20 -> 100.125
A29: 11 | B29: 2281 | C29: 21 | D29: 2290 | K29: 0 | L29: 12
A30: 11 | B30: 2377 | C30: 21 | D30: 2385 | K30: 0 | L30: 12
A31: 11 | B31: 2471 | C31: 21 | D31: 2480 | K31: 0 | L31: 12
A32: 11 | B32: 2565 | C32: 21 | D32: 2575 | K32: 0 | L32: 12
A33: 11 | B33: 2660 | C33: 21 | D33: 2669 | K33: 0 | L33: 12
A34: 11 | B34: 2755 | C34: 21 | D34: 2763 | K34: 0 | L34: 12
A35: 11 | B35: 2849 | C35: 21 | D35: 2858 | K35: 0 | L35: 12
A36: 11 | B36: 2943 | C36: 12 | D36: 2950 | K36: 0 | L36: 11
A37: 11 | B37: 3042 | C37: 12 | D37: 3046 | K37: 0 | L37: 11
A38: 11 | B38: 3143 | C38: 21 | D38: 3155 | K38: 0 | L38: 12
A39: 22 | B39: 3250 | C39: 23 | D39: 3257 | K39: 0 | L39: 22
A40: 11 | B40: 3352 | C40: 21 | D40: 3361 | K40: 0 | L40: 12
A41: 11 | B41: 3459 | C41: 21 | D41: 3469 | K41: 0 | L41: 12
A42: 11 | B42: 3555 | C42: 21 | D42: 3578 | K42: 0 | L42: 12
A43: 11 | B43: 3663 | C43: 21 | D43: 3672 | K43: 0 | L43: 12
A44: 22 | B44: 3764 | C44: 14 | D44: 3775 | K44: 0 | L44: 21
A45: 11 | B45: 3873 | C45: 21 | D45: 3885 | K45: 0 | L45: 12
A46: 11 | B46: 3971 | C46: 21 | D46: 3983 | K46: 0 | L46: 12
A47: 11 | B47: 4067 | C47: 21 | D47: 4077 | K47: 0 | L47: 12
A48: 22 | B48: 4167 | C48: 14 | D48: 4177 | K48: 0 | L48: 21
A49: 11 | B49: 4275 | C49: 21 | D49: 4284 | K49: 0 | L49: 12
A50: 11 | B50: 4369 | C50: 21 | D50: 4379 | K50: 0 | L50: 12
A51: 11 | B51: 4466 | C51: 21 | D51: 4498 | K51: 0 | L51: 12
A52: 11 | B52: 4584 | C52: 21 | D52: 4593 | K52: 0 | L52: 12
A53: 11 | B53: 4679 | C53: 21 | D53: 4688 | K53: 0 | L53: 12
A54: 11 | B54: 4774 | C54: 21 | D54: 4783 | K54: 0 | L54: 12
A55: 11 | B55: 4870 | C55: 21 | D55: 4878 | K55: 1 | L55: 12

Sheet !MC20850.091
A1: Report for:!MC20850.091
A2: Date: | B2: <date>
A3: Hen: | B3: <hen> | F3: Correct Sequence | G3: =Start!J2 -> 12 | P3: Total Sequences in Data | Q3: =4994-COUNTBLANK(L7:L5000) -> 42 | V3: Total Sequences in Block Data | W3: =COUNTA(L7:L13) -> 7 | AA3: Total Sequences in Block Data | AB3: =COUNTA(L14:L20) -> 7 | AF3: Total Sequences in Block Data | AG3: =COUNTA(L21:L27) -> 7 | AK3: Total Sequences in Block Data | AL3: =COUNTA(L28:L34) -> 7 | AP3: Total Sequences in Block Data | AQ3: =COUNTA(L35:L41) -> 7 | AU3: Total Sequences in Block Data | AV3: =COUNTA(L42:L48) -> 7
P4: Total Sequences in Summary | Q4: =SUM(O7:O14) -> 42 | V4: Total Sequences in Block Summary | W4: =SUM(U7:U14) -> 7 | AA4: Total Sequences in Block Summary | AB4: =SUM(Z7:Z14) -> 7 | AF4: Total Sequences in Block Summary | AG4: =SUM(AE7:AE14) -> 7 | AK4: Total Sequences in Block Summary | AL4: =SUM(AJ7:AJ14) -> 7 | AP4: Total Sequences in Block Summary | AQ4: =SUM(AO7:AO14) -> 7 | AU4: Total Sequences in Block Summary | AV4: =SUM(AT7:AT14) -> 7
T5: Block 1 | Y5: Block 2 | AD5: Block 3 | AI5: Block 4 | AN5: Block 5 | AS5: Block 6
A6: Sequence Component 1 | B6: Time 1 | C6: Sequence Component 2 | D6: Time 2 | E6: Sequence Component 3 | F6: Time 3 | G6: Sequence Component 4 | H6: Time 4 | I6: Sequence Component 5 | J6: Time 5 | K6: Correct? 0=No 1=Yes | L6: Sequence | N6: Frequency | P6: Relative Frequency | Q6: Variability | T6: Frequency | V6: Relative Frequency | W6: Variability | Y6: Frequency | AA6: Relative Frequency | AB6: Variability | AD6: Frequency | AF6: Relative Frequency | AG6: Variability | AI6: Frequency | AK6: Relative Frequency | AL6: Variability | AN6: Frequency | AP6: Relative Frequency | AQ6: Variability | AS6: Frequency | AU6: Relative Frequency | AV6: Variability
A7: 11 | B7: 17 | C7: 21 | D7: 107 | K7: 0 | L7: 12 | N7: 11 | O7: =COUNTIF($L$7:$L$500,N7) -> 0 | P7: =O7/$Q$4 -> 0 | Q7: =IF(P7=0,0,(P7*((LOG(P7))/LOG(2)))) -> 0 | T7: =N7 -> 11 | U7: =COUNTIF(L7:L13,T7) -> 0 | V7: =U7/(W4-U8) ->  | W7: =IF(V7=0,0,(V7*((LOG(V7))/LOG(2)))) ->  | Y7: =N7 -> 11 | Z7: =COUNTIF(L14:L20,Y7) -> 0 | AA7: =Z7/(AB4-Z8) -> 0 | AB7: =IF(AA7=0,0,(AA7*((LOG(AA7))/LOG(2)))) -> 0 | AD7: =N7 -> 11 | AE7: =COUNTIF(L21:L27,AD7) -> 0 | AF7: =AE7/(AG4-AE8) -> 0 | AG7: =IF(AF7=0,0,(AF7*((LOG(AF7))/LOG(2)))) -> 0 | AI7: =N7 -> 11 | AJ7: =COUNTIF(L28:L34,AI7) -> 0 | AK7: =AJ7/(AL4-AJ8) ->  | AL7: =IF(AK7=0,0,(AK7*((LOG(AK7))/LOG(2)))) ->  | AN7: =N7 -> 11 | AO7: =COUNTIF(L35:L41,AN7) -> 0 | AP7: =AO7/(AQ4-AO8) ->  | AQ7: =IF(AP7=0,0,(AP7*((LOG(AP7))/LOG(2)))) ->  | AS7: =N7 -> 11 | AT7: =COUNTIF(L42:L48,AS7) -> 0 | AU7: =AT7/(AV4-AT8) ->  | AV7: =IF(AU7=0,0,(AU7*((LOG(AU7))/LOG(2)))) -> 
A8: 11 | B8: 197 | C8: 21 | D8: 212 | K8: 0 | L8: 12 | N8: 12 | O8: =COUNTIF($L$7:$L$500,N8) -> 40 | P8: =O8/$Q$4 -> 0.9523809524 | Q8: =IF(P8=0,0,(P8*((LOG(P8))/LOG(2)))) -> -0.06703745513 | T8: =N8 -> 12 | U8: =COUNTIF(L7:L13,T8) -> 7 | Y8: =N8 -> 12 | Z8: =COUNTIF(L14:L20,Y8) -> 6 | AD8: =N8 -> 12 | AE8: =COUNTIF(L21:L27,AD8) -> 6 | AI8: =N8 -> 12 | AJ8: =COUNTIF(L28:L34,AI8) -> 7 | AN8: =N8 -> 12 | AO8: =COUNTIF(L35:L41,AN8) -> 7 | AS8: =N8 -> 12 | AT8: =COUNTIF(L42:L48,AS8) -> 7
A9: 11 | B9: 298 | C9: 21 | D9: 312 | K9: 0 | L9: 12 | N9: 21 | O9: =COUNTIF($L$7:$L$500,N9) -> 0 | P9: =O9/$Q$4 -> 0 | Q9: =IF(P9=0,0,(P9*((LOG(P9))/LOG(2)))) -> 0 | T9: =N9 -> 21 | U9: =COUNTIF(L7:L13,T9) -> 0 | V9: =U9/(W4-U8) ->  | W9: =IF(V9=0,0,(V9*((LOG(V9))/LOG(2)))) ->  | Y9: =N9 -> 21 | Z9: =COUNTIF(L14:L20,Y9) -> 0 | AA9: =Z9/(AB4-Z8) -> 0 | AB9: =IF(AA9=0,0,(AA9*((LOG(AA9))/LOG(2)))) -> 0 | AD9: =N9 -> 21 | AE9: =COUNTIF(L21:L27,AD9) -> 0 | AF9: =AE9/(AG4-AE8) -> 0 | AG9: =IF(AF9=0,0,(AF9*((LOG(AF9))/LOG(2)))) -> 0 | AI9: =N9 -> 21 | AJ9: =COUNTIF(L28:L34,AI9) -> 0 | AK9: =AJ9/(AL4-AJ8) ->  | AL9: =IF(AK9=0,0,(AK9*((LOG(AK9))/LOG(2)))) ->  | AN9: =N9 -> 21 | AO9: =COUNTIF(L35:L41,AN9) -> 0 | AP9: =AO9/(AQ4-AO8) ->  | AQ9: =IF(AP9=0,0,(AP9*((LOG(AP9))/LOG(2)))) ->  | AS9: =N9 -> 21 | AT9: =COUNTIF(L42:L48,AS9) -> 0 | AU9: =AT9/(AV4-AT8) ->  | AV9: =IF(AU9=0,0,(AU9*((LOG(AU9))/LOG(2)))) -> 
A10: 11 | B10: 401 | C10: 21 | D10: 474 | K10: 0 | L10: 12 | N10: 22 | O10: =COUNTIF($L$7:$L$500,N10) -> 2 | P10: =O10/$Q$4 -> 0.04761904762 | Q10: =IF(P10=0,0,(P10*((LOG(P10))/LOG(2)))) -> -0.2091579725 | T10: =N10 -> 22 | U10: =COUNTIF(L7:L13,T10) -> 0 | V10: =U10/(W4-U8) ->  | W10: =IF(V10=0,0,(V10*((LOG(V10))/LOG(2)))) ->  | Y10: =N10 -> 22 | Z10: =COUNTIF(L14:L20,Y10) -> 1 | AA10: =Z10/(AB4-Z8) -> 1 | AB10: =IF(AA10=0,0,(AA10*((LOG(AA10))/LOG(2)))) -> 0 | AD10: =N10 -> 22 | AE10: =COUNTIF(L21:L27,AD10) -> 1 | AF10: =AE10/(AG4-AE8) -> 1 | AG10: =IF(AF10=0,0,(AF10*((LOG(AF10))/LOG(2)))) -> 0 | AI10: =N10 -> 22 | AJ10: =COUNTIF(L28:L34,AI10) -> 0 | AK10: =AJ10/(AL4-AJ8) ->  | AL10: =IF(AK10=0,0,(AK10*((LOG(AK10))/LOG(2)))) ->  | AN10: =N10 -> 22 | AO10: =COUNTIF(L35:L41,AN10) -> 0 | AP10: =AO10/(AQ4-AO8) ->  | AQ10: =IF(AP10=0,0,(AP10*((LOG(AP10))/LOG(2)))) ->  | AS10: =N10 -> 22 | AT10: =COUNTIF(L42:L48,AS10) -> 0 | AU10: =AT10/(AV4-AT8) ->  | AV10: =IF(AU10=0,0,(AU10*((LOG(AU10))/LOG(2)))) -> 
A11: 11 | B11: 561 | C11: 21 | D11: 571 | K11: 0 | L11: 12 | T11: =N11 -> 0 | U11: =COUNTIF(L7:L13,T11) -> 0 | V11: =U11/(W4-U8) ->  | W11: =IF(V11=0,0,(V11*((LOG(V11))/LOG(2)))) ->  | Y11: =N11 -> 0 | Z11: =COUNTIF(L14:L20,Y11) -> 0 | AA11: =Z11/(AB4-Z8) -> 0 | AB11: =IF(AA11=0,0,(AA11*((LOG(AA11))/LOG(2)))) -> 0 | AD11: =N11 -> 0 | AE11: =COUNTIF(L21:L27,AD11) -> 0 | AF11: =AE11/(AG4-AE8) -> 0 | AG11: =IF(AF11=0,0,(AF11*((LOG(AF11))/LOG(2)))) -> 0 | AI11: =N11 -> 0 | AJ11: =COUNTIF(L28:L34,AI11) -> 0 | AK11: =AJ11/(AL4-AJ8) ->  | AL11: =IF(AK11=0,0,(AK11*((LOG(AK11))/LOG(2)))) ->  | AN11: =N11 -> 0 | AO11: =COUNTIF(L35:L41,AN11) -> 0 | AP11: =AO11/(AQ4-AO8) ->  | AQ11: =IF(AP11=0,0,(AP11*((LOG(AP11))/LOG(2)))) ->  | AS11: =N11 -> 0 | AT11: =COUNTIF(L42:L48,AS11) -> 0 | AU11: =AT11/(AV4-AT8) ->  | AV11: =IF(AU11=0,0,(AU11*((LOG(AU11))/LOG(2)))) -> 
A12: 11 | B12: 658 | C12: 21 | D12: 671 | K12: 0 | L12: 12 | T12: =N12 -> 0 | U12: =COUNTIF(L7:L13,T12) -> 0 | V12: =U12/(W4-U8) ->  | W12: =IF(V12=0,0,(V12*((LOG(V12))/LOG(2)))) ->  | Y12: =N12 -> 0 | Z12: =COUNTIF(L14:L20,Y12) -> 0 | AA12: =Z12/(AB4-Z8) -> 0 | AB12: =IF(AA12=0,0,(AA12*((LOG(AA12))/LOG(2)))) -> 0 | AD12: =N12 -> 0 | AE12: =COUNTIF(L21:L27,AD12) -> 0 | AF12: =AE12/(AG4-AE8) -> 0 | AG12: =IF(AF12=0,0,(AF12*((LOG(AF12))/LOG(2)))) -> 0 | AI12: =N12 -> 0 | AJ12: =COUNTIF(L28:L34,AI12) -> 0 | AK12: =AJ12/(AL4-AJ8) ->  | AL12: =IF(AK12=0,0,(AK12*((LOG(AK12))/LOG(2)))) ->  | AN12: =N12 -> 0 | AO12: =COUNTIF(L35:L41,AN12) -> 0 | AP12: =AO12/(AQ4-AO8) ->  | AQ12: =IF(AP12=0,0,(AP12*((LOG(AP12))/LOG(2)))) ->  | AS12: =N12 -> 0 | AT12: =COUNTIF(L42:L48,AS12) -> 0 | AU12: =AT12/(AV4-AT8) ->  | AV12: =IF(AU12=0,0,(AU12*((LOG(AU12))/LOG(2)))) -> 
A13: 11 | B13: 759 | C13: 21 | D13: 771 | K13: 0 | L13: 12 | T13: =N13 -> 0 | U13: =COUNTIF(L7:L13,T13) -> 0 | V13: =U13/(W4-U8) ->  | W13: =IF(V13=0,0,(V13*((LOG(V13))/LOG(2)))) ->  | Y13: =N13 -> 0 | Z13: =COUNTIF(L14:L20,Y13) -> 0 | AA13: =Z13/(AB4-Z8) -> 0 | AB13: =IF(AA13=0,0,(AA13*((LOG(AA13))/LOG(2)))) -> 0 | AD13: =N13 -> 0 | AE13: =COUNTIF(L21:L27,AD13) -> 0 | AF13: =AE13/(AG4-AE8) -> 0 | AG13: =IF(AF13=0,0,(AF13*((LOG(AF13))/LOG(2)))) -> 0 | AI13: =N13 -> 0 | AJ13: =COUNTIF(L28:L34,AI13) -> 0 | AK13: =AJ13/(AL4-AJ8) ->  | AL13: =IF(AK13=0,0,(AK13*((LOG(AK13))/LOG(2)))) ->  | AN13: =N13 -> 0 | AO13: =COUNTIF(L35:L41,AN13) -> 0 | AP13: =AO13/(AQ4-AO8) ->  | AQ13: =IF(AP13=0,0,(AP13*((LOG(AP13))/LOG(2)))) ->  | AS13: =N13 -> 0 | AT13: =COUNTIF(L42:L48,AS13) -> 0 | AU13: =AT13/(AV4-AT8) ->  | AV13: =IF(AU13=0,0,(AU13*((LOG(AU13))/LOG(2)))) -> 
A14: 22 | B14: 871 | C14: 23 | D14: 880 | K14: 0 | L14: 22 | T14: =N14 -> 0 | U14: =COUNTIF(L7:L13,T14) -> 0 | V14: =U14/(W4-U8) ->  | W14: =IF(V14=0,0,(V14*((LOG(V14))/LOG(2)))) ->  | Y14: =N14 -> 0 | Z14: =COUNTIF(L14:L20,Y14) -> 0 | AA14: =Z14/(AB4-Z8) -> 0 | AB14: =IF(AA14=0,0,(AA14*((LOG(AA14))/LOG(2)))) -> 0 | AD14: =N14 -> 0 | AE14: =COUNTIF(L21:L27,AD14) -> 0 | AF14: =AE14/(AG4-AE8) -> 0 | AG14: =IF(AF14=0,0,(AF14*((LOG(AF14))/LOG(2)))) -> 0 | AI14: =N14 -> 0 | AJ14: =COUNTIF(L28:L34,AI14) -> 0 | AK14: =AJ14/(AL4-AJ8) ->  | AL14: =IF(AK14=0,0,(AK14*((LOG(AK14))/LOG(2)))) ->  | AN14: =N14 -> 0 | AO14: =COUNTIF(L35:L41,AN14) -> 0 | AP14: =AO14/(AQ4-AO8) ->  | AQ14: =IF(AP14=0,0,(AP14*((LOG(AP14))/LOG(2)))) ->  | AS14: =N14 -> 0 | AT14: =COUNTIF(L42:L48,AS14) -> 0 | AU14: =AT14/(AV4-AT8) ->  | AV14: =IF(AU14=0,0,(AU14*((LOG(AU14))/LOG(2)))) -> 
A15: 11 | B15: 977 | C15: 21 | D15: 992 | K15: 0 | L15: 12 | P15: =SUM(P7:P14) -> 1 | Q15: =-SUM(Q7:Q14) -> 0.2761954276 | V15: =SUM(V7:V14) ->  | W15: =-SUM(W7:W14) ->  | AA15: =SUM(AA7:AA14) -> 1 | AB15: =-SUM(AB7:AB14) -> 0 | AF15: =SUM(AF7:AF14) -> 1 | AG15: =-SUM(AG7:AG14) -> 0 | AK15: =SUM(AK7:AK14) ->  | AL15: =-SUM(AL7:AL14) ->  | AP15: =SUM(AP7:AP14) ->  | AQ15: =-SUM(AQ7:AQ14) ->  | AU15: =SUM(AU7:AU14) ->  | AV15: =-SUM(AV7:AV14) -> 
A16: 11 | B16: 1079 | C16: 21 | D16: 1090 | K16: 0 | L16: 12 | P16: U= | Q16: =Q15/(LOG(Q4)/LOG(2)) -> 0.05122017233 | V16: U1= | W16: =W15/(LOG(W4)/LOG(2)) ->  | AA16: U2= | AB16: =AB15/(LOG(AB4)/LOG(2)) -> 0 | AF16: U3= | AG16: =AG15/(LOG(AG4)/LOG(2)) -> 0 | AK16: U4= | AL16: =AL15/(LOG(AL4)/LOG(2)) ->  | AP16: U5= | AQ16: =AQ15/(LOG(AQ4)/LOG(2)) ->  | AU16: U6= | AV16: =AV15/(LOG(AV4)/LOG(2)) -> 
A17: 11 | B17: 1176 | C17: 21 | D17: 1189 | K17: 0 | L17: 12
A18: 11 | B18: 1276 | C18: 21 | D18: 1287 | K18: 0 | L18: 12
A19: 11 | B19: 1375 | C19: 21 | D19: 1387 | K19: 0 | L19: 12 | N19: Total Target Seq
A20: 11 | B20: 1472 | C20: 21 | D20: 1482 | K20: 0 | L20: 12 | N20: =COUNTIF(L7:L48,G3) -> 40 | P20: 7 | Q20: 7 | R20: 7 | S20: 7 | T20: 7 | U20: 7
A21: 22 | B21: 1582 | C21: 23 | D21: 1590 | K21: 0 | L21: 22 | P21: % of reinforcement given in 6 equal intervals based on number of trials
A22: 11 | B22: 1689 | C22: 21 | D22: 1705 | K22: 0 | L22: 12 | P22: %_1 | Q22: %_2 | R22: %_3 | S22: %_4 | T22: %_5 | U22: %_6
A23: 11 | B23: 1790 | C23: 21 | D23: 1800 | K23: 0 | L23: 12 | O23: target sequence | P23: =$G$3 -> 12 | Q23: =$G$3 -> 12 | R23: =$G$3 -> 12 | S23: =$G$3 -> 12 | T23: =$G$3 -> 12 | U23: =$G$3 -> 12
A24: 11 | B24: 1887 | C24: 21 | D24: 1901 | K24: 0 | L24: 12 | O24: total reinforcement | P24: =U8 -> 7 | Q24: =Z8 -> 6 | R24: =AE8 -> 6 | S24: =AJ8 -> 7 | T24: =AO8 -> 7 | U24: =AT8 -> 7
A25: 11 | B25: 1993 | C25: 21 | D25: 2008 | K25: 0 | L25: 12 | O25: % target
A26: 11 | B26: 2095 | C26: 21 | D26: 2108 | K26: 0 | L26: 12 | O26: CCRF
A27: 11 | B27: 2195 | C27: 21 | D27: 2208 | K27: 0 | L27: 12 | O27: % CCRf
A28: 11 | B28: 2294 | C28: 21 | D28: 2306 | K28: 0 | L28: 12 | O28: average response rate | P28: =D13/P20 -> 110.1428571 | Q28: =(D20-D13)/Q20 -> 101.5714286 | R28: =(D27-D20)/R20 -> 103.7142857 | S28: =(D34-D27)/S20 -> 96.71428571 | T28: =(D41-D34)/T20 -> 96.71428571 | U28: =(D48-D41)/U20 -> 98.71428571
A29: 11 | B29: 2394 | C29: 21 | D29: 2404 | K29: 0 | L29: 12
A30: 11 | B30: 2490 | C30: 21 | D30: 2500 | K30: 0 | L30: 12
A31: 11 | B31: 2586 | C31: 21 | D31: 2596 | K31: 0 | L31: 12
A32: 11 | B32: 2682 | C32: 21 | D32: 2695 | K32: 0 | L32: 12
A33: 11 | B33: 2779 | C33: 21 | D33: 2789 | K33: 0 | L33: 12
A34: 11 | B34: 2875 | C34: 21 | D34: 2885 | K34: 0 | L34: 12
A35: 11 | B35: 2971 | C35: 21 | D35: 2982 | K35: 0 | L35: 12
A36: 11 | B36: 3069 | C36: 21 | D36: 3079 | K36: 0 | L36: 12
A37: 11 | B37: 3164 | C37: 21 | D37: 3174 | K37: 0 | L37: 12
A38: 11 | B38: 3262 | C38: 21 | D38: 3272 | K38: 0 | L38: 12
A39: 11 | B39: 3357 | C39: 21 | D39: 3367 | K39: 0 | L39: 12
A40: 11 | B40: 3455 | C40: 21 | D40: 3465 | K40: 0 | L40: 12
A41: 11 | B41: 3552 | C41: 21 | D41: 3562 | K41: 0 | L41: 12
A42: 11 | B42: 3647 | C42: 21 | D42: 3657 | K42: 0 | L42: 12
A43: 11 | B43: 3743 | C43: 21 | D43: 3753 | K43: 0 | L43: 12
A44: 11 | B44: 3841 | C44: 21 | D44: 3851 | K44: 0 | L44: 12
A45: 11 | B45: 3938 | C45: 21 | D45: 3950 | K45: 0 | L45: 12
A46: 11 | B46: 4035 | C46: 21 | D46: 4045 | K46: 0 | L46: 12
A47: 11 | B47: 4132 | C47: 21 | D47: 4156 | K47: 0 | L47: 12
A48: 11 | B48: 4241 | C48: 21 | D48: 4253 | K48: 1 | L48: 12

Sheet !MC24850.091
A1: Report for:!MC24850.091
A2: Date: | B2: <date>
A3: Hen: | B3: <hen> | F3: Correct Sequence | G3: =Start!J2 -> 12 | P3: Total Sequences in Data | Q3: =4994-COUNTBLANK(L7:L5000) -> 52 | V3: Total Sequences in Block Data | W3: =COUNTA(L7:L15) -> 9 | AA3: Total Sequences in Block Data | AB3: =COUNTA(L16:L23) -> 8 | AF3: Total Sequences in Block Data | AG3: =COUNTA(L24:L32) -> 9 | AK3: Total Sequences in Block Data | AL3: =COUNTA(L33:L41) -> 9 | AP3: Total Sequences in Block Data | AQ3: =COUNTA(L42:L49) -> 8 | AU3: Total Sequences in Block Data | AV3: =COUNTA(L50:L58) -> 9
P4: Total Sequences in Summary | Q4: =SUM(O7:O14) -> 52 | V4: Total Sequences in Block Summary | W4: =SUM(U7:U14) -> 9 | AA4: Total Sequences in Block Summary | AB4: =SUM(Z7:Z14) -> 8 | AF4: Total Sequences in Block Summary | AG4: =SUM(AE7:AE14) -> 9 | AK4: Total Sequences in Block Summary | AL4: =SUM(AJ7:AJ14) -> 9 | AP4: Total Sequences in Block Summary | AQ4: =SUM(AO7:AO14) -> 8 | AU4: Total Sequences in Block Summary | AV4: =SUM(AT7:AT14) -> 9
T5: Block 1 | Y5: Block 2 | AD5: Block 3 | AI5: Block 4 | AN5: Block 5 | AS5: Block 6
A6: Sequence Component 1 | B6: Time 1 | C6: Sequence Component 2 | D6: Time 2 | E6: Sequence Component 3 | F6: Time 3 | G6: Sequence Component 4 | H6: Time 4 | I6: Sequence Component 5 | J6: Time 5 | K6: Correct? 0=No 1=Yes | L6: Sequence | N6: Frequency | P6: Relative Frequency | Q6: Variability | T6: Frequency | V6: Relative Frequency | W6: Variability | Y6: Frequency | AA6: Relative Frequency | AB6: Variability | AD6: Frequency | AF6: Relative Frequency | AG6: Variability | AI6: Frequency | AK6: Relative Frequency | AL6: Variability | AN6: Frequency | AP6: Relative Frequency | AQ6: Variability | AS6: Frequency | AU6: Relative Frequency | AV6: Variability
A7: 22 | B7: 17 | C7: 14 | D7: 28 | K7: 0 | L7: 21 | N7: 11 | O7: =COUNTIF($L$7:$L$500,N7) -> 4 | P7: =O7/$Q$4 -> 0.07692307692 | Q7: =IF(P7=0,0,(P7*((LOG(P7))/LOG(2)))) -> -0.2846492091 | T7: =N7 -> 11 | U7: =COUNTIF(L7:L15,T7) -> 0 | V7: =U7/(W4-U8) -> 0 | W7: =IF(V7=0,0,(V7*((LOG(V7))/LOG(2)))) -> 0 | Y7: =N7 -> 11 | Z7: =COUNTIF(L16:L23,Y7) -> 1 | AA7: =Z7/(AB4-Z8) -> 0.5 | AB7: =IF(AA7=0,0,(AA7*((LOG(AA7))/LOG(2)))) -> -0.5 | AD7: =N7 -> 11 | AE7: =COUNTIF(L24:L32,AD7) -> 1 | AF7: =AE7/(AG4-AE8) -> 0.5 | AG7: =IF(AF7=0,0,(AF7*((LOG(AF7))/LOG(2)))) -> -0.5 | AI7: =N7 -> 11 | AJ7: =COUNTIF(L33:L41,AI7) -> 1 | AK7: =AJ7/(AL4-AJ8) -> 0.3333333333 | AL7: =IF(AK7=0,0,(AK7*((LOG(AK7))/LOG(2)))) -> -0.5283208336 | AN7: =N7 -> 11 | AO7: =COUNTIF(L42:L49,AN7) -> 0 | AP7: =AO7/(AQ4-AO8) ->  | AQ7: =IF(AP7=0,0,(AP7*((LOG(AP7))/LOG(2)))) ->  | AS7: =N7 -> 11 | AT7: =COUNTIF(L50:L58,AS7) -> 1 | AU7: =AT7/(AV4-AT8) -> 0.5 | AV7: =IF(AU7=0,0,(AU7*((LOG(AU7))/LOG(2)))) -> -0.5
A8: 11 | B8: 132 | C8: 21 | D8: 146 | K8: 0 | L8: 12 | N8: 12 | O8: =COUNTIF($L$7:$L$500,N8) -> 40 | P8: =O8/$Q$4 -> 0.7692307692 | Q8: =IF(P8=0,0,(P8*((LOG(P8))/LOG(2)))) -> -0.2911627871 | T8: =N8 -> 12 | U8: =COUNTIF(L7:L15,T8) -> 6 | Y8: =N8 -> 12 | Z8: =COUNTIF(L16:L23,Y8) -> 6 | AD8: =N8 -> 12 | AE8: =COUNTIF(L24:L32,AD8) -> 7 | AI8: =N8 -> 12 | AJ8: =COUNTIF(L33:L41,AI8) -> 6 | AN8: =N8 -> 12 | AO8: =COUNTIF(L42:L49,AN8) -> 8 | AS8: =N8 -> 12 | AT8: =COUNTIF(L50:L58,AS8) -> 7
A9: 22 | B9: 248 | C9: 23 | D9: 263 | K9: 0 | L9: 22 | N9: 21 | O9: =COUNTIF($L$7:$L$500,N9) -> 2 | P9: =O9/$Q$4 -> 0.03846153846 | Q9: =IF(P9=0,0,(P9*((LOG(P9))/LOG(2)))) -> -0.180786143 | T9: =N9 -> 21 | U9: =COUNTIF(L7:L15,T9) -> 1 | V9: =U9/(W4-U8) -> 0.3333333333 | W9: =IF(V9=0,0,(V9*((LOG(V9))/LOG(2)))) -> -0.5283208336 | Y9: =N9 -> 21 | Z9: =COUNTIF(L16:L23,Y9) -> 0 | AA9: =Z9/(AB4-Z8) -> 0 | AB9: =IF(AA9=0,0,(AA9*((LOG(AA9))/LOG(2)))) -> 0 | AD9: =N9 -> 21 | AE9: =COUNTIF(L24:L32,AD9) -> 1 | AF9: =AE9/(AG4-AE8) -> 0.5 | AG9: =IF(AF9=0,0,(AF9*((LOG(AF9))/LOG(2)))) -> -0.5 | AI9: =N9 -> 21 | AJ9: =COUNTIF(L33:L41,AI9) -> 0 | AK9: =AJ9/(AL4-AJ8) -> 0 | AL9: =IF(AK9=0,0,(AK9*((LOG(AK9))/LOG(2)))) -> 0 | AN9: =N9 -> 21 | AO9: =COUNTIF(L42:L49,AN9) -> 0 | AP9: =AO9/(AQ4-AO8) ->  | AQ9: =IF(AP9=0,0,(AP9*((LOG(AP9))/LOG(2)))) ->  | AS9: =N9 -> 21 | AT9: =COUNTIF(L50:L58,AS9) -> 0 | AU9: =AT9/(AV4-AT8) -> 0 | AV9: =IF(AU9=0,0,(AU9*((LOG(AU9))/LOG(2)))) -> 0
A10: 11 | B10: 378 | C10: 21 | D10: 391 | K10: 0 | L10: 12 | N10: 22 | O10: =COUNTIF($L$7:$L$500,N10) -> 6 | P10: =O10/$Q$4 -> 0.1153846154 | Q10: =IF(P10=0,0,(P10*((LOG(P10))/LOG(2)))) -> -0.3594781405 | T10: =N10 -> 22 | U10: =COUNTIF(L7:L15,T10) -> 2 | V10: =U10/(W4-U8) -> 0.6666666667 | W10: =IF(V10=0,0,(V10*((LOG(V10))/LOG(2)))) -> -0.3899750005 | Y10: =N10 -> 22 | Z10: =COUNTIF(L16:L23,Y10) -> 1 | AA10: =Z10/(AB4-Z8) -> 0.5 | AB10: =IF(AA10=0,0,(AA10*((LOG(AA10))/LOG(2)))) -> -0.5 | AD10: =N10 -> 22 | AE10: =COUNTIF(L24:L32,AD10) -> 0 | AF10: =AE10/(AG4-AE8) -> 0 | AG10: =IF(AF10=0,0,(AF10*((LOG(AF10))/LOG(2)))) -> 0 | AI10: =N10 -> 22 | AJ10: =COUNTIF(L33:L41,AI10) -> 2 | AK10: =AJ10/(AL4-AJ8) -> 0.6666666667 | AL10: =IF(AK10=0,0,(AK10*((LOG(AK10))/LOG(2)))) -> -0.3899750005 | AN10: =N10 -> 22 | AO10: =COUNTIF(L42:L49,AN10) -> 0 | AP10: =AO10/(AQ4-AO8) ->  | AQ10: =IF(AP10=0,0,(AP10*((LOG(AP10))/LOG(2)))) ->  | AS10: =N10 -> 22 | AT10: =COUNTIF(L50:L58,AS10) -> 1 | AU10: =AT10/(AV4-AT8) -> 0.5 | AV10: =IF(AU10=0,0,(AU10*((LOG(AU10))/LOG(2)))) -> -0.5
A11: 22 | B11: 487 | C11: 23 | D11: 501 | K11: 0 | L11: 22 | T11: =N11 -> 0 | U11: =COUNTIF(L7:L15,T11) -> 0 | V11: =U11/(W4-U8) -> 0 | W11: =IF(V11=0,0,(V11*((LOG(V11))/LOG(2)))) -> 0 | Y11: =N11 -> 0 | Z11: =COUNTIF(L16:L23,Y11) -> 0 | AA11: =Z11/(AB4-Z8) -> 0 | AB11: =IF(AA11=0,0,(AA11*((LOG(AA11))/LOG(2)))) -> 0 | AD11: =N11 -> 0 | AE11: =COUNTIF(L24:L32,AD11) -> 0 | AF11: =AE11/(AG4-AE8) -> 0 | AG11: =IF(AF11=0,0,(AF11*((LOG(AF11))/LOG(2)))) -> 0 | AI11: =N11 -> 0 | AJ11: =COUNTIF(L33:L41,AI11) -> 0 | AK11: =AJ11/(AL4-AJ8) -> 0 | AL11: =IF(AK11=0,0,(AK11*((LOG(AK11))/LOG(2)))) -> 0 | AN11: =N11 -> 0 | AO11: =COUNTIF(L42:L49,AN11) -> 0 | AP11: =AO11/(AQ4-AO8) ->  | AQ11: =IF(AP11=0,0,(AP11*((LOG(AP11))/LOG(2)))) ->  | AS11: =N11 -> 0 | AT11: =COUNTIF(L50:L58,AS11) -> 0 | AU11: =AT11/(AV4-AT8) -> 0 | AV11: =IF(AU11=0,0,(AU11*((LOG(AU11))/LOG(2)))) -> 0
A12: 11 | B12: 600 | C12: 21 | D12: 613 | K12: 0 | L12: 12 | T12: =N12 -> 0 | U12: =COUNTIF(L7:L15,T12) -> 0 | V12: =U12/(W4-U8) -> 0 | W12: =IF(V12=0,0,(V12*((LOG(V12))/LOG(2)))) -> 0 | Y12: =N12 -> 0 | Z12: =COUNTIF(L16:L23,Y12) -> 0 | AA12: =Z12/(AB4-Z8) -> 0 | AB12: =IF(AA12=0,0,(AA12*((LOG(AA12))/LOG(2)))) -> 0 | AD12: =N12 -> 0 | AE12: =COUNTIF(L24:L32,AD12) -> 0 | AF12: =AE12/(AG4-AE8) -> 0 | AG12: =IF(AF12=0,0,(AF12*((LOG(AF12))/LOG(2)))) -> 0 | AI12: =N12 -> 0 | AJ12: =COUNTIF(L33:L41,AI12) -> 0 | AK12: =AJ12/(AL4-AJ8) -> 0 | AL12: =IF(AK12=0,0,(AK12*((LOG(AK12))/LOG(2)))) -> 0 | AN12: =N12 -> 0 | AO12: =COUNTIF(L42:L49,AN12) -> 0 | AP12: =AO12/(AQ4-AO8) ->  | AQ12: =IF(AP12=0,0,(AP12*((LOG(AP12))/LOG(2)))) ->  | AS12: =N12 -> 0 | AT12: =COUNTIF(L50:L58,AS12) -> 0 | AU12: =AT12/(AV4-AT8) -> 0 | AV12: =IF(AU12=0,0,(AU12*((LOG(AU12))/LOG(2)))) -> 0
A13: 11 | B13: 700 | C13: 21 | D13: 710 | K13: 0 | L13: 12 | T13: =N13 -> 0 | U13: =COUNTIF(L7:L15,T13) -> 0 | V13: =U13/(W4-U8) -> 0 | W13: =IF(V13=0,0,(V13*((LOG(V13))/LOG(2)))) -> 0 | Y13: =N13 -> 0 | Z13: =COUNTIF(L16:L23,Y13) -> 0 | AA13: =Z13/(AB4-Z8) -> 0 | AB13: =IF(AA13=0,0,(AA13*((LOG(AA13))/LOG(2)))) -> 0 | AD13: =N13 -> 0 | AE13: =COUNTIF(L24:L32,AD13) -> 0 | AF13: =AE13/(AG4-AE8) -> 0 | AG13: =IF(AF13=0,0,(AF13*((LOG(AF13))/LOG(2)))) -> 0 | AI13: =N13 -> 0 | AJ13: =COUNTIF(L33:L41,AI13) -> 0 | AK13: =AJ13/(AL4-AJ8) -> 0 | AL13: =IF(AK13=0,0,(AK13*((LOG(AK13))/LOG(2)))) -> 0 | AN13: =N13 -> 0 | AO13: =COUNTIF(L42:L49,AN13) -> 0 | AP13: =AO13/(AQ4-AO8) ->  | AQ13: =IF(AP13=0,0,(AP13*((LOG(AP13))/LOG(2)))) ->  | AS13: =N13 -> 0 | AT13: =COUNTIF(L50:L58,AS13) -> 0 | AU13: =AT13/(AV4-AT8) -> 0 | AV13: =IF(AU13=0,0,(AU13*((LOG(AU13))/LOG(2)))) -> 0
A14: 11 | B14: 792 | C14: 21 | D14: 831 | K14: 0 | L14: 12 | T14: =N14 -> 0 | U14: =COUNTIF(L7:L15,T14) -> 0 | V14: =U14/(W4-U8) -> 0 | W14: =IF(V14=0,0,(V14*((LOG(V14))/LOG(2)))) -> 0 | Y14: =N14 -> 0 | Z14: =COUNTIF(L16:L23,Y14) -> 0 | AA14: =Z14/(AB4-Z8) -> 0 | AB14: =IF(AA14=0,0,(AA14*((LOG(AA14))/LOG(2)))) -> 0 | AD14: =N14 -> 0 | AE14: =COUNTIF(L24:L32,AD14) -> 0 | AF14: =AE14/(AG4-AE8) -> 0 | AG14: =IF(AF14=0,0,(AF14*((LOG(AF14))/LOG(2)))) -> 0 | AI14: =N14 -> 0 | AJ14: =COUNTIF(L33:L41,AI14) -> 0 | AK14: =AJ14/(AL4-AJ8) -> 0 | AL14: =IF(AK14=0,0,(AK14*((LOG(AK14))/LOG(2)))) -> 0 | AN14: =N14 -> 0 | AO14: =COUNTIF(L42:L49,AN14) -> 0 | AP14: =AO14/(AQ4-AO8) ->  | AQ14: =IF(AP14=0,0,(AP14*((LOG(AP14))/LOG(2)))) ->  | AS14: =N14 -> 0 | AT14: =COUNTIF(L50:L58,AS14) -> 0 | AU14: =AT14/(AV4-AT8) -> 0 | AV14: =IF(AU14=0,0,(AU14*((LOG(AU14))/LOG(2)))) -> 0
A15: 11 | B15: 918 | C15: 21 | D15: 927 | K15: 0 | L15: 12 | P15: =SUM(P7:P14) -> 1 | Q15: =-SUM(Q7:Q14) -> 1.11607628 | V15: =SUM(V7:V14) -> 1 | W15: =-SUM(W7:W14) -> 0.9182958341 | AA15: =SUM(AA7:AA14) -> 1 | AB15: =-SUM(AB7:AB14) -> 1 | AF15: =SUM(AF7:AF14) -> 1 | AG15: =-SUM(AG7:AG14) -> 1 | AK15: =SUM(AK7:AK14) -> 1 | AL15: =-SUM(AL7:AL14) -> 0.9182958341 | AP15: =SUM(AP7:AP14) ->  | AQ15: =-SUM(AQ7:AQ14) ->  | AU15: =SUM(AU7:AU14) -> 1 | AV15: =-SUM(AV7:AV14) -> 1
A16: 11 | B16: 1012 | C16: 21 | D16: 1024 | K16: 0 | L16: 12 | P16: U= | Q16: =Q15/(LOG(Q4)/LOG(2)) -> 0.1957877523 | V16: U1= | W16: =W15/(LOG(W4)/LOG(2)) -> 0.2896900821 | AA16: U2= | AB16: =AB15/(LOG(AB4)/LOG(2)) -> 0.3333333333 | AF16: U3= | AG16: =AG15/(LOG(AG4)/LOG(2)) -> 0.3154648768 | AK16: U4= | AL16: =AL15/(LOG(AL4)/LOG(2)) -> 0.2896900821 | AP16: U5= | AQ16: =AQ15/(LOG(AQ4)/LOG(2)) ->  | AU16: U6= | AV16: =AV15/(LOG(AV4)/LOG(2)) -> 0.3154648768
A17: 11 | B17: 1111 | C17: 21 | D17: 1120 | K17: 0 | L17: 12
A18: 11 | B18: 1202 | C18: 12 | D18: 1206 | K18: 0 | L18: 11
A19: 11 | B19: 1303 | C19: 21 | D19: 1314 | K19: 0 | L19: 12 | N19: Total Target Seq
A20: 11 | B20: 1398 | C20: 21 | D20: 1408 | K20: 0 | L20: 12 | N20: =COUNTIF(L7:L58,G3) -> 40 | P20: 9 | Q20: 8 | R20: 9 | S20: 9 | T20: 8 | U20: 9
A21: 11 | B21: 1495 | C21: 21 | D21: 1506 | K21: 0 | L21: 12 | P21: % of reinforcement given in 6 equal intervals based on number of trials
A22: 11 | B22: 1593 | C22: 21 | D22: 1602 | K22: 0 | L22: 12 | P22: %_1 | Q22: %_2 | R22: %_3 | S22: %_4 | T22: %_5 | U22: %_6
A23: 22 | B23: 1696 | C23: 23 | D23: 1708 | K23: 0 | L23: 22 | O23: target sequence | P23: =$G$3 -> 12 | Q23: =$G$3 -> 12 | R23: =$G$3 -> 12 | S23: =$G$3 -> 12 | T23: =$G$3 -> 12 | U23: =$G$3 -> 12
A24: 22 | B24: 1811 | C24: 14 | D24: 1821 | K24: 0 | L24: 21 | O24: total reinforcement | P24: =U8 -> 6 | Q24: =Z8 -> 6 | R24: =AE8 -> 7 | S24: =AJ8 -> 6 | T24: =AO8 -> 8 | U24: =AT8 -> 7
A25: 11 | B25: 1918 | C25: 21 | D25: 1930 | K25: 0 | L25: 12 | O25: % target
A26: 11 | B26: 2019 | C26: 21 | D26: 2029 | K26: 0 | L26: 12 | O26: CCRF
A27: 11 | B27: 2116 | C27: 21 | D27: 2125 | K27: 0 | L27: 12 | O27: % CCRf
A28: 11 | B28: 2212 | C28: 21 | D28: 2221 | K28: 0 | L28: 12 | O28: average response rate | P28: =D15/P20 -> 103 | Q28: =(D23-D15)/Q20 -> 97.625 | R28: =(D32-D23)/R20 -> 98.66666667 | S28: =(D41-D32)/S20 -> 105 | T28: =(D49-D41)/T20 -> 107.25 | U28: =(D58-D49)/U20 -> 101.4444444
A29: 11 | B29: 2307 | C29: 21 | D29: 2317 | K29: 0 | L29: 12
A30: 11 | B30: 2404 | C30: 21 | D30: 2414 | K30: 0 | L30: 12
A31: 11 | B31: 2499 | C31: 21 | D31: 2509 | K31: 0 | L31: 12
A32: 11 | B32: 2591 | C32: 12 | D32: 2596 | K32: 0 | L32: 11
A33: 11 | B33: 2690 | C33: 21 | D33: 2702 | K33: 0 | L33: 12
A34: 11 | B34: 2792 | C34: 21 | D34: 2817 | K34: 0 | L34: 12
A35: 11 | B35: 2905 | C35: 21 | D35: 2914 | K35: 0 | L35: 12
A36: 11 | B36: 3000 | C36: 21 | D36: 3009 | K36: 0 | L36: 12
A37: 11 | B37: 3105 | C37: 21 | D37: 3117 | K37: 0 | L37: 12
A38: 11 | B38: 3199 | C38: 12 | D38: 3203 | K38: 0 | L38: 11
A39: 11 | B39: 3301 | C39: 21 | D39: 3311 | K39: 0 | L39: 12
A40: 22 | B40: 3408 | C40: 23 | D40: 3417 | K40: 0 | L40: 22
A41: 22 | B41: 3526 | C41: 23 | D41: 3541 | K41: 0 | L41: 22
A42: 11 | B42: 3637 | C42: 21 | D42: 3652 | K42: 0 | L42: 12
A43: 11 | B43: 3747 | C43: 21 | D43: 3760 | K43: 0 | L43: 12
A44: 11 | B44: 3848 | C44: 21 | D44: 3858 | K44: 0 | L44: 12
A45: 11 | B45: 3946 | C45: 21 | D45: 3959 | K45: 0 | L45: 12
A46: 11 | B46: 4052 | C46: 21 | D46: 4098 | K46: 0 | L46: 12
A47: 11 | B47: 4185 | C47: 21 | D47: 4194 | K47: 0 | L47: 12
A48: 11 | B48: 4286 | C48: 21 | D48: 4295 | K48: 0 | L48: 12
A49: 11 | B49: 4386 | C49: 21 | D49: 4399 | K49: 0 | L49: 12
A50: 11 | B50: 4484 | C50: 21 | D50: 4493 | K50: 0 | L50: 12
A51: 11 | B51: 4581 | C51: 21 | D51: 4590 | K51: 0 | L51: 12
A52: 11 | B52: 4677 | C52: 21 | D52: 4686 | K52: 0 | L52: 12
A53: 11 | B53: 4777 | C53: 21 | D53: 4786 | K53: 0 | L53: 12
A54: 22 | B54: 4882 | C54: 23 | D54: 4908 | K54: 0 | L54: 22
A55: 11 | B55: 5000 | C55: 12 | D55: 5005 | K55: 0 | L55: 11
A56: 11 | B56: 5100 | C56: 21 | D56: 5110 | K56: 0 | L56: 12
A57: 11 | B57: 5201 | C57: 21 | D57: 5214 | K57: 0 | L57: 12
A58: 11 | B58: 5302 | C58: 21 | D58: 5312 | K58: 1 | L58: 12

Sheet !N102830.091
A1: Report for:!N102830.091
A2: Date: | B2: <date>
A3: Hen: | B3: <hen> | F3: Correct Sequence | G3: =Start!J2 -> 12 | P3: Total Sequences in Data | Q3: =4994-COUNTBLANK(L7:L5000) -> 52 | V3: Total Sequences in Block Data | W3: =COUNTA(L7:L15) -> 9 | AA3: Total Sequences in Block Data | AB3: =COUNTA(L16:L23) -> 8 | AF3: Total Sequences in Block Data | AG3: =COUNTA(L24:L32) -> 9 | AK3: Total Sequences in Block Data | AL3: =COUNTA(L33:L41) -> 9 | AP3: Total Sequences in Block Data | AQ3: =COUNTA(L42:L49) -> 8 | AU3: Total Sequences in Block Data | AV3: =COUNTA(L50:L58) -> 9
P4: Total Sequences in Summary | Q4: =SUM(O7:O14) -> 52 | V4: Total Sequences in Block Summary | W4: =SUM(U7:U14) -> 9 | AA4: Total Sequences in Block Summary | AB4: =SUM(Z7:Z14) -> 8 | AF4: Total Sequences in Block Summary | AG4: =SUM(AE7:AE14) -> 9 | AK4: Total Sequences in Block Summary | AL4: =SUM(AJ7:AJ14) -> 9 | AP4: Total Sequences in Block Summary | AQ4: =SUM(AO7:AO14) -> 8 | AU4: Total Sequences in Block Summary | AV4: =SUM(AT7:AT14) -> 9
T5: Block 1 | Y5: Block 2 | AD5: Block 3 | AI5: Block 4 | AN5: Block 5 | AS5: Block 6
A6: Sequence Component 1 | B6: Time 1 | C6: Sequence Component 2 | D6: Time 2 | E6: Sequence Component 3 | F6: Time 3 | G6: Sequence Component 4 | H6: Time 4 | I6: Sequence Component 5 | J6: Time 5 | K6: Correct? 0=No 1=Yes | L6: Sequence | N6: Frequency | P6: Relative Frequency | Q6: Variability | T6: Frequency | V6: Relative Frequency | W6: Variability | Y6: Frequency | AA6: Relative Frequency | AB6: Variability | AD6: Frequency | AF6: Relative Frequency | AG6: Variability | AI6: Frequency | AK6: Relative Frequency | AL6: Variability | AN6: Frequency | AP6: Relative Frequency | AQ6: Variability | AS6: Frequency | AU6: Relative Frequency | AV6: Variability
A7: 11 | B7: 11 | C7: 21 | D7: 23 | K7: 0 | L7: 12 | N7: 11 | O7: =COUNTIF($L$7:$L$500,N7) -> 2 | P7: =O7/$Q$4 -> 0.03846153846 | Q7: =IF(P7=0,0,(P7*((LOG(P7))/LOG(2)))) -> -0.180786143 | T7: =N7 -> 11 | U7: =COUNTIF(L7:L15,T7) -> 0 | V7: =U7/(W4-U8) ->  | W7: =IF(V7=0,0,(V7*((LOG(V7))/LOG(2)))) ->  | Y7: =N7 -> 11 | Z7: =COUNTIF(L16:L23,Y7) -> 0 | AA7: =Z7/(AB4-Z8) -> 0 | AB7: =IF(AA7=0,0,(AA7*((LOG(AA7))/LOG(2)))) -> 0 | AD7: =N7 -> 11 | AE7: =COUNTIF(L24:L32,AD7) -> 0 | AF7: =AE7/(AG4-AE8) -> 0 | AG7: =IF(AF7=0,0,(AF7*((LOG(AF7))/LOG(2)))) -> 0 | AI7: =N7 -> 11 | AJ7: =COUNTIF(L33:L41,AI7) -> 1 | AK7: =AJ7/(AL4-AJ8) -> 0.25 | AL7: =IF(AK7=0,0,(AK7*((LOG(AK7))/LOG(2)))) -> -0.5 | AN7: =N7 -> 11 | AO7: =COUNTIF(L42:L49,AN7) -> 0 | AP7: =AO7/(AQ4-AO8) -> 0 | AQ7: =IF(AP7=0,0,(AP7*((LOG(AP7))/LOG(2)))) -> 0 | AS7: =N7 -> 11 | AT7: =COUNTIF(L50:L58,AS7) -> 1 | AU7: =AT7/(AV4-AT8) -> 0.3333333333 | AV7: =IF(AU7=0,0,(AU7*((LOG(AU7))/LOG(2)))) -> -0.5283208336
A8: 11 | B8: 115 | C8: 21 | D8: 129 | K8: 0 | L8: 12 | N8: 12 | O8: =COUNTIF($L$7:$L$500,N8) -> 40 | P8: =O8/$Q$4 -> 0.7692307692 | Q8: =IF(P8=0,0,(P8*((LOG(P8))/LOG(2)))) -> -0.2911627871 | T8: =N8 -> 12 | U8: =COUNTIF(L7:L15,T8) -> 9 | Y8: =N8 -> 12 | Z8: =COUNTIF(L16:L23,Y8) -> 6 | AD8: =N8 -> 12 | AE8: =COUNTIF(L24:L32,AD8) -> 8 | AI8: =N8 -> 12 | AJ8: =COUNTIF(L33:L41,AI8) -> 5 | AN8: =N8 -> 12 | AO8: =COUNTIF(L42:L49,AN8) -> 6 | AS8: =N8 -> 12 | AT8: =COUNTIF(L50:L58,AS8) -> 6
A9: 11 | B9: 228 | C9: 21 | D9: 237 | K9: 0 | L9: 12 | N9: 21 | O9: =COUNTIF($L$7:$L$500,N9) -> 1 | P9: =O9/$Q$4 -> 0.01923076923 | Q9: =IF(P9=0,0,(P9*((LOG(P9))/LOG(2)))) -> -0.1096238407 | T9: =N9 -> 21 | U9: =COUNTIF(L7:L15,T9) -> 0 | V9: =U9/(W4-U8) ->  | W9: =IF(V9=0,0,(V9*((LOG(V9))/LOG(2)))) ->  | Y9: =N9 -> 21 | Z9: =COUNTIF(L16:L23,Y9) -> 0 | AA9: =Z9/(AB4-Z8) -> 0 | AB9: =IF(AA9=0,0,(AA9*((LOG(AA9))/LOG(2)))) -> 0 | AD9: =N9 -> 21 | AE9: =COUNTIF(L24:L32,AD9) -> 0 | AF9: =AE9/(AG4-AE8) -> 0 | AG9: =IF(AF9=0,0,(AF9*((LOG(AF9))/LOG(2)))) -> 0 | AI9: =N9 -> 21 | AJ9: =COUNTIF(L33:L41,AI9) -> 0 | AK9: =AJ9/(AL4-AJ8) -> 0 | AL9: =IF(AK9=0,0,(AK9*((LOG(AK9))/LOG(2)))) -> 0 | AN9: =N9 -> 21 | AO9: =COUNTIF(L42:L49,AN9) -> 1 | AP9: =AO9/(AQ4-AO8) -> 0.5 | AQ9: =IF(AP9=0,0,(AP9*((LOG(AP9))/LOG(2)))) -> -0.5 | AS9: =N9 -> 21 | AT9: =COUNTIF(L50:L58,AS9) -> 0 | AU9: =AT9/(AV4-AT8) -> 0 | AV9: =IF(AU9=0,0,(AU9*((LOG(AU9))/LOG(2)))) -> 0
A10: 11 | B10: 324 | C10: 21 | D10: 335 | K10: 0 | L10: 12 | N10: 22 | O10: =COUNTIF($L$7:$L$500,N10) -> 9 | P10: =O10/$Q$4 -> 0.1730769231 | Q10: =IF(P10=0,0,(P10*((LOG(P10))/LOG(2)))) -> -0.437973701 | T10: =N10 -> 22 | U10: =COUNTIF(L7:L15,T10) -> 0 | V10: =U10/(W4-U8) ->  | W10: =IF(V10=0,0,(V10*((LOG(V10))/LOG(2)))) ->  | Y10: =N10 -> 22 | Z10: =COUNTIF(L16:L23,Y10) -> 2 | AA10: =Z10/(AB4-Z8) -> 1 | AB10: =IF(AA10=0,0,(AA10*((LOG(AA10))/LOG(2)))) -> 0 | AD10: =N10 -> 22 | AE10: =COUNTIF(L24:L32,AD10) -> 1 | AF10: =AE10/(AG4-AE8) -> 1 | AG10: =IF(AF10=0,0,(AF10*((LOG(AF10))/LOG(2)))) -> 0 | AI10: =N10 -> 22 | AJ10: =COUNTIF(L33:L41,AI10) -> 3 | AK10: =AJ10/(AL4-AJ8) -> 0.75 | AL10: =IF(AK10=0,0,(AK10*((LOG(AK10))/LOG(2)))) -> -0.3112781245 | AN10: =N10 -> 22 | AO10: =COUNTIF(L42:L49,AN10) -> 1 | AP10: =AO10/(AQ4-AO8) -> 0.5 | AQ10: =IF(AP10=0,0,(AP10*((LOG(AP10))/LOG(2)))) -> -0.5 | AS10: =N10 -> 22 | AT10: =COUNTIF(L50:L58,AS10) -> 2 | AU10: =AT10/(AV4-AT8) -> 0.6666666667 | AV10: =IF(AU10=0,0,(AU10*((LOG(AU10))/LOG(2)))) -> -0.3899750005
A11: 11 | B11: 422 | C11: 21 | D11: 436 | K11: 0 | L11: 12 | T11: =N11 -> 0 | U11: =COUNTIF(L7:L15,T11) -> 0 | V11: =U11/(W4-U8) ->  | W11: =IF(V11=0,0,(V11*((LOG(V11))/LOG(2)))) ->  | Y11: =N11 -> 0 | Z11: =COUNTIF(L16:L23,Y11) -> 0 | AA11: =Z11/(AB4-Z8) -> 0 | AB11: =IF(AA11=0,0,(AA11*((LOG(AA11))/LOG(2)))) -> 0 | AD11: =N11 -> 0 | AE11: =COUNTIF(L24:L32,AD11) -> 0 | AF11: =AE11/(AG4-AE8) -> 0 | AG11: =IF(AF11=0,0,(AF11*((LOG(AF11))/LOG(2)))) -> 0 | AI11: =N11 -> 0 | AJ11: =COUNTIF(L33:L41,AI11) -> 0 | AK11: =AJ11/(AL4-AJ8) -> 0 | AL11: =IF(AK11=0,0,(AK11*((LOG(AK11))/LOG(2)))) -> 0 | AN11: =N11 -> 0 | AO11: =COUNTIF(L42:L49,AN11) -> 0 | AP11: =AO11/(AQ4-AO8) -> 0 | AQ11: =IF(AP11=0,0,(AP11*((LOG(AP11))/LOG(2)))) -> 0 | AS11: =N11 -> 0 | AT11: =COUNTIF(L50:L58,AS11) -> 0 | AU11: =AT11/(AV4-AT8) -> 0 | AV11: =IF(AU11=0,0,(AU11*((LOG(AU11))/LOG(2)))) -> 0
A12: 11 | B12: 526 | C12: 21 | D12: 540 | K12: 0 | L12: 12 | T12: =N12 -> 0 | U12: =COUNTIF(L7:L15,T12) -> 0 | V12: =U12/(W4-U8) ->  | W12: =IF(V12=0,0,(V12*((LOG(V12))/LOG(2)))) ->  | Y12: =N12 -> 0 | Z12: =COUNTIF(L16:L23,Y12) -> 0 | AA12: =Z12/(AB4-Z8) -> 0 | AB12: =IF(AA12=0,0,(AA12*((LOG(AA12))/LOG(2)))) -> 0 | AD12: =N12 -> 0 | AE12: =COUNTIF(L24:L32,AD12) -> 0 | AF12: =AE12/(AG4-AE8) -> 0 | AG12: =IF(AF12=0,0,(AF12*((LOG(AF12))/LOG(2)))) -> 0 | AI12: =N12 -> 0 | AJ12: =COUNTIF(L33:L41,AI12) -> 0 | AK12: =AJ12/(AL4-AJ8) -> 0 | AL12: =IF(AK12=0,0,(AK12*((LOG(AK12))/LOG(2)))) -> 0 | AN12: =N12 -> 0 | AO12: =COUNTIF(L42:L49,AN12) -> 0 | AP12: =AO12/(AQ4-AO8) -> 0 | AQ12: =IF(AP12=0,0,(AP12*((LOG(AP12))/LOG(2)))) -> 0 | AS12: =N12 -> 0 | AT12: =COUNTIF(L50:L58,AS12) -> 0 | AU12: =AT12/(AV4-AT8) -> 0 | AV12: =IF(AU12=0,0,(AU12*((LOG(AU12))/LOG(2)))) -> 0
A13: 11 | B13: 627 | C13: 21 | D13: 636 | K13: 0 | L13: 12 | T13: =N13 -> 0 | U13: =COUNTIF(L7:L15,T13) -> 0 | V13: =U13/(W4-U8) ->  | W13: =IF(V13=0,0,(V13*((LOG(V13))/LOG(2)))) ->  | Y13: =N13 -> 0 | Z13: =COUNTIF(L16:L23,Y13) -> 0 | AA13: =Z13/(AB4-Z8) -> 0 | AB13: =IF(AA13=0,0,(AA13*((LOG(AA13))/LOG(2)))) -> 0 | AD13: =N13 -> 0 | AE13: =COUNTIF(L24:L32,AD13) -> 0 | AF13: =AE13/(AG4-AE8) -> 0 | AG13: =IF(AF13=0,0,(AF13*((LOG(AF13))/LOG(2)))) -> 0 | AI13: =N13 -> 0 | AJ13: =COUNTIF(L33:L41,AI13) -> 0 | AK13: =AJ13/(AL4-AJ8) -> 0 | AL13: =IF(AK13=0,0,(AK13*((LOG(AK13))/LOG(2)))) -> 0 | AN13: =N13 -> 0 | AO13: =COUNTIF(L42:L49,AN13) -> 0 | AP13: =AO13/(AQ4-AO8) -> 0 | AQ13: =IF(AP13=0,0,(AP13*((LOG(AP13))/LOG(2)))) -> 0 | AS13: =N13 -> 0 | AT13: =COUNTIF(L50:L58,AS13) -> 0 | AU13: =AT13/(AV4-AT8) -> 0 | AV13: =IF(AU13=0,0,(AU13*((LOG(AU13))/LOG(2)))) -> 0
A14: 11 | B14: 726 | C14: 21 | D14: 739 | K14: 0 | L14: 12 | T14: =N14 -> 0 | U14: =COUNTIF(L7:L15,T14) -> 0 | V14: =U14/(W4-U8) ->  | W14: =IF(V14=0,0,(V14*((LOG(V14))/LOG(2)))) ->  | Y14: =N14 -> 0 | Z14: =COUNTIF(L16:L23,Y14) -> 0 | AA14: =Z14/(AB4-Z8) -> 0 | AB14: =IF(AA14=0,0,(AA14*((LOG(AA14))/LOG(2)))) -> 0 | AD14: =N14 -> 0 | AE14: =COUNTIF(L24:L32,AD14) -> 0 | AF14: =AE14/(AG4-AE8) -> 0 | AG14: =IF(AF14=0,0,(AF14*((LOG(AF14))/LOG(2)))) -> 0 | AI14: =N14 -> 0 | AJ14: =COUNTIF(L33:L41,AI14) -> 0 | AK14: =AJ14/(AL4-AJ8) -> 0 | AL14: =IF(AK14=0,0,(AK14*((LOG(AK14))/LOG(2)))) -> 0 | AN14: =N14 -> 0 | AO14: =COUNTIF(L42:L49,AN14) -> 0 | AP14: =AO14/(AQ4-AO8) -> 0 | AQ14: =IF(AP14=0,0,(AP14*((LOG(AP14))/LOG(2)))) -> 0 | AS14: =N14 -> 0 | AT14: =COUNTIF(L50:L58,AS14) -> 0 | AU14: =AT14/(AV4-AT8) -> 0 | AV14: =IF(AU14=0,0,(AU14*((LOG(AU14))/LOG(2)))) -> 0
A15: 11 | B15: 825 | C15: 21 | D15: 851 | K15: 0 | L15: 12 | P15: =SUM(P7:P14) -> 1 | Q15: =-SUM(Q7:Q14) -> 1.019546472 | V15: =SUM(V7:V14) ->  | W15: =-SUM(W7:W14) ->  | AA15: =SUM(AA7:AA14) -> 1 | AB15: =-SUM(AB7:AB14) -> 0 | AF15: =SUM(AF7:AF14) -> 1 | AG15: =-SUM(AG7:AG14) -> 0 | AK15: =SUM(AK7:AK14) -> 1 | AL15: =-SUM(AL7:AL14) -> 0.8112781245 | AP15: =SUM(AP7:AP14) -> 1 | AQ15: =-SUM(AQ7:AQ14) -> 1 | AU15: =SUM(AU7:AU14) -> 1 | AV15: =-SUM(AV7:AV14) -> 0.9182958341
A16: 22 | B16: 949 | C16: 23 | D16: 969 | K16: 0 | L16: 22 | P16: U= | Q16: =Q15/(LOG(Q4)/LOG(2)) -> 0.1788540046 | V16: U1= | W16: =W15/(LOG(W4)/LOG(2)) ->  | AA16: U2= | AB16: =AB15/(LOG(AB4)/LOG(2)) -> 0 | AF16: U3= | AG16: =AG15/(LOG(AG4)/LOG(2)) -> 0 | AK16: U4= | AL16: =AL15/(LOG(AL4)/LOG(2)) -> 0.2559297536 | AP16: U5= | AQ16: =AQ15/(LOG(AQ4)/LOG(2)) -> 0.3333333333 | AU16: U6= | AV16: =AV15/(LOG(AV4)/LOG(2)) -> 0.2896900821
A17: 11 | B17: 1065 | C17: 21 | D17: 1078 | K17: 0 | L17: 12
A18: 11 | B18: 1167 | C18: 21 | D18: 1179 | K18: 0 | L18: 12
A19: 22 | B19: 1278 | C19: 23 | D19: 1286 | K19: 0 | L19: 22 | N19: Total Target Seq
A20: 11 | B20: 1383 | C20: 21 | D20: 1397 | K20: 0 | L20: 12 | N20: =COUNTIF(L7:L58,G3) -> 40 | P20: 9 | Q20: 8 | R20: 9 | S20: 9 | T20: 8 | U20: 9
A21: 11 | B21: 1489 | C21: 21 | D21: 1501 | K21: 0 | L21: 12 | P21: % of reinforcement given in 6 equal intervals based on number of trials
A22: 11 | B22: 1593 | C22: 21 | D22: 1606 | K22: 0 | L22: 12 | P22: %_1 | Q22: %_2 | R22: %_3 | S22: %_4 | T22: %_5 | U22: %_6
A23: 11 | B23: 1695 | C23: 21 | D23: 1706 | K23: 0 | L23: 12 | O23: target sequence | P23: =$G$3 -> 12 | Q23: =$G$3 -> 12 | R23: =$G$3 -> 12 | S23: =$G$3 -> 12 | T23: =$G$3 -> 12 | U23: =$G$3 -> 12
A24: 11 | B24: 1793 | C24: 21 | D24: 1805 | K24: 0 | L24: 12 | O24: total reinforcement | P24: =U8 -> 9 | Q24: =Z8 -> 6 | R24: =AE8 -> 8 | S24: =AJ8 -> 5 | T24: =AO8 -> 6 | U24: =AT8 -> 6
A25: 11 | B25: 1891 | C25: 21 | D25: 1903 | K25: 0 | L25: 12 | O25: % target
A26: 11 | B26: 1990 | C26: 21 | D26: 2003 | K26: 0 | L26: 12 | O26: CCRF
A27: 11 | B27: 2091 | C27: 21 | D27: 2103 | K27: 0 | L27: 12 | O27: % CCRf
A28: 11 | B28: 2187 | C28: 21 | D28: 2198 | K28: 0 | L28: 12 | O28: average response rate | P28: =D15/P20 -> 94.55555556 | Q28: =(D23-D15)/Q20 -> 106.875 | R28: =(D32-D23)/R20 -> 103.7777778 | S28: =(D41-D32)/S20 -> 108.2222222 | T28: =(D49-D41)/T20 -> 112.375 | U28: =(D58-D49)/U20 -> 106.2222222
A29: 22 | B29: 2293 | C29: 23 | D29: 2302 | K29: 0 | L29: 22
A30: 11 | B30: 2398 | C30: 21 | D30: 2411 | K30: 0 | L30: 12
A31: 11 | B31: 2497 | C31: 21 | D31: 2507 | K31: 0 | L31: 12
A32: 11 | B32: 2592 | C32: 21 | D32: 2640 | K32: 0 | L32: 12
A33: 22 | B33: 2734 | C33: 23 | D33: 2748 | K33: 0 | L33: 22
A34: 11 | B34: 2846 | C34: 21 | D34: 2858 | K34: 0 | L34: 12
A35: 22 | B35: 2957 | C35: 23 | D35: 2971 | K35: 0 | L35: 22
A36: 11 | B36: 3074 | C36: 21 | D36: 3086 | K36: 0 | L36: 12
A37: 11 | B37: 3172 | C37: 21 | D37: 3192 | K37: 0 | L37: 12
A38: 11 | B38: 3273 | C38: 12 | D38: 3278 | K38: 0 | L38: 11
A39: 11 | B39: 3382 | C39: 21 | D39: 3395 | K39: 0 | L39: 12
A40: 22 | B40: 3494 | C40: 23 | D40: 3503 | K40: 0 | L40: 22
A41: 11 | B41: 3599 | C41: 21 | D41: 3614 | K41: 0 | L41: 12
A42: 11 | B42: 3700 | C42: 21 | D42: 3714 | K42: 0 | L42: 12
A43: 11 | B43: 3805 | C43: 21 | D43: 3815 | K43: 0 | L43: 12
A44: 11 | B44: 3902 | C44: 21 | D44: 3914 | K44: 0 | L44: 12
A45: 22 | B45: 4055 | C45: 14 | D45: 4076 | K45: 0 | L45: 21
A46: 22 | B46: 4185 | C46: 23 | D46: 4193 | K46: 0 | L46: 22
A47: 11 | B47: 4291 | C47: 21 | D47: 4303 | K47: 0 | L47: 12
A48: 11 | B48: 4393 | C48: 21 | D48: 4403 | K48: 0 | L48: 12
A49: 11 | B49: 4492 | C49: 21 | D49: 4513 | K49: 0 | L49: 12
A50: 11 | B50: 4597 | C50: 21 | D50: 4612 | K50: 0 | L50: 12
A51: 11 | B51: 4697 | C51: 21 | D51: 4708 | K51: 0 | L51: 12
A52: 22 | B52: 4807 | C52: 23 | D52: 4814 | K52: 0 | L52: 22
A53: 11 | B53: 4909 | C53: 21 | D53: 4922 | K53: 0 | L53: 12
A54: 11 | B54: 5014 | C54: 21 | D54: 5025 | K54: 0 | L54: 12
A55: 11 | B55: 5120 | C55: 21 | D55: 5144 | K55: 0 | L55: 12
A56: 11 | B56: 5226 | C56: 12 | D56: 5231 | K56: 0 | L56: 11
A57: 22 | B57: 5338 | C57: 23 | D57: 5353 | K57: 0 | L57: 22
A58: 11 | B58: 5454 | C58: 21 | D58: 5469 | K58: 1 | L58: 12

Sheet !N104A00.091
A1: Report for:!N104A00.091
A2: Date: | B2: <date>
A3: Hen: | B3: <hen> | F3: Correct Sequence | G3: =Start!J2 -> 12 | P3: Total Sequences in Data | Q3: =4994-COUNTBLANK(L7:L5000) -> 43 | V3: Total Sequences in Block Data | W3: =COUNTA(L7:L13) -> 7 | AA3: Total Sequences in Block Data | AB3: =COUNTA(L14:L20) -> 7 | AF3: Total Sequences in Block Data | AG3: =COUNTA(L21:L28) -> 8 | AK3: Total Sequences in Block Data | AL3: =COUNTA(L29:L35) -> 7 | AP3: Total Sequences in Block Data | AQ3: =COUNTA(L36:L42) -> 7 | AU3: Total Sequences in Block Data | AV3: =COUNTA(L43:L49) -> 7
P4: Total Sequences in Summary | Q4: =SUM(O7:O14) -> 43 | V4: Total Sequences in Block Summary | W4: =SUM(U7:U14) -> 7 | AA4: Total Sequences in Block Summary | AB4: =SUM(Z7:Z14) -> 7 | AF4: Total Sequences in Block Summary | AG4: =SUM(AE7:AE14) -> 8 | AK4: Total Sequences in Block Summary | AL4: =SUM(AJ7:AJ14) -> 7 | AP4: Total Sequences in Block Summary | AQ4: =SUM(AO7:AO14) -> 7 | AU4: Total Sequences in Block Summary | AV4: =SUM(AT7:AT14) -> 7
T5: Block 1 | Y5: Block 2 | AD5: Block 3 | AI5: Block 4 | AN5: Block 5 | AS5: Block 6
A6: Sequence Component 1 | B6: Time 1 | C6: Sequence Component 2 | D6: Time 2 | E6: Sequence Component 3 | F6: Time 3 | G6: Sequence Component 4 | H6: Time 4 | I6: Sequence Component 5 | J6: Time 5 | K6: Correct? 0=No 1=Yes | L6: Sequence | N6: Frequency | P6: Relative Frequency | Q6: Variability | T6: Frequency | V6: Relative Frequency | W6: Variability | Y6: Frequency | AA6: Relative Frequency | AB6: Variability | AD6: Frequency | AF6: Relative Frequency | AG6: Variability | AI6: Frequency | AK6: Relative Frequency | AL6: Variability | AN6: Frequency | AP6: Relative Frequency | AQ6: Variability | AS6: Frequency | AU6: Relative Frequency | AV6: Variability
A7: 11 | B7: 18 | C7: 21 | D7: 32 | K7: 0 | L7: 12 | N7: 11 | O7: =COUNTIF($L$7:$L$500,N7) -> 1 | P7: =O7/$Q$4 -> 0.02325581395 | Q7: =IF(P7=0,0,(P7*((LOG(P7))/LOG(2)))) -> -0.1261922036 | T7: =N7 -> 11 | U7: =COUNTIF(L7:L13,T7) -> 1 | V7: =U7/(W4-U8) -> 1 | W7: =IF(V7=0,0,(V7*((LOG(V7))/LOG(2)))) -> 0 | Y7: =N7 -> 11 | Z7: =COUNTIF(L14:L20,Y7) -> 0 | AA7: =Z7/(AB4-Z8) -> 0 | AB7: =IF(AA7=0,0,(AA7*((LOG(AA7))/LOG(2)))) -> 0 | AD7: =N7 -> 11 | AE7: =COUNTIF(L21:L28,AD7) -> 0 | AF7: =AE7/(AG4-AE8) ->  | AG7: =IF(AF7=0,0,(AF7*((LOG(AF7))/LOG(2)))) ->  | AI7: =N7 -> 11 | AJ7: =COUNTIF(L29:L35,AI7) -> 0 | AK7: =AJ7/(AL4-AJ8) ->  | AL7: =IF(AK7=0,0,(AK7*((LOG(AK7))/LOG(2)))) ->  | AN7: =N7 -> 11 | AO7: =COUNTIF(L36:L42,AN7) -> 0 | AP7: =AO7/(AQ4-AO8) -> 0 | AQ7: =IF(AP7=0,0,(AP7*((LOG(AP7))/LOG(2)))) -> 0 | AS7: =N7 -> 11 | AT7: =COUNTIF(L43:L49,AS7) -> 0 | AU7: =AT7/(AV4-AT8) ->  | AV7: =IF(AU7=0,0,(AU7*((LOG(AU7))/LOG(2)))) -> 
A8: 11 | B8: 120 | C8: 21 | D8: 136 | K8: 0 | L8: 12 | N8: 12 | O8: =COUNTIF($L$7:$L$500,N8) -> 40 | P8: =O8/$Q$4 -> 0.9302325581 | Q8: =IF(P8=0,0,(P8*((LOG(P8))/LOG(2)))) -> -0.09705735797 | T8: =N8 -> 12 | U8: =COUNTIF(L7:L13,T8) -> 6 | Y8: =N8 -> 12 | Z8: =COUNTIF(L14:L20,Y8) -> 6 | AD8: =N8 -> 12 | AE8: =COUNTIF(L21:L28,AD8) -> 8 | AI8: =N8 -> 12 | AJ8: =COUNTIF(L29:L35,AI8) -> 7 | AN8: =N8 -> 12 | AO8: =COUNTIF(L36:L42,AN8) -> 6 | AS8: =N8 -> 12 | AT8: =COUNTIF(L43:L49,AS8) -> 7
A9: 11 | B9: 250 | C9: 21 | D9: 287 | K9: 0 | L9: 12 | N9: 21 | O9: =COUNTIF($L$7:$L$500,N9) -> 0 | P9: =O9/$Q$4 -> 0 | Q9: =IF(P9=0,0,(P9*((LOG(P9))/LOG(2)))) -> 0 | T9: =N9 -> 21 | U9: =COUNTIF(L7:L13,T9) -> 0 | V9: =U9/(W4-U8) -> 0 | W9: =IF(V9=0,0,(V9*((LOG(V9))/LOG(2)))) -> 0 | Y9: =N9 -> 21 | Z9: =COUNTIF(L14:L20,Y9) -> 0 | AA9: =Z9/(AB4-Z8) -> 0 | AB9: =IF(AA9=0,0,(AA9*((LOG(AA9))/LOG(2)))) -> 0 | AD9: =N9 -> 21 | AE9: =COUNTIF(L21:L28,AD9) -> 0 | AF9: =AE9/(AG4-AE8) ->  | AG9: =IF(AF9=0,0,(AF9*((LOG(AF9))/LOG(2)))) ->  | AI9: =N9 -> 21 | AJ9: =COUNTIF(L29:L35,AI9) -> 0 | AK9: =AJ9/(AL4-AJ8) ->  | AL9: =IF(AK9=0,0,(AK9*((LOG(AK9))/LOG(2)))) ->  | AN9: =N9 -> 21 | AO9: =COUNTIF(L36:L42,AN9) -> 0 | AP9: =AO9/(AQ4-AO8) -> 0 | AQ9: =IF(AP9=0,0,(AP9*((LOG(AP9))/LOG(2)))) -> 0 | AS9: =N9 -> 21 | AT9: =COUNTIF(L43:L49,AS9) -> 0 | AU9: =AT9/(AV4-AT8) ->  | AV9: =IF(AU9=0,0,(AU9*((LOG(AU9))/LOG(2)))) -> 
A10: 11 | B10: 375 | C10: 21 | D10: 388 | K10: 0 | L10: 12 | N10: 22 | O10: =COUNTIF($L$7:$L$500,N10) -> 2 | P10: =O10/$Q$4 -> 0.04651162791 | Q10: =IF(P10=0,0,(P10*((LOG(P10))/LOG(2)))) -> -0.2058727793 | T10: =N10 -> 22 | U10: =COUNTIF(L7:L13,T10) -> 0 | V10: =U10/(W4-U8) -> 0 | W10: =IF(V10=0,0,(V10*((LOG(V10))/LOG(2)))) -> 0 | Y10: =N10 -> 22 | Z10: =COUNTIF(L14:L20,Y10) -> 1 | AA10: =Z10/(AB4-Z8) -> 1 | AB10: =IF(AA10=0,0,(AA10*((LOG(AA10))/LOG(2)))) -> 0 | AD10: =N10 -> 22 | AE10: =COUNTIF(L21:L28,AD10) -> 0 | AF10: =AE10/(AG4-AE8) ->  | AG10: =IF(AF10=0,0,(AF10*((LOG(AF10))/LOG(2)))) ->  | AI10: =N10 -> 22 | AJ10: =COUNTIF(L29:L35,AI10) -> 0 | AK10: =AJ10/(AL4-AJ8) ->  | AL10: =IF(AK10=0,0,(AK10*((LOG(AK10))/LOG(2)))) ->  | AN10: =N10 -> 22 | AO10: =COUNTIF(L36:L42,AN10) -> 1 | AP10: =AO10/(AQ4-AO8) -> 1 | AQ10: =IF(AP10=0,0,(AP10*((LOG(AP10))/LOG(2)))) -> 0 | AS10: =N10 -> 22 | AT10: =COUNTIF(L43:L49,AS10) -> 0 | AU10: =AT10/(AV4-AT8) ->  | AV10: =IF(AU10=0,0,(AU10*((LOG(AU10))/LOG(2)))) -> 
A11: 11 | B11: 473 | C11: 21 | D11: 486 | K11: 0 | L11: 12 | T11: =N11 -> 0 | U11: =COUNTIF(L7:L13,T11) -> 0 | V11: =U11/(W4-U8) -> 0 | W11: =IF(V11=0,0,(V11*((LOG(V11))/LOG(2)))) -> 0 | Y11: =N11 -> 0 | Z11: =COUNTIF(L14:L20,Y11) -> 0 | AA11: =Z11/(AB4-Z8) -> 0 | AB11: =IF(AA11=0,0,(AA11*((LOG(AA11))/LOG(2)))) -> 0 | AD11: =N11 -> 0 | AE11: =COUNTIF(L21:L28,AD11) -> 0 | AF11: =AE11/(AG4-AE8) ->  | AG11: =IF(AF11=0,0,(AF11*((LOG(AF11))/LOG(2)))) ->  | AI11: =N11 -> 0 | AJ11: =COUNTIF(L29:L35,AI11) -> 0 | AK11: =AJ11/(AL4-AJ8) ->  | AL11: =IF(AK11=0,0,(AK11*((LOG(AK11))/LOG(2)))) ->  | AN11: =N11 -> 0 | AO11: =COUNTIF(L36:L42,AN11) -> 0 | AP11: =AO11/(AQ4-AO8) -> 0 | AQ11: =IF(AP11=0,0,(AP11*((LOG(AP11))/LOG(2)))) -> 0 | AS11: =N11 -> 0 | AT11: =COUNTIF(L43:L49,AS11) -> 0 | AU11: =AT11/(AV4-AT8) ->  | AV11: =IF(AU11=0,0,(AU11*((LOG(AU11))/LOG(2)))) -> 
A12: 11 | B12: 577 | C12: 21 | D12: 590 | K12: 0 | L12: 12 | T12: =N12 -> 0 | U12: =COUNTIF(L7:L13,T12) -> 0 | V12: =U12/(W4-U8) -> 0 | W12: =IF(V12=0,0,(V12*((LOG(V12))/LOG(2)))) -> 0 | Y12: =N12 -> 0 | Z12: =COUNTIF(L14:L20,Y12) -> 0 | AA12: =Z12/(AB4-Z8) -> 0 | AB12: =IF(AA12=0,0,(AA12*((LOG(AA12))/LOG(2)))) -> 0 | AD12: =N12 -> 0 | AE12: =COUNTIF(L21:L28,AD12) -> 0 | AF12: =AE12/(AG4-AE8) ->  | AG12: =IF(AF12=0,0,(AF12*((LOG(AF12))/LOG(2)))) ->  | AI12: =N12 -> 0 | AJ12: =COUNTIF(L29:L35,AI12) -> 0 | AK12: =AJ12/(AL4-AJ8) ->  | AL12: =IF(AK12=0,0,(AK12*((LOG(AK12))/LOG(2)))) ->  | AN12: =N12 -> 0 | AO12: =COUNTIF(L36:L42,AN12) -> 0 | AP12: =AO12/(AQ4-AO8) -> 0 | AQ12: =IF(AP12=0,0,(AP12*((LOG(AP12))/LOG(2)))) -> 0 | AS12: =N12 -> 0 | AT12: =COUNTIF(L43:L49,AS12) -> 0 | AU12: =AT12/(AV4-AT8) ->  | AV12: =IF(AU12=0,0,(AU12*((LOG(AU12))/LOG(2)))) -> 
A13: 11 | B13: 679 | C13: 12 | D13: 704 | K13: 0 | L13: 11 | T13: =N13 -> 0 | U13: =COUNTIF(L7:L13,T13) -> 0 | V13: =U13/(W4-U8) -> 0 | W13: =IF(V13=0,0,(V13*((LOG(V13))/LOG(2)))) -> 0 | Y13: =N13 -> 0 | Z13: =COUNTIF(L14:L20,Y13) -> 0 | AA13: =Z13/(AB4-Z8) -> 0 | AB13: =IF(AA13=0,0,(AA13*((LOG(AA13))/LOG(2)))) -> 0 | AD13: =N13 -> 0 | AE13: =COUNTIF(L21:L28,AD13) -> 0 | AF13: =AE13/(AG4-AE8) ->  | AG13: =IF(AF13=0,0,(AF13*((LOG(AF13))/LOG(2)))) ->  | AI13: =N13 -> 0 | AJ13: =COUNTIF(L29:L35,AI13) -> 0 | AK13: =AJ13/(AL4-AJ8) ->  | AL13: =IF(AK13=0,0,(AK13*((LOG(AK13))/LOG(2)))) ->  | AN13: =N13 -> 0 | AO13: =COUNTIF(L36:L42,AN13) -> 0 | AP13: =AO13/(AQ4-AO8) -> 0 | AQ13: =IF(AP13=0,0,(AP13*((LOG(AP13))/LOG(2)))) -> 0 | AS13: =N13 -> 0 | AT13: =COUNTIF(L43:L49,AS13) -> 0 | AU13: =AT13/(AV4-AT8) ->  | AV13: =IF(AU13=0,0,(AU13*((LOG(AU13))/LOG(2)))) -> 
A14: 11 | B14: 798 | C14: 21 | D14: 813 | K14: 0 | L14: 12 | T14: =N14 -> 0 | U14: =COUNTIF(L7:L13,T14) -> 0 | V14: =U14/(W4-U8) -> 0 | W14: =IF(V14=0,0,(V14*((LOG(V14))/LOG(2)))) -> 0 | Y14: =N14 -> 0 | Z14: =COUNTIF(L14:L20,Y14) -> 0 | AA14: =Z14/(AB4-Z8) -> 0 | AB14: =IF(AA14=0,0,(AA14*((LOG(AA14))/LOG(2)))) -> 0 | AD14: =N14 -> 0 | AE14: =COUNTIF(L21:L28,AD14) -> 0 | AF14: =AE14/(AG4-AE8) ->  | AG14: =IF(AF14=0,0,(AF14*((LOG(AF14))/LOG(2)))) ->  | AI14: =N14 -> 0 | AJ14: =COUNTIF(L29:L35,AI14) -> 0 | AK14: =AJ14/(AL4-AJ8) ->  | AL14: =IF(AK14=0,0,(AK14*((LOG(AK14))/LOG(2)))) ->  | AN14: =N14 -> 0 | AO14: =COUNTIF(L36:L42,AN14) -> 0 | AP14: =AO14/(AQ4-AO8) -> 0 | AQ14: =IF(AP14=0,0,(AP14*((LOG(AP14))/LOG(2)))) -> 0 | AS14: =N14 -> 0 | AT14: =COUNTIF(L43:L49,AS14) -> 0 | AU14: =AT14/(AV4-AT8) ->  | AV14: =IF(AU14=0,0,(AU14*((LOG(AU14))/LOG(2)))) -> 
A15: 11 | B15: 898 | C15: 21 | D15: 910 | K15: 0 | L15: 12 | P15: =SUM(P7:P14) -> 1 | Q15: =-SUM(Q7:Q14) -> 0.4291223409 | V15: =SUM(V7:V14) -> 1 | W15: =-SUM(W7:W14) -> 0 | AA15: =SUM(AA7:AA14) -> 1 | AB15: =-SUM(AB7:AB14) -> 0 | AF15: =SUM(AF7:AF14) ->  | AG15: =-SUM(AG7:AG14) ->  | AK15: =SUM(AK7:AK14) ->  | AL15: =-SUM(AL7:AL14) ->  | AP15: =SUM(AP7:AP14) -> 1 | AQ15: =-SUM(AQ7:AQ14) -> 0 | AU15: =SUM(AU7:AU14) ->  | AV15: =-SUM(AV7:AV14) -> 
A16: 22 | B16: 1008 | C16: 23 | D16: 1020 | K16: 0 | L16: 22 | P16: U= | Q16: =Q15/(LOG(Q4)/LOG(2)) -> 0.07908245547 | V16: U1= | W16: =W15/(LOG(W4)/LOG(2)) -> 0 | AA16: U2= | AB16: =AB15/(LOG(AB4)/LOG(2)) -> 0 | AF16: U3= | AG16: =AG15/(LOG(AG4)/LOG(2)) ->  | AK16: U4= | AL16: =AL15/(LOG(AL4)/LOG(2)) ->  | AP16: U5= | AQ16: =AQ15/(LOG(AQ4)/LOG(2)) -> 0 | AU16: U6= | AV16: =AV15/(LOG(AV4)/LOG(2)) -> 
A17: 11 | B17: 1119 | C17: 21 | D17: 1145 | K17: 0 | L17: 12
A18: 11 | B18: 1231 | C18: 21 | D18: 1241 | K18: 0 | L18: 12
A19: 11 | B19: 1328 | C19: 21 | D19: 1338 | K19: 0 | L19: 12 | N19: Total Target Seq
A20: 11 | B20: 1427 | C20: 21 | D20: 1466 | K20: 0 | L20: 12 | N20: =COUNTIF(L7:L49,G3) -> 40 | P20: 7 | Q20: 7 | R20: 8 | S20: 7 | T20: 7 | U20: 7
A21: 11 | B21: 1555 | C21: 21 | D21: 1565 | K21: 0 | L21: 12 | P21: % of reinforcement given in 6 equal intervals based on number of trials
A22: 11 | B22: 1650 | C22: 21 | D22: 1663 | K22: 0 | L22: 12 | P22: %_1 | Q22: %_2 | R22: %_3 | S22: %_4 | T22: %_5 | U22: %_6
A23: 11 | B23: 1747 | C23: 21 | D23: 1757 | K23: 0 | L23: 12 | O23: target sequence | P23: =$G$3 -> 12 | Q23: =$G$3 -> 12 | R23: =$G$3 -> 12 | S23: =$G$3 -> 12 | T23: =$G$3 -> 12 | U23: =$G$3 -> 12
A24: 11 | B24: 1847 | C24: 21 | D24: 1892 | K24: 0 | L24: 12 | O24: total reinforcement | P24: =U8 -> 6 | Q24: =Z8 -> 6 | R24: =AE8 -> 8 | S24: =AJ8 -> 7 | T24: =AO8 -> 6 | U24: =AT8 -> 7
A25: 11 | B25: 1982 | C25: 21 | D25: 1992 | K25: 0 | L25: 12 | O25: % target
A26: 11 | B26: 2080 | C26: 21 | D26: 2099 | K26: 0 | L26: 12 | O26: CCRF
A27: 11 | B27: 2186 | C27: 21 | D27: 2209 | K27: 0 | L27: 12 | O27: % CCRf
A28: 11 | B28: 2294 | C28: 21 | D28: 2308 | K28: 0 | L28: 12 | O28: average response rate | P28: =D13/P20 -> 100.5714286 | Q28: =(D20-D13)/Q20 -> 108.8571429 | R28: =(D28-D20)/R20 -> 105.25 | S28: =(D35-D28)/S20 -> 100.4285714 | T28: =(D42-D35)/T20 -> 103.4285714 | U28: =(D49-D42)/U20 -> 111.5714286
A29: 11 | B29: 2395 | C29: 21 | D29: 2406 | K29: 0 | L29: 12
A30: 11 | B30: 2495 | C30: 21 | D30: 2517 | K30: 0 | L30: 12
A31: 11 | B31: 2604 | C31: 21 | D31: 2614 | K31: 0 | L31: 12
A32: 11 | B32: 2700 | C32: 21 | D32: 2714 | K32: 0 | L32: 12
A33: 11 | B33: 2800 | C33: 21 | D33: 2813 | K33: 0 | L33: 12
A34: 11 | B34: 2901 | C34: 21 | D34: 2915 | K34: 0 | L34: 12
A35: 11 | B35: 3001 | C35: 21 | D35: 3011 | K35: 0 | L35: 12
A36: 11 | B36: 3098 | C36: 21 | D36: 3109 | K36: 0 | L36: 12
A37: 11 | B37: 3195 | C37: 21 | D37: 3224 | K37: 0 | L37: 12
A38: 11 | B38: 3313 | C38: 21 | D38: 3322 | K38: 0 | L38: 12
A39: 11 | B39: 3409 | C39: 21 | D39: 3421 | K39: 0 | L39: 12
A40: 11 | B40: 3508 | C40: 21 | D40: 3517 | K40: 0 | L40: 12
A41: 11 | B41: 3610 | C41: 21 | D41: 3620 | K41: 0 | L41: 12
A42: 22 | B42: 3719 | C42: 23 | D42: 3735 | K42: 0 | L42: 22
A43: 11 | B43: 3834 | C43: 21 | D43: 3849 | K43: 0 | L43: 12
A44: 11 | B44: 3937 | C44: 21 | D44: 3951 | K44: 0 | L44: 12
A45: 11 | B45: 4047 | C45: 21 | D45: 4061 | K45: 0 | L45: 12
A46: 11 | B46: 4149 | C46: 21 | D46: 4168 | K46: 0 | L46: 12
A47: 11 | B47: 4255 | C47: 21 | D47: 4302 | K47: 0 | L47: 12
A48: 11 | B48: 4392 | C48: 21 | D48: 4412 | K48: 0 | L48: 12
A49: 11 | B49: 4503 | C49: 21 | D49: 4516 | K49: 1 | L49: 12

Sheet !N105830.091
A1: Report for:!N105830.091
A2: Date: | B2: <date>
A3: Hen: | B3: <hen> | F3: Correct Sequence | G3: =Start!J2 -> 12 | P3: Total Sequences in Data | Q3: =4994-COUNTBLANK(L7:L5000) -> 62 | V3: Total Sequences in Block Data | W3: =COUNTA(L7:L16) -> 10 | AA3: Total Sequences in Block Data | AB3: =COUNTA(L17:L27) -> 11 | AF3: Total Sequences in Block Data | AG3: =COUNTA(L28:L37) -> 10 | AK3: Total Sequences in Block Data | AL3: =COUNTA(L38:L47) -> 10 | AP3: Total Sequences in Block Data | AQ3: =COUNTA(L48:L58) -> 11 | AU3: Total Sequences in Block Data | AV3: =COUNTA(L59:L68) -> 10
P4: Total Sequences in Summary | Q4: =SUM(O7:O14) -> 62 | V4: Total Sequences in Block Summary | W4: =SUM(U7:U14) -> 10 | AA4: Total Sequences in Block Summary | AB4: =SUM(Z7:Z14) -> 11 | AF4: Total Sequences in Block Summary | AG4: =SUM(AE7:AE14) -> 10 | AK4: Total Sequences in Block Summary | AL4: =SUM(AJ7:AJ14) -> 10 | AP4: Total Sequences in Block Summary | AQ4: =SUM(AO7:AO14) -> 11 | AU4: Total Sequences in Block Summary | AV4: =SUM(AT7:AT14) -> 10
T5: Block 1 | Y5: Block 2 | AD5: Block 3 | AI5: Block 4 | AN5: Block 5 | AS5: Block 6
A6: Sequence Component 1 | B6: Time 1 | C6: Sequence Component 2 | D6: Time 2 | E6: Sequence Component 3 | F6: Time 3 | G6: Sequence Component 4 | H6: Time 4 | I6: Sequence Component 5 | J6: Time 5 | K6: Correct? 0=No 1=Yes | L6: Sequence | N6: Frequency | P6: Relative Frequency | Q6: Variability | T6: Frequency | V6: Relative Frequency | W6: Variability | Y6: Frequency | AA6: Relative Frequency | AB6: Variability | AD6: Frequency | AF6: Relative Frequency | AG6: Variability | AI6: Frequency | AK6: Relative Frequency | AL6: Variability | AN6: Frequency | AP6: Relative Frequency | AQ6: Variability | AS6: Frequency | AU6: Relative Frequency | AV6: Variability
A7: 11 | B7: 19 | C7: 21 | D7: 138 | K7: 0 | L7: 12 | N7: 11 | O7: =COUNTIF($L$7:$L$500,N7) -> 1 | P7: =O7/$Q$4 -> 0.01612903226 | Q7: =IF(P7=0,0,(P7*((LOG(P7))/LOG(2)))) -> -0.09603542436 | T7: =N7 -> 11 | U7: =COUNTIF(L7:L16,T7) -> 1 | V7: =U7/(W4-U8) -> 1 | W7: =IF(V7=0,0,(V7*((LOG(V7))/LOG(2)))) -> 0 | Y7: =N7 -> 11 | Z7: =COUNTIF(L17:L27,Y7) -> 0 | AA7: =Z7/(AB4-Z8) ->  | AB7: =IF(AA7=0,0,(AA7*((LOG(AA7))/LOG(2)))) ->  | AD7: =N7 -> 11 | AE7: =COUNTIF(L28:L37,AD7) -> 0 | AF7: =AE7/(AG4-AE8) -> 0 | AG7: =IF(AF7=0,0,(AF7*((LOG(AF7))/LOG(2)))) -> 0 | AI7: =N7 -> 11 | AJ7: =COUNTIF(L38:L47,AI7) -> 0 | AK7: =AJ7/(AL4-AJ8) -> 0 | AL7: =IF(AK7=0,0,(AK7*((LOG(AK7))/LOG(2)))) -> 0 | AN7: =N7 -> 11 | AO7: =COUNTIF(L48:L58,AN7) -> 0 | AP7: =AO7/(AQ4-AO8) -> 0 | AQ7: =IF(AP7=0,0,(AP7*((LOG(AP7))/LOG(2)))) -> 0 | AS7: =N7 -> 11 | AT7: =COUNTIF(L59:L68,AS7) -> 0 | AU7: =AT7/(AV4-AT8) -> 0 | AV7: =IF(AU7=0,0,(AU7*((LOG(AU7))/LOG(2)))) -> 0
A8: 11 | B8: 228 | C8: 21 | D8: 246 | K8: 0 | L8: 12 | N8: 12 | O8: =COUNTIF($L$7:$L$500,N8) -> 40 | P8: =O8/$Q$4 -> 0.6451612903 | Q8: =IF(P8=0,0,(P8*((LOG(P8))/LOG(2)))) -> -0.4079149777 | T8: =N8 -> 12 | U8: =COUNTIF(L7:L16,T8) -> 9 | Y8: =N8 -> 12 | Z8: =COUNTIF(L17:L27,Y8) -> 11 | AD8: =N8 -> 12 | AE8: =COUNTIF(L28:L37,AD8) -> 2 | AI8: =N8 -> 12 | AJ8: =COUNTIF(L38:L47,AI8) -> 5 | AN8: =N8 -> 12 | AO8: =COUNTIF(L48:L58,AN8) -> 7 | AS8: =N8 -> 12 | AT8: =COUNTIF(L59:L68,AS8) -> 6
A9: 11 | B9: 337 | C9: 21 | D9: 360 | K9: 0 | L9: 12 | N9: 21 | O9: =COUNTIF($L$7:$L$500,N9) -> 2 | P9: =O9/$Q$4 -> 0.03225806452 | Q9: =IF(P9=0,0,(P9*((LOG(P9))/LOG(2)))) -> -0.1598127842 | T9: =N9 -> 21 | U9: =COUNTIF(L7:L16,T9) -> 0 | V9: =U9/(W4-U8) -> 0 | W9: =IF(V9=0,0,(V9*((LOG(V9))/LOG(2)))) -> 0 | Y9: =N9 -> 21 | Z9: =COUNTIF(L17:L27,Y9) -> 0 | AA9: =Z9/(AB4-Z8) ->  | AB9: =IF(AA9=0,0,(AA9*((LOG(AA9))/LOG(2)))) ->  | AD9: =N9 -> 21 | AE9: =COUNTIF(L28:L37,AD9) -> 1 | AF9: =AE9/(AG4-AE8) -> 0.125 | AG9: =IF(AF9=0,0,(AF9*((LOG(AF9))/LOG(2)))) -> -0.375 | AI9: =N9 -> 21 | AJ9: =COUNTIF(L38:L47,AI9) -> 0 | AK9: =AJ9/(AL4-AJ8) -> 0 | AL9: =IF(AK9=0,0,(AK9*((LOG(AK9))/LOG(2)))) -> 0 | AN9: =N9 -> 21 | AO9: =COUNTIF(L48:L58,AN9) -> 1 | AP9: =AO9/(AQ4-AO8) -> 0.25 | AQ9: =IF(AP9=0,0,(AP9*((LOG(AP9))/LOG(2)))) -> -0.5 | AS9: =N9 -> 21 | AT9: =COUNTIF(L59:L68,AS9) -> 0 | AU9: =AT9/(AV4-AT8) -> 0 | AV9: =IF(AU9=0,0,(AU9*((LOG(AU9))/LOG(2)))) -> 0
A10: 11 | B10: 451 | C10: 21 | D10: 463 | K10: 0 | L10: 12 | N10: 22 | O10: =COUNTIF($L$7:$L$500,N10) -> 19 | P10: =O10/$Q$4 -> 0.3064516129 | Q10: =IF(P10=0,0,(P10*((LOG(P10))/LOG(2)))) -> -0.5228888249 | T10: =N10 -> 22 | U10: =COUNTIF(L7:L16,T10) -> 0 | V10: =U10/(W4-U8) -> 0 | W10: =IF(V10=0,0,(V10*((LOG(V10))/LOG(2)))) -> 0 | Y10: =N10 -> 22 | Z10: =COUNTIF(L17:L27,Y10) -> 0 | AA10: =Z10/(AB4-Z8) ->  | AB10: =IF(AA10=0,0,(AA10*((LOG(AA10))/LOG(2)))) ->  | AD10: =N10 -> 22 | AE10: =COUNTIF(L28:L37,AD10) -> 7 | AF10: =AE10/(AG4-AE8) -> 0.875 | AG10: =IF(AF10=0,0,(AF10*((LOG(AF10))/LOG(2)))) -> -0.1685644432 | AI10: =N10 -> 22 | AJ10: =COUNTIF(L38:L47,AI10) -> 5 | AK10: =AJ10/(AL4-AJ8) -> 1 | AL10: =IF(AK10=0,0,(AK10*((LOG(AK10))/LOG(2)))) -> 0 | AN10: =N10 -> 22 | AO10: =COUNTIF(L48:L58,AN10) -> 3 | AP10: =AO10/(AQ4-AO8) -> 0.75 | AQ10: =IF(AP10=0,0,(AP10*((LOG(AP10))/LOG(2)))) -> -0.3112781245 | AS10: =N10 -> 22 | AT10: =COUNTIF(L59:L68,AS10) -> 4 | AU10: =AT10/(AV4-AT8) -> 1 | AV10: =IF(AU10=0,0,(AU10*((LOG(AU10))/LOG(2)))) -> 0
A11: 11 | B11: 551 | C11: 21 | D11: 564 | K11: 0 | L11: 12 | T11: =N11 -> 0 | U11: =COUNTIF(L7:L16,T11) -> 0 | V11: =U11/(W4-U8) -> 0 | W11: =IF(V11=0,0,(V11*((LOG(V11))/LOG(2)))) -> 0 | Y11: =N11 -> 0 | Z11: =COUNTIF(L17:L27,Y11) -> 0 | AA11: =Z11/(AB4-Z8) ->  | AB11: =IF(AA11=0,0,(AA11*((LOG(AA11))/LOG(2)))) ->  | AD11: =N11 -> 0 | AE11: =COUNTIF(L28:L37,AD11) -> 0 | AF11: =AE11/(AG4-AE8) -> 0 | AG11: =IF(AF11=0,0,(AF11*((LOG(AF11))/LOG(2)))) -> 0 | AI11: =N11 -> 0 | AJ11: =COUNTIF(L38:L47,AI11) -> 0 | AK11: =AJ11/(AL4-AJ8) -> 0 | AL11: =IF(AK11=0,0,(AK11*((LOG(AK11))/LOG(2)))) -> 0 | AN11: =N11 -> 0 | AO11: =COUNTIF(L48:L58,AN11) -> 0 | AP11: =AO11/(AQ4-AO8) -> 0 | AQ11: =IF(AP11=0,0,(AP11*((LOG(AP11))/LOG(2)))) -> 0 | AS11: =N11 -> 0 | AT11: =COUNTIF(L59:L68,AS11) -> 0 | AU11: =AT11/(AV4-AT8) -> 0 | AV11: =IF(AU11=0,0,(AU11*((LOG(AU11))/LOG(2)))) -> 0
A12: 11 | B12: 661 | C12: 21 | D12: 672 | K12: 0 | L12: 12 | T12: =N12 -> 0 | U12: =COUNTIF(L7:L16,T12) -> 0 | V12: =U12/(W4-U8) -> 0 | W12: =IF(V12=0,0,(V12*((LOG(V12))/LOG(2)))) -> 0 | Y12: =N12 -> 0 | Z12: =COUNTIF(L17:L27,Y12) -> 0 | AA12: =Z12/(AB4-Z8) ->  | AB12: =IF(AA12=0,0,(AA12*((LOG(AA12))/LOG(2)))) ->  | AD12: =N12 -> 0 | AE12: =COUNTIF(L28:L37,AD12) -> 0 | AF12: =AE12/(AG4-AE8) -> 0 | AG12: =IF(AF12=0,0,(AF12*((LOG(AF12))/LOG(2)))) -> 0 | AI12: =N12 -> 0 | AJ12: =COUNTIF(L38:L47,AI12) -> 0 | AK12: =AJ12/(AL4-AJ8) -> 0 | AL12: =IF(AK12=0,0,(AK12*((LOG(AK12))/LOG(2)))) -> 0 | AN12: =N12 -> 0 | AO12: =COUNTIF(L48:L58,AN12) -> 0 | AP12: =AO12/(AQ4-AO8) -> 0 | AQ12: =IF(AP12=0,0,(AP12*((LOG(AP12))/LOG(2)))) -> 0 | AS12: =N12 -> 0 | AT12: =COUNTIF(L59:L68,AS12) -> 0 | AU12: =AT12/(AV4-AT8) -> 0 | AV12: =IF(AU12=0,0,(AU12*((LOG(AU12))/LOG(2)))) -> 0
A13: 11 | B13: 758 | C13: 21 | D13: 772 | K13: 0 | L13: 12 | T13: =N13 -> 0 | U13: =COUNTIF(L7:L16,T13) -> 0 | V13: =U13/(W4-U8) -> 0 | W13: =IF(V13=0,0,(V13*((LOG(V13))/LOG(2)))) -> 0 | Y13: =N13 -> 0 | Z13: =COUNTIF(L17:L27,Y13) -> 0 | AA13: =Z13/(AB4-Z8) ->  | AB13: =IF(AA13=0,0,(AA13*((LOG(AA13))/LOG(2)))) ->  | AD13: =N13 -> 0 | AE13: =COUNTIF(L28:L37,AD13) -> 0 | AF13: =AE13/(AG4-AE8) -> 0 | AG13: =IF(AF13=0,0,(AF13*((LOG(AF13))/LOG(2)))) -> 0 | AI13: =N13 -> 0 | AJ13: =COUNTIF(L38:L47,AI13) -> 0 | AK13: =AJ13/(AL4-AJ8) -> 0 | AL13: =IF(AK13=0,0,(AK13*((LOG(AK13))/LOG(2)))) -> 0 | AN13: =N13 -> 0 | AO13: =COUNTIF(L48:L58,AN13) -> 0 | AP13: =AO13/(AQ4-AO8) -> 0 | AQ13: =IF(AP13=0,0,(AP13*((LOG(AP13))/LOG(2)))) -> 0 | AS13: =N13 -> 0 | AT13: =COUNTIF(L59:L68,AS13) -> 0 | AU13: =AT13/(AV4-AT8) -> 0 | AV13: =IF(AU13=0,0,(AU13*((LOG(AU13))/LOG(2)))) -> 0
A14: 11 | B14: 860 | C14: 12 | D14: 878 | K14: 0 | L14: 11 | T14: =N14 -> 0 | U14: =COUNTIF(L7:L16,T14) -> 0 | V14: =U14/(W4-U8) -> 0 | W14: =IF(V14=0,0,(V14*((LOG(V14))/LOG(2)))) -> 0 | Y14: =N14 -> 0 | Z14: =COUNTIF(L17:L27,Y14) -> 0 | AA14: =Z14/(AB4-Z8) ->  | AB14: =IF(AA14=0,0,(AA14*((LOG(AA14))/LOG(2)))) ->  | AD14: =N14 -> 0 | AE14: =COUNTIF(L28:L37,AD14) -> 0 | AF14: =AE14/(AG4-AE8) -> 0 | AG14: =IF(AF14=0,0,(AF14*((LOG(AF14))/LOG(2)))) -> 0 | AI14: =N14 -> 0 | AJ14: =COUNTIF(L38:L47,AI14) -> 0 | AK14: =AJ14/(AL4-AJ8) -> 0 | AL14: =IF(AK14=0,0,(AK14*((LOG(AK14))/LOG(2)))) -> 0 | AN14: =N14 -> 0 | AO14: =COUNTIF(L48:L58,AN14) -> 0 | AP14: =AO14/(AQ4-AO8) -> 0 | AQ14: =IF(AP14=0,0,(AP14*((LOG(AP14))/LOG(2)))) -> 0 | AS14: =N14 -> 0 | AT14: =COUNTIF(L59:L68,AS14) -> 0 | AU14: =AT14/(AV4-AT8) -> 0 | AV14: =IF(AU14=0,0,(AU14*((LOG(AU14))/LOG(2)))) -> 0
A15: 11 | B15: 975 | C15: 21 | D15: 988 | K15: 0 | L15: 12 | P15: =SUM(P7:P14) -> 1 | Q15: =-SUM(Q7:Q14) -> 1.186652011 | V15: =SUM(V7:V14) -> 1 | W15: =-SUM(W7:W14) -> 0 | AA15: =SUM(AA7:AA14) ->  | AB15: =-SUM(AB7:AB14) ->  | AF15: =SUM(AF7:AF14) -> 1 | AG15: =-SUM(AG7:AG14) -> 0.5435644432 | AK15: =SUM(AK7:AK14) -> 1 | AL15: =-SUM(AL7:AL14) -> 0 | AP15: =SUM(AP7:AP14) -> 1 | AQ15: =-SUM(AQ7:AQ14) -> 0.8112781245 | AU15: =SUM(AU7:AU14) -> 1 | AV15: =-SUM(AV7:AV14) -> 0
A16: 11 | B16: 1075 | C16: 21 | D16: 1086 | K16: 0 | L16: 12 | P16: U= | Q16: =Q15/(LOG(Q4)/LOG(2)) -> 0.1992967563 | V16: U1= | W16: =W15/(LOG(W4)/LOG(2)) -> 0 | AA16: U2= | AB16: =AB15/(LOG(AB4)/LOG(2)) ->  | AF16: U3= | AG16: =AG15/(LOG(AG4)/LOG(2)) -> 0.163629202 | AK16: U4= | AL16: =AL15/(LOG(AL4)/LOG(2)) -> 0 | AP16: U5= | AQ16: =AQ15/(LOG(AQ4)/LOG(2)) -> 0.2345119701 | AU16: U6= | AV16: =AV15/(LOG(AV4)/LOG(2)) -> 0
A17: 11 | B17: 1173 | C17: 21 | D17: 1186 | K17: 0 | L17: 12
A18: 11 | B18: 1274 | C18: 21 | D18: 1287 | K18: 0 | L18: 12
A19: 11 | B19: 1374 | C19: 21 | D19: 1385 | K19: 0 | L19: 12 | N19: Total Target Seq
A20: 11 | B20: 1472 | C20: 21 | D20: 1547 | K20: 0 | L20: 12 | N20: =COUNTIF(L7:L68,G3) -> 40 | P20: 10 | Q20: 11 | R20: 10 | S20: 10 | T20: 11 | U20: 10
A21: 11 | B21: 1639 | C21: 21 | D21: 1686 | K21: 0 | L21: 12 | P21: % of reinforcement given in 6 equal intervals based on number of trials
A22: 11 | B22: 1774 | C22: 21 | D22: 1783 | K22: 0 | L22: 12 | P22: %_1 | Q22: %_2 | R22: %_3 | S22: %_4 | T22: %_5 | U22: %_6
A23: 11 | B23: 1869 | C23: 21 | D23: 1898 | K23: 0 | L23: 12 | O23: target sequence | P23: =$G$3 -> 12 | Q23: =$G$3 -> 12 | R23: =$G$3 -> 12 | S23: =$G$3 -> 12 | T23: =$G$3 -> 12 | U23: =$G$3 -> 12
A24: 11 | B24: 1991 | C24: 21 | D24: 2003 | K24: 0 | L24: 12 | O24: total reinforcement | P24: =U8 -> 9 | Q24: =Z8 -> 11 | R24: =AE8 -> 2 | S24: =AJ8 -> 5 | T24: =AO8 -> 7 | U24: =AT8 -> 6
A25: 11 | B25: 2089 | C25: 21 | D25: 2102 | K25: 0 | L25: 12 | O25: % target
A26: 11 | B26: 2190 | C26: 21 | D26: 2201 | K26: 0 | L26: 12 | O26: CCRF
A27: 11 | B27: 2287 | C27: 21 | D27: 2313 | K27: 0 | L27: 12 | O27: % CCRf
A28: 11 | B28: 2400 | C28: 21 | D28: 2420 | K28: 0 | L28: 12 | O28: average response rate | P28: =D16/P20 -> 108.6 | Q28: =(D27-D16)/Q20 -> 111.5454545 | R28: =(D37-D27)/R20 -> 120.3 | S28: =(D47-D37)/S20 -> 118.4 | T28: =(D58-D47)/T20 -> 113.7272727 | U28: =(D68-D58)/U20 -> 114.9
A29: 22 | B29: 2520 | C29: 14 | D29: 2537 | K29: 0 | L29: 21
A30: 22 | B30: 2647 | C30: 23 | D30: 2671 | K30: 0 | L30: 22
A31: 11 | B31: 2769 | C31: 21 | D31: 2780 | K31: 0 | L31: 12
A32: 22 | B32: 2879 | C32: 23 | D32: 2895 | K32: 0 | L32: 22
A33: 22 | B33: 3007 | C33: 23 | D33: 3023 | K33: 0 | L33: 22
A34: 22 | B34: 3139 | C34: 23 | D34: 3150 | K34: 0 | L34: 22
A35: 22 | B35: 3259 | C35: 23 | D35: 3270 | K35: 0 | L35: 22
A36: 22 | B36: 3379 | C36: 23 | D36: 3393 | K36: 0 | L36: 22
A37: 22 | B37: 3506 | C37: 23 | D37: 3516 | K37: 0 | L37: 22
A38: 22 | B38: 3638 | C38: 23 | D38: 3650 | K38: 0 | L38: 22
A39: 22 | B39: 3761 | C39: 23 | D39: 3772 | K39: 0 | L39: 22
A40: 22 | B40: 3891 | C40: 23 | D40: 3901 | K40: 0 | L40: 22
A41: 22 | B41: 4016 | C41: 23 | D41: 4024 | K41: 0 | L41: 22
A42: 22 | B42: 4135 | C42: 23 | D42: 4144 | K42: 0 | L42: 22
A43: 11 | B43: 4242 | C43: 21 | D43: 4254 | K43: 0 | L43: 12
A44: 11 | B44: 4340 | C44: 21 | D44: 4364 | K44: 0 | L44: 12
A45: 11 | B45: 4452 | C45: 21 | D45: 4502 | K45: 0 | L45: 12
A46: 11 | B46: 4591 | C46: 21 | D46: 4600 | K46: 0 | L46: 12
A47: 11 | B47: 4691 | C47: 21 | D47: 4700 | K47: 0 | L47: 12
A48: 22 | B48: 4796 | C48: 23 | D48: 4859 | K48: 0 | L48: 22
A49: 11 | B49: 4962 | C49: 21 | D49: 4975 | K49: 0 | L49: 12
A50: 22 | B50: 5075 | C50: 14 | D50: 5092 | K50: 0 | L50: 21
A51: 11 | B51: 5186 | C51: 21 | D51: 5200 | K51: 0 | L51: 12
A52: 11 | B52: 5287 | C52: 21 | D52: 5301 | K52: 0 | L52: 12
A53: 22 | B53: 5401 | C53: 23 | D53: 5414 | K53: 0 | L53: 22
A54: 11 | B54: 5510 | C54: 21 | D54: 5539 | K54: 0 | L54: 12
A55: 11 | B55: 5626 | C55: 21 | D55: 5636 | K55: 0 | L55: 12
A56: 11 | B56: 5721 | C56: 21 | D56: 5731 | K56: 0 | L56: 12
A57: 11 | B57: 5818 | C57: 21 | D57: 5838 | K57: 0 | L57: 12
A58: 22 | B58: 5938 | C58: 23 | D58: 5951 | K58: 0 | L58: 22
A59: 22 | B59: 6060 | C59: 23 | D59: 6068 | K59: 0 | L59: 22
A60: 22 | B60: 6181 | C60: 23 | D60: 6188 | K60: 0 | L60: 22
A61: 11 | B61: 6286 | C61: 21 | D61: 6302 | K61: 0 | L61: 12
A62: 22 | B62: 6400 | C62: 23 | D62: 6408 | K62: 0 | L62: 22
A63: 11 | B63: 6506 | C63: 21 | D63: 6520 | K63: 0 | L63: 12
A64: 22 | B64: 6620 | C64: 23 | D64: 6642 | K64: 0 | L64: 22
A65: 11 | B65: 6740 | C65: 21 | D65: 6754 | K65: 0 | L65: 12
A66: 11 | B66: 6840 | C66: 21 | D66: 6853 | K66: 0 | L66: 12
A67: 11 | B67: 6944 | C67: 21 | D67: 6988 | K67: 0 | L67: 12
A68: 11 | B68: 7079 | C68: 21 | D68: 7100 | K68: 1 | L68: 12

Sheet !N106650.091
A1: Report for:!N106650.091
A2: Date: | B2: <date>
A3: Hen: | B3: <hen> | F3: Correct Sequence | G3: =Start!J2 -> 12 | P3: Total Sequences in Data | Q3: =4994-COUNTBLANK(L7:L5000) -> 45 | V3: Total Sequences in Block Data | W3: =COUNTA(L7:L14) -> 8 | AA3: Total Sequences in Block Data | AB3: =COUNTA(L15:L21) -> 7 | AF3: Total Sequences in Block Data | AG3: =COUNTA(L22:L29) -> 8 | AK3: Total Sequences in Block Data | AL3: =COUNTA(L30:L36) -> 7 | AP3: Total Sequences in Block Data | AQ3: =COUNTA(L37:L44) -> 8 | AU3: Total Sequences in Block Data | AV3: =COUNTA(L45:L51) -> 7
P4: Total Sequences in Summary | Q4: =SUM(O7:O14) -> 45 | V4: Total Sequences in Block Summary | W4: =SUM(U7:U14) -> 8 | AA4: Total Sequences in Block Summary | AB4: =SUM(Z7:Z14) -> 7 | AF4: Total Sequences in Block Summary | AG4: =SUM(AE7:AE14) -> 8 | AK4: Total Sequences in Block Summary | AL4: =SUM(AJ7:AJ14) -> 7 | AP4: Total Sequences in Block Summary | AQ4: =SUM(AO7:AO14) -> 8 | AU4: Total Sequences in Block Summary | AV4: =SUM(AT7:AT14) -> 7
T5: Block 1 | Y5: Block 2 | AD5: Block 3 | AI5: Block 4 | AN5: Block 5 | AS5: Block 6
A6: Sequence Component 1 | B6: Time 1 | C6: Sequence Component 2 | D6: Time 2 | E6: Sequence Component 3 | F6: Time 3 | G6: Sequence Component 4 | H6: Time 4 | I6: Sequence Component 5 | J6: Time 5 | K6: Correct? 0=No 1=Yes | L6: Sequence | N6: Frequency | P6: Relative Frequency | Q6: Variability | T6: Frequency | V6: Relative Frequency | W6: Variability | Y6: Frequency | AA6: Relative Frequency | AB6: Variability | AD6: Frequency | AF6: Relative Frequency | AG6: Variability | AI6: Frequency | AK6: Relative Frequency | AL6: Variability | AN6: Frequency | AP6: Relative Frequency | AQ6: Variability | AS6: Frequency | AU6: Relative Frequency | AV6: Variability
A7: 11 | B7: 10 | C7: 21 | D7: 79 | K7: 0 | L7: 12 | N7: 11 | O7: =COUNTIF($L$7:$L$500,N7) -> 0 | P7: =O7/$Q$4 -> 0 | Q7: =IF(P7=0,0,(P7*((LOG(P7))/LOG(2)))) -> 0 | T7: =N7 -> 11 | U7: =COUNTIF(L7:L14,T7) -> 0 | V7: =U7/(W4-U8) ->  | W7: =IF(V7=0,0,(V7*((LOG(V7))/LOG(2)))) ->  | Y7: =N7 -> 11 | Z7: =COUNTIF(L15:L21,Y7) -> 0 | AA7: =Z7/(AB4-Z8) -> 0 | AB7: =IF(AA7=0,0,(AA7*((LOG(AA7))/LOG(2)))) -> 0 | AD7: =N7 -> 11 | AE7: =COUNTIF(L22:L29,AD7) -> 0 | AF7: =AE7/(AG4-AE8) -> 0 | AG7: =IF(AF7=0,0,(AF7*((LOG(AF7))/LOG(2)))) -> 0 | AI7: =N7 -> 11 | AJ7: =COUNTIF(L30:L36,AI7) -> 0 | AK7: =AJ7/(AL4-AJ8) ->  | AL7: =IF(AK7=0,0,(AK7*((LOG(AK7))/LOG(2)))) ->  | AN7: =N7 -> 11 | AO7: =COUNTIF(L37:L44,AN7) -> 0 | AP7: =AO7/(AQ4-AO8) -> 0 | AQ7: =IF(AP7=0,0,(AP7*((LOG(AP7))/LOG(2)))) -> 0 | AS7: =N7 -> 11 | AT7: =COUNTIF(L45:L51,AS7) -> 0 | AU7: =AT7/(AV4-AT8) ->  | AV7: =IF(AU7=0,0,(AU7*((LOG(AU7))/LOG(2)))) -> 
A8: 11 | B8: 173 | C8: 21 | D8: 183 | K8: 0 | L8: 12 | N8: 12 | O8: =COUNTIF($L$7:$L$500,N8) -> 40 | P8: =O8/$Q$4 -> 0.8888888889 | Q8: =IF(P8=0,0,(P8*((LOG(P8))/LOG(2)))) -> -0.1510444457 | T8: =N8 -> 12 | U8: =COUNTIF(L7:L14,T8) -> 8 | Y8: =N8 -> 12 | Z8: =COUNTIF(L15:L21,Y8) -> 6 | AD8: =N8 -> 12 | AE8: =COUNTIF(L22:L29,AD8) -> 5 | AI8: =N8 -> 12 | AJ8: =COUNTIF(L30:L36,AI8) -> 7 | AN8: =N8 -> 12 | AO8: =COUNTIF(L37:L44,AN8) -> 7 | AS8: =N8 -> 12 | AT8: =COUNTIF(L45:L51,AS8) -> 7
A9: 11 | B9: 274 | C9: 21 | D9: 285 | K9: 0 | L9: 12 | N9: 21 | O9: =COUNTIF($L$7:$L$500,N9) -> 0 | P9: =O9/$Q$4 -> 0 | Q9: =IF(P9=0,0,(P9*((LOG(P9))/LOG(2)))) -> 0 | T9: =N9 -> 21 | U9: =COUNTIF(L7:L14,T9) -> 0 | V9: =U9/(W4-U8) ->  | W9: =IF(V9=0,0,(V9*((LOG(V9))/LOG(2)))) ->  | Y9: =N9 -> 21 | Z9: =COUNTIF(L15:L21,Y9) -> 0 | AA9: =Z9/(AB4-Z8) -> 0 | AB9: =IF(AA9=0,0,(AA9*((LOG(AA9))/LOG(2)))) -> 0 | AD9: =N9 -> 21 | AE9: =COUNTIF(L22:L29,AD9) -> 0 | AF9: =AE9/(AG4-AE8) -> 0 | AG9: =IF(AF9=0,0,(AF9*((LOG(AF9))/LOG(2)))) -> 0 | AI9: =N9 -> 21 | AJ9: =COUNTIF(L30:L36,AI9) -> 0 | AK9: =AJ9/(AL4-AJ8) ->  | AL9: =IF(AK9=0,0,(AK9*((LOG(AK9))/LOG(2)))) ->  | AN9: =N9 -> 21 | AO9: =COUNTIF(L37:L44,AN9) -> 0 | AP9: =AO9/(AQ4-AO8) -> 0 | AQ9: =IF(AP9=0,0,(AP9*((LOG(AP9))/LOG(2)))) -> 0 | AS9: =N9 -> 21 | AT9: =COUNTIF(L45:L51,AS9) -> 0 | AU9: =AT9/(AV4-AT8) ->  | AV9: =IF(AU9=0,0,(AU9*((LOG(AU9))/LOG(2)))) -> 
A10: 11 | B10: 372 | C10: 21 | D10: 385 | K10: 0 | L10: 12 | N10: 22 | O10: =COUNTIF($L$7:$L$500,N10) -> 5 | P10: =O10/$Q$4 -> 0.1111111111 | Q10: =IF(P10=0,0,(P10*((LOG(P10))/LOG(2)))) -> -0.352213889 | T10: =N10 -> 22 | U10: =COUNTIF(L7:L14,T10) -> 0 | V10: =U10/(W4-U8) ->  | W10: =IF(V10=0,0,(V10*((LOG(V10))/LOG(2)))) ->  | Y10: =N10 -> 22 | Z10: =COUNTIF(L15:L21,Y10) -> 1 | AA10: =Z10/(AB4-Z8) -> 1 | AB10: =IF(AA10=0,0,(AA10*((LOG(AA10))/LOG(2)))) -> 0 | AD10: =N10 -> 22 | AE10: =COUNTIF(L22:L29,AD10) -> 3 | AF10: =AE10/(AG4-AE8) -> 1 | AG10: =IF(AF10=0,0,(AF10*((LOG(AF10))/LOG(2)))) -> 0 | AI10: =N10 -> 22 | AJ10: =COUNTIF(L30:L36,AI10) -> 0 | AK10: =AJ10/(AL4-AJ8) ->  | AL10: =IF(AK10=0,0,(AK10*((LOG(AK10))/LOG(2)))) ->  | AN10: =N10 -> 22 | AO10: =COUNTIF(L37:L44,AN10) -> 1 | AP10: =AO10/(AQ4-AO8) -> 1 | AQ10: =IF(AP10=0,0,(AP10*((LOG(AP10))/LOG(2)))) -> 0 | AS10: =N10 -> 22 | AT10: =COUNTIF(L45:L51,AS10) -> 0 | AU10: =AT10/(AV4-AT8) ->  | AV10: =IF(AU10=0,0,(AU10*((LOG(AU10))/LOG(2)))) -> 
A11: 11 | B11: 473 | C11: 21 | D11: 497 | K11: 0 | L11: 12 | T11: =N11 -> 0 | U11: =COUNTIF(L7:L14,T11) -> 0 | V11: =U11/(W4-U8) ->  | W11: =IF(V11=0,0,(V11*((LOG(V11))/LOG(2)))) ->  | Y11: =N11 -> 0 | Z11: =COUNTIF(L15:L21,Y11) -> 0 | AA11: =Z11/(AB4-Z8) -> 0 | AB11: =IF(AA11=0,0,(AA11*((LOG(AA11))/LOG(2)))) -> 0 | AD11: =N11 -> 0 | AE11: =COUNTIF(L22:L29,AD11) -> 0 | AF11: =AE11/(AG4-AE8) -> 0 | AG11: =IF(AF11=0,0,(AF11*((LOG(AF11))/LOG(2)))) -> 0 | AI11: =N11 -> 0 | AJ11: =COUNTIF(L30:L36,AI11) -> 0 | AK11: =AJ11/(AL4-AJ8) ->  | AL11: =IF(AK11=0,0,(AK11*((LOG(AK11))/LOG(2)))) ->  | AN11: =N11 -> 0 | AO11: =COUNTIF(L37:L44,AN11) -> 0 | AP11: =AO11/(AQ4-AO8) -> 0 | AQ11: =IF(AP11=0,0,(AP11*((LOG(AP11))/LOG(2)))) -> 0 | AS11: =N11 -> 0 | AT11: =COUNTIF(L45:L51,AS11) -> 0 | AU11: =AT11/(AV4-AT8) ->  | AV11: =IF(AU11=0,0,(AU11*((LOG(AU11))/LOG(2)))) -> 
A12: 11 | B12: 585 | C12: 21 | D12: 611 | K12: 0 | L12: 12 | T12: =N12 -> 0 | U12: =COUNTIF(L7:L14,T12) -> 0 | V12: =U12/(W4-U8) ->  | W12: =IF(V12=0,0,(V12*((LOG(V12))/LOG(2)))) ->  | Y12: =N12 -> 0 | Z12: =COUNTIF(L15:L21,Y12) -> 0 | AA12: =Z12/(AB4-Z8) -> 0 | AB12: =IF(AA12=0,0,(AA12*((LOG(AA12))/LOG(2)))) -> 0 | AD12: =N12 -> 0 | AE12: =COUNTIF(L22:L29,AD12) -> 0 | AF12: =AE12/(AG4-AE8) -> 0 | AG12: =IF(AF12=0,0,(AF12*((LOG(AF12))/LOG(2)))) -> 0 | AI12: =N12 -> 0 | AJ12: =COUNTIF(L30:L36,AI12) -> 0 | AK12: =AJ12/(AL4-AJ8) ->  | AL12: =IF(AK12=0,0,(AK12*((LOG(AK12))/LOG(2)))) ->  | AN12: =N12 -> 0 | AO12: =COUNTIF(L37:L44,AN12) -> 0 | AP12: =AO12/(AQ4-AO8) -> 0 | AQ12: =IF(AP12=0,0,(AP12*((LOG(AP12))/LOG(2)))) -> 0 | AS12: =N12 -> 0 | AT12: =COUNTIF(L45:L51,AS12) -> 0 | AU12: =AT12/(AV4-AT8) ->  | AV12: =IF(AU12=0,0,(AU12*((LOG(AU12))/LOG(2)))) -> 
A13: 11 | B13: 699 | C13: 21 | D13: 710 | K13: 0 | L13: 12 | T13: =N13 -> 0 | U13: =COUNTIF(L7:L14,T13) -> 0 | V13: =U13/(W4-U8) ->  | W13: =IF(V13=0,0,(V13*((LOG(V13))/LOG(2)))) ->  | Y13: =N13 -> 0 | Z13: =COUNTIF(L15:L21,Y13) -> 0 | AA13: =Z13/(AB4-Z8) -> 0 | AB13: =IF(AA13=0,0,(AA13*((LOG(AA13))/LOG(2)))) -> 0 | AD13: =N13 -> 0 | AE13: =COUNTIF(L22:L29,AD13) -> 0 | AF13: =AE13/(AG4-AE8) -> 0 | AG13: =IF(AF13=0,0,(AF13*((LOG(AF13))/LOG(2)))) -> 0 | AI13: =N13 -> 0 | AJ13: =COUNTIF(L30:L36,AI13) -> 0 | AK13: =AJ13/(AL4-AJ8) ->  | AL13: =IF(AK13=0,0,(AK13*((LOG(AK13))/LOG(2)))) ->  | AN13: =N13 -> 0 | AO13: =COUNTIF(L37:L44,AN13) -> 0 | AP13: =AO13/(AQ4-AO8) -> 0 | AQ13: =IF(AP13=0,0,(AP13*((LOG(AP13))/LOG(2)))) -> 0 | AS13: =N13 -> 0 | AT13: =COUNTIF(L45:L51,AS13) -> 0 | AU13: =AT13/(AV4-AT8) ->  | AV13: =IF(AU13=0,0,(AU13*((LOG(AU13))/LOG(2)))) -> 
A14: 11 | B14: 797 | C14: 21 | D14: 809 | K14: 0 | L14: 12 | T14: =N14 -> 0 | U14: =COUNTIF(L7:L14,T14) -> 0 | V14: =U14/(W4-U8) ->  | W14: =IF(V14=0,0,(V14*((LOG(V14))/LOG(2)))) ->  | Y14: =N14 -> 0 | Z14: =COUNTIF(L15:L21,Y14) -> 0 | AA14: =Z14/(AB4-Z8) -> 0 | AB14: =IF(AA14=0,0,(AA14*((LOG(AA14))/LOG(2)))) -> 0 | AD14: =N14 -> 0 | AE14: =COUNTIF(L22:L29,AD14) -> 0 | AF14: =AE14/(AG4-AE8) -> 0 | AG14: =IF(AF14=0,0,(AF14*((LOG(AF14))/LOG(2)))) -> 0 | AI14: =N14 -> 0 | AJ14: =COUNTIF(L30:L36,AI14) -> 0 | AK14: =AJ14/(AL4-AJ8) ->  | AL14: =IF(AK14=0,0,(AK14*((LOG(AK14))/LOG(2)))) ->  | AN14: =N14 -> 0 | AO14: =COUNTIF(L37:L44,AN14) -> 0 | AP14: =AO14/(AQ4-AO8) -> 0 | AQ14: =IF(AP14=0,0,(AP14*((LOG(AP14))/LOG(2)))) -> 0 | AS14: =N14 -> 0 | AT14: =COUNTIF(L45:L51,AS14) -> 0 | AU14: =AT14/(AV4-AT8) ->  | AV14: =IF(AU14=0,0,(AU14*((LOG(AU14))/LOG(2)))) -> 
A15: 11 | B15: 895 | C15: 21 | D15: 923 | K15: 0 | L15: 12 | P15: =SUM(P7:P14) -> 1 | Q15: =-SUM(Q7:Q14) -> 0.5032583348 | V15: =SUM(V7:V14) ->  | W15: =-SUM(W7:W14) ->  | AA15: =SUM(AA7:AA14) -> 1 | AB15: =-SUM(AB7:AB14) -> 0 | AF15: =SUM(AF7:AF14) -> 1 | AG15: =-SUM(AG7:AG14) -> 0 | AK15: =SUM(AK7:AK14) ->  | AL15: =-SUM(AL7:AL14) ->  | AP15: =SUM(AP7:AP14) -> 1 | AQ15: =-SUM(AQ7:AQ14) -> 0 | AU15: =SUM(AU7:AU14) ->  | AV15: =-SUM(AV7:AV14) -> 
A16: 11 | B16: 1009 | C16: 21 | D16: 1032 | K16: 0 | L16: 12 | P16: U= | Q16: =Q15/(LOG(Q4)/LOG(2)) -> 0.09163725357 | V16: U1= | W16: =W15/(LOG(W4)/LOG(2)) ->  | AA16: U2= | AB16: =AB15/(LOG(AB4)/LOG(2)) -> 0 | AF16: U3= | AG16: =AG15/(LOG(AG4)/LOG(2)) -> 0 | AK16: U4= | AL16: =AL15/(LOG(AL4)/LOG(2)) ->  | AP16: U5= | AQ16: =AQ15/(LOG(AQ4)/LOG(2)) -> 0 | AU16: U6= | AV16: =AV15/(LOG(AV4)/LOG(2)) -> 
A17: 22 | B17: 1129 | C17: 23 | D17: 1136 | K17: 0 | L17: 22
A18: 11 | B18: 1232 | C18: 21 | D18: 1247 | K18: 0 | L18: 12
A19: 11 | B19: 1332 | C19: 21 | D19: 1361 | K19: 0 | L19: 12 | N19: Total Target Seq
A20: 11 | B20: 1463 | C20: 21 | D20: 1474 | K20: 0 | L20: 12 | N20: =COUNTIF(L7:L51,G3) -> 40 | P20: 8 | Q20: 7 | R20: 8 | S20: 7 | T20: 8 | U20: 7
A21: 11 | B21: 1561 | C21: 21 | D21: 1704 | K21: 0 | L21: 12 | P21: % of reinforcement given in 6 equal intervals based on number of trials
A22: 22 | B22: 1810 | C22: 23 | D22: 1822 | K22: 0 | L22: 22 | P22: %_1 | Q22: %_2 | R22: %_3 | S22: %_4 | T22: %_5 | U22: %_6
A23: 11 | B23: 1918 | C23: 21 | D23: 1932 | K23: 0 | L23: 12 | O23: target sequence | P23: =$G$3 -> 12 | Q23: =$G$3 -> 12 | R23: =$G$3 -> 12 | S23: =$G$3 -> 12 | T23: =$G$3 -> 12 | U23: =$G$3 -> 12
A24: 11 | B24: 2019 | C24: 21 | D24: 2029 | K24: 0 | L24: 12 | O24: total reinforcement | P24: =U8 -> 8 | Q24: =Z8 -> 6 | R24: =AE8 -> 5 | S24: =AJ8 -> 7 | T24: =AO8 -> 7 | U24: =AT8 -> 7
A25: 11 | B25: 2116 | C25: 21 | D25: 2175 | K25: 0 | L25: 12 | O25: % target
A26: 22 | B26: 2282 | C26: 23 | D26: 2294 | K26: 0 | L26: 22 | O26: CCRF
A27: 11 | B27: 2393 | C27: 21 | D27: 2408 | K27: 0 | L27: 12 | O27: % CCRf
A28: 11 | B28: 2496 | C28: 21 | D28: 2509 | K28: 0 | L28: 12 | O28: average response rate | P28: =D14/P20 -> 101.125 | Q28: =(D21-D14)/Q20 -> 127.8571429 | R28: =(D29-D21)/R20 -> 114.625 | S28: =(D36-D29)/S20 -> 118 | T28: =(D44-D36)/T20 -> 107.75 | U28: =(D51-D44)/U20 -> 107.7142857
A29: 22 | B29: 2609 | C29: 23 | D29: 2621 | K29: 0 | L29: 22
A30: 11 | B30: 2722 | C30: 21 | D30: 2736 | K30: 0 | L30: 12
A31: 11 | B31: 2824 | C31: 21 | D31: 2858 | K31: 0 | L31: 12
A32: 11 | B32: 2946 | C32: 21 | D32: 2969 | K32: 0 | L32: 12
A33: 11 | B33: 3057 | C33: 21 | D33: 3100 | K33: 0 | L33: 12
A34: 11 | B34: 3188 | C34: 21 | D34: 3202 | K34: 0 | L34: 12
A35: 11 | B35: 3288 | C35: 21 | D35: 3307 | K35: 0 | L35: 12
A36: 11 | B36: 3393 | C36: 21 | D36: 3447 | K36: 0 | L36: 12
A37: 11 | B37: 3534 | C37: 21 | D37: 3546 | K37: 0 | L37: 12
A38: 11 | B38: 3639 | C38: 21 | D38: 3648 | K38: 0 | L38: 12
A39: 11 | B39: 3735 | C39: 21 | D39: 3751 | K39: 0 | L39: 12
A40: 11 | B40: 3839 | C40: 21 | D40: 3850 | K40: 0 | L40: 12
A41: 22 | B41: 3944 | C41: 23 | D41: 3952 | K41: 0 | L41: 22
A42: 11 | B42: 4055 | C42: 21 | D42: 4078 | K42: 0 | L42: 12
A43: 11 | B43: 4173 | C43: 21 | D43: 4186 | K43: 0 | L43: 12
A44: 11 | B44: 4277 | C44: 21 | D44: 4309 | K44: 0 | L44: 12
A45: 11 | B45: 4396 | C45: 21 | D45: 4425 | K45: 0 | L45: 12
A46: 11 | B46: 4515 | C46: 21 | D46: 4525 | K46: 0 | L46: 12
A47: 11 | B47: 4614 | C47: 21 | D47: 4624 | K47: 0 | L47: 12
A48: 11 | B48: 4714 | C48: 21 | D48: 4725 | K48: 0 | L48: 12
A49: 11 | B49: 4810 | C49: 21 | D49: 4830 | K49: 0 | L49: 12
A50: 11 | B50: 4917 | C50: 21 | D50: 4961 | K50: 0 | L50: 12
A51: 11 | B51: 5048 | C51: 21 | D51: 5063 | K51: 1 | L51: 12

Sheet !N107720.091
A1: Report for:!N107720.091
A2: Date: | B2: <date>
A3: Hen: | B3: <hen> | F3: Correct Sequence | G3: =Start!J2 -> 12 | P3: Total Sequences in Data | Q3: =4994-COUNTBLANK(L7:L5000) -> 48 | V3: Total Sequences in Block Data | W3: =COUNTA(L7:L14) -> 8 | AA3: Total Sequences in Block Data | AB3: =COUNTA(L15:L22) -> 8 | AF3: Total Sequences in Block Data | AG3: =COUNTA(L23:L30) -> 8 | AK3: Total Sequences in Block Data | AL3: =COUNTA(L31:L38) -> 8 | AP3: Total Sequences in Block Data | AQ3: =COUNTA(L39:L46) -> 8 | AU3: Total Sequences in Block Data | AV3: =COUNTA(L47:L54) -> 8
P4: Total Sequences in Summary | Q4: =SUM(O7:O14) -> 48 | V4: Total Sequences in Block Summary | W4: =SUM(U7:U14) -> 8 | AA4: Total Sequences in Block Summary | AB4: =SUM(Z7:Z14) -> 8 | AF4: Total Sequences in Block Summary | AG4: =SUM(AE7:AE14) -> 8 | AK4: Total Sequences in Block Summary | AL4: =SUM(AJ7:AJ14) -> 8 | AP4: Total Sequences in Block Summary | AQ4: =SUM(AO7:AO14) -> 8 | AU4: Total Sequences in Block Summary | AV4: =SUM(AT7:AT14) -> 8
T5: Block 1 | Y5: Block 2 | AD5: Block 3 | AI5: Block 4 | AN5: Block 5 | AS5: Block 6
A6: Sequence Component 1 | B6: Time 1 | C6: Sequence Component 2 | D6: Time 2 | E6: Sequence Component 3 | F6: Time 3 | G6: Sequence Component 4 | H6: Time 4 | I6: Sequence Component 5 | J6: Time 5 | K6: Correct? 0=No 1=Yes | L6: Sequence | N6: Frequency | P6: Relative Frequency | Q6: Variability | T6: Frequency | V6: Relative Frequency | W6: Variability | Y6: Frequency | AA6: Relative Frequency | AB6: Variability | AD6: Frequency | AF6: Relative Frequency | AG6: Variability | AI6: Frequency | AK6: Relative Frequency | AL6: Variability | AN6: Frequency | AP6: Relative Frequency | AQ6: Variability | AS6: Frequency | AU6: Relative Frequency | AV6: Variability
A7: 22 | B7: 11 | C7: 14 | D7: 26 | K7: 0 | L7: 21 | N7: 11 | O7: =COUNTIF($L$7:$L$500,N7) -> 0 | P7: =O7/$Q$4 -> 0 | Q7: =IF(P7=0,0,(P7*((LOG(P7))/LOG(2)))) -> 0 | T7: =N7 -> 11 | U7: =COUNTIF(L7:L14,T7) -> 0 | V7: =U7/(W4-U8) -> 0 | W7: =IF(V7=0,0,(V7*((LOG(V7))/LOG(2)))) -> 0 | Y7: =N7 -> 11 | Z7: =COUNTIF(L15:L22,Y7) -> 0 | AA7: =Z7/(AB4-Z8) ->  | AB7: =IF(AA7=0,0,(AA7*((LOG(AA7))/LOG(2)))) ->  | AD7: =N7 -> 11 | AE7: =COUNTIF(L23:L30,AD7) -> 0 | AF7: =AE7/(AG4-AE8) -> 0 | AG7: =IF(AF7=0,0,(AF7*((LOG(AF7))/LOG(2)))) -> 0 | AI7: =N7 -> 11 | AJ7: =COUNTIF(L31:L38,AI7) -> 0 | AK7: =AJ7/(AL4-AJ8) ->  | AL7: =IF(AK7=0,0,(AK7*((LOG(AK7))/LOG(2)))) ->  | AN7: =N7 -> 11 | AO7: =COUNTIF(L39:L46,AN7) -> 0 | AP7: =AO7/(AQ4-AO8) -> 0 | AQ7: =IF(AP7=0,0,(AP7*((LOG(AP7))/LOG(2)))) -> 0 | AS7: =N7 -> 11 | AT7: =COUNTIF(L47:L54,AS7) -> 0 | AU7: =AT7/(AV4-AT8) -> 0 | AV7: =IF(AU7=0,0,(AU7*((LOG(AU7))/LOG(2)))) -> 0
A8: 11 | B8: 124 | C8: 21 | D8: 137 | K8: 0 | L8: 12 | N8: 12 | O8: =COUNTIF($L$7:$L$500,N8) -> 40 | P8: =O8/$Q$4 -> 0.8333333333 | Q8: =IF(P8=0,0,(P8*((LOG(P8))/LOG(2)))) -> -0.2191953382 | T8: =N8 -> 12 | U8: =COUNTIF(L7:L14,T8) -> 5 | Y8: =N8 -> 12 | Z8: =COUNTIF(L15:L22,Y8) -> 8 | AD8: =N8 -> 12 | AE8: =COUNTIF(L23:L30,AD8) -> 7 | AI8: =N8 -> 12 | AJ8: =COUNTIF(L31:L38,AI8) -> 8 | AN8: =N8 -> 12 | AO8: =COUNTIF(L39:L46,AN8) -> 7 | AS8: =N8 -> 12 | AT8: =COUNTIF(L47:L54,AS8) -> 5
A9: 22 | B9: 233 | C9: 14 | D9: 244 | K9: 0 | L9: 21 | N9: 21 | O9: =COUNTIF($L$7:$L$500,N9) -> 3 | P9: =O9/$Q$4 -> 0.0625 | Q9: =IF(P9=0,0,(P9*((LOG(P9))/LOG(2)))) -> -0.25 | T9: =N9 -> 21 | U9: =COUNTIF(L7:L14,T9) -> 3 | V9: =U9/(W4-U8) -> 1 | W9: =IF(V9=0,0,(V9*((LOG(V9))/LOG(2)))) -> 0 | Y9: =N9 -> 21 | Z9: =COUNTIF(L15:L22,Y9) -> 0 | AA9: =Z9/(AB4-Z8) ->  | AB9: =IF(AA9=0,0,(AA9*((LOG(AA9))/LOG(2)))) ->  | AD9: =N9 -> 21 | AE9: =COUNTIF(L23:L30,AD9) -> 0 | AF9: =AE9/(AG4-AE8) -> 0 | AG9: =IF(AF9=0,0,(AF9*((LOG(AF9))/LOG(2)))) -> 0 | AI9: =N9 -> 21 | AJ9: =COUNTIF(L31:L38,AI9) -> 0 | AK9: =AJ9/(AL4-AJ8) ->  | AL9: =IF(AK9=0,0,(AK9*((LOG(AK9))/LOG(2)))) ->  | AN9: =N9 -> 21 | AO9: =COUNTIF(L39:L46,AN9) -> 0 | AP9: =AO9/(AQ4-AO8) -> 0 | AQ9: =IF(AP9=0,0,(AP9*((LOG(AP9))/LOG(2)))) -> 0 | AS9: =N9 -> 21 | AT9: =COUNTIF(L47:L54,AS9) -> 0 | AU9: =AT9/(AV4-AT8) -> 0 | AV9: =IF(AU9=0,0,(AU9*((LOG(AU9))/LOG(2)))) -> 0
A10: 11 | B10: 340 | C10: 21 | D10: 351 | K10: 0 | L10: 12 | N10: 22 | O10: =COUNTIF($L$7:$L$500,N10) -> 5 | P10: =O10/$Q$4 -> 0.1041666667 | Q10: =IF(P10=0,0,(P10*((LOG(P10))/LOG(2)))) -> -0.3398994173 | T10: =N10 -> 22 | U10: =COUNTIF(L7:L14,T10) -> 0 | V10: =U10/(W4-U8) -> 0 | W10: =IF(V10=0,0,(V10*((LOG(V10))/LOG(2)))) -> 0 | Y10: =N10 -> 22 | Z10: =COUNTIF(L15:L22,Y10) -> 0 | AA10: =Z10/(AB4-Z8) ->  | AB10: =IF(AA10=0,0,(AA10*((LOG(AA10))/LOG(2)))) ->  | AD10: =N10 -> 22 | AE10: =COUNTIF(L23:L30,AD10) -> 1 | AF10: =AE10/(AG4-AE8) -> 1 | AG10: =IF(AF10=0,0,(AF10*((LOG(AF10))/LOG(2)))) -> 0 | AI10: =N10 -> 22 | AJ10: =COUNTIF(L31:L38,AI10) -> 0 | AK10: =AJ10/(AL4-AJ8) ->  | AL10: =IF(AK10=0,0,(AK10*((LOG(AK10))/LOG(2)))) ->  | AN10: =N10 -> 22 | AO10: =COUNTIF(L39:L46,AN10) -> 1 | AP10: =AO10/(AQ4-AO8) -> 1 | AQ10: =IF(AP10=0,0,(AP10*((LOG(AP10))/LOG(2)))) -> 0 | AS10: =N10 -> 22 | AT10: =COUNTIF(L47:L54,AS10) -> 3 | AU10: =AT10/(AV4-AT8) -> 1 | AV10: =IF(AU10=0,0,(AU10*((LOG(AU10))/LOG(2)))) -> 0
A11: 22 | B11: 455 | C11: 14 | D11: 473 | K11: 0 | L11: 21 | T11: =N11 -> 0 | U11: =COUNTIF(L7:L14,T11) -> 0 | V11: =U11/(W4-U8) -> 0 | W11: =IF(V11=0,0,(V11*((LOG(V11))/LOG(2)))) -> 0 | Y11: =N11 -> 0 | Z11: =COUNTIF(L15:L22,Y11) -> 0 | AA11: =Z11/(AB4-Z8) ->  | AB11: =IF(AA11=0,0,(AA11*((LOG(AA11))/LOG(2)))) ->  | AD11: =N11 -> 0 | AE11: =COUNTIF(L23:L30,AD11) -> 0 | AF11: =AE11/(AG4-AE8) -> 0 | AG11: =IF(AF11=0,0,(AF11*((LOG(AF11))/LOG(2)))) -> 0 | AI11: =N11 -> 0 | AJ11: =COUNTIF(L31:L38,AI11) -> 0 | AK11: =AJ11/(AL4-AJ8) ->  | AL11: =IF(AK11=0,0,(AK11*((LOG(AK11))/LOG(2)))) ->  | AN11: =N11 -> 0 | AO11: =COUNTIF(L39:L46,AN11) -> 0 | AP11: =AO11/(AQ4-AO8) -> 0 | AQ11: =IF(AP11=0,0,(AP11*((LOG(AP11))/LOG(2)))) -> 0 | AS11: =N11 -> 0 | AT11: =COUNTIF(L47:L54,AS11) -> 0 | AU11: =AT11/(AV4-AT8) -> 0 | AV11: =IF(AU11=0,0,(AU11*((LOG(AU11))/LOG(2)))) -> 0
A12: 11 | B12: 573 | C12: 21 | D12: 597 | K12: 0 | L12: 12 | T12: =N12 -> 0 | U12: =COUNTIF(L7:L14,T12) -> 0 | V12: =U12/(W4-U8) -> 0 | W12: =IF(V12=0,0,(V12*((LOG(V12))/LOG(2)))) -> 0 | Y12: =N12 -> 0 | Z12: =COUNTIF(L15:L22,Y12) -> 0 | AA12: =Z12/(AB4-Z8) ->  | AB12: =IF(AA12=0,0,(AA12*((LOG(AA12))/LOG(2)))) ->  | AD12: =N12 -> 0 | AE12: =COUNTIF(L23:L30,AD12) -> 0 | AF12: =AE12/(AG4-AE8) -> 0 | AG12: =IF(AF12=0,0,(AF12*((LOG(AF12))/LOG(2)))) -> 0 | AI12: =N12 -> 0 | AJ12: =COUNTIF(L31:L38,AI12) -> 0 | AK12: =AJ12/(AL4-AJ8) ->  | AL12: =IF(AK12=0,0,(AK12*((LOG(AK12))/LOG(2)))) ->  | AN12: =N12 -> 0 | AO12: =COUNTIF(L39:L46,AN12) -> 0 | AP12: =AO12/(AQ4-AO8) -> 0 | AQ12: =IF(AP12=0,0,(AP12*((LOG(AP12))/LOG(2)))) -> 0 | AS12: =N12 -> 0 | AT12: =COUNTIF(L47:L54,AS12) -> 0 | AU12: =AT12/(AV4-AT8) -> 0 | AV12: =IF(AU12=0,0,(AU12*((LOG(AU12))/LOG(2)))) -> 0
A13: 11 | B13: 687 | C13: 21 | D13: 700 | K13: 0 | L13: 12 | T13: =N13 -> 0 | U13: =COUNTIF(L7:L14,T13) -> 0 | V13: =U13/(W4-U8) -> 0 | W13: =IF(V13=0,0,(V13*((LOG(V13))/LOG(2)))) -> 0 | Y13: =N13 -> 0 | Z13: =COUNTIF(L15:L22,Y13) -> 0 | AA13: =Z13/(AB4-Z8) ->  | AB13: =IF(AA13=0,0,(AA13*((LOG(AA13))/LOG(2)))) ->  | AD13: =N13 -> 0 | AE13: =COUNTIF(L23:L30,AD13) -> 0 | AF13: =AE13/(AG4-AE8) -> 0 | AG13: =IF(AF13=0,0,(AF13*((LOG(AF13))/LOG(2)))) -> 0 | AI13: =N13 -> 0 | AJ13: =COUNTIF(L31:L38,AI13) -> 0 | AK13: =AJ13/(AL4-AJ8) ->  | AL13: =IF(AK13=0,0,(AK13*((LOG(AK13))/LOG(2)))) ->  | AN13: =N13 -> 0 | AO13: =COUNTIF(L39:L46,AN13) -> 0 | AP13: =AO13/(AQ4-AO8) -> 0 | AQ13: =IF(AP13=0,0,(AP13*((LOG(AP13))/LOG(2)))) -> 0 | AS13: =N13 -> 0 | AT13: =COUNTIF(L47:L54,AS13) -> 0 | AU13: =AT13/(AV4-AT8) -> 0 | AV13: =IF(AU13=0,0,(AU13*((LOG(AU13))/LOG(2)))) -> 0
A14: 11 | B14: 792 | C14: 21 | D14: 817 | K14: 0 | L14: 12 | T14: =N14 -> 0 | U14: =COUNTIF(L7:L14,T14) -> 0 | V14: =U14/(W4-U8) -> 0 | W14: =IF(V14=0,0,(V14*((LOG(V14))/LOG(2)))) -> 0 | Y14: =N14 -> 0 | Z14: =COUNTIF(L15:L22,Y14) -> 0 | AA14: =Z14/(AB4-Z8) ->  | AB14: =IF(AA14=0,0,(AA14*((LOG(AA14))/LOG(2)))) ->  | AD14: =N14 -> 0 | AE14: =COUNTIF(L23:L30,AD14) -> 0 | AF14: =AE14/(AG4-AE8) -> 0 | AG14: =IF(AF14=0,0,(AF14*((LOG(AF14))/LOG(2)))) -> 0 | AI14: =N14 -> 0 | AJ14: =COUNTIF(L31:L38,AI14) -> 0 | AK14: =AJ14/(AL4-AJ8) ->  | AL14: =IF(AK14=0,0,(AK14*((LOG(AK14))/LOG(2)))) ->  | AN14: =N14 -> 0 | AO14: =COUNTIF(L39:L46,AN14) -> 0 | AP14: =AO14/(AQ4-AO8) -> 0 | AQ14: =IF(AP14=0,0,(AP14*((LOG(AP14))/LOG(2)))) -> 0 | AS14: =N14 -> 0 | AT14: =COUNTIF(L47:L54,AS14) -> 0 | AU14: =AT14/(AV4-AT8) -> 0 | AV14: =IF(AU14=0,0,(AU14*((LOG(AU14))/LOG(2)))) -> 0
A15: 11 | B15: 904 | C15: 21 | D15: 917 | K15: 0 | L15: 12 | P15: =SUM(P7:P14) -> 1 | Q15: =-SUM(Q7:Q14) -> 0.8090947555 | V15: =SUM(V7:V14) -> 1 | W15: =-SUM(W7:W14) -> 0 | AA15: =SUM(AA7:AA14) ->  | AB15: =-SUM(AB7:AB14) ->  | AF15: =SUM(AF7:AF14) -> 1 | AG15: =-SUM(AG7:AG14) -> 0 | AK15: =SUM(AK7:AK14) ->  | AL15: =-SUM(AL7:AL14) ->  | AP15: =SUM(AP7:AP14) -> 1 | AQ15: =-SUM(AQ7:AQ14) -> 0 | AU15: =SUM(AU7:AU14) -> 1 | AV15: =-SUM(AV7:AV14) -> 0
A16: 11 | B16: 1004 | C16: 21 | D16: 1015 | K16: 0 | L16: 12 | P16: U= | Q16: =Q15/(LOG(Q4)/LOG(2)) -> 0.1448702217 | V16: U1= | W16: =W15/(LOG(W4)/LOG(2)) -> 0 | AA16: U2= | AB16: =AB15/(LOG(AB4)/LOG(2)) ->  | AF16: U3= | AG16: =AG15/(LOG(AG4)/LOG(2)) -> 0 | AK16: U4= | AL16: =AL15/(LOG(AL4)/LOG(2)) ->  | AP16: U5= | AQ16: =AQ15/(LOG(AQ4)/LOG(2)) -> 0 | AU16: U6= | AV16: =AV15/(LOG(AV4)/LOG(2)) -> 0
A17: 11 | B17: 1102 | C17: 21 | D17: 1136 | K17: 0 | L17: 12
A18: 11 | B18: 1222 | C18: 21 | D18: 1235 | K18: 0 | L18: 12
A19: 11 | B19: 1325 | C19: 21 | D19: 1335 | K19: 0 | L19: 12 | N19: Total Target Seq
A20: 11 | B20: 1424 | C20: 21 | D20: 1445 | K20: 0 | L20: 12 | N20: =COUNTIF(L7:L54,G3) -> 40 | P20: 8 | Q20: 8 | R20: 8 | S20: 8 | T20: 8 | U20: 8
A21: 11 | B21: 1534 | C21: 21 | D21: 1553 | K21: 0 | L21: 12 | P21: % of reinforcement given in 6 equal intervals based on number of trials
A22: 11 | B22: 1641 | C22: 21 | D22: 1655 | K22: 0 | L22: 12 | P22: %_1 | Q22: %_2 | R22: %_3 | S22: %_4 | T22: %_5 | U22: %_6
A23: 11 | B23: 1742 | C23: 21 | D23: 1755 | K23: 0 | L23: 12 | O23: target sequence | P23: =$G$3 -> 12 | Q23: =$G$3 -> 12 | R23: =$G$3 -> 12 | S23: =$G$3 -> 12 | T23: =$G$3 -> 12 | U23: =$G$3 -> 12
A24: 11 | B24: 1844 | C24: 21 | D24: 1857 | K24: 0 | L24: 12 | O24: total reinforcement | P24: =U8 -> 5 | Q24: =Z8 -> 8 | R24: =AE8 -> 7 | S24: =AJ8 -> 8 | T24: =AO8 -> 7 | U24: =AT8 -> 5
A25: 11 | B25: 1944 | C25: 21 | D25: 1963 | K25: 0 | L25: 12 | O25: % target
A26: 11 | B26: 2051 | C26: 21 | D26: 2064 | K26: 0 | L26: 12 | O26: CCRF
A27: 11 | B27: 2152 | C27: 21 | D27: 2162 | K27: 0 | L27: 12 | O27: % CCRf
A28: 22 | B28: 2263 | C28: 23 | D28: 2272 | K28: 0 | L28: 22 | O28: average response rate | P28: =D14/P20 -> 102.125 | Q28: =(D22-D14)/Q20 -> 104.75 | R28: =(D30-D22)/R20 -> 103.25 | S28: =(D38-D30)/S20 -> 107.375 | T28: =(D46-D38)/T20 -> 103.25 | U28: =(D54-D46)/U20 -> 110.375
A29: 11 | B29: 2371 | C29: 21 | D29: 2384 | K29: 0 | L29: 12
A30: 11 | B30: 2471 | C30: 21 | D30: 2481 | K30: 0 | L30: 12
A31: 11 | B31: 2566 | C31: 21 | D31: 2579 | K31: 0 | L31: 12
A32: 11 | B32: 2676 | C32: 21 | D32: 2720 | K32: 0 | L32: 12
A33: 11 | B33: 2814 | C33: 21 | D33: 2826 | K33: 0 | L33: 12
A34: 11 | B34: 2912 | C34: 21 | D34: 2930 | K34: 0 | L34: 12
A35: 11 | B35: 3018 | C35: 21 | D35: 3028 | K35: 0 | L35: 12
A36: 11 | B36: 3115 | C36: 21 | D36: 3141 | K36: 0 | L36: 12
A37: 11 | B37: 3225 | C37: 21 | D37: 3239 | K37: 0 | L37: 12
A38: 11 | B38: 3328 | C38: 21 | D38: 3340 | K38: 0 | L38: 12
A39: 11 | B39: 3429 | C39: 21 | D39: 3441 | K39: 0 | L39: 12
A40: 11 | B40: 3527 | C40: 21 | D40: 3556 | K40: 0 | L40: 12
A41: 11 | B41: 3642 | C41: 21 | D41: 3653 | K41: 0 | L41: 12
A42: 22 | B42: 3749 | C42: 23 | D42: 3757 | K42: 0 | L42: 22
A43: 11 | B43: 3855 | C43: 21 | D43: 3868 | K43: 0 | L43: 12
A44: 11 | B44: 3954 | C44: 21 | D44: 3968 | K44: 0 | L44: 12
A45: 11 | B45: 4053 | C45: 21 | D45: 4065 | K45: 0 | L45: 12
A46: 11 | B46: 4151 | C46: 21 | D46: 4166 | K46: 0 | L46: 12
A47: 22 | B47: 4264 | C47: 23 | D47: 4276 | K47: 0 | L47: 22
A48: 11 | B48: 4374 | C48: 21 | D48: 4386 | K48: 0 | L48: 12
A49: 22 | B49: 4487 | C49: 23 | D49: 4499 | K49: 0 | L49: 22
A50: 11 | B50: 4598 | C50: 21 | D50: 4613 | K50: 0 | L50: 12
A51: 11 | B51: 4701 | C51: 21 | D51: 4718 | K51: 0 | L51: 12
A52: 22 | B52: 4817 | C52: 23 | D52: 4838 | K52: 0 | L52: 22
A53: 11 | B53: 4935 | C53: 21 | D53: 4952 | K53: 0 | L53: 12
A54: 11 | B54: 5040 | C54: 21 | D54: 5049 | K54: 1 | L54: 12

Sheet !N108810.091
A1: Report for:!N108810.091
A2: Date: | B2: <date>
A3: Hen: | B3: <hen> | F3: Correct Sequence | G3: =Start!J2 -> 12 | P3: Total Sequences in Data | Q3: =4994-COUNTBLANK(L7:L5000) -> 46 | V3: Total Sequences in Block Data | W3: =COUNTA(L7:L14) -> 8 | AA3: Total Sequences in Block Data | AB3: =COUNTA(L15:L21) -> 7 | AF3: Total Sequences in Block Data | AG3: =COUNTA(L22:L29) -> 8 | AK3: Total Sequences in Block Data | AL3: =COUNTA(L30:L37) -> 8 | AP3: Total Sequences in Block Data | AQ3: =COUNTA(L38:L44) -> 7 | AU3: Total Sequences in Block Data | AV3: =COUNTA(L45:L52) -> 8
P4: Total Sequences in Summary | Q4: =SUM(O7:O14) -> 46 | V4: Total Sequences in Block Summary | W4: =SUM(U7:U14) -> 8 | AA4: Total Sequences in Block Summary | AB4: =SUM(Z7:Z14) -> 7 | AF4: Total Sequences in Block Summary | AG4: =SUM(AE7:AE14) -> 8 | AK4: Total Sequences in Block Summary | AL4: =SUM(AJ7:AJ14) -> 8 | AP4: Total Sequences in Block Summary | AQ4: =SUM(AO7:AO14) -> 7 | AU4: Total Sequences in Block Summary | AV4: =SUM(AT7:AT14) -> 8
T5: Block 1 | Y5: Block 2 | AD5: Block 3 | AI5: Block 4 | AN5: Block 5 | AS5: Block 6
A6: Sequence Component 1 | B6: Time 1 | C6: Sequence Component 2 | D6: Time 2 | E6: Sequence Component 3 | F6: Time 3 | G6: Sequence Component 4 | H6: Time 4 | I6: Sequence Component 5 | J6: Time 5 | K6: Correct? 0=No 1=Yes | L6: Sequence | N6: Frequency | P6: Relative Frequency | Q6: Variability | T6: Frequency | V6: Relative Frequency | W6: Variability | Y6: Frequency | AA6: Relative Frequency | AB6: Variability | AD6: Frequency | AF6: Relative Frequency | AG6: Variability | AI6: Frequency | AK6: Relative Frequency | AL6: Variability | AN6: Frequency | AP6: Relative Frequency | AQ6: Variability | AS6: Frequency | AU6: Relative Frequency | AV6: Variability
A7: 11 | B7: 14 | C7: 21 | D7: 53 | K7: 0 | L7: 12 | N7: 11 | O7: =COUNTIF($L$7:$L$500,N7) -> 4 | P7: =O7/$Q$4 -> 0.08695652174 | Q7: =IF(P7=0,0,(P7*((LOG(P7))/LOG(2)))) -> -0.3063966918 | T7: =N7 -> 11 | U7: =COUNTIF(L7:L14,T7) -> 1 | V7: =U7/(W4-U8) -> 1 | W7: =IF(V7=0,0,(V7*((LOG(V7))/LOG(2)))) -> 0 | Y7: =N7 -> 11 | Z7: =COUNTIF(L15:L21,Y7) -> 0 | AA7: =Z7/(AB4-Z8) ->  | AB7: =IF(AA7=0,0,(AA7*((LOG(AA7))/LOG(2)))) ->  | AD7: =N7 -> 11 | AE7: =COUNTIF(L22:L29,AD7) -> 0 | AF7: =AE7/(AG4-AE8) -> 0 | AG7: =IF(AF7=0,0,(AF7*((LOG(AF7))/LOG(2)))) -> 0 | AI7: =N7 -> 11 | AJ7: =COUNTIF(L30:L37,AI7) -> 1 | AK7: =AJ7/(AL4-AJ8) -> 1 | AL7: =IF(AK7=0,0,(AK7*((LOG(AK7))/LOG(2)))) -> 0 | AN7: =N7 -> 11 | AO7: =COUNTIF(L38:L44,AN7) -> 1 | AP7: =AO7/(AQ4-AO8) -> 1 | AQ7: =IF(AP7=0,0,(AP7*((LOG(AP7))/LOG(2)))) -> 0 | AS7: =N7 -> 11 | AT7: =COUNTIF(L45:L52,AS7) -> 1 | AU7: =AT7/(AV4-AT8) -> 0.5 | AV7: =IF(AU7=0,0,(AU7*((LOG(AU7))/LOG(2)))) -> -0.5
A8: 11 | B8: 141 | C8: 21 | D8: 156 | K8: 0 | L8: 12 | N8: 12 | O8: =COUNTIF($L$7:$L$500,N8) -> 40 | P8: =O8/$Q$4 -> 0.8695652174 | Q8: =IF(P8=0,0,(P8*((LOG(P8))/LOG(2)))) -> -0.1753337923 | T8: =N8 -> 12 | U8: =COUNTIF(L7:L14,T8) -> 7 | Y8: =N8 -> 12 | Z8: =COUNTIF(L15:L21,Y8) -> 7 | AD8: =N8 -> 12 | AE8: =COUNTIF(L22:L29,AD8) -> 7 | AI8: =N8 -> 12 | AJ8: =COUNTIF(L30:L37,AI8) -> 7 | AN8: =N8 -> 12 | AO8: =COUNTIF(L38:L44,AN8) -> 6 | AS8: =N8 -> 12 | AT8: =COUNTIF(L45:L52,AS8) -> 6
A9: 11 | B9: 251 | C9: 21 | D9: 273 | K9: 0 | L9: 12 | N9: 21 | O9: =COUNTIF($L$7:$L$500,N9) -> 0 | P9: =O9/$Q$4 -> 0 | Q9: =IF(P9=0,0,(P9*((LOG(P9))/LOG(2)))) -> 0 | T9: =N9 -> 21 | U9: =COUNTIF(L7:L14,T9) -> 0 | V9: =U9/(W4-U8) -> 0 | W9: =IF(V9=0,0,(V9*((LOG(V9))/LOG(2)))) -> 0 | Y9: =N9 -> 21 | Z9: =COUNTIF(L15:L21,Y9) -> 0 | AA9: =Z9/(AB4-Z8) ->  | AB9: =IF(AA9=0,0,(AA9*((LOG(AA9))/LOG(2)))) ->  | AD9: =N9 -> 21 | AE9: =COUNTIF(L22:L29,AD9) -> 0 | AF9: =AE9/(AG4-AE8) -> 0 | AG9: =IF(AF9=0,0,(AF9*((LOG(AF9))/LOG(2)))) -> 0 | AI9: =N9 -> 21 | AJ9: =COUNTIF(L30:L37,AI9) -> 0 | AK9: =AJ9/(AL4-AJ8) -> 0 | AL9: =IF(AK9=0,0,(AK9*((LOG(AK9))/LOG(2)))) -> 0 | AN9: =N9 -> 21 | AO9: =COUNTIF(L38:L44,AN9) -> 0 | AP9: =AO9/(AQ4-AO8) -> 0 | AQ9: =IF(AP9=0,0,(AP9*((LOG(AP9))/LOG(2)))) -> 0 | AS9: =N9 -> 21 | AT9: =COUNTIF(L45:L52,AS9) -> 0 | AU9: =AT9/(AV4-AT8) -> 0 | AV9: =IF(AU9=0,0,(AU9*((LOG(AU9))/LOG(2)))) -> 0
A10: 11 | B10: 368 | C10: 21 | D10: 379 | K10: 0 | L10: 12 | N10: 22 | O10: =COUNTIF($L$7:$L$500,N10) -> 2 | P10: =O10/$Q$4 -> 0.04347826087 | Q10: =IF(P10=0,0,(P10*((LOG(P10))/LOG(2)))) -> -0.1966766068 | T10: =N10 -> 22 | U10: =COUNTIF(L7:L14,T10) -> 0 | V10: =U10/(W4-U8) -> 0 | W10: =IF(V10=0,0,(V10*((LOG(V10))/LOG(2)))) -> 0 | Y10: =N10 -> 22 | Z10: =COUNTIF(L15:L21,Y10) -> 0 | AA10: =Z10/(AB4-Z8) ->  | AB10: =IF(AA10=0,0,(AA10*((LOG(AA10))/LOG(2)))) ->  | AD10: =N10 -> 22 | AE10: =COUNTIF(L22:L29,AD10) -> 1 | AF10: =AE10/(AG4-AE8) -> 1 | AG10: =IF(AF10=0,0,(AF10*((LOG(AF10))/LOG(2)))) -> 0 | AI10: =N10 -> 22 | AJ10: =COUNTIF(L30:L37,AI10) -> 0 | AK10: =AJ10/(AL4-AJ8) -> 0 | AL10: =IF(AK10=0,0,(AK10*((LOG(AK10))/LOG(2)))) -> 0 | AN10: =N10 -> 22 | AO10: =COUNTIF(L38:L44,AN10) -> 0 | AP10: =AO10/(AQ4-AO8) -> 0 | AQ10: =IF(AP10=0,0,(AP10*((LOG(AP10))/LOG(2)))) -> 0 | AS10: =N10 -> 22 | AT10: =COUNTIF(L45:L52,AS10) -> 1 | AU10: =AT10/(AV4-AT8) -> 0.5 | AV10: =IF(AU10=0,0,(AU10*((LOG(AU10))/LOG(2)))) -> -0.5
A11: 11 | B11: 466 | C11: 21 | D11: 479 | K11: 0 | L11: 12 | T11: =N11 -> 0 | U11: =COUNTIF(L7:L14,T11) -> 0 | V11: =U11/(W4-U8) -> 0 | W11: =IF(V11=0,0,(V11*((LOG(V11))/LOG(2)))) -> 0 | Y11: =N11 -> 0 | Z11: =COUNTIF(L15:L21,Y11) -> 0 | AA11: =Z11/(AB4-Z8) ->  | AB11: =IF(AA11=0,0,(AA11*((LOG(AA11))/LOG(2)))) ->  | AD11: =N11 -> 0 | AE11: =COUNTIF(L22:L29,AD11) -> 0 | AF11: =AE11/(AG4-AE8) -> 0 | AG11: =IF(AF11=0,0,(AF11*((LOG(AF11))/LOG(2)))) -> 0 | AI11: =N11 -> 0 | AJ11: =COUNTIF(L30:L37,AI11) -> 0 | AK11: =AJ11/(AL4-AJ8) -> 0 | AL11: =IF(AK11=0,0,(AK11*((LOG(AK11))/LOG(2)))) -> 0 | AN11: =N11 -> 0 | AO11: =COUNTIF(L38:L44,AN11) -> 0 | AP11: =AO11/(AQ4-AO8) -> 0 | AQ11: =IF(AP11=0,0,(AP11*((LOG(AP11))/LOG(2)))) -> 0 | AS11: =N11 -> 0 | AT11: =COUNTIF(L45:L52,AS11) -> 0 | AU11: =AT11/(AV4-AT8) -> 0 | AV11: =IF(AU11=0,0,(AU11*((LOG(AU11))/LOG(2)))) -> 0
A12: 11 | B12: 568 | C12: 21 | D12: 577 | K12: 0 | L12: 12 | T12: =N12 -> 0 | U12: =COUNTIF(L7:L14,T12) -> 0 | V12: =U12/(W4-U8) -> 0 | W12: =IF(V12=0,0,(V12*((LOG(V12))/LOG(2)))) -> 0 | Y12: =N12 -> 0 | Z12: =COUNTIF(L15:L21,Y12) -> 0 | AA12: =Z12/(AB4-Z8) ->  | AB12: =IF(AA12=0,0,(AA12*((LOG(AA12))/LOG(2)))) ->  | AD12: =N12 -> 0 | AE12: =COUNTIF(L22:L29,AD12) -> 0 | AF12: =AE12/(AG4-AE8) -> 0 | AG12: =IF(AF12=0,0,(AF12*((LOG(AF12))/LOG(2)))) -> 0 | AI12: =N12 -> 0 | AJ12: =COUNTIF(L30:L37,AI12) -> 0 | AK12: =AJ12/(AL4-AJ8) -> 0 | AL12: =IF(AK12=0,0,(AK12*((LOG(AK12))/LOG(2)))) -> 0 | AN12: =N12 -> 0 | AO12: =COUNTIF(L38:L44,AN12) -> 0 | AP12: =AO12/(AQ4-AO8) -> 0 | AQ12: =IF(AP12=0,0,(AP12*((LOG(AP12))/LOG(2)))) -> 0 | AS12: =N12 -> 0 | AT12: =COUNTIF(L45:L52,AS12) -> 0 | AU12: =AT12/(AV4-AT8) -> 0 | AV12: =IF(AU12=0,0,(AU12*((LOG(AU12))/LOG(2)))) -> 0
A13: 11 | B13: 669 | C13: 12 | D13: 674 | K13: 0 | L13: 11 | T13: =N13 -> 0 | U13: =COUNTIF(L7:L14,T13) -> 0 | V13: =U13/(W4-U8) -> 0 | W13: =IF(V13=0,0,(V13*((LOG(V13))/LOG(2)))) -> 0 | Y13: =N13 -> 0 | Z13: =COUNTIF(L15:L21,Y13) -> 0 | AA13: =Z13/(AB4-Z8) ->  | AB13: =IF(AA13=0,0,(AA13*((LOG(AA13))/LOG(2)))) ->  | AD13: =N13 -> 0 | AE13: =COUNTIF(L22:L29,AD13) -> 0 | AF13: =AE13/(AG4-AE8) -> 0 | AG13: =IF(AF13=0,0,(AF13*((LOG(AF13))/LOG(2)))) -> 0 | AI13: =N13 -> 0 | AJ13: =COUNTIF(L30:L37,AI13) -> 0 | AK13: =AJ13/(AL4-AJ8) -> 0 | AL13: =IF(AK13=0,0,(AK13*((LOG(AK13))/LOG(2)))) -> 0 | AN13: =N13 -> 0 | AO13: =COUNTIF(L38:L44,AN13) -> 0 | AP13: =AO13/(AQ4-AO8) -> 0 | AQ13: =IF(AP13=0,0,(AP13*((LOG(AP13))/LOG(2)))) -> 0 | AS13: =N13 -> 0 | AT13: =COUNTIF(L45:L52,AS13) -> 0 | AU13: =AT13/(AV4-AT8) -> 0 | AV13: =IF(AU13=0,0,(AU13*((LOG(AU13))/LOG(2)))) -> 0
A14: 11 | B14: 772 | C14: 21 | D14: 785 | K14: 0 | L14: 12 | T14: =N14 -> 0 | U14: =COUNTIF(L7:L14,T14) -> 0 | V14: =U14/(W4-U8) -> 0 | W14: =IF(V14=0,0,(V14*((LOG(V14))/LOG(2)))) -> 0 | Y14: =N14 -> 0 | Z14: =COUNTIF(L15:L21,Y14) -> 0 | AA14: =Z14/(AB4-Z8) ->  | AB14: =IF(AA14=0,0,(AA14*((LOG(AA14))/LOG(2)))) ->  | AD14: =N14 -> 0 | AE14: =COUNTIF(L22:L29,AD14) -> 0 | AF14: =AE14/(AG4-AE8) -> 0 | AG14: =IF(AF14=0,0,(AF14*((LOG(AF14))/LOG(2)))) -> 0 | AI14: =N14 -> 0 | AJ14: =COUNTIF(L30:L37,AI14) -> 0 | AK14: =AJ14/(AL4-AJ8) -> 0 | AL14: =IF(AK14=0,0,(AK14*((LOG(AK14))/LOG(2)))) -> 0 | AN14: =N14 -> 0 | AO14: =COUNTIF(L38:L44,AN14) -> 0 | AP14: =AO14/(AQ4-AO8) -> 0 | AQ14: =IF(AP14=0,0,(AP14*((LOG(AP14))/LOG(2)))) -> 0 | AS14: =N14 -> 0 | AT14: =COUNTIF(L45:L52,AS14) -> 0 | AU14: =AT14/(AV4-AT8) -> 0 | AV14: =IF(AU14=0,0,(AU14*((LOG(AU14))/LOG(2)))) -> 0
A15: 11 | B15: 873 | C15: 21 | D15: 909 | K15: 0 | L15: 12 | P15: =SUM(P7:P14) -> 1 | Q15: =-SUM(Q7:Q14) -> 0.6784070909 | V15: =SUM(V7:V14) -> 1 | W15: =-SUM(W7:W14) -> 0 | AA15: =SUM(AA7:AA14) ->  | AB15: =-SUM(AB7:AB14) ->  | AF15: =SUM(AF7:AF14) -> 1 | AG15: =-SUM(AG7:AG14) -> 0 | AK15: =SUM(AK7:AK14) -> 1 | AL15: =-SUM(AL7:AL14) -> 0 | AP15: =SUM(AP7:AP14) -> 1 | AQ15: =-SUM(AQ7:AQ14) -> 0 | AU15: =SUM(AU7:AU14) -> 1 | AV15: =-SUM(AV7:AV14) -> 1
A16: 11 | B16: 1004 | C16: 21 | D16: 1016 | K16: 0 | L16: 12 | P16: U= | Q16: =Q15/(LOG(Q4)/LOG(2)) -> 0.1228205814 | V16: U1= | W16: =W15/(LOG(W4)/LOG(2)) -> 0 | AA16: U2= | AB16: =AB15/(LOG(AB4)/LOG(2)) ->  | AF16: U3= | AG16: =AG15/(LOG(AG4)/LOG(2)) -> 0 | AK16: U4= | AL16: =AL15/(LOG(AL4)/LOG(2)) -> 0 | AP16: U5= | AQ16: =AQ15/(LOG(AQ4)/LOG(2)) -> 0 | AU16: U6= | AV16: =AV15/(LOG(AV4)/LOG(2)) -> 0.3333333333
A17: 11 | B17: 1104 | C17: 21 | D17: 1114 | K17: 0 | L17: 12
A18: 11 | B18: 1204 | C18: 21 | D18: 1213 | K18: 0 | L18: 12
A19: 11 | B19: 1300 | C19: 21 | D19: 1324 | K19: 0 | L19: 12 | N19: Total Target Seq
A20: 11 | B20: 1411 | C20: 21 | D20: 1425 | K20: 0 | L20: 12 | N20: =COUNTIF(L7:L52,G3) -> 40 | P20: 8 | Q20: 7 | R20: 8 | S20: 8 | T20: 7 | U20: 8
A21: 11 | B21: 1513 | C21: 21 | D21: 1528 | K21: 0 | L21: 12 | P21: % of reinforcement given in 6 equal intervals based on number of trials
A22: 11 | B22: 1615 | C22: 21 | D22: 1664 | K22: 0 | L22: 12 | P22: %_1 | Q22: %_2 | R22: %_3 | S22: %_4 | T22: %_5 | U22: %_6
A23: 11 | B23: 1754 | C23: 21 | D23: 1769 | K23: 0 | L23: 12 | O23: target sequence | P23: =$G$3 -> 12 | Q23: =$G$3 -> 12 | R23: =$G$3 -> 12 | S23: =$G$3 -> 12 | T23: =$G$3 -> 12 | U23: =$G$3 -> 12
A24: 11 | B24: 1858 | C24: 21 | D24: 1872 | K24: 0 | L24: 12 | O24: total reinforcement | P24: =U8 -> 7 | Q24: =Z8 -> 7 | R24: =AE8 -> 7 | S24: =AJ8 -> 7 | T24: =AO8 -> 6 | U24: =AT8 -> 6
A25: 22 | B25: 1980 | C25: 23 | D25: 1993 | K25: 0 | L25: 22 | O25: % target
A26: 11 | B26: 2091 | C26: 21 | D26: 2136 | K26: 0 | L26: 12 | O26: CCRF
A27: 11 | B27: 2224 | C27: 21 | D27: 2317 | K27: 0 | L27: 12 | O27: % CCRf
A28: 11 | B28: 2405 | C28: 21 | D28: 2418 | K28: 0 | L28: 12 | O28: average response rate | P28: =D14/P20 -> 98.125 | Q28: =(D21-D14)/Q20 -> 106.1428571 | R28: =(D29-D21)/R20 -> 127.375 | S28: =(D37-D29)/S20 -> 108.375 | T28: =(D44-D37)/T20 -> 112.2857143 | U28: =(D52-D44)/U20 -> 106.375
A29: 11 | B29: 2507 | C29: 21 | D29: 2547 | K29: 0 | L29: 12
A30: 11 | B30: 2636 | C30: 21 | D30: 2649 | K30: 0 | L30: 12
A31: 11 | B31: 2737 | C31: 21 | D31: 2746 | K31: 0 | L31: 12
A32: 11 | B32: 2834 | C32: 21 | D32: 2847 | K32: 0 | L32: 12
A33: 11 | B33: 2933 | C33: 12 | D33: 2941 | K33: 0 | L33: 11
A34: 11 | B34: 3038 | C34: 21 | D34: 3052 | K34: 0 | L34: 12
A35: 11 | B35: 3141 | C35: 21 | D35: 3155 | K35: 0 | L35: 12
A36: 11 | B36: 3241 | C36: 21 | D36: 3268 | K36: 0 | L36: 12
A37: 11 | B37: 3355 | C37: 21 | D37: 3414 | K37: 0 | L37: 12
A38: 11 | B38: 3499 | C38: 21 | D38: 3524 | K38: 0 | L38: 12
A39: 11 | B39: 3617 | C39: 21 | D39: 3639 | K39: 0 | L39: 12
A40: 11 | B40: 3727 | C40: 21 | D40: 3743 | K40: 0 | L40: 12
A41: 11 | B41: 3830 | C41: 12 | D41: 3838 | K41: 0 | L41: 11
A42: 11 | B42: 3961 | C42: 21 | D42: 3996 | K42: 0 | L42: 12
A43: 11 | B43: 4084 | C43: 21 | D43: 4100 | K43: 0 | L43: 12
A44: 11 | B44: 4186 | C44: 21 | D44: 4200 | K44: 0 | L44: 12
A45: 11 | B45: 4287 | C45: 21 | D45: 4305 | K45: 0 | L45: 12
A46: 11 | B46: 4395 | C46: 21 | D46: 4409 | K46: 0 | L46: 12
A47: 11 | B47: 4501 | C47: 21 | D47: 4515 | K47: 0 | L47: 12
A48: 11 | B48: 4604 | C48: 12 | D48: 4608 | K48: 0 | L48: 11
A49: 11 | B49: 4706 | C49: 21 | D49: 4719 | K49: 0 | L49: 12
A50: 11 | B50: 4811 | C50: 21 | D50: 4829 | K50: 0 | L50: 12
A51: 22 | B51: 4931 | C51: 23 | D51: 4942 | K51: 0 | L51: 22
A52: 11 | B52: 5041 | C52: 21 | D52: 5051 | K52: 1 | L52: 12

Sheet !N109710.091
A1: Report for:!N109710.091
A2: Date: | B2: <date>
A3: Hen: | B3: <hen> | F3: Correct Sequence | G3: =Start!J2 -> 12 | P3: Total Sequences in Data | Q3: =4994-COUNTBLANK(L7:L5000) -> 48 | V3: Total Sequences in Block Data | W3: =COUNTA(L7:L14) -> 8 | AA3: Total Sequences in Block Data | AB3: =COUNTA(L15:L22) -> 8 | AF3: Total Sequences in Block Data | AG3: =COUNTA(L23:L30) -> 8 | AK3: Total Sequences in Block Data | AL3: =COUNTA(L31:L38) -> 8 | AP3: Total Sequences in Block Data | AQ3: =COUNTA(L39:L46) -> 8 | AU3: Total Sequences in Block Data | AV3: =COUNTA(L47:L54) -> 8
P4: Total Sequences in Summary | Q4: =SUM(O7:O14) -> 48 | V4: Total Sequences in Block Summary | W4: =SUM(U7:U14) -> 8 | AA4: Total Sequences in Block Summary | AB4: =SUM(Z7:Z14) -> 8 | AF4: Total Sequences in Block Summary | AG4: =SUM(AE7:AE14) -> 8 | AK4: Total Sequences in Block Summary | AL4: =SUM(AJ7:AJ14) -> 8 | AP4: Total Sequences in Block Summary | AQ4: =SUM(AO7:AO14) -> 8 | AU4: Total Sequences in Block Summary | AV4: =SUM(AT7:AT14) -> 8
T5: Block 1 | Y5: Block 2 | AD5: Block 3 | AI5: Block 4 | AN5: Block 5 | AS5: Block 6
A6: Sequence Component 1 | B6: Time 1 | C6: Sequence Component 2 | D6: Time 2 | E6: Sequence Component 3 | F6: Time 3 | G6: Sequence Component 4 | H6: Time 4 | I6: Sequence Component 5 | J6: Time 5 | K6: Correct? 0=No 1=Yes | L6: Sequence | N6: Frequency | P6: Relative Frequency | Q6: Variability | T6: Frequency | V6: Relative Frequency | W6: Variability | Y6: Frequency | AA6: Relative Frequency | AB6: Variability | AD6: Frequency | AF6: Relative Frequency | AG6: Variability | AI6: Frequency | AK6: Relative Frequency | AL6: Variability | AN6: Frequency | AP6: Relative Frequency | AQ6: Variability | AS6: Frequency | AU6: Relative Frequency | AV6: Variability
A7: 11 | B7: 22 | C7: 21 | D7: 32 | K7: 0 | L7: 12 | N7: 11 | O7: =COUNTIF($L$7:$L$500,N7) -> 6 | P7: =O7/$Q$4 -> 0.125 | Q7: =IF(P7=0,0,(P7*((LOG(P7))/LOG(2)))) -> -0.375 | T7: =N7 -> 11 | U7: =COUNTIF(L7:L14,T7) -> 2 | V7: =U7/(W4-U8) -> 1 | W7: =IF(V7=0,0,(V7*((LOG(V7))/LOG(2)))) -> 0 | Y7: =N7 -> 11 | Z7: =COUNTIF(L15:L22,Y7) -> 0 | AA7: =Z7/(AB4-Z8) ->  | AB7: =IF(AA7=0,0,(AA7*((LOG(AA7))/LOG(2)))) ->  | AD7: =N7 -> 11 | AE7: =COUNTIF(L23:L30,AD7) -> 1 | AF7: =AE7/(AG4-AE8) -> 1 | AG7: =IF(AF7=0,0,(AF7*((LOG(AF7))/LOG(2)))) -> 0 | AI7: =N7 -> 11 | AJ7: =COUNTIF(L31:L38,AI7) -> 2 | AK7: =AJ7/(AL4-AJ8) -> 1 | AL7: =IF(AK7=0,0,(AK7*((LOG(AK7))/LOG(2)))) -> 0 | AN7: =N7 -> 11 | AO7: =COUNTIF(L39:L46,AN7) -> 0 | AP7: =AO7/(AQ4-AO8) -> 0 | AQ7: =IF(AP7=0,0,(AP7*((LOG(AP7))/LOG(2)))) -> 0 | AS7: =N7 -> 11 | AT7: =COUNTIF(L47:L54,AS7) -> 1 | AU7: =AT7/(AV4-AT8) -> 1 | AV7: =IF(AU7=0,0,(AU7*((LOG(AU7))/LOG(2)))) -> 0
A8: 11 | B8: 118 | C8: 21 | D8: 132 | K8: 0 | L8: 12 | N8: 12 | O8: =COUNTIF($L$7:$L$500,N8) -> 40 | P8: =O8/$Q$4 -> 0.8333333333 | Q8: =IF(P8=0,0,(P8*((LOG(P8))/LOG(2)))) -> -0.2191953382 | T8: =N8 -> 12 | U8: =COUNTIF(L7:L14,T8) -> 6 | Y8: =N8 -> 12 | Z8: =COUNTIF(L15:L22,Y8) -> 8 | AD8: =N8 -> 12 | AE8: =COUNTIF(L23:L30,AD8) -> 7 | AI8: =N8 -> 12 | AJ8: =COUNTIF(L31:L38,AI8) -> 6 | AN8: =N8 -> 12 | AO8: =COUNTIF(L39:L46,AN8) -> 6 | AS8: =N8 -> 12 | AT8: =COUNTIF(L47:L54,AS8) -> 7
A9: 11 | B9: 222 | C9: 21 | D9: 243 | K9: 0 | L9: 12 | N9: 21 | O9: =COUNTIF($L$7:$L$500,N9) -> 1 | P9: =O9/$Q$4 -> 0.02083333333 | Q9: =IF(P9=0,0,(P9*((LOG(P9))/LOG(2)))) -> -0.1163533854 | T9: =N9 -> 21 | U9: =COUNTIF(L7:L14,T9) -> 0 | V9: =U9/(W4-U8) -> 0 | W9: =IF(V9=0,0,(V9*((LOG(V9))/LOG(2)))) -> 0 | Y9: =N9 -> 21 | Z9: =COUNTIF(L15:L22,Y9) -> 0 | AA9: =Z9/(AB4-Z8) ->  | AB9: =IF(AA9=0,0,(AA9*((LOG(AA9))/LOG(2)))) ->  | AD9: =N9 -> 21 | AE9: =COUNTIF(L23:L30,AD9) -> 0 | AF9: =AE9/(AG4-AE8) -> 0 | AG9: =IF(AF9=0,0,(AF9*((LOG(AF9))/LOG(2)))) -> 0 | AI9: =N9 -> 21 | AJ9: =COUNTIF(L31:L38,AI9) -> 0 | AK9: =AJ9/(AL4-AJ8) -> 0 | AL9: =IF(AK9=0,0,(AK9*((LOG(AK9))/LOG(2)))) -> 0 | AN9: =N9 -> 21 | AO9: =COUNTIF(L39:L46,AN9) -> 1 | AP9: =AO9/(AQ4-AO8) -> 0.5 | AQ9: =IF(AP9=0,0,(AP9*((LOG(AP9))/LOG(2)))) -> -0.5 | AS9: =N9 -> 21 | AT9: =COUNTIF(L47:L54,AS9) -> 0 | AU9: =AT9/(AV4-AT8) -> 0 | AV9: =IF(AU9=0,0,(AU9*((LOG(AU9))/LOG(2)))) -> 0
A10: 11 | B10: 331 | C10: 12 | D10: 337 | K10: 0 | L10: 11 | N10: 22 | O10: =COUNTIF($L$7:$L$500,N10) -> 1 | P10: =O10/$Q$4 -> 0.02083333333 | Q10: =IF(P10=0,0,(P10*((LOG(P10))/LOG(2)))) -> -0.1163533854 | T10: =N10 -> 22 | U10: =COUNTIF(L7:L14,T10) -> 0 | V10: =U10/(W4-U8) -> 0 | W10: =IF(V10=0,0,(V10*((LOG(V10))/LOG(2)))) -> 0 | Y10: =N10 -> 22 | Z10: =COUNTIF(L15:L22,Y10) -> 0 | AA10: =Z10/(AB4-Z8) ->  | AB10: =IF(AA10=0,0,(AA10*((LOG(AA10))/LOG(2)))) ->  | AD10: =N10 -> 22 | AE10: =COUNTIF(L23:L30,AD10) -> 0 | AF10: =AE10/(AG4-AE8) -> 0 | AG10: =IF(AF10=0,0,(AF10*((LOG(AF10))/LOG(2)))) -> 0 | AI10: =N10 -> 22 | AJ10: =COUNTIF(L31:L38,AI10) -> 0 | AK10: =AJ10/(AL4-AJ8) -> 0 | AL10: =IF(AK10=0,0,(AK10*((LOG(AK10))/LOG(2)))) -> 0 | AN10: =N10 -> 22 | AO10: =COUNTIF(L39:L46,AN10) -> 1 | AP10: =AO10/(AQ4-AO8) -> 0.5 | AQ10: =IF(AP10=0,0,(AP10*((LOG(AP10))/LOG(2)))) -> -0.5 | AS10: =N10 -> 22 | AT10: =COUNTIF(L47:L54,AS10) -> 0 | AU10: =AT10/(AV4-AT8) -> 0 | AV10: =IF(AU10=0,0,(AU10*((LOG(AU10))/LOG(2)))) -> 0
A11: 11 | B11: 442 | C11: 21 | D11: 515 | K11: 0 | L11: 12 | T11: =N11 -> 0 | U11: =COUNTIF(L7:L14,T11) -> 0 | V11: =U11/(W4-U8) -> 0 | W11: =IF(V11=0,0,(V11*((LOG(V11))/LOG(2)))) -> 0 | Y11: =N11 -> 0 | Z11: =COUNTIF(L15:L22,Y11) -> 0 | AA11: =Z11/(AB4-Z8) ->  | AB11: =IF(AA11=0,0,(AA11*((LOG(AA11))/LOG(2)))) ->  | AD11: =N11 -> 0 | AE11: =COUNTIF(L23:L30,AD11) -> 0 | AF11: =AE11/(AG4-AE8) -> 0 | AG11: =IF(AF11=0,0,(AF11*((LOG(AF11))/LOG(2)))) -> 0 | AI11: =N11 -> 0 | AJ11: =COUNTIF(L31:L38,AI11) -> 0 | AK11: =AJ11/(AL4-AJ8) -> 0 | AL11: =IF(AK11=0,0,(AK11*((LOG(AK11))/LOG(2)))) -> 0 | AN11: =N11 -> 0 | AO11: =COUNTIF(L39:L46,AN11) -> 0 | AP11: =AO11/(AQ4-AO8) -> 0 | AQ11: =IF(AP11=0,0,(AP11*((LOG(AP11))/LOG(2)))) -> 0 | AS11: =N11 -> 0 | AT11: =COUNTIF(L47:L54,AS11) -> 0 | AU11: =AT11/(AV4-AT8) -> 0 | AV11: =IF(AU11=0,0,(AU11*((LOG(AU11))/LOG(2)))) -> 0
A12: 11 | B12: 606 | C12: 21 | D12: 629 | K12: 0 | L12: 12 | T12: =N12 -> 0 | U12: =COUNTIF(L7:L14,T12) -> 0 | V12: =U12/(W4-U8) -> 0 | W12: =IF(V12=0,0,(V12*((LOG(V12))/LOG(2)))) -> 0 | Y12: =N12 -> 0 | Z12: =COUNTIF(L15:L22,Y12) -> 0 | AA12: =Z12/(AB4-Z8) ->  | AB12: =IF(AA12=0,0,(AA12*((LOG(AA12))/LOG(2)))) ->  | AD12: =N12 -> 0 | AE12: =COUNTIF(L23:L30,AD12) -> 0 | AF12: =AE12/(AG4-AE8) -> 0 | AG12: =IF(AF12=0,0,(AF12*((LOG(AF12))/LOG(2)))) -> 0 | AI12: =N12 -> 0 | AJ12: =COUNTIF(L31:L38,AI12) -> 0 | AK12: =AJ12/(AL4-AJ8) -> 0 | AL12: =IF(AK12=0,0,(AK12*((LOG(AK12))/LOG(2)))) -> 0 | AN12: =N12 -> 0 | AO12: =COUNTIF(L39:L46,AN12) -> 0 | AP12: =AO12/(AQ4-AO8) -> 0 | AQ12: =IF(AP12=0,0,(AP12*((LOG(AP12))/LOG(2)))) -> 0 | AS12: =N12 -> 0 | AT12: =COUNTIF(L47:L54,AS12) -> 0 | AU12: =AT12/(AV4-AT8) -> 0 | AV12: =IF(AU12=0,0,(AU12*((LOG(AU12))/LOG(2)))) -> 0
A13: 11 | B13: 716 | C13: 12 | D13: 724 | K13: 0 | L13: 11 | T13: =N13 -> 0 | U13: =COUNTIF(L7:L14,T13) -> 0 | V13: =U13/(W4-U8) -> 0 | W13: =IF(V13=0,0,(V13*((LOG(V13))/LOG(2)))) -> 0 | Y13: =N13 -> 0 | Z13: =COUNTIF(L15:L22,Y13) -> 0 | AA13: =Z13/(AB4-Z8) ->  | AB13: =IF(AA13=0,0,(AA13*((LOG(AA13))/LOG(2)))) ->  | AD13: =N13 -> 0 | AE13: =COUNTIF(L23:L30,AD13) -> 0 | AF13: =AE13/(AG4-AE8) -> 0 | AG13: =IF(AF13=0,0,(AF13*((LOG(AF13))/LOG(2)))) -> 0 | AI13: =N13 -> 0 | AJ13: =COUNTIF(L31:L38,AI13) -> 0 | AK13: =AJ13/(AL4-AJ8) -> 0 | AL13: =IF(AK13=0,0,(AK13*((LOG(AK13))/LOG(2)))) -> 0 | AN13: =N13 -> 0 | AO13: =COUNTIF(L39:L46,AN13) -> 0 | AP13: =AO13/(AQ4-AO8) -> 0 | AQ13: =IF(AP13=0,0,(AP13*((LOG(AP13))/LOG(2)))) -> 0 | AS13: =N13 -> 0 | AT13: =COUNTIF(L47:L54,AS13) -> 0 | AU13: =AT13/(AV4-AT8) -> 0 | AV13: =IF(AU13=0,0,(AU13*((LOG(AU13))/LOG(2)))) -> 0
A14: 11 | B14: 822 | C14: 21 | D14: 843 | K14: 0 | L14: 12 | T14: =N14 -> 0 | U14: =COUNTIF(L7:L14,T14) -> 0 | V14: =U14/(W4-U8) -> 0 | W14: =IF(V14=0,0,(V14*((LOG(V14))/LOG(2)))) -> 0 | Y14: =N14 -> 0 | Z14: =COUNTIF(L15:L22,Y14) -> 0 | AA14: =Z14/(AB4-Z8) ->  | AB14: =IF(AA14=0,0,(AA14*((LOG(AA14))/LOG(2)))) ->  | AD14: =N14 -> 0 | AE14: =COUNTIF(L23:L30,AD14) -> 0 | AF14: =AE14/(AG4-AE8) -> 0 | AG14: =IF(AF14=0,0,(AF14*((LOG(AF14))/LOG(2)))) -> 0 | AI14: =N14 -> 0 | AJ14: =COUNTIF(L31:L38,AI14) -> 0 | AK14: =AJ14/(AL4-AJ8) -> 0 | AL14: =IF(AK14=0,0,(AK14*((LOG(AK14))/LOG(2)))) -> 0 | AN14: =N14 -> 0 | AO14: =COUNTIF(L39:L46,AN14) -> 0 | AP14: =AO14/(AQ4-AO8) -> 0 | AQ14: =IF(AP14=0,0,(AP14*((LOG(AP14))/LOG(2)))) -> 0 | AS14: =N14 -> 0 | AT14: =COUNTIF(L47:L54,AS14) -> 0 | AU14: =AT14/(AV4-AT8) -> 0 | AV14: =IF(AU14=0,0,(AU14*((LOG(AU14))/LOG(2)))) -> 0
A15: 11 | B15: 934 | C15: 21 | D15: 949 | K15: 0 | L15: 12 | P15: =SUM(P7:P14) -> 1 | Q15: =-SUM(Q7:Q14) -> 0.8269021091 | V15: =SUM(V7:V14) -> 1 | W15: =-SUM(W7:W14) -> 0 | AA15: =SUM(AA7:AA14) ->  | AB15: =-SUM(AB7:AB14) ->  | AF15: =SUM(AF7:AF14) -> 1 | AG15: =-SUM(AG7:AG14) -> 0 | AK15: =SUM(AK7:AK14) -> 1 | AL15: =-SUM(AL7:AL14) -> 0 | AP15: =SUM(AP7:AP14) -> 1 | AQ15: =-SUM(AQ7:AQ14) -> 1 | AU15: =SUM(AU7:AU14) -> 1 | AV15: =-SUM(AV7:AV14) -> 0
A16: 11 | B16: 1038 | C16: 21 | D16: 1050 | K16: 0 | L16: 12 | P16: U= | Q16: =Q15/(LOG(Q4)/LOG(2)) -> 0.1480586681 | V16: U1= | W16: =W15/(LOG(W4)/LOG(2)) -> 0 | AA16: U2= | AB16: =AB15/(LOG(AB4)/LOG(2)) ->  | AF16: U3= | AG16: =AG15/(LOG(AG4)/LOG(2)) -> 0 | AK16: U4= | AL16: =AL15/(LOG(AL4)/LOG(2)) -> 0 | AP16: U5= | AQ16: =AQ15/(LOG(AQ4)/LOG(2)) -> 0.3333333333 | AU16: U6= | AV16: =AV15/(LOG(AV4)/LOG(2)) -> 0
A17: 11 | B17: 1139 | C17: 21 | D17: 1166 | K17: 0 | L17: 12
A18: 11 | B18: 1260 | C18: 21 | D18: 1297 | K18: 0 | L18: 12
A19: 11 | B19: 1388 | C19: 21 | D19: 1403 | K19: 0 | L19: 12 | N19: Total Target Seq
A20: 11 | B20: 1497 | C20: 21 | D20: 1510 | K20: 0 | L20: 12 | N20: =COUNTIF(L7:L54,G3) -> 40 | P20: 8 | Q20: 8 | R20: 8 | S20: 8 | T20: 8 | U20: 8
A21: 11 | B21: 1600 | C21: 21 | D21: 1617 | K21: 0 | L21: 12 | P21: % of reinforcement given in 6 equal intervals based on number of trials
A22: 11 | B22: 1710 | C22: 21 | D22: 1725 | K22: 0 | L22: 12 | P22: %_1 | Q22: %_2 | R22: %_3 | S22: %_4 | T22: %_5 | U22: %_6
A23: 11 | B23: 1814 | C23: 21 | D23: 1830 | K23: 0 | L23: 12 | O23: target sequence | P23: =$G$3 -> 12 | Q23: =$G$3 -> 12 | R23: =$G$3 -> 12 | S23: =$G$3 -> 12 | T23: =$G$3 -> 12 | U23: =$G$3 -> 12
A24: 11 | B24: 1923 | C24: 21 | D24: 1981 | K24: 0 | L24: 12 | O24: total reinforcement | P24: =U8 -> 6 | Q24: =Z8 -> 8 | R24: =AE8 -> 7 | S24: =AJ8 -> 6 | T24: =AO8 -> 6 | U24: =AT8 -> 7
A25: 11 | B25: 2069 | C25: 12 | D25: 2077 | K25: 0 | L25: 11 | O25: % target
A26: 11 | B26: 2177 | C26: 21 | D26: 2191 | K26: 0 | L26: 12 | O26: CCRF
A27: 11 | B27: 2282 | C27: 21 | D27: 2303 | K27: 0 | L27: 12 | O27: % CCRf
A28: 11 | B28: 2394 | C28: 21 | D28: 2417 | K28: 0 | L28: 12 | O28: average response rate | P28: =D14/P20 -> 105.375 | Q28: =(D22-D14)/Q20 -> 110.25 | R28: =(D30-D22)/R20 -> 111.625 | S28: =(D38-D30)/S20 -> 106.875 | T28: =(D46-D38)/T20 -> 120.125 | U28: =(D54-D46)/U20 -> 116
A29: 11 | B29: 2505 | C29: 21 | D29: 2516 | K29: 0 | L29: 12
A30: 11 | B30: 2603 | C30: 21 | D30: 2618 | K30: 0 | L30: 12
A31: 11 | B31: 2708 | C31: 21 | D31: 2735 | K31: 0 | L31: 12
A32: 11 | B32: 2828 | C32: 21 | D32: 2842 | K32: 0 | L32: 12
A33: 11 | B33: 2931 | C33: 21 | D33: 2945 | K33: 0 | L33: 12
A34: 11 | B34: 3036 | C34: 21 | D34: 3052 | K34: 0 | L34: 12
A35: 11 | B35: 3142 | C35: 12 | D35: 3159 | K35: 0 | L35: 11
A36: 11 | B36: 3260 | C36: 21 | D36: 3273 | K36: 0 | L36: 12
A37: 11 | B37: 3365 | C37: 21 | D37: 3379 | K37: 0 | L37: 12
A38: 11 | B38: 3468 | C38: 12 | D38: 3473 | K38: 0 | L38: 11
A39: 22 | B39: 3596 | C39: 23 | D39: 3637 | K39: 0 | L39: 22
A40: 11 | B40: 3738 | C40: 21 | D40: 3753 | K40: 0 | L40: 12
A41: 11 | B41: 3842 | C41: 21 | D41: 3863 | K41: 0 | L41: 12
A42: 11 | B42: 3954 | C42: 21 | D42: 3966 | K42: 0 | L42: 12
A43: 11 | B43: 4074 | C43: 21 | D43: 4105 | K43: 0 | L43: 12
A44: 11 | B44: 4195 | C44: 21 | D44: 4208 | K44: 0 | L44: 12
A45: 22 | B45: 4309 | C45: 14 | D45: 4318 | K45: 0 | L45: 21
A46: 11 | B46: 4418 | C46: 21 | D46: 4434 | K46: 0 | L46: 12
A47: 11 | B47: 4525 | C47: 21 | D47: 4548 | K47: 0 | L47: 12
A48: 11 | B48: 4641 | C48: 12 | D48: 4684 | K48: 0 | L48: 11
A49: 11 | B49: 4783 | C49: 21 | D49: 4794 | K49: 0 | L49: 12
A50: 11 | B50: 4899 | C50: 21 | D50: 4912 | K50: 0 | L50: 12
A51: 11 | B51: 5005 | C51: 21 | D51: 5014 | K51: 0 | L51: 12
A52: 11 | B52: 5124 | C52: 21 | D52: 5153 | K52: 0 | L52: 12
A53: 11 | B53: 5244 | C53: 21 | D53: 5256 | K53: 0 | L53: 12
A54: 11 | B54: 5349 | C54: 21 | D54: 5362 | K54: 1 | L54: 12

Sheet !N110820.091
A1: Report for:!N110820.091
A2: Date: | B2: <date>
A3: Hen: | B3: <hen> | F3: Correct Sequence | G3: =Start!J2 -> 12 | P3: Total Sequences in Data | Q3: =4994-COUNTBLANK(L7:L5000) -> 42 | V3: Total Sequences in Block Data | W3: =COUNTA(L7:L13) -> 7 | AA3: Total Sequences in Block Data | AB3: =COUNTA(L14:L20) -> 7 | AF3: Total Sequences in Block Data | AG3: =COUNTA(L21:L27) -> 7 | AK3: Total Sequences in Block Data | AL3: =COUNTA(L28:L34) -> 7 | AP3: Total Sequences in Block Data | AQ3: =COUNTA(L35:L41) -> 7 | AU3: Total Sequences in Block Data | AV3: =COUNTA(L42:L48) -> 7
P4: Total Sequences in Summary | Q4: =SUM(O7:O14) -> 42 | V4: Total Sequences in Block Summary | W4: =SUM(U7:U14) -> 7 | AA4: Total Sequences in Block Summary | AB4: =SUM(Z7:Z14) -> 7 | AF4: Total Sequences in Block Summary | AG4: =SUM(AE7:AE14) -> 7 | AK4: Total Sequences in Block Summary | AL4: =SUM(AJ7:AJ14) -> 7 | AP4: Total Sequences in Block Summary | AQ4: =SUM(AO7:AO14) -> 7 | AU4: Total Sequences in Block Summary | AV4: =SUM(AT7:AT14) -> 7
T5: Block 1 | Y5: Block 2 | AD5: Block 3 | AI5: Block 4 | AN5: Block 5 | AS5: Block 6
A6: Sequence Component 1 | B6: Time 1 | C6: Sequence Component 2 | D6: Time 2 | E6: Sequence Component 3 | F6: Time 3 | G6: Sequence Component 4 | H6: Time 4 | I6: Sequence Component 5 | J6: Time 5 | K6: Correct? 0=No 1=Yes | L6: Sequence | N6: Frequency | P6: Relative Frequency | Q6: Variability | T6: Frequency | V6: Relative Frequency | W6: Variability | Y6: Frequency | AA6: Relative Frequency | AB6: Variability | AD6: Frequency | AF6: Relative Frequency | AG6: Variability | AI6: Frequency | AK6: Relative Frequency | AL6: Variability | AN6: Frequency | AP6: Relative Frequency | AQ6: Variability | AS6: Frequency | AU6: Relative Frequency | AV6: Variability
A7: 11 | B7: 13 | C7: 12 | D7: 36 | K7: 0 | L7: 11 | N7: 11 | O7: =COUNTIF($L$7:$L$500,N7) -> 1 | P7: =O7/$Q$4 -> 0.02380952381 | Q7: =IF(P7=0,0,(P7*((LOG(P7))/LOG(2)))) -> -0.1283885101 | T7: =N7 -> 11 | U7: =COUNTIF(L7:L13,T7) -> 1 | V7: =U7/(W4-U8) -> 1 | W7: =IF(V7=0,0,(V7*((LOG(V7))/LOG(2)))) -> 0 | Y7: =N7 -> 11 | Z7: =COUNTIF(L14:L20,Y7) -> 0 | AA7: =Z7/(AB4-Z8) -> 0 | AB7: =IF(AA7=0,0,(AA7*((LOG(AA7))/LOG(2)))) -> 0 | AD7: =N7 -> 11 | AE7: =COUNTIF(L21:L27,AD7) -> 0 | AF7: =AE7/(AG4-AE8) ->  | AG7: =IF(AF7=0,0,(AF7*((LOG(AF7))/LOG(2)))) ->  | AI7: =N7 -> 11 | AJ7: =COUNTIF(L28:L34,AI7) -> 0 | AK7: =AJ7/(AL4-AJ8) ->  | AL7: =IF(AK7=0,0,(AK7*((LOG(AK7))/LOG(2)))) ->  | AN7: =N7 -> 11 | AO7: =COUNTIF(L35:L41,AN7) -> 0 | AP7: =AO7/(AQ4-AO8) ->  | AQ7: =IF(AP7=0,0,(AP7*((LOG(AP7))/LOG(2)))) ->  | AS7: =N7 -> 11 | AT7: =COUNTIF(L42:L48,AS7) -> 0 | AU7: =AT7/(AV4-AT8) ->  | AV7: =IF(AU7=0,0,(AU7*((LOG(AU7))/LOG(2)))) -> 
A8: 11 | B8: 140 | C8: 21 | D8: 153 | K8: 0 | L8: 12 | N8: 12 | O8: =COUNTIF($L$7:$L$500,N8) -> 40 | P8: =O8/$Q$4 -> 0.9523809524 | Q8: =IF(P8=0,0,(P8*((LOG(P8))/LOG(2)))) -> -0.06703745513 | T8: =N8 -> 12 | U8: =COUNTIF(L7:L13,T8) -> 6 | Y8: =N8 -> 12 | Z8: =COUNTIF(L14:L20,Y8) -> 6 | AD8: =N8 -> 12 | AE8: =COUNTIF(L21:L27,AD8) -> 7 | AI8: =N8 -> 12 | AJ8: =COUNTIF(L28:L34,AI8) -> 7 | AN8: =N8 -> 12 | AO8: =COUNTIF(L35:L41,AN8) -> 7 | AS8: =N8 -> 12 | AT8: =COUNTIF(L42:L48,AS8) -> 7
A9: 11 | B9: 240 | C9: 21 | D9: 251 | K9: 0 | L9: 12 | N9: 21 | O9: =COUNTIF($L$7:$L$500,N9) -> 0 | P9: =O9/$Q$4 -> 0 | Q9: =IF(P9=0,0,(P9*((LOG(P9))/LOG(2)))) -> 0 | T9: =N9 -> 21 | U9: =COUNTIF(L7:L13,T9) -> 0 | V9: =U9/(W4-U8) -> 0 | W9: =IF(V9=0,0,(V9*((LOG(V9))/LOG(2)))) -> 0 | Y9: =N9 -> 21 | Z9: =COUNTIF(L14:L20,Y9) -> 0 | AA9: =Z9/(AB4-Z8) -> 0 | AB9: =IF(AA9=0,0,(AA9*((LOG(AA9))/LOG(2)))) -> 0 | AD9: =N9 -> 21 | AE9: =COUNTIF(L21:L27,AD9) -> 0 | AF9: =AE9/(AG4-AE8) ->  | AG9: =IF(AF9=0,0,(AF9*((LOG(AF9))/LOG(2)))) ->  | AI9: =N9 -> 21 | AJ9: =COUNTIF(L28:L34,AI9) -> 0 | AK9: =AJ9/(AL4-AJ8) ->  | AL9: =IF(AK9=0,0,(AK9*((LOG(AK9))/LOG(2)))) ->  | AN9: =N9 -> 21 | AO9: =COUNTIF(L35:L41,AN9) -> 0 | AP9: =AO9/(AQ4-AO8) ->  | AQ9: =IF(AP9=0,0,(AP9*((LOG(AP9))/LOG(2)))) ->  | AS9: =N9 -> 21 | AT9: =COUNTIF(L42:L48,AS9) -> 0 | AU9: =AT9/(AV4-AT8) ->  | AV9: =IF(AU9=0,0,(AU9*((LOG(AU9))/LOG(2)))) -> 
